Workbook

Sheet ACCUEILPRO
A1: Accueil
F7: =ACCUEIL!F7 -> 2021-03-14

Sheet ACCUEILPREM
A1: Accueil
F7: =ACCUEIL!F7 -> 2021-03-14

Sheet ACCUEILGP
A1: Accueil
F7: =ACCUEIL!F7 -> 2021-03-14

Sheet ACCUEIL
F7: 2021-03-14

Sheet Accueilagence
A1: Accueil
E7: =ACCUEIL!F7 -> 2021-03-14

Sheet Accueilsecteur
A1: Accueil
E7: =ACCUEIL!F7 -> 2021-03-14

Sheet AccueilDircom
A1: Accueil
E7: =ACCUEIL!F7 -> 2021-03-14

Sheet DC_FICHE
A1: Accueil
A2: BAROMETRE BDD
A4: UNITE: | B4: DIRECTION REGIONALE | E4: ETP perf : | F4: =VLOOKUP(A5,'RECAP DIRCOM'!$G$6:$I$12,3,FALSE) -> 268.24
A5: =VLOOKUP(B5,LISTES!$M$6:$N$12,2,FALSE) -> 262 | B5: BAS-RHIN
C6: Coefficient du critére | E6: Résultats | I6: Ecart au 1ier | M6: Evolution | O6: Rang
E7: du 1ier | G7: DIRECTION | I7: Du mois | K7: Au 31/12/2019
A9: RANG au CLASSEMENT GENERAL | K9: =VLOOKUP($A$5,'RECAP DIRCOM AN'!$G$6:$FS$312,168,FALSE) -> 6 | M9: =+K9-O9 ->  | O9: =VLOOKUP($A$5,'RECAP DIRCOM'!$G$6:$DG$312,168,FALSE) -> 
A11: CRITERE CLIENTS | C11: 15% | O11: =VLOOKUP($A$5,'RECAP DIRCOM'!$G$6:$DG$312,23,FALSE) -> 9.51023921
B12: PNB Evolution nette Clients BP | C12: 4% | E12: ='RECAP DIRCOM'!#REF! ->  | G12: =VLOOKUP($A$5,'RECAP DIRCOM'!$G$6:$DG$312,6,FALSE) -> 0.5 | I12: =VLOOKUP($A$5,'RECAP DIRCOM'!$G$6:$DG$312,7,FALSE) -> 600% | K12: =VLOOKUP($A$5,'RECAP DIRCOM AN'!$G$6:$FS$312,7,FALSE) -> 130% | M12: =+K12-I12 -> -470% | O12: =VLOOKUP($A$5,'RECAP DIRCOM'!$G$6:$DG$312,8,FALSE) -> 0.4968651572
B13: PNB Evolution nette Clients PREMIUM | C13: 5% | E13: ='RECAP DIRCOM'!#REF! ->  | G13: =VLOOKUP($A$5,'RECAP DIRCOM'!$G$6:$DG$312,10,FALSE) -> 6.0 | I13: =VLOOKUP($A$5,'RECAP DIRCOM'!$G$6:$DG$312,11,FALSE) -> 38% | K13: =VLOOKUP($A$5,'RECAP DIRCOM AN'!$G$6:$FS$312,11,FALSE) -> 1% | M13: =+K13-I13 -> -37% | O13: =VLOOKUP($A$5,'RECAP DIRCOM'!$G$6:$DG$312,12,FALSE) -> 0.3608800573
B14: PNB Evolution nette Clients Jeunes Equipés | C14: 3% | E14: ='RECAP DIRCOM'!#REF! ->  | G14: =VLOOKUP($A$5,'RECAP DIRCOM'!$G$6:$DG$312,14,FALSE) -> 0.0 | I14: =VLOOKUP($A$5,'RECAP DIRCOM'!$G$6:$DG$312,15,FALSE) -> 0% | K14: =VLOOKUP($A$5,'RECAP DIRCOM AN'!$G$6:$FS$312,15,FALSE) -> 69% | M14: =+K14-I14 -> 69% | O14: =VLOOKUP($A$5,'RECAP DIRCOM'!$G$6:$DG$312,16,FALSE) -> 0
B15: PNB Evolution nette Clients Pro Actifs Equipés | C15: 3% | E15: ='RECAP DIRCOM'!W4 -> 0.0 | G15: =VLOOKUP($A$5,'RECAP DIRCOM'!$G$6:$DG$312,18,FALSE) -> 5319.3 | I15: =VLOOKUP($A$5,'RECAP DIRCOM'!$G$6:$DG$312,19,FALSE) -> 1983% | K15: =VLOOKUP($A$5,'RECAP DIRCOM AN'!$G$6:$FS$312,19,FALSE) -> 0% | M15: =+K15-I15 -> -1983% | O15: =VLOOKUP($A$5,'RECAP DIRCOM'!$G$6:$DG$312,20,FALSE) -> 0
A17: CRITERE BANCARISATION | C17: 15% | O17: =VLOOKUP($A$5,'RECAP DIRCOM'!$G$6:$DG$312,48,FALSE) -> 2
B18: PNB Ventes nettes forfaits | C18: 4% | E18: ='RECAP DIRCOM'!X4 -> 19.8 | G18: =VLOOKUP($A$5,'RECAP DIRCOM'!$G$6:$DG$312,31,FALSE) -> -0.4 | I18: =VLOOKUP($A$5,'RECAP DIRCOM'!$G$6:$DG$312,32,FALSE) -> 43% | K18: =VLOOKUP($A$5,'RECAP DIRCOM AN'!$G$6:$FS$312,32,FALSE) -> 126% | M18: =+K18-I18 -> 83% | O18: =VLOOKUP($A$5,'RECAP DIRCOM'!$G$6:$DG$312,33,FALSE) -> 7
B19: PNB Ventes nettes IZICARTES Débit Différé | C19: 4% | E19: ='RECAP DIRCOM'!AB4 -> 10.9 | G19: =VLOOKUP($A$5,'RECAP DIRCOM'!$G$6:$DG$312,35,FALSE) -> 0.0 | I19: =VLOOKUP($A$5,'RECAP DIRCOM'!$G$6:$DG$312,36,FALSE) -> 100% | K19: =VLOOKUP($A$5,'RECAP DIRCOM AN'!$G$6:$FS$312,36,FALSE) -> 0% | M19: =+K19-I19 -> -100% | O19: =VLOOKUP($A$5,'RECAP DIRCOM'!$G$6:$DG$312,37,FALSE) -> 0
B20: PNB Ventes nettes cartes HDG Débit Différé | C20: 4% | E20: ='RECAP DIRCOM'!AF4 -> 3.0 | G20: =VLOOKUP($A$5,'RECAP DIRCOM'!$G$6:$DG$312,39,FALSE) -> 0.0 | I20: =VLOOKUP($A$5,'RECAP DIRCOM'!$G$6:$DG$312,40,FALSE) -> 0% | K20: =VLOOKUP($A$5,'RECAP DIRCOM AN'!$G$6:$FS$312,40,FALSE) -> 0% | M20: =+K20-I20 -> 0% | O20: =VLOOKUP($A$5,'RECAP DIRCOM'!$G$6:$DG$312,41,FALSE) -> 50029.95591
B21: PNB Ventes nettes Forfaits Pro, Carte pro | C21: 3% | E21: ='RECAP DIRCOM'!AJ4 -> -0.2 | G21: =VLOOKUP($A$5,'RECAP DIRCOM'!$G$6:$DG$312,43,FALSE) -> 0.1 | I21: =VLOOKUP($A$5,'RECAP DIRCOM'!$G$6:$DG$312,44,FALSE) -> 200% | K21: =VLOOKUP($A$5,'RECAP DIRCOM AN'!$G$6:$FS$312,44,FALSE) -> 44% | M21: =+K21-I21 -> -156% | O21: =VLOOKUP($A$5,'RECAP DIRCOM'!$G$6:$DG$312,45,FALSE) -> 1585
A23: CRITERE EPARGNE | C23: 10% | O23: =VLOOKUP($A$5,'RECAP DIRCOM'!$G$6:$DG$312,69,FALSE) -> 0.3564631029
B24: PNB Epargne Liquide | C24: 3% | E24: ='RECAP DIRCOM'!AU4 -> 198.0 | G24: =VLOOKUP($A$5,'RECAP DIRCOM'!$G$6:$DG$312,56,FALSE) -> 7052.6 | I24: =VLOOKUP($A$5,'RECAP DIRCOM'!$G$6:$DG$312,57,FALSE) -> 2629% | K24: =VLOOKUP($A$5,'RECAP DIRCOM AN'!$G$6:$FS$312,57,FALSE) -> 23% | M24: =+K24-I24 -> -2606% | O24: =VLOOKUP($A$5,'RECAP DIRCOM'!$G$6:$DG$312,58,FALSE) -> 0.5042816862
B25: PNB CA UC + arbitrage | C25: 4% | E25: ='RECAP DIRCOM'!AY4 -> 6.7 | G25: =VLOOKUP($A$5,'RECAP DIRCOM'!$G$6:$DG$312,60,FALSE) -> 3399.6 | I25: =VLOOKUP($A$5,'RECAP DIRCOM'!$G$6:$DG$312,61,FALSE) -> 1267% | K25: =VLOOKUP($A$5,'RECAP DIRCOM AN'!$G$6:$FS$312,61,FALSE) -> 0% | M25: =+K25-I25 -> -1267% | O25: =VLOOKUP($A$5,'RECAP DIRCOM'!$G$6:$DG$312,62,FALSE) -> 0.1248114056
B26: PNB Excédent assurance vie | C26: 3% | E26: ='RECAP DIRCOM'!#REF! ->  | G26: =VLOOKUP($A$5,'RECAP DIRCOM'!$G$6:$DG$312,64,FALSE) -> 791.0 | I26: =VLOOKUP($A$5,'RECAP DIRCOM'!$G$6:$DG$312,65,FALSE) -> 295% | K26: =VLOOKUP($A$5,'RECAP DIRCOM AN'!$G$6:$FS$312,65,FALSE) -> 63% | M26: =+K26-I26 -> -232% | O26: =VLOOKUP($A$5,'RECAP DIRCOM'!$G$6:$DG$312,66,FALSE) -> 0.3910233558
A28: CRITERE CREDITS | C28: 15% | O28: =VLOOKUP($A$5,'RECAP DIRCOM'!$G$6:$DG$312,102,FALSE) -> 0.1474996264
B29: PNB crédit conso | C29: 4% | E29: ='RECAP DIRCOM'!BJ4 -> 53.0 | G29: =VLOOKUP($A$5,'RECAP DIRCOM'!$G$6:$DG$312,77,FALSE) -> 0.0 | I29: =VLOOKUP($A$5,'RECAP DIRCOM'!$G$6:$DG$312,78,FALSE) -> 100% | K29: =VLOOKUP($A$5,'RECAP DIRCOM AN'!$G$6:$FS$312,78,FALSE) -> 29% | M29: =+K29-I29 -> -71% | O29: =VLOOKUP($A$5,'RECAP DIRCOM'!$G$6:$DG$312,79,FALSE) -> 2374
B30: PNB ADE crédit conso | C30: 1% | E30: ='RECAP DIRCOM'!#REF! ->  | G30: =VLOOKUP($A$5,'RECAP DIRCOM'!$G$6:$DG$312,81,FALSE) -> 0.1 | I30: =VLOOKUP($A$5,'RECAP DIRCOM'!$G$6:$DG$312,82,FALSE) -> 200% | K30: =VLOOKUP($A$5,'RECAP DIRCOM AN'!$G$6:$FS$312,82,FALSE) -> 29% | M30: -171% | O30: =VLOOKUP($A$5,'RECAP DIRCOM'!$G$6:$DG$312,83,FALSE) -> 0.03934222023
B31: PNB crédit immo | C31: 4% | E31: ='RECAP DIRCOM'!BN4 -> 14.5 | G31: =VLOOKUP($A$5,'RECAP DIRCOM'!$G$6:$DG$312,85,FALSE) -> 2.0 | I31: =VLOOKUP($A$5,'RECAP DIRCOM'!$G$6:$DG$312,86,FALSE) -> 0% | K31: =VLOOKUP($A$5,'RECAP DIRCOM AN'!$G$6:$FS$312,86,FALSE) -> 33% | M31: 33% | O31: =VLOOKUP($A$5,'RECAP DIRCOM'!$G$6:$DG$312,87,FALSE) -> 0
B32: PNB ADE crédit immo | C32: 2% | E32: ='RECAP DIRCOM'!#REF! ->  | G32: =VLOOKUP($A$5,'RECAP DIRCOM'!$G$6:$DG$312,89,FALSE) -> 0.0 | I32: =VLOOKUP($A$5,'RECAP DIRCOM'!$G$6:$DG$312,90,FALSE) -> 0% | K32: =VLOOKUP($A$5,'RECAP DIRCOM AN'!$G$6:$FS$312,90,FALSE) -> 47% | M32: 47% | O32: =VLOOKUP($A$5,'RECAP DIRCOM'!$G$6:$DG$312,91,FALSE) -> 0
B33: PNB SACCEF | C33: 2% | E33: ='RECAP DIRCOM'!#REF! ->  | G33: =VLOOKUP($A$5,'RECAP DIRCOM'!$G$6:$DG$312,93,FALSE) -> 0.0 | I33: =VLOOKUP($A$5,'RECAP DIRCOM'!$G$6:$DG$312,94,FALSE) -> 0% | K33: =VLOOKUP($A$5,'RECAP DIRCOM AN'!$G$6:$FS$312,94,FALSE) -> 36% | M33: 36% | O33: =VLOOKUP($A$5,'RECAP DIRCOM'!$G$6:$DG$312,95,FALSE) -> 0
B34: PNB Crédit MLT + Crédit Bail | C34: 2% | E34: ='RECAP DIRCOM'!BR4 -> 4.8 | G34: =VLOOKUP($A$5,'RECAP DIRCOM'!$G$6:$DG$312,97,FALSE) -> 0.0 | I34: =VLOOKUP($A$5,'RECAP DIRCOM'!$G$6:$DG$312,98,FALSE) -> 0% | K34: =VLOOKUP($A$5,'RECAP DIRCOM AN'!$G$6:$FS$312,98,FALSE) -> 0% | M34: 0% | O34: =VLOOKUP($A$5,'RECAP DIRCOM'!$G$6:$DG$312,99,FALSE) -> 0
A36: CRITERE IARD PREVOYANCE | C36: 15% | O36: =VLOOKUP($A$5,'RECAP DIRCOM'!$G$6:$DG$312,119,FALSE) -> 
B37: PNB Ventes nettes IARD | C37: 9% | E37: ='RECAP DIRCOM'!CC4 -> 53.8 | G37: =VLOOKUP($A$5,'RECAP DIRCOM'!$G$6:$DG$312,110,FALSE) ->  | I37: =VLOOKUP($A$5,'RECAP DIRCOM'!$G$6:$DG$312,111,FALSE) ->  | K37: =VLOOKUP($A$5,'RECAP DIRCOM AN'!$G$6:$FS$312,111,FALSE) -> 69% | M37: =+K37-I37 ->  | O37: =VLOOKUP($A$5,'RECAP DIRCOM'!$G$6:$DG$312,112,FALSE) -> 
B38: PNB Ventes nettes Prévoyance | C38: 6% | E38: ='RECAP DIRCOM'!CG4 -> 10.2 | G38: =VLOOKUP($A$5,'RECAP DIRCOM'!$G$6:$DG$312,114,FALSE) ->  | I38: =VLOOKUP($A$5,'RECAP DIRCOM'!$G$6:$DG$312,115,FALSE) ->  | K38: =VLOOKUP($A$5,'RECAP DIRCOM AN'!$G$6:$FS$312,115,FALSE) -> 42% | M38: =+K38-I38 ->  | O38: =VLOOKUP($A$5,'RECAP DIRCOM'!$G$6:$DG$312,116,FALSE) -> 
A40: CRITERE ACCELERATEURS PNB | C40: 15% | O40: =VLOOKUP($A$5,'RECAP DIRCOM'!$G$6:$DG$312,144,FALSE) -> 
B41: PNB Ventes brutes SED Finalisées | C41: 6% | E41: ='RECAP DIRCOM'!#REF! ->  | G41: =VLOOKUP($A$5,'RECAP DIRCOM'!$G$6:$DG$312,127,FALSE) ->  | I41: =VLOOKUP($A$5,'RECAP DIRCOM'!$G$6:$DG$312,128,FALSE) ->  | K41: =VLOOKUP($A$5,'RECAP DIRCOM AN'!$G$6:$FS$312,128,FALSE) -> 11% | M41: =+K41-I41 ->  | O41: =VLOOKUP($A$5,'RECAP DIRCOM'!$G$6:$DG$312,129,FALSE) -> 
B42: PNB clients équipés E documents | C42: 3% | E42: ='RECAP DIRCOM'!#REF! ->  | G42: =VLOOKUP($A$5,'RECAP DIRCOM'!$G$6:$DG$312,131,FALSE) ->  | I42: =VLOOKUP($A$5,'RECAP DIRCOM'!$G$6:$DG$312,132,FALSE) ->  | K42: =VLOOKUP($A$5,'RECAP DIRCOM AN'!$G$6:$FS$312,132,FALSE) -> 0% | M42: =+K42-I42 ->  | O42: =VLOOKUP($A$5,'RECAP DIRCOM'!$G$6:$DG$312,133,FALSE) -> 
B43: Economie opt'in | C43: 3% | E43: ='RECAP DIRCOM'!#REF! ->  | G43: =VLOOKUP($A$5,'RECAP DIRCOM'!$G$6:$DG$312,135,FALSE) ->  | I43: =VLOOKUP($A$5,'RECAP DIRCOM'!$G$6:$DG$312,136,FALSE) ->  | K43: =VLOOKUP($A$5,'RECAP DIRCOM AN'!$G$6:$FS$312,136,FALSE) -> 2% | M43: =+K43-I43 ->  | O43: =VLOOKUP($A$5,'RECAP DIRCOM'!$G$6:$DG$312,137,FALSE) -> 
B44: Remises commerciales | C44: 3% | E44: ='RECAP DIRCOM'!#REF! ->  | G44: =VLOOKUP($A$5,'RECAP DIRCOM'!$G$6:$DG$312,139,FALSE) ->  | I44: =VLOOKUP($A$5,'RECAP DIRCOM'!$G$6:$DG$312,140,FALSE) ->  | K44: =VLOOKUP($A$5,'RECAP DIRCOM AN'!$G$6:$FS$312,140,FALSE) -> 17% | M44: =+K44-I44 ->  | O44: =VLOOKUP($A$5,'RECAP DIRCOM'!$G$6:$DG$312,141,FALSE) -> 
A46: CRITERE Qualité-Satisfaction Clients | C46: 15% | O46: =VLOOKUP($A$5,'RECAP DIRCOM'!$G$6:$DG$312,159,FALSE) -> 
B47: Objectifs NPS* | C47: 8% | E47: ='RECAP DIRCOM'!K4 -> 17 | G47: =VLOOKUP($A$5,'RECAP DIRCOM'!$G$6:$DG$312,151,FALSE) ->  | I47: =VLOOKUP($A$5,'RECAP DIRCOM'!$G$6:$DG$312,152,FALSE) ->  | K47: =VLOOKUP($A$5,'RECAP DIRCOM AN'!$G$6:$FS$312,152,FALSE) -> 150% | M47: =+K47-I47 ->  | O47: =VLOOKUP($A$5,'RECAP DIRCOM'!$G$6:$DG$312,153,FALSE) -> 
B48: Enquête Qualité Haute Définition | C48: 7% | E48: ='RECAP DIRCOM'!N4 -> 64% | G48: =VLOOKUP($A$5,'RECAP DIRCOM'!$G$6:$DG$312,154,FALSE) ->  | I48: =VLOOKUP($A$5,'RECAP DIRCOM'!$G$6:$DG$312,155,FALSE) ->  | K48: =VLOOKUP($A$5,'RECAP DIRCOM AN'!$G$6:$FS$312,155,FALSE) -> 8% | M48: =+K48-I48 ->  | O48: =VLOOKUP($A$5,'RECAP DIRCOM'!$G$6:$DG$312,156,FALSE) -> 

Sheet DC_TOTAL
B1: Accueil | D1: BAROMETRE BDD - DIRECTIONS REGIONALES
D2: TOTAL GENERAL
D3: =ACCUEIL!F7 -> 2021-03-14
D7: TOTAL GENERAL | G7: Total Satisfaction Clients | J7: Total Bancarisation | M7: Total Epargne | P7: Total IARD Prévoyance | S7: Total Crédits
E8: coef | F8: 100% | H8: coef | I8: =DC_SATISFACTION!L8 -> 20% | K8: coef | L8: =DC_BANCA!V8 -> 20% | N8: coef | O8: =DC_EPARGNE!N8 -> 20% | Q8: coef | R8: =DC_IARD!N8 -> 20% | T8: coef | U8: =DC_CREDIT!R8 -> 20%
A9: eds | B9: Direction | C9: ="ETP perf "&DATEMAJ!$C$28 -> ETP perf 31-janv | D9: Moyenne ecart au 1er | E9: % Ecart au 1er | F9: Rang CEGEE | G9: Moyenne ecart au 1er | H9: % Ecart au 1er | I9: Rang CEGEE | J9: Moyenne ecart au 1er | K9: % Ecart au 1er | L9: Rang CEGEE | M9: Moyenne ecart au 1er | N9: % Ecart au 1er | O9: Rang CEGEE | P9: Moyenne ecart au 1er | Q9: % Ecart au 1er | R9: Rang CEGEE | S9: Moyenne ecart au 1er | T9: % Ecart au 1er | U9: Rang CEGEE
A10: 50 | B10: Meurthe et Moselle Meuse | C10: 249 | D10: 9% | E10: 0% | F10: 1 | G10: 23% | H10: 21% | I10: 4 | J10: 24% | K10: 8% | L10: 2 | M10: 24% | N10: 16% | O10: 4 | P10: 2% | Q10: 0% | R10: 1 | S10: 0% | T10: 0% | U10: 1
A11: 262 | B11: Vosges | C11: 137 | D11: 14% | E11: 5% | F11: 2 | G11: 2% | H11: 0% | I11: 1 | J11: 41% | K11: 25% | L11: 6 | M11: 12% | N11: 4% | O11: 2 | P11: 9% | Q11: 7% | R11: 3 | S11: 35% | T11: 35% | U11: 5
A12: 264 | B12: Bas-Rhin | C12: 268 | D12: 15% | E12: 6% | F12: 3 | G12: 38% | H12: 36% | I12: 6 | J12: 16% | K12: 0% | L12: 1 | M12: 8% | N12: 0% | O12: 1 | P12: 4% | Q12: 2% | R12: 2 | S12: 36% | T12: 36% | U12: 6
A13: 30 | B13: Moselle | C13: 280 | D13: 20% | E13: 11% | F13: 4 | G13: 31% | H13: 30% | I13: 5 | J13: 34% | K13: 18% | L13: 4 | M13: 21% | N13: 13% | O13: 3 | P13: 15% | Q13: 13% | R13: 4 | S13: 28% | T13: 28% | U13: 3
A14: 110 | B14: Marne-Ardennes | C14: 232 | D14: 23% | E14: 13% | F14: 5 | G14: 15% | H14: 13% | I14: 2 | J14: 29% | K14: 13% | L14: 3 | M14: 39% | N14: 31% | O14: 5 | P14: 40% | Q14: 38% | R14: 7 | S14: 17% | T14: 17% | U14: 2
A15: 160 | B15: Aube Haute Marne | C15: 132 | D15: 29% | E15: 20% | F15: 6 | G15: 19% | H15: 17% | I15: 3 | J15: 36% | K15: 20% | L15: 5 | M15: 53% | N15: 45% | O15: 7 | P15: 30% | Q15: 29% | R15: 5 | S15: 34% | T15: 34% | U15: 4
A16: 80 | B16: Haut-Rhin | C16: 162 | D16: 42% | E16: 33% | F16: 7 | G16: 53% | H16: 51% | I16: 7 | J16: 59% | K16: 43% | L16: 7 | M16: 40% | N16: 32% | O16: 6 | P16: 33% | Q16: 32% | R16: 6 | S16: 52% | T16: 52% | U16: 7
B17: Total CEGEE Directions Régionales | C17: =SUM(C10:C16) -> 1460

Sheet DC_BANCA
B1: Accueil | D1: BAROMETRE BDD - DIRECTIONS REGIONALES
D2: BANCARISATION
D3: =ACCUEIL!F7 -> 2021-03-14
D7: Ventes Nettes produits pondérés | H7: Ventes sur client non détenteur de l’univers | L7: Mobilité Macron | P7: Remises commerciales | T7: Total Bancarisation
D8: =DATEMAJ!C8 -> au 14/03 | F8: coef | G8: ='RECAP DIRCOM'!AA4 -> 10% | H8: =DATEMAJ!C9 -> au 14/03 | J8: coef | K8: ='RECAP DIRCOM'!AE4 -> 4% | L8: =DATEMAJ!C10 -> au 14/03 | N8: coef | O8: ='RECAP DIRCOM'!AI4 -> 3% | P8: =DATEMAJ!C11 -> au 31/01 | R8: coef | S8: ='RECAP DIRCOM'!AM4 -> 3% | U8: coef | V8: ='RECAP DIRCOM'!AP4 -> 20%
B9: Direction | C9: ="ETP perf "&DATEMAJ!$C$28 -> ETP perf 31-janv | D9: VN | E9: VN / ETP | F9: % Ecart au 1er | G9: Rang | H9: VB | I9: VB / ETP | J9: % Ecart au 1er | K9: Rang | L9: Nb | M9: Nb / ETP | N9: % Ecart au 1er | O9: Rang | P9: Montant | Q9: Montant / ETP | R9: % Ecart au 1er | S9: Rang | T9: Moyenne ecart au 1er | U9: % Ecart au 1er | V9: Rang CEGEE
A10: 50 | B10: Aube Haute Marne | C10: =VLOOKUP($A10,'RECAP DIRCOM'!$G$6:$DC$12,3,FALSE) -> 132 | D10: =VLOOKUP($A10,'RECAP DIRCOM'!$G$6:$DC$12,18,FALSE) -> 1,399 | E10: =VLOOKUP($A10,'RECAP DIRCOM'!$G$6:$DC$12,19,FALSE) -> 10.63 | F10: =VLOOKUP($A10,'RECAP DIRCOM'!$G$6:$DC$12,20,FALSE) -> 46% | G10: =VLOOKUP($A10,'RECAP DIRCOM'!$G$6:$DC$12,21,FALSE) -> 5 | H10: =VLOOKUP($A10,'RECAP DIRCOM'!$G$6:$DC$12,22,FALSE) -> 1,123 | I10: =VLOOKUP($A10,'RECAP DIRCOM'!$G$6:$DC$12,23,FALSE) -> 8.53 | J10: =VLOOKUP($A10,'RECAP DIRCOM'!$G$6:$DC$12,24,FALSE) -> 22% | K10: =VLOOKUP($A10,'RECAP DIRCOM'!$G$6:$DC$12,25,FALSE) -> 5 | L10: =VLOOKUP($A10,'RECAP DIRCOM'!$G$6:$DC$12,26,FALSE) -> 167 | M10: =VLOOKUP($A10,'RECAP DIRCOM'!$G$6:$DC$12,27,FALSE) -> 1.27 | N10: =VLOOKUP($A10,'RECAP DIRCOM'!$G$6:$DC$12,28,FALSE) -> 58% | O10: =VLOOKUP($A10,'RECAP DIRCOM'!$G$6:$DC$12,29,FALSE) -> 5 | P10: =VLOOKUP($A10,'RECAP DIRCOM'!$G$6:$DC$12,30,FALSE) -> -32 | Q10: =VLOOKUP($A10,'RECAP DIRCOM'!$G$6:$DC$12,31,FALSE) -> -0.25 | R10: =VLOOKUP($A10,'RECAP DIRCOM'!$G$6:$DC$12,32,FALSE) -> 0% | S10: =VLOOKUP($A10,'RECAP DIRCOM'!$G$6:$DC$12,33,FALSE) -> 1 | T10: =VLOOKUP($A10,'RECAP DIRCOM'!$G$6:$DC$12,34,FALSE) -> 36% | U10: =VLOOKUP($A10,'RECAP DIRCOM'!$G$6:$DC$12,35,FALSE) -> 20% | V10: =VLOOKUP($A10,'RECAP DIRCOM'!$G$6:$DC$12,36,FALSE) -> 5
A11: 262 | B11: Bas-Rhin | C11: =VLOOKUP($A11,'RECAP DIRCOM'!$G$6:$DC$12,3,FALSE) -> 268 | D11: =VLOOKUP($A11,'RECAP DIRCOM'!$G$6:$DC$12,18,FALSE) -> 5,319 | E11: =VLOOKUP($A11,'RECAP DIRCOM'!$G$6:$DC$12,19,FALSE) -> 19.83 | F11: =VLOOKUP($A11,'RECAP DIRCOM'!$G$6:$DC$12,20,FALSE) -> 0% | G11: =VLOOKUP($A11,'RECAP DIRCOM'!$G$6:$DC$12,21,FALSE) -> 1 | H11: =VLOOKUP($A11,'RECAP DIRCOM'!$G$6:$DC$12,22,FALSE) -> 2,551 | I11: =VLOOKUP($A11,'RECAP DIRCOM'!$G$6:$DC$12,23,FALSE) -> 9.51 | J11: =VLOOKUP($A11,'RECAP DIRCOM'!$G$6:$DC$12,24,FALSE) -> 13% | K11: =VLOOKUP($A11,'RECAP DIRCOM'!$G$6:$DC$12,25,FALSE) -> 3 | L11: =VLOOKUP($A11,'RECAP DIRCOM'!$G$6:$DC$12,26,FALSE) -> 429 | M11: =VLOOKUP($A11,'RECAP DIRCOM'!$G$6:$DC$12,27,FALSE) -> 1.60 | N11: =VLOOKUP($A11,'RECAP DIRCOM'!$G$6:$DC$12,28,FALSE) -> 47% | O11: =VLOOKUP($A11,'RECAP DIRCOM'!$G$6:$DC$12,29,FALSE) -> 3 | P11: =VLOOKUP($A11,'RECAP DIRCOM'!$G$6:$DC$12,30,FALSE) -> -94 | Q11: =VLOOKUP($A11,'RECAP DIRCOM'!$G$6:$DC$12,31,FALSE) -> -0.35 | R11: =VLOOKUP($A11,'RECAP DIRCOM'!$G$6:$DC$12,32,FALSE) -> 43% | S11: =VLOOKUP($A11,'RECAP DIRCOM'!$G$6:$DC$12,33,FALSE) -> 7 | T11: =VLOOKUP($A11,'RECAP DIRCOM'!$G$6:$DC$12,34,FALSE) -> 16% | U11: =VLOOKUP($A11,'RECAP DIRCOM'!$G$6:$DC$12,35,FALSE) -> 0% | V11: =VLOOKUP($A11,'RECAP DIRCOM'!$G$6:$DC$12,36,FALSE) -> 1
A12: 264 | B12: Haut-Rhin | C12: =VLOOKUP($A12,'RECAP DIRCOM'!$G$6:$DC$12,3,FALSE) -> 162 | D12: =VLOOKUP($A12,'RECAP DIRCOM'!$G$6:$DC$12,18,FALSE) -> 776 | E12: =VLOOKUP($A12,'RECAP DIRCOM'!$G$6:$DC$12,19,FALSE) -> 4.80 | F12: =VLOOKUP($A12,'RECAP DIRCOM'!$G$6:$DC$12,20,FALSE) -> 76% | G12: =VLOOKUP($A12,'RECAP DIRCOM'!$G$6:$DC$12,21,FALSE) -> 7 | H12: =VLOOKUP($A12,'RECAP DIRCOM'!$G$6:$DC$12,22,FALSE) -> 1,118 | I12: =VLOOKUP($A12,'RECAP DIRCOM'!$G$6:$DC$12,23,FALSE) -> 6.92 | J12: =VLOOKUP($A12,'RECAP DIRCOM'!$G$6:$DC$12,24,FALSE) -> 37% | K12: =VLOOKUP($A12,'RECAP DIRCOM'!$G$6:$DC$12,25,FALSE) -> 7 | L12: =VLOOKUP($A12,'RECAP DIRCOM'!$G$6:$DC$12,26,FALSE) -> 110 | M12: =VLOOKUP($A12,'RECAP DIRCOM'!$G$6:$DC$12,27,FALSE) -> 0.68 | N12: =VLOOKUP($A12,'RECAP DIRCOM'!$G$6:$DC$12,28,FALSE) -> 77% | O12: =VLOOKUP($A12,'RECAP DIRCOM'!$G$6:$DC$12,29,FALSE) -> 7 | P12: =VLOOKUP($A12,'RECAP DIRCOM'!$G$6:$DC$12,30,FALSE) -> -45 | Q12: =VLOOKUP($A12,'RECAP DIRCOM'!$G$6:$DC$12,31,FALSE) -> -0.28 | R12: =VLOOKUP($A12,'RECAP DIRCOM'!$G$6:$DC$12,32,FALSE) -> 13% | S12: =VLOOKUP($A12,'RECAP DIRCOM'!$G$6:$DC$12,33,FALSE) -> 3 | T12: =VLOOKUP($A12,'RECAP DIRCOM'!$G$6:$DC$12,34,FALSE) -> 59% | U12: =VLOOKUP($A12,'RECAP DIRCOM'!$G$6:$DC$12,35,FALSE) -> 43% | V12: =VLOOKUP($A12,'RECAP DIRCOM'!$G$6:$DC$12,36,FALSE) -> 7
A13: 30 | B13: Marne-Ardennes | C13: =VLOOKUP($A13,'RECAP DIRCOM'!$G$6:$DC$12,3,FALSE) -> 232 | D13: =VLOOKUP($A13,'RECAP DIRCOM'!$G$6:$DC$12,18,FALSE) -> 2,547 | E13: =VLOOKUP($A13,'RECAP DIRCOM'!$G$6:$DC$12,19,FALSE) -> 10.97 | F13: =VLOOKUP($A13,'RECAP DIRCOM'!$G$6:$DC$12,20,FALSE) -> 45% | G13: =VLOOKUP($A13,'RECAP DIRCOM'!$G$6:$DC$12,21,FALSE) -> 4 | H13: =VLOOKUP($A13,'RECAP DIRCOM'!$G$6:$DC$12,22,FALSE) -> 2,304 | I13: =VLOOKUP($A13,'RECAP DIRCOM'!$G$6:$DC$12,23,FALSE) -> 9.92 | J13: =VLOOKUP($A13,'RECAP DIRCOM'!$G$6:$DC$12,24,FALSE) -> 9% | K13: =VLOOKUP($A13,'RECAP DIRCOM'!$G$6:$DC$12,25,FALSE) -> 2 | L13: =VLOOKUP($A13,'RECAP DIRCOM'!$G$6:$DC$12,26,FALSE) -> 629 | M13: =VLOOKUP($A13,'RECAP DIRCOM'!$G$6:$DC$12,27,FALSE) -> 2.71 | N13: =VLOOKUP($A13,'RECAP DIRCOM'!$G$6:$DC$12,28,FALSE) -> 10% | O13: =VLOOKUP($A13,'RECAP DIRCOM'!$G$6:$DC$12,29,FALSE) -> 2 | P13: =VLOOKUP($A13,'RECAP DIRCOM'!$G$6:$DC$12,30,FALSE) -> -72 | Q13: =VLOOKUP($A13,'RECAP DIRCOM'!$G$6:$DC$12,31,FALSE) -> -0.31 | R13: =VLOOKUP($A13,'RECAP DIRCOM'!$G$6:$DC$12,32,FALSE) -> 25% | S13: =VLOOKUP($A13,'RECAP DIRCOM'!$G$6:$DC$12,33,FALSE) -> 6 | T13: =VLOOKUP($A13,'RECAP DIRCOM'!$G$6:$DC$12,34,FALSE) -> 29% | U13: =VLOOKUP($A13,'RECAP DIRCOM'!$G$6:$DC$12,35,FALSE) -> 13% | V13: =VLOOKUP($A13,'RECAP DIRCOM'!$G$6:$DC$12,36,FALSE) -> 3
A14: 110 | B14: Meurthe et Moselle Meuse | C14: =VLOOKUP($A14,'RECAP DIRCOM'!$G$6:$DC$12,3,FALSE) -> 249 | D14: =VLOOKUP($A14,'RECAP DIRCOM'!$G$6:$DC$12,18,FALSE) -> 2,918 | E14: =VLOOKUP($A14,'RECAP DIRCOM'!$G$6:$DC$12,19,FALSE) -> 11.71 | F14: =VLOOKUP($A14,'RECAP DIRCOM'!$G$6:$DC$12,20,FALSE) -> 41% | G14: =VLOOKUP($A14,'RECAP DIRCOM'!$G$6:$DC$12,21,FALSE) -> 3 | H14: =VLOOKUP($A14,'RECAP DIRCOM'!$G$6:$DC$12,22,FALSE) -> 2,717 | I14: =VLOOKUP($A14,'RECAP DIRCOM'!$G$6:$DC$12,23,FALSE) -> 10.90 | J14: =VLOOKUP($A14,'RECAP DIRCOM'!$G$6:$DC$12,24,FALSE) -> 0% | K14: =VLOOKUP($A14,'RECAP DIRCOM'!$G$6:$DC$12,25,FALSE) -> 1 | L14: =VLOOKUP($A14,'RECAP DIRCOM'!$G$6:$DC$12,26,FALSE) -> 753 | M14: =VLOOKUP($A14,'RECAP DIRCOM'!$G$6:$DC$12,27,FALSE) -> 3.02 | N14: =VLOOKUP($A14,'RECAP DIRCOM'!$G$6:$DC$12,28,FALSE) -> 0% | O14: =VLOOKUP($A14,'RECAP DIRCOM'!$G$6:$DC$12,29,FALSE) -> 1 | P14: =VLOOKUP($A14,'RECAP DIRCOM'!$G$6:$DC$12,30,FALSE) -> -76 | Q14: =VLOOKUP($A14,'RECAP DIRCOM'!$G$6:$DC$12,31,FALSE) -> -0.30 | R14: =VLOOKUP($A14,'RECAP DIRCOM'!$G$6:$DC$12,32,FALSE) -> 24% | S14: =VLOOKUP($A14,'RECAP DIRCOM'!$G$6:$DC$12,33,FALSE) -> 5 | T14: =VLOOKUP($A14,'RECAP DIRCOM'!$G$6:$DC$12,34,FALSE) -> 24% | U14: =VLOOKUP($A14,'RECAP DIRCOM'!$G$6:$DC$12,35,FALSE) -> 8% | V14: =VLOOKUP($A14,'RECAP DIRCOM'!$G$6:$DC$12,36,FALSE) -> 2
A15: 160 | B15: Moselle | C15: =VLOOKUP($A15,'RECAP DIRCOM'!$G$6:$DC$12,3,FALSE) -> 280 | D15: =VLOOKUP($A15,'RECAP DIRCOM'!$G$6:$DC$12,18,FALSE) -> 3,439 | E15: =VLOOKUP($A15,'RECAP DIRCOM'!$G$6:$DC$12,19,FALSE) -> 12.30 | F15: =VLOOKUP($A15,'RECAP DIRCOM'!$G$6:$DC$12,20,FALSE) -> 38% | G15: =VLOOKUP($A15,'RECAP DIRCOM'!$G$6:$DC$12,21,FALSE) -> 2 | H15: =VLOOKUP($A15,'RECAP DIRCOM'!$G$6:$DC$12,22,FALSE) -> 2,445 | I15: =VLOOKUP($A15,'RECAP DIRCOM'!$G$6:$DC$12,23,FALSE) -> 8.74 | J15: =VLOOKUP($A15,'RECAP DIRCOM'!$G$6:$DC$12,24,FALSE) -> 20% | K15: =VLOOKUP($A15,'RECAP DIRCOM'!$G$6:$DC$12,25,FALSE) -> 4 | L15: =VLOOKUP($A15,'RECAP DIRCOM'!$G$6:$DC$12,26,FALSE) -> 324 | M15: =VLOOKUP($A15,'RECAP DIRCOM'!$G$6:$DC$12,27,FALSE) -> 1.16 | N15: =VLOOKUP($A15,'RECAP DIRCOM'!$G$6:$DC$12,28,FALSE) -> 62% | O15: =VLOOKUP($A15,'RECAP DIRCOM'!$G$6:$DC$12,29,FALSE) -> 6 | P15: =VLOOKUP($A15,'RECAP DIRCOM'!$G$6:$DC$12,30,FALSE) -> -76 | Q15: =VLOOKUP($A15,'RECAP DIRCOM'!$G$6:$DC$12,31,FALSE) -> -0.27 | R15: =VLOOKUP($A15,'RECAP DIRCOM'!$G$6:$DC$12,32,FALSE) -> 10% | S15: =VLOOKUP($A15,'RECAP DIRCOM'!$G$6:$DC$12,33,FALSE) -> 2 | T15: =VLOOKUP($A15,'RECAP DIRCOM'!$G$6:$DC$12,34,FALSE) -> 34% | U15: =VLOOKUP($A15,'RECAP DIRCOM'!$G$6:$DC$12,35,FALSE) -> 18% | V15: =VLOOKUP($A15,'RECAP DIRCOM'!$G$6:$DC$12,36,FALSE) -> 4
A16: 80 | B16: Vosges | C16: =VLOOKUP($A16,'RECAP DIRCOM'!$G$6:$DC$12,3,FALSE) -> 137 | D16: =VLOOKUP($A16,'RECAP DIRCOM'!$G$6:$DC$12,18,FALSE) -> 1,368 | E16: =VLOOKUP($A16,'RECAP DIRCOM'!$G$6:$DC$12,19,FALSE) -> 9.97 | F16: =VLOOKUP($A16,'RECAP DIRCOM'!$G$6:$DC$12,20,FALSE) -> 50% | G16: =VLOOKUP($A16,'RECAP DIRCOM'!$G$6:$DC$12,21,FALSE) -> 6 | H16: =VLOOKUP($A16,'RECAP DIRCOM'!$G$6:$DC$12,22,FALSE) -> 1,138 | I16: =VLOOKUP($A16,'RECAP DIRCOM'!$G$6:$DC$12,23,FALSE) -> 8.30 | J16: =VLOOKUP($A16,'RECAP DIRCOM'!$G$6:$DC$12,24,FALSE) -> 24% | K16: =VLOOKUP($A16,'RECAP DIRCOM'!$G$6:$DC$12,25,FALSE) -> 6 | L16: =VLOOKUP($A16,'RECAP DIRCOM'!$G$6:$DC$12,26,FALSE) -> 180 | M16: =VLOOKUP($A16,'RECAP DIRCOM'!$G$6:$DC$12,27,FALSE) -> 1.31 | N16: =VLOOKUP($A16,'RECAP DIRCOM'!$G$6:$DC$12,28,FALSE) -> 57% | O16: =VLOOKUP($A16,'RECAP DIRCOM'!$G$6:$DC$12,29,FALSE) -> 4 | P16: =VLOOKUP($A16,'RECAP DIRCOM'!$G$6:$DC$12,30,FALSE) -> -41 | Q16: =VLOOKUP($A16,'RECAP DIRCOM'!$G$6:$DC$12,31,FALSE) -> -0.30 | R16: =VLOOKUP($A16,'RECAP DIRCOM'!$G$6:$DC$12,32,FALSE) -> 22% | S16: =VLOOKUP($A16,'RECAP DIRCOM'!$G$6:$DC$12,33,FALSE) -> 4 | T16: =VLOOKUP($A16,'RECAP DIRCOM'!$G$6:$DC$12,34,FALSE) -> 41% | U16: =VLOOKUP($A16,'RECAP DIRCOM'!$G$6:$DC$12,35,FALSE) -> 25% | V16: =VLOOKUP($A16,'RECAP DIRCOM'!$G$6:$DC$12,36,FALSE) -> 6
B17: Total CEGEE Directions Régionales | C17: =SUM(C10:C16) -> 1460

Sheet DC_EPARGNE
B1: Accueil | D1: BAROMETRE BDD - DIRECTIONS REGIONALES
D2: EPARGNE
D3: =ACCUEIL!F7 -> 2021-03-14
D7: Excédent Epargne y/c DAV pondéré | H7: Ventes sur client non détenteur de l’univers | L7: Total Epargne
D8: =DATEMAJ!C14 -> au 14/03 | F8: coef | G8: ='RECAP DIRCOM'!AX4 -> 14% | H8: =DATEMAJ!C15 -> au 14/03 | J8: coef | K8: ='RECAP DIRCOM'!BB4 -> 6% | M8: coef | N8: ='RECAP DIRCOM'!BE4 -> 20%
B9: Direction | C9: ="ETP perf "&DATEMAJ!$C$28 -> ETP perf 31-janv | D9: Excédent | E9: Excédent / ETP | F9: % Ecart au 1er | G9: Rang | H9: VB | I9: VB / ETP | J9: % Ecart au 1er | K9: Rang | L9: Moyenne ecart au 1er | M9: % Ecart au 1er | N9: Rang CEGEE
A10: 50 | B10: Aube Haute Marne | C10: =VLOOKUP($A10,'RECAP DIRCOM'!$G$6:$DC$12,3,FALSE) -> 132 | D10: =VLOOKUP($A10,'RECAP DIRCOM'!$G$6:$DC$12,41,FALSE) -> 9,163 | E10: =VLOOKUP($A10,'RECAP DIRCOM'!$G$6:$DC$12,42,FALSE) -> 69.58 | F10: =VLOOKUP($A10,'RECAP DIRCOM'!$G$6:$DC$12,43,FALSE) -> 65% | G10: =VLOOKUP($A10,'RECAP DIRCOM'!$G$6:$DC$12,44,FALSE) -> 7 | H10: =VLOOKUP($A10,'RECAP DIRCOM'!$G$6:$DC$12,45,FALSE) -> 665 | I10: =VLOOKUP($A10,'RECAP DIRCOM'!$G$6:$DC$12,46,FALSE) -> 5.05 | J10: =VLOOKUP($A10,'RECAP DIRCOM'!$G$6:$DC$12,47,FALSE) -> 25% | K10: =VLOOKUP($A10,'RECAP DIRCOM'!$G$6:$DC$12,48,FALSE) -> 6 | L10: =VLOOKUP($A10,'RECAP DIRCOM'!$G$6:$DC$12,49,FALSE) -> 53% | M10: =VLOOKUP($A10,'RECAP DIRCOM'!$G$6:$DC$12,50,FALSE) -> 45% | N10: =VLOOKUP($A10,'RECAP DIRCOM'!$G$6:$DC$12,51,FALSE) -> 7
A11: 262 | B11: Bas-Rhin | C11: =VLOOKUP($A11,'RECAP DIRCOM'!$G$6:$DC$12,3,FALSE) -> 268 | D11: =VLOOKUP($A11,'RECAP DIRCOM'!$G$6:$DC$12,41,FALSE) -> 50,030 | E11: =VLOOKUP($A11,'RECAP DIRCOM'!$G$6:$DC$12,42,FALSE) -> 186.51 | F11: =VLOOKUP($A11,'RECAP DIRCOM'!$G$6:$DC$12,43,FALSE) -> 6% | G11: =VLOOKUP($A11,'RECAP DIRCOM'!$G$6:$DC$12,44,FALSE) -> 2 | H11: =VLOOKUP($A11,'RECAP DIRCOM'!$G$6:$DC$12,45,FALSE) -> 1,585 | I11: =VLOOKUP($A11,'RECAP DIRCOM'!$G$6:$DC$12,46,FALSE) -> 5.91 | J11: =VLOOKUP($A11,'RECAP DIRCOM'!$G$6:$DC$12,47,FALSE) -> 12% | K11: =VLOOKUP($A11,'RECAP DIRCOM'!$G$6:$DC$12,48,FALSE) -> 2 | L11: =VLOOKUP($A11,'RECAP DIRCOM'!$G$6:$DC$12,49,FALSE) -> 8% | M11: =VLOOKUP($A11,'RECAP DIRCOM'!$G$6:$DC$12,50,FALSE) -> 0% | N11: =VLOOKUP($A11,'RECAP DIRCOM'!$G$6:$DC$12,51,FALSE) -> 1
A12: 264 | B12: Haut-Rhin | C12: =VLOOKUP($A12,'RECAP DIRCOM'!$G$6:$DC$12,3,FALSE) -> 162 | D12: =VLOOKUP($A12,'RECAP DIRCOM'!$G$6:$DC$12,41,FALSE) -> 16,738 | E12: =VLOOKUP($A12,'RECAP DIRCOM'!$G$6:$DC$12,42,FALSE) -> 103.59 | F12: =VLOOKUP($A12,'RECAP DIRCOM'!$G$6:$DC$12,43,FALSE) -> 48% | G12: =VLOOKUP($A12,'RECAP DIRCOM'!$G$6:$DC$12,44,FALSE) -> 5 | H12: =VLOOKUP($A12,'RECAP DIRCOM'!$G$6:$DC$12,45,FALSE) -> 842 | I12: =VLOOKUP($A12,'RECAP DIRCOM'!$G$6:$DC$12,46,FALSE) -> 5.21 | J12: =VLOOKUP($A12,'RECAP DIRCOM'!$G$6:$DC$12,47,FALSE) -> 22% | K12: =VLOOKUP($A12,'RECAP DIRCOM'!$G$6:$DC$12,48,FALSE) -> 5 | L12: =VLOOKUP($A12,'RECAP DIRCOM'!$G$6:$DC$12,49,FALSE) -> 40% | M12: =VLOOKUP($A12,'RECAP DIRCOM'!$G$6:$DC$12,50,FALSE) -> 32% | N12: =VLOOKUP($A12,'RECAP DIRCOM'!$G$6:$DC$12,51,FALSE) -> 6
A13: 30 | B13: Marne-Ardennes | C13: =VLOOKUP($A13,'RECAP DIRCOM'!$G$6:$DC$12,3,FALSE) -> 232 | D13: =VLOOKUP($A13,'RECAP DIRCOM'!$G$6:$DC$12,41,FALSE) -> 20,669 | E13: =VLOOKUP($A13,'RECAP DIRCOM'!$G$6:$DC$12,42,FALSE) -> 89.04 | F13: =VLOOKUP($A13,'RECAP DIRCOM'!$G$6:$DC$12,43,FALSE) -> 55% | G13: =VLOOKUP($A13,'RECAP DIRCOM'!$G$6:$DC$12,44,FALSE) -> 6 | H13: =VLOOKUP($A13,'RECAP DIRCOM'!$G$6:$DC$12,45,FALSE) -> 1,558 | I13: =VLOOKUP($A13,'RECAP DIRCOM'!$G$6:$DC$12,46,FALSE) -> 6.71 | J13: =VLOOKUP($A13,'RECAP DIRCOM'!$G$6:$DC$12,47,FALSE) -> 0% | K13: =VLOOKUP($A13,'RECAP DIRCOM'!$G$6:$DC$12,48,FALSE) -> 1 | L13: =VLOOKUP($A13,'RECAP DIRCOM'!$G$6:$DC$12,49,FALSE) -> 39% | M13: =VLOOKUP($A13,'RECAP DIRCOM'!$G$6:$DC$12,50,FALSE) -> 31% | N13: =VLOOKUP($A13,'RECAP DIRCOM'!$G$6:$DC$12,51,FALSE) -> 5
A14: 110 | B14: Meurthe et Moselle Meuse | C14: =VLOOKUP($A14,'RECAP DIRCOM'!$G$6:$DC$12,3,FALSE) -> 249 | D14: =VLOOKUP($A14,'RECAP DIRCOM'!$G$6:$DC$12,41,FALSE) -> 35,193 | E14: =VLOOKUP($A14,'RECAP DIRCOM'!$G$6:$DC$12,42,FALSE) -> 141.19 | F14: =VLOOKUP($A14,'RECAP DIRCOM'!$G$6:$DC$12,43,FALSE) -> 29% | G14: =VLOOKUP($A14,'RECAP DIRCOM'!$G$6:$DC$12,44,FALSE) -> 4 | H14: =VLOOKUP($A14,'RECAP DIRCOM'!$G$6:$DC$12,45,FALSE) -> 1,449 | I14: =VLOOKUP($A14,'RECAP DIRCOM'!$G$6:$DC$12,46,FALSE) -> 5.81 | J14: =VLOOKUP($A14,'RECAP DIRCOM'!$G$6:$DC$12,47,FALSE) -> 13% | K14: =VLOOKUP($A14,'RECAP DIRCOM'!$G$6:$DC$12,48,FALSE) -> 3 | L14: =VLOOKUP($A14,'RECAP DIRCOM'!$G$6:$DC$12,49,FALSE) -> 24% | M14: =VLOOKUP($A14,'RECAP DIRCOM'!$G$6:$DC$12,50,FALSE) -> 16% | N14: =VLOOKUP($A14,'RECAP DIRCOM'!$G$6:$DC$12,51,FALSE) -> 4
A15: 160 | B15: Moselle | C15: =VLOOKUP($A15,'RECAP DIRCOM'!$G$6:$DC$12,3,FALSE) -> 280 | D15: =VLOOKUP($A15,'RECAP DIRCOM'!$G$6:$DC$12,41,FALSE) -> 44,026 | E15: =VLOOKUP($A15,'RECAP DIRCOM'!$G$6:$DC$12,42,FALSE) -> 157.46 | F15: =VLOOKUP($A15,'RECAP DIRCOM'!$G$6:$DC$12,43,FALSE) -> 20% | G15: =VLOOKUP($A15,'RECAP DIRCOM'!$G$6:$DC$12,44,FALSE) -> 3 | H15: =VLOOKUP($A15,'RECAP DIRCOM'!$G$6:$DC$12,45,FALSE) -> 1,481 | I15: =VLOOKUP($A15,'RECAP DIRCOM'!$G$6:$DC$12,46,FALSE) -> 5.30 | J15: =VLOOKUP($A15,'RECAP DIRCOM'!$G$6:$DC$12,47,FALSE) -> 21% | K15: =VLOOKUP($A15,'RECAP DIRCOM'!$G$6:$DC$12,48,FALSE) -> 4 | L15: =VLOOKUP($A15,'RECAP DIRCOM'!$G$6:$DC$12,49,FALSE) -> 21% | M15: =VLOOKUP($A15,'RECAP DIRCOM'!$G$6:$DC$12,50,FALSE) -> 13% | N15: =VLOOKUP($A15,'RECAP DIRCOM'!$G$6:$DC$12,51,FALSE) -> 3
A16: 80 | B16: Vosges | C16: =VLOOKUP($A16,'RECAP DIRCOM'!$G$6:$DC$12,3,FALSE) -> 137 | D16: =VLOOKUP($A16,'RECAP DIRCOM'!$G$6:$DC$12,41,FALSE) -> 27,164 | E16: =VLOOKUP($A16,'RECAP DIRCOM'!$G$6:$DC$12,42,FALSE) -> 198.02 | F16: =VLOOKUP($A16,'RECAP DIRCOM'!$G$6:$DC$12,43,FALSE) -> 0% | G16: =VLOOKUP($A16,'RECAP DIRCOM'!$G$6:$DC$12,44,FALSE) -> 1 | H16: =VLOOKUP($A16,'RECAP DIRCOM'!$G$6:$DC$12,45,FALSE) -> 551 | I16: =VLOOKUP($A16,'RECAP DIRCOM'!$G$6:$DC$12,46,FALSE) -> 4.02 | J16: =VLOOKUP($A16,'RECAP DIRCOM'!$G$6:$DC$12,47,FALSE) -> 40% | K16: =VLOOKUP($A16,'RECAP DIRCOM'!$G$6:$DC$12,48,FALSE) -> 7 | L16: =VLOOKUP($A16,'RECAP DIRCOM'!$G$6:$DC$12,49,FALSE) -> 12% | M16: =VLOOKUP($A16,'RECAP DIRCOM'!$G$6:$DC$12,50,FALSE) -> 4% | N16: =VLOOKUP($A16,'RECAP DIRCOM'!$G$6:$DC$12,51,FALSE) -> 2
B17: Total CEGEE Directions Régionales | C17: =SUM(C10:C16) -> 1460

Sheet DC_CREDIT
B1: Accueil | D1: BAROMETRE BDD - DIRECTIONS REGIONALES
D2: CREDITS
D3: =ACCUEIL!F7 -> 2021-03-14
D7: Engagements et ventes accessoires pondérés Immo | H7: Engagements et ventes accessoires pondérés Conso | L7: Ventes sur client non détenteur de l’univers | P7: Total Crédits
D8: =DATEMAJ!C18 -> au 14/03 | F8: coef | G8: ='RECAP DIRCOM'!BM4 -> 8% | H8: =DATEMAJ!C19 -> au 14/03 | J8: coef | K8: ='RECAP DIRCOM'!BQ4 -> 6% | L8: =DATEMAJ!C20 -> au 14/03 | N8: coef | O8: ='RECAP DIRCOM'!BU4 -> 6% | Q8: coef | R8: ='RECAP DIRCOM'!BX4 -> 20%
B9: Direction | C9: ="ETP perf "&DATEMAJ!$C$28 -> ETP perf 31-janv | D9: PNB | E9: PNB / ETP | F9: % Ecart au 1er | G9: Rang | H9: PNB | I9: PNB / ETP | J9: % Ecart au 1er | K9: Rang | L9: VB | M9: VB / ETP | N9: % Ecart au 1er | O9: Rang | P9: Moyenne ecart au 1er | Q9: % Ecart au 1er | R9: Rang CEGEE
A10: 50 | B10: Aube Haute Marne | C10: =VLOOKUP($A10,'RECAP DIRCOM'!$G$6:$DC$12,3,FALSE) -> 132 | D10: =VLOOKUP($A10,'RECAP DIRCOM'!$G$6:$DC$12,56,FALSE) -> 3,003 | E10: =VLOOKUP($A10,'RECAP DIRCOM'!$G$6:$DC$12,57,FALSE) -> 22.80 | F10: =VLOOKUP($A10,'RECAP DIRCOM'!$G$6:$DC$12,58,FALSE) -> 57% | G10: =VLOOKUP($A10,'RECAP DIRCOM'!$G$6:$DC$12,59,FALSE) -> 6 | H10: =VLOOKUP($A10,'RECAP DIRCOM'!$G$6:$DC$12,60,FALSE) -> 1,825 | I10: =VLOOKUP($A10,'RECAP DIRCOM'!$G$6:$DC$12,61,FALSE) -> 13.86 | J10: =VLOOKUP($A10,'RECAP DIRCOM'!$G$6:$DC$12,62,FALSE) -> 4% | K10: =VLOOKUP($A10,'RECAP DIRCOM'!$G$6:$DC$12,63,FALSE) -> 3 | L10: =VLOOKUP($A10,'RECAP DIRCOM'!$G$6:$DC$12,64,FALSE) -> 425 | M10: =VLOOKUP($A10,'RECAP DIRCOM'!$G$6:$DC$12,65,FALSE) -> 3.23 | N10: =VLOOKUP($A10,'RECAP DIRCOM'!$G$6:$DC$12,66,FALSE) -> 33% | O10: =VLOOKUP($A10,'RECAP DIRCOM'!$G$6:$DC$12,67,FALSE) -> 4 | P10: =VLOOKUP($A10,'RECAP DIRCOM'!$G$6:$DC$12,68,FALSE) -> 34% | Q10: =VLOOKUP($A10,'RECAP DIRCOM'!$G$6:$DC$12,69,FALSE) -> 34% | R10: =VLOOKUP($A10,'RECAP DIRCOM'!$G$6:$DC$12,70,FALSE) -> 4
A11: 262 | B11: Bas-Rhin | C11: =VLOOKUP($A11,'RECAP DIRCOM'!$G$6:$DC$12,3,FALSE) -> 268 | D11: =VLOOKUP($A11,'RECAP DIRCOM'!$G$6:$DC$12,56,FALSE) -> 7,053 | E11: =VLOOKUP($A11,'RECAP DIRCOM'!$G$6:$DC$12,57,FALSE) -> 26.29 | F11: =VLOOKUP($A11,'RECAP DIRCOM'!$G$6:$DC$12,58,FALSE) -> 50% | G11: =VLOOKUP($A11,'RECAP DIRCOM'!$G$6:$DC$12,59,FALSE) -> 5 | H11: =VLOOKUP($A11,'RECAP DIRCOM'!$G$6:$DC$12,60,FALSE) -> 3,400 | I11: =VLOOKUP($A11,'RECAP DIRCOM'!$G$6:$DC$12,61,FALSE) -> 12.67 | J11: =VLOOKUP($A11,'RECAP DIRCOM'!$G$6:$DC$12,62,FALSE) -> 12% | K11: =VLOOKUP($A11,'RECAP DIRCOM'!$G$6:$DC$12,63,FALSE) -> 4 | L11: =VLOOKUP($A11,'RECAP DIRCOM'!$G$6:$DC$12,64,FALSE) -> 791 | M11: =VLOOKUP($A11,'RECAP DIRCOM'!$G$6:$DC$12,65,FALSE) -> 2.95 | N11: =VLOOKUP($A11,'RECAP DIRCOM'!$G$6:$DC$12,66,FALSE) -> 39% | O11: =VLOOKUP($A11,'RECAP DIRCOM'!$G$6:$DC$12,67,FALSE) -> 6 | P11: =VLOOKUP($A11,'RECAP DIRCOM'!$G$6:$DC$12,68,FALSE) -> 36% | Q11: =VLOOKUP($A11,'RECAP DIRCOM'!$G$6:$DC$12,69,FALSE) -> 36% | R11: =VLOOKUP($A11,'RECAP DIRCOM'!$G$6:$DC$12,70,FALSE) -> 6
A12: 264 | B12: Haut-Rhin | C12: =VLOOKUP($A12,'RECAP DIRCOM'!$G$6:$DC$12,3,FALSE) -> 162 | D12: =VLOOKUP($A12,'RECAP DIRCOM'!$G$6:$DC$12,56,FALSE) -> 2,010 | E12: =VLOOKUP($A12,'RECAP DIRCOM'!$G$6:$DC$12,57,FALSE) -> 12.44 | F12: =VLOOKUP($A12,'RECAP DIRCOM'!$G$6:$DC$12,58,FALSE) -> 77% | G12: =VLOOKUP($A12,'RECAP DIRCOM'!$G$6:$DC$12,59,FALSE) -> 7 | H12: =VLOOKUP($A12,'RECAP DIRCOM'!$G$6:$DC$12,60,FALSE) -> 1,935 | I12: =VLOOKUP($A12,'RECAP DIRCOM'!$G$6:$DC$12,61,FALSE) -> 11.98 | J12: =VLOOKUP($A12,'RECAP DIRCOM'!$G$6:$DC$12,62,FALSE) -> 17% | K12: =VLOOKUP($A12,'RECAP DIRCOM'!$G$6:$DC$12,63,FALSE) -> 7 | L12: =VLOOKUP($A12,'RECAP DIRCOM'!$G$6:$DC$12,64,FALSE) -> 361 | M12: =VLOOKUP($A12,'RECAP DIRCOM'!$G$6:$DC$12,65,FALSE) -> 2.23 | N12: =VLOOKUP($A12,'RECAP DIRCOM'!$G$6:$DC$12,66,FALSE) -> 54% | O12: =VLOOKUP($A12,'RECAP DIRCOM'!$G$6:$DC$12,67,FALSE) -> 7 | P12: =VLOOKUP($A12,'RECAP DIRCOM'!$G$6:$DC$12,68,FALSE) -> 52% | Q12: =VLOOKUP($A12,'RECAP DIRCOM'!$G$6:$DC$12,69,FALSE) -> 52% | R12: =VLOOKUP($A12,'RECAP DIRCOM'!$G$6:$DC$12,70,FALSE) -> 7
A13: 30 | B13: Marne-Ardennes | C13: =VLOOKUP($A13,'RECAP DIRCOM'!$G$6:$DC$12,3,FALSE) -> 232 | D13: =VLOOKUP($A13,'RECAP DIRCOM'!$G$6:$DC$12,56,FALSE) -> 10,199 | E13: =VLOOKUP($A13,'RECAP DIRCOM'!$G$6:$DC$12,57,FALSE) -> 43.93 | F13: =VLOOKUP($A13,'RECAP DIRCOM'!$G$6:$DC$12,58,FALSE) -> 17% | G13: =VLOOKUP($A13,'RECAP DIRCOM'!$G$6:$DC$12,59,FALSE) -> 2 | H13: =VLOOKUP($A13,'RECAP DIRCOM'!$G$6:$DC$12,60,FALSE) -> 2,871 | I13: =VLOOKUP($A13,'RECAP DIRCOM'!$G$6:$DC$12,61,FALSE) -> 12.37 | J13: =VLOOKUP($A13,'RECAP DIRCOM'!$G$6:$DC$12,62,FALSE) -> 15% | K13: =VLOOKUP($A13,'RECAP DIRCOM'!$G$6:$DC$12,63,FALSE) -> 5 | L13: =VLOOKUP($A13,'RECAP DIRCOM'!$G$6:$DC$12,64,FALSE) -> 895 | M13: =VLOOKUP($A13,'RECAP DIRCOM'!$G$6:$DC$12,65,FALSE) -> 3.86 | N13: =VLOOKUP($A13,'RECAP DIRCOM'!$G$6:$DC$12,66,FALSE) -> 20% | O13: =VLOOKUP($A13,'RECAP DIRCOM'!$G$6:$DC$12,67,FALSE) -> 2 | P13: =VLOOKUP($A13,'RECAP DIRCOM'!$G$6:$DC$12,68,FALSE) -> 17% | Q13: =VLOOKUP($A13,'RECAP DIRCOM'!$G$6:$DC$12,69,FALSE) -> 17% | R13: =VLOOKUP($A13,'RECAP DIRCOM'!$G$6:$DC$12,70,FALSE) -> 2
A14: 110 | B14: Meurthe et Moselle Meuse | C14: =VLOOKUP($A14,'RECAP DIRCOM'!$G$6:$DC$12,3,FALSE) -> 249 | D14: =VLOOKUP($A14,'RECAP DIRCOM'!$G$6:$DC$12,56,FALSE) -> 13,220 | E14: =VLOOKUP($A14,'RECAP DIRCOM'!$G$6:$DC$12,57,FALSE) -> 53.04 | F14: =VLOOKUP($A14,'RECAP DIRCOM'!$G$6:$DC$12,58,FALSE) -> 0% | G14: =VLOOKUP($A14,'RECAP DIRCOM'!$G$6:$DC$12,59,FALSE) -> 1 | H14: =VLOOKUP($A14,'RECAP DIRCOM'!$G$6:$DC$12,60,FALSE) -> 3,610 | I14: =VLOOKUP($A14,'RECAP DIRCOM'!$G$6:$DC$12,61,FALSE) -> 14.48 | J14: =VLOOKUP($A14,'RECAP DIRCOM'!$G$6:$DC$12,62,FALSE) -> 0% | K14: =VLOOKUP($A14,'RECAP DIRCOM'!$G$6:$DC$12,63,FALSE) -> 1 | L14: =VLOOKUP($A14,'RECAP DIRCOM'!$G$6:$DC$12,64,FALSE) -> 1,207 | M14: =VLOOKUP($A14,'RECAP DIRCOM'!$G$6:$DC$12,65,FALSE) -> 4.84 | N14: =VLOOKUP($A14,'RECAP DIRCOM'!$G$6:$DC$12,66,FALSE) -> 0% | O14: =VLOOKUP($A14,'RECAP DIRCOM'!$G$6:$DC$12,67,FALSE) -> 1 | P14: =VLOOKUP($A14,'RECAP DIRCOM'!$G$6:$DC$12,68,FALSE) -> 0% | Q14: =VLOOKUP($A14,'RECAP DIRCOM'!$G$6:$DC$12,69,FALSE) -> 0% | R14: =VLOOKUP($A14,'RECAP DIRCOM'!$G$6:$DC$12,70,FALSE) -> 1
A15: 160 | B15: Moselle | C15: =VLOOKUP($A15,'RECAP DIRCOM'!$G$6:$DC$12,3,FALSE) -> 280 | D15: =VLOOKUP($A15,'RECAP DIRCOM'!$G$6:$DC$12,56,FALSE) -> 8,541 | E15: =VLOOKUP($A15,'RECAP DIRCOM'!$G$6:$DC$12,57,FALSE) -> 30.55 | F15: =VLOOKUP($A15,'RECAP DIRCOM'!$G$6:$DC$12,58,FALSE) -> 42% | G15: =VLOOKUP($A15,'RECAP DIRCOM'!$G$6:$DC$12,59,FALSE) -> 3 | H15: =VLOOKUP($A15,'RECAP DIRCOM'!$G$6:$DC$12,60,FALSE) -> 3,954 | I15: =VLOOKUP($A15,'RECAP DIRCOM'!$G$6:$DC$12,61,FALSE) -> 14.14 | J15: =VLOOKUP($A15,'RECAP DIRCOM'!$G$6:$DC$12,62,FALSE) -> 2% | K15: =VLOOKUP($A15,'RECAP DIRCOM'!$G$6:$DC$12,63,FALSE) -> 2 | L15: =VLOOKUP($A15,'RECAP DIRCOM'!$G$6:$DC$12,64,FALSE) -> 898 | M15: =VLOOKUP($A15,'RECAP DIRCOM'!$G$6:$DC$12,65,FALSE) -> 3.21 | N15: =VLOOKUP($A15,'RECAP DIRCOM'!$G$6:$DC$12,66,FALSE) -> 34% | O15: =VLOOKUP($A15,'RECAP DIRCOM'!$G$6:$DC$12,67,FALSE) -> 5 | P15: =VLOOKUP($A15,'RECAP DIRCOM'!$G$6:$DC$12,68,FALSE) -> 28% | Q15: =VLOOKUP($A15,'RECAP DIRCOM'!$G$6:$DC$12,69,FALSE) -> 28% | R15: =VLOOKUP($A15,'RECAP DIRCOM'!$G$6:$DC$12,70,FALSE) -> 3
A16: 80 | B16: Vosges | C16: =VLOOKUP($A16,'RECAP DIRCOM'!$G$6:$DC$12,3,FALSE) -> 137 | D16: =VLOOKUP($A16,'RECAP DIRCOM'!$G$6:$DC$12,56,FALSE) -> 3,669 | E16: =VLOOKUP($A16,'RECAP DIRCOM'!$G$6:$DC$12,57,FALSE) -> 26.75 | F16: =VLOOKUP($A16,'RECAP DIRCOM'!$G$6:$DC$12,58,FALSE) -> 50% | G16: =VLOOKUP($A16,'RECAP DIRCOM'!$G$6:$DC$12,59,FALSE) -> 4 | H16: =VLOOKUP($A16,'RECAP DIRCOM'!$G$6:$DC$12,60,FALSE) -> 1,661 | I16: =VLOOKUP($A16,'RECAP DIRCOM'!$G$6:$DC$12,61,FALSE) -> 12.11 | J16: =VLOOKUP($A16,'RECAP DIRCOM'!$G$6:$DC$12,62,FALSE) -> 16% | K16: =VLOOKUP($A16,'RECAP DIRCOM'!$G$6:$DC$12,63,FALSE) -> 6 | L16: =VLOOKUP($A16,'RECAP DIRCOM'!$G$6:$DC$12,64,FALSE) -> 447 | M16: =VLOOKUP($A16,'RECAP DIRCOM'!$G$6:$DC$12,65,FALSE) -> 3.26 | N16: =VLOOKUP($A16,'RECAP DIRCOM'!$G$6:$DC$12,66,FALSE) -> 33% | O16: =VLOOKUP($A16,'RECAP DIRCOM'!$G$6:$DC$12,67,FALSE) -> 3 | P16: =VLOOKUP($A16,'RECAP DIRCOM'!$G$6:$DC$12,68,FALSE) -> 35% | Q16: =VLOOKUP($A16,'RECAP DIRCOM'!$G$6:$DC$12,69,FALSE) -> 35% | R16: =VLOOKUP($A16,'RECAP DIRCOM'!$G$6:$DC$12,70,FALSE) -> 5
B17: Total CEGEE Directions Régionales | C17: =SUM(C10:C16) -> 1460

Sheet DC_IARD
B1: Accueil | D1: BAROMETRE BDD - DIRECTIONS REGIONALES
D2: IARD ET PREVOYANCE
D3: =ACCUEIL!F7 -> 2021-03-14
D7: Ventes Nettes produits pondérés | H7: Ventes sur client non détenteur de l’univers | L7: Total IARD Prévoyance
D8: =DATEMAJ!C23 -> au 14/03 | F8: coef | G8: ='RECAP DIRCOM'!CF4 -> 14% | H8: =DATEMAJ!C24 -> au 14/03 | J8: coef | K8: ='RECAP DIRCOM'!CJ4 -> 6% | M8: coef | N8: ='RECAP DIRCOM'!CM4 -> 20%
B9: Direction | C9: ="ETP perf "&DATEMAJ!$C$28 -> ETP perf 31-janv | D9: VN | E9: VN / ETP | F9: % Ecart au 1er | G9: Rang | H9: VB | I9: VB / ETP | J9: % Ecart au 1er | K9: Rang | L9: Moyenne ecart au 1er | M9: % Ecart au 1er | N9: Rang CEGEE
A10: 50 | B10: Aube Haute Marne | C10: =VLOOKUP($A10,'RECAP DIRCOM'!$G$6:$DC$12,3,FALSE) -> 132 | D10: =VLOOKUP($A10,'RECAP DIRCOM'!$G$6:$DC$12,75,FALSE) -> 4,711 | E10: =VLOOKUP($A10,'RECAP DIRCOM'!$G$6:$DC$12,76,FALSE) -> 35.77 | F10: =VLOOKUP($A10,'RECAP DIRCOM'!$G$6:$DC$12,77,FALSE) -> 33% | G10: =VLOOKUP($A10,'RECAP DIRCOM'!$G$6:$DC$12,78,FALSE) -> 5 | H10: =VLOOKUP($A10,'RECAP DIRCOM'!$G$6:$DC$12,79,FALSE) -> 1,028 | I10: =VLOOKUP($A10,'RECAP DIRCOM'!$G$6:$DC$12,80,FALSE) -> 7.81 | J10: =VLOOKUP($A10,'RECAP DIRCOM'!$G$6:$DC$12,81,FALSE) -> 23% | K10: =VLOOKUP($A10,'RECAP DIRCOM'!$G$6:$DC$12,82,FALSE) -> 4 | L10: =VLOOKUP($A10,'RECAP DIRCOM'!$G$6:$DC$12,83,FALSE) -> 30% | M10: =VLOOKUP($A10,'RECAP DIRCOM'!$G$6:$DC$12,84,FALSE) -> 29% | N10: =VLOOKUP($A10,'RECAP DIRCOM'!$G$6:$DC$12,85,FALSE) -> 5
A11: 262 | B11: Bas-Rhin | C11: =VLOOKUP($A11,'RECAP DIRCOM'!$G$6:$DC$12,3,FALSE) -> 268 | D11: =VLOOKUP($A11,'RECAP DIRCOM'!$G$6:$DC$12,75,FALSE) -> 14,421 | E11: =VLOOKUP($A11,'RECAP DIRCOM'!$G$6:$DC$12,76,FALSE) -> 53.76 | F11: =VLOOKUP($A11,'RECAP DIRCOM'!$G$6:$DC$12,77,FALSE) -> 0% | G11: =VLOOKUP($A11,'RECAP DIRCOM'!$G$6:$DC$12,78,FALSE) -> 1 | H11: =VLOOKUP($A11,'RECAP DIRCOM'!$G$6:$DC$12,79,FALSE) -> 2,374 | I11: =VLOOKUP($A11,'RECAP DIRCOM'!$G$6:$DC$12,80,FALSE) -> 8.85 | J11: =VLOOKUP($A11,'RECAP DIRCOM'!$G$6:$DC$12,81,FALSE) -> 13% | K11: =VLOOKUP($A11,'RECAP DIRCOM'!$G$6:$DC$12,82,FALSE) -> 2 | L11: =VLOOKUP($A11,'RECAP DIRCOM'!$G$6:$DC$12,83,FALSE) -> 4% | M11: =VLOOKUP($A11,'RECAP DIRCOM'!$G$6:$DC$12,84,FALSE) -> 2% | N11: =VLOOKUP($A11,'RECAP DIRCOM'!$G$6:$DC$12,85,FALSE) -> 2
A12: 264 | B12: Haut-Rhin | C12: =VLOOKUP($A12,'RECAP DIRCOM'!$G$6:$DC$12,3,FALSE) -> 162 | D12: =VLOOKUP($A12,'RECAP DIRCOM'!$G$6:$DC$12,75,FALSE) -> 5,749 | E12: =VLOOKUP($A12,'RECAP DIRCOM'!$G$6:$DC$12,76,FALSE) -> 35.58 | F12: =VLOOKUP($A12,'RECAP DIRCOM'!$G$6:$DC$12,77,FALSE) -> 34% | G12: =VLOOKUP($A12,'RECAP DIRCOM'!$G$6:$DC$12,78,FALSE) -> 6 | H12: =VLOOKUP($A12,'RECAP DIRCOM'!$G$6:$DC$12,79,FALSE) -> 1,110 | I12: =VLOOKUP($A12,'RECAP DIRCOM'!$G$6:$DC$12,80,FALSE) -> 6.87 | J12: =VLOOKUP($A12,'RECAP DIRCOM'!$G$6:$DC$12,81,FALSE) -> 33% | K12: =VLOOKUP($A12,'RECAP DIRCOM'!$G$6:$DC$12,82,FALSE) -> 7 | L12: =VLOOKUP($A12,'RECAP DIRCOM'!$G$6:$DC$12,83,FALSE) -> 33% | M12: =VLOOKUP($A12,'RECAP DIRCOM'!$G$6:$DC$12,84,FALSE) -> 32% | N12: =VLOOKUP($A12,'RECAP DIRCOM'!$G$6:$DC$12,85,FALSE) -> 6
A13: 30 | B13: Marne-Ardennes | C13: =VLOOKUP($A13,'RECAP DIRCOM'!$G$6:$DC$12,3,FALSE) -> 232 | D13: =VLOOKUP($A13,'RECAP DIRCOM'!$G$6:$DC$12,75,FALSE) -> 6,987 | E13: =VLOOKUP($A13,'RECAP DIRCOM'!$G$6:$DC$12,76,FALSE) -> 30.10 | F13: =VLOOKUP($A13,'RECAP DIRCOM'!$G$6:$DC$12,77,FALSE) -> 44% | G13: =VLOOKUP($A13,'RECAP DIRCOM'!$G$6:$DC$12,78,FALSE) -> 7 | H13: =VLOOKUP($A13,'RECAP DIRCOM'!$G$6:$DC$12,79,FALSE) -> 1,673 | I13: =VLOOKUP($A13,'RECAP DIRCOM'!$G$6:$DC$12,80,FALSE) -> 7.21 | J13: =VLOOKUP($A13,'RECAP DIRCOM'!$G$6:$DC$12,81,FALSE) -> 29% | K13: =VLOOKUP($A13,'RECAP DIRCOM'!$G$6:$DC$12,82,FALSE) -> 6 | L13: =VLOOKUP($A13,'RECAP DIRCOM'!$G$6:$DC$12,83,FALSE) -> 40% | M13: =VLOOKUP($A13,'RECAP DIRCOM'!$G$6:$DC$12,84,FALSE) -> 38% | N13: =VLOOKUP($A13,'RECAP DIRCOM'!$G$6:$DC$12,85,FALSE) -> 7
A14: 110 | B14: Meurthe et Moselle Meuse | C14: =VLOOKUP($A14,'RECAP DIRCOM'!$G$6:$DC$12,3,FALSE) -> 249 | D14: =VLOOKUP($A14,'RECAP DIRCOM'!$G$6:$DC$12,75,FALSE) -> 13,033 | E14: =VLOOKUP($A14,'RECAP DIRCOM'!$G$6:$DC$12,76,FALSE) -> 52.29 | F14: =VLOOKUP($A14,'RECAP DIRCOM'!$G$6:$DC$12,77,FALSE) -> 3% | G14: =VLOOKUP($A14,'RECAP DIRCOM'!$G$6:$DC$12,78,FALSE) -> 3 | H14: =VLOOKUP($A14,'RECAP DIRCOM'!$G$6:$DC$12,79,FALSE) -> 2,539 | I14: =VLOOKUP($A14,'RECAP DIRCOM'!$G$6:$DC$12,80,FALSE) -> 10.19 | J14: =VLOOKUP($A14,'RECAP DIRCOM'!$G$6:$DC$12,81,FALSE) -> 0% | K14: =VLOOKUP($A14,'RECAP DIRCOM'!$G$6:$DC$12,82,FALSE) -> 1 | L14: =VLOOKUP($A14,'RECAP DIRCOM'!$G$6:$DC$12,83,FALSE) -> 2% | M14: =VLOOKUP($A14,'RECAP DIRCOM'!$G$6:$DC$12,84,FALSE) -> 0% | N14: =VLOOKUP($A14,'RECAP DIRCOM'!$G$6:$DC$12,85,FALSE) -> 1
A15: 160 | B15: Moselle | C15: =VLOOKUP($A15,'RECAP DIRCOM'!$G$6:$DC$12,3,FALSE) -> 280 | D15: =VLOOKUP($A15,'RECAP DIRCOM'!$G$6:$DC$12,75,FALSE) -> 13,047 | E15: =VLOOKUP($A15,'RECAP DIRCOM'!$G$6:$DC$12,76,FALSE) -> 46.66 | F15: =VLOOKUP($A15,'RECAP DIRCOM'!$G$6:$DC$12,77,FALSE) -> 13% | G15: =VLOOKUP($A15,'RECAP DIRCOM'!$G$6:$DC$12,78,FALSE) -> 4 | H15: =VLOOKUP($A15,'RECAP DIRCOM'!$G$6:$DC$12,79,FALSE) -> 2,273 | I15: =VLOOKUP($A15,'RECAP DIRCOM'!$G$6:$DC$12,80,FALSE) -> 8.13 | J15: =VLOOKUP($A15,'RECAP DIRCOM'!$G$6:$DC$12,81,FALSE) -> 20% | K15: =VLOOKUP($A15,'RECAP DIRCOM'!$G$6:$DC$12,82,FALSE) -> 3 | L15: =VLOOKUP($A15,'RECAP DIRCOM'!$G$6:$DC$12,83,FALSE) -> 15% | M15: =VLOOKUP($A15,'RECAP DIRCOM'!$G$6:$DC$12,84,FALSE) -> 13% | N15: =VLOOKUP($A15,'RECAP DIRCOM'!$G$6:$DC$12,85,FALSE) -> 4
A16: 80 | B16: Vosges | C16: =VLOOKUP($A16,'RECAP DIRCOM'!$G$6:$DC$12,3,FALSE) -> 137 | D16: =VLOOKUP($A16,'RECAP DIRCOM'!$G$6:$DC$12,75,FALSE) -> 7,292 | E16: =VLOOKUP($A16,'RECAP DIRCOM'!$G$6:$DC$12,76,FALSE) -> 53.16 | F16: =VLOOKUP($A16,'RECAP DIRCOM'!$G$6:$DC$12,77,FALSE) -> 1% | G16: =VLOOKUP($A16,'RECAP DIRCOM'!$G$6:$DC$12,78,FALSE) -> 2 | H16: =VLOOKUP($A16,'RECAP DIRCOM'!$G$6:$DC$12,79,FALSE) -> 1,025 | I16: =VLOOKUP($A16,'RECAP DIRCOM'!$G$6:$DC$12,80,FALSE) -> 7.47 | J16: =VLOOKUP($A16,'RECAP DIRCOM'!$G$6:$DC$12,81,FALSE) -> 27% | K16: =VLOOKUP($A16,'RECAP DIRCOM'!$G$6:$DC$12,82,FALSE) -> 5 | L16: =VLOOKUP($A16,'RECAP DIRCOM'!$G$6:$DC$12,83,FALSE) -> 9% | M16: =VLOOKUP($A16,'RECAP DIRCOM'!$G$6:$DC$12,84,FALSE) -> 7% | N16: =VLOOKUP($A16,'RECAP DIRCOM'!$G$6:$DC$12,85,FALSE) -> 3
B17: Total CEGEE Directions Régionales | C17: =SUM(C10:C16) -> 1460

Sheet DC_SATISFACTION
B1: Accueil | D1: BAROMETRE BDD - DIRECTIONS REGIONALES
D2: SATISFACTION
D3: =ACCUEIL!F7 -> 2021-03-14
D7: NPS à froid (SAE) | G7: NPS à chaud (QHD) | J7: Total Satisfaction Clients
D8: =DATEMAJ!E4 -> au 28/02 | E8: coef | F8: ='RECAP DIRCOM'!M4 -> 10% | G8: =DATEMAJ!C5 -> au 31/01 | H8: coef | I8: ='RECAP DIRCOM'!P4 -> 10% | K8: coef | L8: ='RECAP DIRCOM'!S4 -> 20%
B9: Direction | C9: ="ETP perf "&DATEMAJ!$C$28 -> ETP perf 31-janv | E9: % Ecart au 1er | F9: Rang | H9: % Ecart au 1er | I9: Rang | J9: Moyenne ecart au 1er | K9: % Ecart au 1er | L9: Rang CEGEE
A10: 50 | B10: Aube Haute Marne | C10: =VLOOKUP($A10,'RECAP DIRCOM'!$G$6:$DC$12,3,FALSE) -> 132 | D10: =VLOOKUP($A10,'RECAP DIRCOM'!$G$6:$DC$12,5,FALSE) -> 14 | E10: =VLOOKUP($A10,'RECAP DIRCOM'!$G$6:$DC$12,6,FALSE) -> 18% | F10: =VLOOKUP($A10,'RECAP DIRCOM'!$G$6:$DC$12,7,FALSE) -> 2 | G10: =VLOOKUP($A10,'RECAP DIRCOM'!$G$6:$DC$12,8,FALSE) -> 51% | H10: =VLOOKUP($A10,'RECAP DIRCOM'!$G$6:$DC$12,9,FALSE) -> 20% | I10: =VLOOKUP($A10,'RECAP DIRCOM'!$G$6:$DC$12,10,FALSE) -> 5 | J10: =VLOOKUP($A10,'RECAP DIRCOM'!$G$6:$DC$12,11,FALSE) -> 19% | K10: =VLOOKUP($A10,'RECAP DIRCOM'!$G$6:$DC$12,12,FALSE) -> 17% | L10: =VLOOKUP($A10,'RECAP DIRCOM'!$G$6:$DC$12,13,FALSE) -> 3
A11: 262 | B11: Bas-Rhin | C11: =VLOOKUP($A11,'RECAP DIRCOM'!$G$6:$DC$12,3,FALSE) -> 268 | D11: =VLOOKUP($A11,'RECAP DIRCOM'!$G$6:$DC$12,5,FALSE) -> 8 | E11: =VLOOKUP($A11,'RECAP DIRCOM'!$G$6:$DC$12,6,FALSE) -> 53% | F11: =VLOOKUP($A11,'RECAP DIRCOM'!$G$6:$DC$12,7,FALSE) -> 6 | G11: =VLOOKUP($A11,'RECAP DIRCOM'!$G$6:$DC$12,8,FALSE) -> 50% | H11: =VLOOKUP($A11,'RECAP DIRCOM'!$G$6:$DC$12,9,FALSE) -> 22% | I11: =VLOOKUP($A11,'RECAP DIRCOM'!$G$6:$DC$12,10,FALSE) -> 6 | J11: =VLOOKUP($A11,'RECAP DIRCOM'!$G$6:$DC$12,11,FALSE) -> 38% | K11: =VLOOKUP($A11,'RECAP DIRCOM'!$G$6:$DC$12,12,FALSE) -> 36% | L11: =VLOOKUP($A11,'RECAP DIRCOM'!$G$6:$DC$12,13,FALSE) -> 6
A12: 264 | B12: Haut-Rhin | C12: =VLOOKUP($A12,'RECAP DIRCOM'!$G$6:$DC$12,3,FALSE) -> 162 | D12: =VLOOKUP($A12,'RECAP DIRCOM'!$G$6:$DC$12,5,FALSE) -> 4 | E12: =VLOOKUP($A12,'RECAP DIRCOM'!$G$6:$DC$12,6,FALSE) -> 76% | F12: =VLOOKUP($A12,'RECAP DIRCOM'!$G$6:$DC$12,7,FALSE) -> 7 | G12: =VLOOKUP($A12,'RECAP DIRCOM'!$G$6:$DC$12,8,FALSE) -> 45% | H12: =VLOOKUP($A12,'RECAP DIRCOM'!$G$6:$DC$12,9,FALSE) -> 29% | I12: =VLOOKUP($A12,'RECAP DIRCOM'!$G$6:$DC$12,10,FALSE) -> 7 | J12: =VLOOKUP($A12,'RECAP DIRCOM'!$G$6:$DC$12,11,FALSE) -> 53% | K12: =VLOOKUP($A12,'RECAP DIRCOM'!$G$6:$DC$12,12,FALSE) -> 51% | L12: =VLOOKUP($A12,'RECAP DIRCOM'!$G$6:$DC$12,13,FALSE) -> 7
A13: 30 | B13: Marne-Ardennes | C13: =VLOOKUP($A13,'RECAP DIRCOM'!$G$6:$DC$12,3,FALSE) -> 232 | D13: =VLOOKUP($A13,'RECAP DIRCOM'!$G$6:$DC$12,5,FALSE) -> 12 | E13: =VLOOKUP($A13,'RECAP DIRCOM'!$G$6:$DC$12,6,FALSE) -> 29% | F13: =VLOOKUP($A13,'RECAP DIRCOM'!$G$6:$DC$12,7,FALSE) -> 3 | G13: =VLOOKUP($A13,'RECAP DIRCOM'!$G$6:$DC$12,8,FALSE) -> 64% | H13: =VLOOKUP($A13,'RECAP DIRCOM'!$G$6:$DC$12,9,FALSE) -> 0% | I13: =VLOOKUP($A13,'RECAP DIRCOM'!$G$6:$DC$12,10,FALSE) -> 1 | J13: =VLOOKUP($A13,'RECAP DIRCOM'!$G$6:$DC$12,11,FALSE) -> 15% | K13: =VLOOKUP($A13,'RECAP DIRCOM'!$G$6:$DC$12,12,FALSE) -> 13% | L13: =VLOOKUP($A13,'RECAP DIRCOM'!$G$6:$DC$12,13,FALSE) -> 2
A14: 110 | B14: Meurthe et Moselle Meuse | C14: =VLOOKUP($A14,'RECAP DIRCOM'!$G$6:$DC$12,3,FALSE) -> 249 | D14: =VLOOKUP($A14,'RECAP DIRCOM'!$G$6:$DC$12,5,FALSE) -> 11 | E14: =VLOOKUP($A14,'RECAP DIRCOM'!$G$6:$DC$12,6,FALSE) -> 35% | F14: =VLOOKUP($A14,'RECAP DIRCOM'!$G$6:$DC$12,7,FALSE) -> 4 | G14: =VLOOKUP($A14,'RECAP DIRCOM'!$G$6:$DC$12,8,FALSE) -> 58% | H14: =VLOOKUP($A14,'RECAP DIRCOM'!$G$6:$DC$12,9,FALSE) -> 10% | I14: =VLOOKUP($A14,'RECAP DIRCOM'!$G$6:$DC$12,10,FALSE) -> 3 | J14: =VLOOKUP($A14,'RECAP DIRCOM'!$G$6:$DC$12,11,FALSE) -> 23% | K14: =VLOOKUP($A14,'RECAP DIRCOM'!$G$6:$DC$12,12,FALSE) -> 21% | L14: =VLOOKUP($A14,'RECAP DIRCOM'!$G$6:$DC$12,13,FALSE) -> 4
A15: 160 | B15: Moselle | C15: =VLOOKUP($A15,'RECAP DIRCOM'!$G$6:$DC$12,3,FALSE) -> 280 | D15: =VLOOKUP($A15,'RECAP DIRCOM'!$G$6:$DC$12,5,FALSE) -> 9 | E15: =VLOOKUP($A15,'RECAP DIRCOM'!$G$6:$DC$12,6,FALSE) -> 47% | F15: =VLOOKUP($A15,'RECAP DIRCOM'!$G$6:$DC$12,7,FALSE) -> 5 | G15: =VLOOKUP($A15,'RECAP DIRCOM'!$G$6:$DC$12,8,FALSE) -> 54% | H15: =VLOOKUP($A15,'RECAP DIRCOM'!$G$6:$DC$12,9,FALSE) -> 16% | I15: =VLOOKUP($A15,'RECAP DIRCOM'!$G$6:$DC$12,10,FALSE) -> 4 | J15: =VLOOKUP($A15,'RECAP DIRCOM'!$G$6:$DC$12,11,FALSE) -> 31% | K15: =VLOOKUP($A15,'RECAP DIRCOM'!$G$6:$DC$12,12,FALSE) -> 30% | L15: =VLOOKUP($A15,'RECAP DIRCOM'!$G$6:$DC$12,13,FALSE) -> 5
A16: 80 | B16: Vosges | C16: =VLOOKUP($A16,'RECAP DIRCOM'!$G$6:$DC$12,3,FALSE) -> 137 | D16: =VLOOKUP($A16,'RECAP DIRCOM'!$G$6:$DC$12,5,FALSE) -> 17 | E16: =VLOOKUP($A16,'RECAP DIRCOM'!$G$6:$DC$12,6,FALSE) -> 0% | F16: =VLOOKUP($A16,'RECAP DIRCOM'!$G$6:$DC$12,7,FALSE) -> 1 | G16: =VLOOKUP($A16,'RECAP DIRCOM'!$G$6:$DC$12,8,FALSE) -> 62% | H16: =VLOOKUP($A16,'RECAP DIRCOM'!$G$6:$DC$12,9,FALSE) -> 3% | I16: =VLOOKUP($A16,'RECAP DIRCOM'!$G$6:$DC$12,10,FALSE) -> 2 | J16: =VLOOKUP($A16,'RECAP DIRCOM'!$G$6:$DC$12,11,FALSE) -> 2% | K16: =VLOOKUP($A16,'RECAP DIRCOM'!$G$6:$DC$12,12,FALSE) -> 0% | L16: =VLOOKUP($A16,'RECAP DIRCOM'!$G$6:$DC$12,13,FALSE) -> 1
B17: Total CEGEE Directions Régionales | C17: =SUM(C10:C16) -> 1460

Sheet SE_FICHE
A1: Accueil
A2: BAROMETRE BDD
A4: UNITE: | B4: TERRITOIRE | E4: ETP perf : | F4: =VLOOKUP(A5,'RECAP SECT'!$G$6:$I$23,3,FALSE) -> 65.10
A5: =VLOOKUP(B5,LISTES!$H$6:$I$23,2,FALSE) -> 5130 | B5: COLMAR
C6: Coefficient du critére | E6: Résultats | I6: Ecart au 1ier | M6: Evolution | O6: Rang
E7: du 1ier | G7: du territoire | I7: Du mois | K7: Au 31/12/2019
A9: RANG au CLASSEMENT GENERAL | K9: =VLOOKUP($A$5,'RECAP SECT AN'!$G$6:$FS$312,168,FALSE) -> 17 | M9: =+K9-O9 ->  | O9: =VLOOKUP($A$5,'RECAP SECT'!$G$6:$DG$312,168,FALSE) ->  | S9: =VLOOKUP($A$5,'RECAP SECT AN'!$G$6:$FE$312,154,FALSE) -> 1 | U9: =+S9-O9 -> 
A11: CRITERE CONQUETE | C11: 15% | O11: =VLOOKUP($A$5,'RECAP SECT'!$G$6:$DG$312,23,FALSE) -> 8.57119548
B12: PNB Evolution nette Clients BP | C12: 4% | E12: ='RECAP SECT'!#REF! ->  | G12: =VLOOKUP($A$5,'RECAP SECT'!$G$6:$DG$312,6,FALSE) -> 0.5 | I12: =VLOOKUP($A$5,'RECAP SECT'!$G$6:$DG$312,7,FALSE) -> 900% | K12: =VLOOKUP($A$5,'RECAP SECT AN'!$G$6:$FS$312,7,FALSE) -> 134% | M12: =+K12-I12 -> -766% | O12: =VLOOKUP($A$5,'RECAP SECT'!$G$6:$DG$312,8,FALSE) -> 0.5011588178 | S12: =VLOOKUP($A$5,'RECAP SECT AN'!$G$6:$FE$312,6,FALSE) -> -181% | U12: =+S12-I12 -> -1081%
B13: PNB Evolution nette Clients PREMIUM | C13: 5% | E13: ='RECAP SECT'!#REF! ->  | G13: =VLOOKUP($A$5,'RECAP SECT'!$G$6:$DG$312,10,FALSE) -> 13.0 | I13: =VLOOKUP($A$5,'RECAP SECT'!$G$6:$DG$312,11,FALSE) -> 37% | K13: =VLOOKUP($A$5,'RECAP SECT AN'!$G$6:$FS$312,11,FALSE) -> 20% | M13: =+K13-I13 -> -17% | O13: =VLOOKUP($A$5,'RECAP SECT'!$G$6:$DG$312,12,FALSE) -> 0.346384121 | S13: =VLOOKUP($A$5,'RECAP SECT AN'!$G$6:$FE$312,9,FALSE) -> 287% | U13: =+S13-I13 -> 250%
B14: PNB Evolution nette Clients Jeunes Equipés | C14: 3% | E14: ='RECAP SECT'!#REF! ->  | G14: =VLOOKUP($A$5,'RECAP SECT'!$G$6:$DG$312,14,FALSE) -> 0.0 | I14: =VLOOKUP($A$5,'RECAP SECT'!$G$6:$DG$312,15,FALSE) -> 0% | K14: =VLOOKUP($A$5,'RECAP SECT AN'!$G$6:$FS$312,15,FALSE) -> -99% | M14: =+K14-I14 -> -99% | O14: =VLOOKUP($A$5,'RECAP SECT'!$G$6:$DG$312,16,FALSE) -> 0 | S14: =VLOOKUP($A$5,'RECAP SECT AN'!$G$6:$FE$312,12,FALSE) -> 1300% | U14: =+S14-I14 -> 1300%
B15: PNB Evolution nette Clients Pro Actifs Equipés | C15: 3% | E15: ='RECAP SECT'!W4 -> 0.0 | G15: =VLOOKUP($A$5,'RECAP SECT'!$G$6:$DG$312,18,FALSE) -> 583.1 | I15: =VLOOKUP($A$5,'RECAP SECT'!$G$6:$DG$312,19,FALSE) -> 896% | K15: =VLOOKUP($A$5,'RECAP SECT AN'!$G$6:$FS$312,19,FALSE) -> 54% | M15: =+K15-I15 -> -842% | O15: =VLOOKUP($A$5,'RECAP SECT'!$G$6:$DG$312,20,FALSE) -> 0.6903639618 | S15: =VLOOKUP($A$5,'RECAP SECT AN'!$G$6:$FE$312,15,FALSE) -> -99% | U15: =+S15-I15 -> -994%
A17: CRITERE BANCARISATION | C17: 15% | O17: =VLOOKUP($A$5,'RECAP SECT'!$G$6:$DG$312,48,FALSE) -> 13
B18: PNB Ventes nettes forfaits | C18: 4% | E18: ='RECAP SECT'!X4 -> 28.9 | G18: =VLOOKUP($A$5,'RECAP SECT'!$G$6:$DG$312,31,FALSE) -> -0.3 | I18: =VLOOKUP($A$5,'RECAP SECT'!$G$6:$DG$312,32,FALSE) -> 15% | K18: =VLOOKUP($A$5,'RECAP SECT AN'!$G$6:$FS$312,32,FALSE) -> 117% | M18: =+K18-I18 -> 102% | O18: =VLOOKUP($A$5,'RECAP SECT'!$G$6:$DG$312,33,FALSE) -> 4 | S18: =VLOOKUP($A$5,'RECAP SECT AN'!$G$6:$FE$312,27,FALSE) -> 0% | U18: =+S18-I18 -> -15%
B19: PNB Ventes nettes IZICARTES Débit Différé | C19: 4% | E19: ='RECAP SECT'!AB4 -> 15.4 | G19: =VLOOKUP($A$5,'RECAP SECT'!$G$6:$DG$312,35,FALSE) -> 0.4 | I19: =VLOOKUP($A$5,'RECAP SECT'!$G$6:$DG$312,36,FALSE) -> 1700% | K19: =VLOOKUP($A$5,'RECAP SECT AN'!$G$6:$FS$312,36,FALSE) -> 27% | M19: =+K19-I19 -> -1673% | O19: =VLOOKUP($A$5,'RECAP SECT'!$G$6:$DG$312,37,FALSE) -> 0 | S19: =VLOOKUP($A$5,'RECAP SECT AN'!$G$6:$FE$312,30,FALSE) -> 430% | U19: =+S19-I19 -> -1270%
B20: PNB Ventes nettes cartes HDG Débit Différé | C20: 4% | E20: ='RECAP SECT'!AF4 -> 5.3 | G20: =VLOOKUP($A$5,'RECAP SECT'!$G$6:$DG$312,39,FALSE) -> 0.0 | I20: =VLOOKUP($A$5,'RECAP SECT'!$G$6:$DG$312,40,FALSE) -> 0% | K20: =VLOOKUP($A$5,'RECAP SECT AN'!$G$6:$FS$312,40,FALSE) -> 35% | M20: =+K20-I20 -> 35% | O20: =VLOOKUP($A$5,'RECAP SECT'!$G$6:$DG$312,41,FALSE) -> 9611.281273 | S20: =VLOOKUP($A$5,'RECAP SECT AN'!$G$6:$FE$312,33,FALSE) -> 1600% | U20: =+S20-I20 -> 1600%
B21: PNB Ventes nettes Forfaits Pro, Carte pro | C21: 3% | E21: ='RECAP SECT'!AJ4 -> -0.3 | G21: =VLOOKUP($A$5,'RECAP SECT'!$G$6:$DG$312,43,FALSE) -> 0.4 | I21: =VLOOKUP($A$5,'RECAP SECT'!$G$6:$DG$312,44,FALSE) -> 1200% | K21: =VLOOKUP($A$5,'RECAP SECT AN'!$G$6:$FS$312,44,FALSE) -> 87% | M21: =+K21-I21 -> -1113% | O21: =VLOOKUP($A$5,'RECAP SECT'!$G$6:$DG$312,45,FALSE) -> 382 | S21: =VLOOKUP($A$5,'RECAP SECT AN'!$G$6:$FE$312,39,FALSE) -> 467% | U21: =+S21-I21 -> -733%
A23: CRITERE EPARGNE | C23: 10% | O23: =VLOOKUP($A$5,'RECAP SECT'!$G$6:$DG$312,69,FALSE) -> 0.5446265071
B24: PNB Epargne Liquide | C24: 3% | E24: ='RECAP SECT'!AU4 -> 243.3 | G24: =VLOOKUP($A$5,'RECAP SECT'!$G$6:$DG$312,56,FALSE) -> 871.4 | I24: =VLOOKUP($A$5,'RECAP SECT'!$G$6:$DG$312,57,FALSE) -> 1339% | K24: =VLOOKUP($A$5,'RECAP SECT AN'!$G$6:$FS$312,57,FALSE) -> 25% | M24: =+K24-I24 -> -1313% | O24: =VLOOKUP($A$5,'RECAP SECT'!$G$6:$DG$312,58,FALSE) -> 0.8355140605 | S24: =VLOOKUP($A$5,'RECAP SECT AN'!$G$6:$FE$312,51,FALSE) -> 0% | U24: =+S24-I24 -> -1339%
B25: PNB CA UC + arbitrage | C25: 4% | E25: ='RECAP SECT'!AY4 -> 10.5 | G25: =VLOOKUP($A$5,'RECAP SECT'!$G$6:$DG$312,60,FALSE) -> 904.4 | I25: =VLOOKUP($A$5,'RECAP SECT'!$G$6:$DG$312,61,FALSE) -> 1389% | K25: =VLOOKUP($A$5,'RECAP SECT AN'!$G$6:$FS$312,61,FALSE) -> 23% | M25: =+K25-I25 -> -1367% | O25: =VLOOKUP($A$5,'RECAP SECT'!$G$6:$DG$312,62,FALSE) -> 0.3588691707 | S25: =VLOOKUP($A$5,'RECAP SECT AN'!$G$6:$FE$312,57,FALSE) -> 25% | U25: =+S25-I25 -> -1364%
B26: PNB Excédent assurance vie | C26: 3% | E26: ='RECAP SECT'!#REF! ->  | G26: =VLOOKUP($A$5,'RECAP SECT'!$G$6:$DG$312,64,FALSE) -> 180.0 | I26: =VLOOKUP($A$5,'RECAP SECT'!$G$6:$DG$312,65,FALSE) -> 276% | K26: =VLOOKUP($A$5,'RECAP SECT AN'!$G$6:$FS$312,65,FALSE) -> 114% | M26: =+K26-I26 -> -163% | O26: =VLOOKUP($A$5,'RECAP SECT'!$G$6:$DG$312,66,FALSE) -> 0.6179248441 | S26: =VLOOKUP($A$5,'RECAP SECT AN'!$G$6:$FE$312,60,FALSE) -> 107% | U26: =+S26-I26 -> -170%
A28: CRITERE CREDITS | C28: 15% | O28: =VLOOKUP($A$5,'RECAP SECT'!$G$6:$DG$312,102,FALSE) -> 0.3689178413
B29: PNB crédit conso | C29: 4% | E29: ='RECAP SECT'!BJ4 -> 81.4 | G29: =VLOOKUP($A$5,'RECAP SECT'!$G$6:$DG$312,77,FALSE) -> 0.2 | I29: =VLOOKUP($A$5,'RECAP SECT'!$G$6:$DG$312,78,FALSE) -> 900% | K29: =VLOOKUP($A$5,'RECAP SECT AN'!$G$6:$FS$312,78,FALSE) -> 37% | M29: =+K29-I29 -> -863% | O29: =VLOOKUP($A$5,'RECAP SECT'!$G$6:$DG$312,79,FALSE) -> 530 | S29: =VLOOKUP($A$5,'RECAP SECT AN'!$G$6:$FE$312,75,FALSE) -> 0% | U29: =+S29-I29 -> -900%
B30: PNB ADE crédit conso | C30: 1% | E30: ='RECAP SECT'!#REF! ->  | G30: =VLOOKUP($A$5,'RECAP SECT'!$G$6:$DG$312,81,FALSE) -> 0.4 | I30: =VLOOKUP($A$5,'RECAP SECT'!$G$6:$DG$312,82,FALSE) -> 1700% | K30: =VLOOKUP($A$5,'RECAP SECT AN'!$G$6:$FS$312,82,FALSE) -> 44% | M30: -1656% | O30: =VLOOKUP($A$5,'RECAP SECT'!$G$6:$DG$312,83,FALSE) -> 0.2637745256 | S30: =VLOOKUP($A$5,'RECAP SECT AN'!$G$6:$FE$312,78,FALSE) -> 37% | U30: -1663%
B31: PNB crédit immo | C31: 4% | E31: ='RECAP SECT'!BN4 -> 21.7 | G31: =VLOOKUP($A$5,'RECAP SECT'!$G$6:$DG$312,85,FALSE) -> 10.0 | I31: =VLOOKUP($A$5,'RECAP SECT'!$G$6:$DG$312,86,FALSE) -> 0% | K31: =VLOOKUP($A$5,'RECAP SECT AN'!$G$6:$FS$312,86,FALSE) -> 38% | M31: 38% | O31: =VLOOKUP($A$5,'RECAP SECT'!$G$6:$DG$312,87,FALSE) -> 0 | S31: =VLOOKUP($A$5,'RECAP SECT AN'!$G$6:$FE$312,81,FALSE) -> 782% | U31: 782%
B32: PNB ADE crédit immo | C32: 2% | E32: ='RECAP SECT'!#REF! ->  | G32: =VLOOKUP($A$5,'RECAP SECT'!$G$6:$DG$312,89,FALSE) -> 0.0 | I32: =VLOOKUP($A$5,'RECAP SECT'!$G$6:$DG$312,90,FALSE) -> 0% | K32: =VLOOKUP($A$5,'RECAP SECT AN'!$G$6:$FS$312,90,FALSE) -> 49% | M32: 49% | O32: =VLOOKUP($A$5,'RECAP SECT'!$G$6:$DG$312,91,FALSE) -> 0 | S32: =VLOOKUP($A$5,'RECAP SECT AN'!$G$6:$FE$312,84,FALSE) -> 139312% | U32: 139312%
B33: PNB SACCEF | C33: 2% | E33: ='RECAP SECT'!#REF! ->  | G33: =VLOOKUP($A$5,'RECAP SECT'!$G$6:$DG$312,93,FALSE) -> 0.0 | I33: =VLOOKUP($A$5,'RECAP SECT'!$G$6:$DG$312,94,FALSE) -> 0% | K33: =VLOOKUP($A$5,'RECAP SECT AN'!$G$6:$FS$312,94,FALSE) -> 51% | M33: 51% | O33: =VLOOKUP($A$5,'RECAP SECT'!$G$6:$DG$312,95,FALSE) -> 0 | S33: =VLOOKUP($A$5,'RECAP SECT AN'!$G$6:$FE$312,87,FALSE) -> 1100% | U33: 1100%
B34: PNB Crédit MLT + Crédit Bail | C34: 2% | E34: ='RECAP SECT'!BR4 -> 7.2 | G34: =VLOOKUP($A$5,'RECAP SECT'!$G$6:$DG$312,97,FALSE) -> 0.0 | I34: =VLOOKUP($A$5,'RECAP SECT'!$G$6:$DG$312,98,FALSE) -> 0% | K34: =VLOOKUP($A$5,'RECAP SECT AN'!$G$6:$FS$312,98,FALSE) -> 74% | M34: 74% | O34: =VLOOKUP($A$5,'RECAP SECT'!$G$6:$DG$312,99,FALSE) -> 0 | S34: =VLOOKUP($A$5,'RECAP SECT AN'!$G$6:$FE$312,90,FALSE) -> 49% | U34: 49%
A36: CRITERE IARD PREVOYANCE | C36: 15% | O36: =VLOOKUP($A$5,'RECAP SECT'!$G$6:$DG$312,119,FALSE) -> 
B37: PNB Ventes nettes IARD | C37: 9% | E37: ='RECAP SECT'!CC4 -> 74.0 | G37: =VLOOKUP($A$5,'RECAP SECT'!$G$6:$DG$312,110,FALSE) ->  | I37: =VLOOKUP($A$5,'RECAP SECT'!$G$6:$DG$312,111,FALSE) ->  | K37: =VLOOKUP($A$5,'RECAP SECT AN'!$G$6:$FS$312,111,FALSE) -> 75% | M37: =+K37-I37 ->  | O37: =VLOOKUP($A$5,'RECAP SECT'!$G$6:$DG$312,112,FALSE) ->  | S37: =VLOOKUP($A$5,'RECAP SECT AN'!$G$6:$FE$312,102,FALSE) -> 1800% | U37: =+S37-I37 -> 
B38: PNB Ventes nettes Prévoyance | C38: 6% | E38: ='RECAP SECT'!CG4 -> 13.8 | G38: =VLOOKUP($A$5,'RECAP SECT'!$G$6:$DG$312,114,FALSE) ->  | I38: =VLOOKUP($A$5,'RECAP SECT'!$G$6:$DG$312,115,FALSE) ->  | K38: =VLOOKUP($A$5,'RECAP SECT AN'!$G$6:$FS$312,115,FALSE) -> 62% | M38: =+K38-I38 ->  | O38: =VLOOKUP($A$5,'RECAP SECT'!$G$6:$DG$312,116,FALSE) ->  | S38: =VLOOKUP($A$5,'RECAP SECT AN'!$G$6:$FE$312,105,FALSE) -> 0% | U38: =+S38-I38 -> 
A40: CRITERE ACCELERATEURS PNB | C40: 15% | O40: =VLOOKUP($A$5,'RECAP SECT'!$G$6:$DG$312,144,FALSE) -> 
B41: PNB Ventes brutes SED Finalisées | C41: 6% | E41: ='RECAP SECT'!#REF! ->  | G41: =VLOOKUP($A$5,'RECAP SECT'!$G$6:$DG$312,127,FALSE) ->  | I41: =VLOOKUP($A$5,'RECAP SECT'!$G$6:$DG$312,128,FALSE) ->  | K41: =VLOOKUP($A$5,'RECAP SECT AN'!$G$6:$FS$312,128,FALSE) -> 45% | M41: =+K41-I41 ->  | O41: =VLOOKUP($A$5,'RECAP SECT'!$G$6:$DG$312,129,FALSE) ->  | S41: =VLOOKUP($A$5,'RECAP SECT AN'!$G$6:$FE$312,120,FALSE) -> 0% | U41: =+S41-I41 -> 
B42: PNB clients équipés E documents | C42: 3% | E42: ='RECAP SECT'!#REF! ->  | G42: =VLOOKUP($A$5,'RECAP SECT'!$G$6:$DG$312,131,FALSE) ->  | I42: =VLOOKUP($A$5,'RECAP SECT'!$G$6:$DG$312,132,FALSE) ->  | K42: =VLOOKUP($A$5,'RECAP SECT AN'!$G$6:$FS$312,132,FALSE) -> 43% | M42: =+K42-I42 ->  | O42: =VLOOKUP($A$5,'RECAP SECT'!$G$6:$DG$312,133,FALSE) ->  | S42: =VLOOKUP($A$5,'RECAP SECT AN'!$G$6:$FE$312,123,FALSE) -> 0% | U42: =+S42-I42 -> 
B43: Economie opt'in | C43: 3% | E43: ='RECAP SECT'!#REF! ->  | G43: =VLOOKUP($A$5,'RECAP SECT'!$G$6:$DG$312,135,FALSE) ->  | I43: =VLOOKUP($A$5,'RECAP SECT'!$G$6:$DG$312,136,FALSE) ->  | K43: =VLOOKUP($A$5,'RECAP SECT AN'!$G$6:$FS$312,136,FALSE) -> 55% | M43: =+K43-I43 ->  | O43: =VLOOKUP($A$5,'RECAP SECT'!$G$6:$DG$312,137,FALSE) -> 
B44: Remises commerciales | C44: 3% | E44: ='RECAP SECT'!#REF! ->  | G44: =VLOOKUP($A$5,'RECAP SECT'!$G$6:$DG$312,139,FALSE) ->  | I44: =VLOOKUP($A$5,'RECAP SECT'!$G$6:$DG$312,140,FALSE) ->  | K44: =VLOOKUP($A$5,'RECAP SECT AN'!$G$6:$FS$312,140,FALSE) -> 45% | M44: =+K44-I44 ->  | O44: =VLOOKUP($A$5,'RECAP SECT'!$G$6:$DG$312,141,FALSE) ->  | S44: =VLOOKUP($A$5,'RECAP SECT AN'!$G$6:$FE$312,126,FALSE) -> 2124% | U44: =+S44-I44 -> 
A46: CRITERE Satisfaction Clients | C46: 15% | O46: =VLOOKUP($A$5,'RECAP SECT'!$G$6:$DG$312,159,FALSE) -> 
B47: Objectifs NPS* | C47: 8% | E47: ='RECAP SECT'!K4 -> 19 | G47: =VLOOKUP($A$5,'RECAP SECT'!$G$6:$DG$312,151,FALSE) ->  | I47: =VLOOKUP($A$5,'RECAP SECT'!$G$6:$DG$312,152,FALSE) ->  | K47: =VLOOKUP($A$5,'RECAP SECT AN'!$G$6:$FS$312,152,FALSE) -> 110% | M47: =+K47-I47 ->  | O47: =VLOOKUP($A$5,'RECAP SECT'!$G$6:$DG$312,153,FALSE) ->  | S47: =VLOOKUP($A$5,'RECAP SECT AN'!$G$6:$FE$312,138,FALSE) -> -33048% | U47: =+S47-I47 -> 
B48: Enquête Qualité Haute Définition | C48: 7% | E48: ='RECAP SECT'!N4 -> 68% | G48: =VLOOKUP($A$5,'RECAP SECT'!$G$6:$DG$312,154,FALSE) ->  | I48: =VLOOKUP($A$5,'RECAP SECT'!$G$6:$DG$312,155,FALSE) ->  | K48: =VLOOKUP($A$5,'RECAP SECT AN'!$G$6:$FS$312,155,FALSE) -> 7% | M48: =+K48-I48 ->  | O48: =VLOOKUP($A$5,'RECAP SECT'!$G$6:$DG$312,156,FALSE) ->  | S48: =VLOOKUP($A$5,'RECAP SECT AN'!$G$6:$FE$312,141,FALSE) -> 1000% | U48: =+S48-I48 -> 

Sheet SE_TOTAL
B1: Accueil | F1: BAROMETRE BDD - TERRITOIRES
F2: TOTAL GENERAL
F3: =ACCUEIL!F7 -> 2021-03-14
F7: TOTAL GENERAL | I7: Total Satisfaction Clients | L7: Total Bancarisation | O7: Total Epargne | R7: Total IARD Prévoyance | U7: Total Crédits
G8: coef | H8: 100% | J8: coef | K8: =SE_SATISFACTION!N8 -> 20% | M8: coef | N8: =SE_BANCA!X8 -> 20% | P8: coef | Q8: =SE_EPARGNE!P8 -> 20% | S8: coef | T8: =SE_IARD!P8 -> 20% | V8: coef | W8: =SE_CREDIT!T8 -> 20%
B9: Direction | C9: eds | D9: Territoire | E9: ="ETP perf "&DATEMAJ!$C$28 -> ETP perf 31-janv | F9: Moyenne ecart au 1er | G9: % Ecart au 1er | H9: Rang CEGEE | I9: Moyenne ecart au 1er | J9: % Ecart au 1er | K9: Rang CEGEE | L9: Moyenne ecart au 1er | M9: % Ecart au 1er | N9: Rang CEGEE | O9: Moyenne ecart au 1er | P9: % Ecart au 1er | Q9: Rang CEGEE | R9: Moyenne ecart au 1er | S9: % Ecart au 1er | T9: Rang CEGEE | U9: Moyenne ecart au 1er | V9: % Ecart au 1er | W9: Rang CEGEE
A10: 50 | B10: MEURTHE ET MOSELLE MEUSE | C10: 26 | D10: NANCY | E10: 67.6 | F10: 10% | G10: 0% | H10: 1 | I10: 35% | J10: 33% | K10: 12 | L10: 27% | M10: 4% | N10: 2 | O10: 21% | P10: 14% | Q10: 7 | R10: 0% | S10: 0% | T10: 1 | U10: 8% | V10: 0% | W10: 1
A11: 50 | B11: MEURTHE ET MOSELLE MEUSE | C11: 27 | D11: PONT A MOUSSON | E11: 77.5 | F11: 17% | G11: 7% | H11: 2 | I11: 34% | J11: 32% | K11: 10 | L11: 41% | M11: 18% | N11: 5 | O11: 22% | P11: 14% | Q11: 8 | R11: 13% | S11: 13% | T11: 6 | U11: 15% | V11: 7% | W11: 2
A12: 262 | B12: VOSGES | C12: 57 | D12: EPINAL | E12: 61.5 | F12: 19% | G12: 9% | H12: 3 | I12: 10% | J12: 8% | K12: 3 | L12: 52% | M12: 29% | N12: 16 | O12: 17% | P12: 10% | Q12: 4 | R12: 11% | S12: 11% | T12: 5 | U12: 44% | V12: 36% | W12: 11
A13: 262 | B13: BAS-RHIN | C13: 5101 | D13: SELESTAT | E13: 63.5 | F13: 20% | G13: 10% | H13: 4 | I13: 48% | J13: 46% | K13: 15 | L13: 23% | M13: 0% | N13: 1 | O13: 7% | P13: 0% | Q13: 1 | R13: 11% | S13: 11% | T13: 4 | U13: 51% | V13: 43% | W13: 15
A14: 262 | B14: MARNE-ARDENNES | C14: 2 | D14: CHARLEVILLE MEZIERES | E14: 56.0 | F14: 21% | G14: 11% | H14: 5 | I14: 2% | J14: 0% | K14: 1 | L14: 43% | M14: 20% | N14: 9 | O14: 22% | P14: 15% | Q14: 9 | R14: 48% | S14: 48% | T14: 17 | U14: 30% | V14: 22% | W14: 4
A15: 264 | B15: VOSGES | C15: 55 | D15: SAINT DIE | E15: 50.2 | F15: 22% | G15: 11% | H15: 6 | I15: 7% | J15: 5% | K15: 2 | L15: 51% | M15: 28% | N15: 15 | O15: 15% | P15: 7% | Q15: 2 | R15: 27% | S15: 27% | T15: 11 | U15: 50% | V15: 42% | W15: 14
A16: 264 | B16: BAS-RHIN | C16: 5006 | D16: STRASBOURG | E16: 83.0 | F16: 22% | G16: 12% | H16: 7 | I16: 55% | J16: 53% | K16: 17 | L16: 29% | M16: 6% | N16: 3 | O16: 16% | P16: 9% | Q16: 3 | R16: 8% | S16: 8% | T16: 2 | U16: 42% | V16: 34% | W16: 10
A17: 30 | B17: MOSELLE | C17: 42 | D17: MOSELLE EST | E17: 72.5 | F17: 25% | G17: 15% | H17: 8 | I17: 20% | J17: 18% | K17: 5 | L17: 43% | M17: 21% | N17: 10 | O17: 25% | P17: 18% | Q17: 10 | R17: 32% | S17: 32% | T17: 13 | U17: 47% | V17: 39% | W17: 13
A18: 30 | B18: BAS-RHIN | C18: 5060 | D18: HAGUENAU | E18: 74.1 | F18: 25% | G18: 15% | H18: 9 | I18: 31% | J18: 29% | K18: 8 | L18: 41% | M18: 19% | N18: 6 | O18: 18% | P18: 11% | Q18: 5 | R18: 25% | S18: 25% | T18: 8 | U18: 52% | V18: 44% | W18: 16
A19: 30 | B19: MOSELLE | C19: 44 | D19: MOSELLE NORD | E19: 74.2 | F19: 27% | G19: 16% | H19: 10 | I19: 51% | J19: 49% | K19: 16 | L19: 42% | M19: 19% | N19: 7 | O19: 21% | P19: 13% | Q19: 6 | R19: 18% | S19: 18% | T19: 7 | U19: 41% | V19: 33% | W19: 8
A20: 110 | B20: AUBE HAUTE MARNE | C20: 21 | D20: CHAUMONT | E20: 34.0 | F20: 27% | G20: 17% | H20: 11 | I20: 31% | J20: 29% | K20: 9 | L20: 48% | M20: 25% | N20: 13 | O20: 49% | P20: 42% | Q20: 14 | R20: 9% | S20: 9% | T20: 3 | U20: 39% | V20: 31% | W20: 6
A21: 110 | B21: MEURTHE ET MOSELLE MEUSE | C21: 31 | D21: VERDUN | E21: 58.4 | F21: 28% | G21: 17% | H21: 12 | I21: 18% | J21: 16% | K21: 4 | L21: 47% | M21: 24% | N21: 12 | O21: 51% | P21: 44% | Q21: 16 | R21: 26% | S21: 26% | T21: 9 | U21: 36% | V21: 28% | W21: 5
A22: 110 | B22: MOSELLE | C22: 45 | D22: METZ | E22: 89.1 | F22: 31% | G22: 21% | H22: 13 | I22: 39% | J22: 36% | K22: 14 | L22: 50% | M22: 27% | N22: 14 | O22: 37% | P22: 30% | Q22: 11 | R22: 29% | S22: 29% | T22: 12 | U22: 41% | V22: 33% | W22: 9
A23: 160 | B23: MARNE-ARDENNES | C23: 11 | D23: REIMS | E23: 83.2 | F23: 31% | G23: 21% | H23: 14 | I23: 34% | J23: 32% | K23: 11 | L23: 40% | M23: 18% | N23: 4 | O23: 55% | P23: 48% | Q23: 17 | R23: 41% | S23: 41% | T23: 14 | U23: 27% | V23: 19% | W23: 3
A24: 160 | B24: MARNE-ARDENNES | C24: 6 | D24: CHALONS EN CHAMPAGNE | E24: 45.4 | F24: 32% | G24: 22% | H24: 15 | I24: 21% | J24: 19% | K24: 6 | L24: 43% | M24: 20% | N24: 8 | O24: 49% | P24: 42% | Q24: 15 | R24: 47% | S24: 47% | T24: 15 | U24: 39% | V24: 31% | W24: 7
A25: 160 | B25: AUBE HAUTE MARNE | C25: 14 | D25: TROYES | E25: 68.9 | F25: 36% | G25: 26% | H25: 16 | I25: 24% | J25: 22% | K25: 7 | L25: 44% | M25: 21% | N25: 11 | O25: 59% | P25: 52% | Q25: 18 | R25: 48% | S25: 48% | T25: 16 | U25: 46% | V25: 38% | W25: 12
A26: 80 | B26: HAUT-RHIN | C26: 5130 | D26: COLMAR | E26: 65.1 | F26: 37% | G26: 27% | H26: 17 | I26: 37% | J26: 35% | K26: 13 | L26: 58% | M26: 35% | N26: 17 | O26: 41% | P26: 34% | Q26: 12 | R26: 26% | S26: 26% | T26: 10 | U26: 63% | V26: 54% | W26: 18
A27: 80 | B27: HAUT-RHIN | C27: 5169 | D27: MULHOUSE | E27: 61.5 | F27: 52% | G27: 42% | H27: 18 | I27: 76% | J27: 74% | K27: 18 | L27: 72% | M27: 49% | N27: 18 | O27: 45% | P27: 38% | Q27: 13 | R27: 50% | S27: 50% | T27: 18 | U27: 56% | V27: 47% | W27: 17
A28: Total CEGEE Directions Régionales | E28: =SUM(E10:E27) -> 1186

Sheet SE_BANCA
B1: Accueil | F1: BAROMETRE BDD - TERRITOIRES
F2: BANCARISATION
F3: =ACCUEIL!F7 -> 2021-03-14
F7: Ventes Nettes produits pondérés | J7: Ventes sur client non détenteur de l’univers | N7: Mobilité Macron | R7: Remises commerciales | V7: Total Bancarisation
F8: =DATEMAJ!C8 -> au 14/03 | H8: coef | I8: ='RECAP DIRCOM'!AA4 -> 10% | J8: =DATEMAJ!C9 -> au 14/03 | L8: coef | M8: ='RECAP DIRCOM'!AE4 -> 4% | N8: =DATEMAJ!C10 -> au 14/03 | P8: coef | Q8: ='RECAP DIRCOM'!AI4 -> 3% | R8: =DATEMAJ!C11 -> au 31/01 | T8: coef | U8: ='RECAP DIRCOM'!AM4 -> 3% | W8: coef | X8: ='RECAP DIRCOM'!AP4 -> 20%
B9: Direction | C9: eds | D9: Territoire | E9: ="ETP perf "&DATEMAJ!$C$28 -> ETP perf 31-janv | F9: VN | G9: VN / ETP | H9: % Ecart au 1er | I9: Rang | J9: VB | K9: VB / ETP | L9: % Ecart au 1er | M9: Rang | N9: Nb | O9: Nb / ETP | P9: % Ecart au 1er | Q9: Rang | R9: Montant | S9: Montant / ETP | T9: % Ecart au 1er | U9: Rang | V9: Moyenne ecart au 1er | W9: % Ecart au 1er | X9: Rang CEGEE
A10: 50 | B10: AUBE HAUTE MARNE | C10: 21 | D10: CHAUMONT | E10: =VLOOKUP($C10,'RECAP SECT'!$G$6:$DC$253,3,FALSE) -> 34.0 | F10: =VLOOKUP($C10,'RECAP SECT'!$G$6:$DC$253,18,FALSE) -> 372 | G10: =VLOOKUP($C10,'RECAP SECT'!$G$6:$DC$253,19,FALSE) -> 10.93 | H10: =VLOOKUP($C10,'RECAP SECT'!$G$6:$DC$253,20,FALSE) -> 62% | I10: =VLOOKUP($C10,'RECAP SECT'!$G$6:$DC$253,21,FALSE) -> 16 | J10: =VLOOKUP($C10,'RECAP SECT'!$G$6:$DC$253,22,FALSE) -> 392 | K10: =VLOOKUP($C10,'RECAP SECT'!$G$6:$DC$253,23,FALSE) -> 11.53 | L10: =VLOOKUP($C10,'RECAP SECT'!$G$6:$DC$253,24,FALSE) -> 25% | M10: =VLOOKUP($C10,'RECAP SECT'!$G$6:$DC$253,25,FALSE) -> 6 | N10: =VLOOKUP($C10,'RECAP SECT'!$G$6:$DC$253,26,FALSE) -> 54 | O10: =VLOOKUP($C10,'RECAP SECT'!$G$6:$DC$253,27,FALSE) -> 1.59 | P10: =VLOOKUP($C10,'RECAP SECT'!$G$6:$DC$253,28,FALSE) -> 70% | Q10: =VLOOKUP($C10,'RECAP SECT'!$G$6:$DC$253,29,FALSE) -> 11 | R10: =VLOOKUP($C10,'RECAP SECT'!$G$6:$DC$253,30,FALSE) -> -9.8 | S10: =VLOOKUP($C10,'RECAP SECT'!$G$6:$DC$253,31,FALSE) -> -0.29 | T10: =VLOOKUP($C10,'RECAP SECT'!$G$6:$DC$253,32,FALSE) -> 6% | U10: =VLOOKUP($C10,'RECAP SECT'!$G$6:$DC$253,33,FALSE) -> 2 | V10: =VLOOKUP($C10,'RECAP SECT'!$G$6:$DC$253,34,FALSE) -> 48% | W10: =VLOOKUP($C10,'RECAP SECT'!$G$6:$DC$253,35,FALSE) -> 25% | X10: =VLOOKUP($C10,'RECAP SECT'!$G$6:$DC$253,36,FALSE) -> 13
A11: 50 | B11: AUBE HAUTE MARNE | C11: 14 | D11: TROYES | E11: =VLOOKUP($C11,'RECAP SECT'!$G$6:$DC$253,3,FALSE) -> 68.9 | F11: =VLOOKUP($C11,'RECAP SECT'!$G$6:$DC$253,18,FALSE) -> 1,028 | G11: =VLOOKUP($C11,'RECAP SECT'!$G$6:$DC$253,19,FALSE) -> 14.93 | H11: =VLOOKUP($C11,'RECAP SECT'!$G$6:$DC$253,20,FALSE) -> 48% | I11: =VLOOKUP($C11,'RECAP SECT'!$G$6:$DC$253,21,FALSE) -> 8 | J11: =VLOOKUP($C11,'RECAP SECT'!$G$6:$DC$253,22,FALSE) -> 731 | K11: =VLOOKUP($C11,'RECAP SECT'!$G$6:$DC$253,23,FALSE) -> 10.62 | L11: =VLOOKUP($C11,'RECAP SECT'!$G$6:$DC$253,24,FALSE) -> 31% | M11: =VLOOKUP($C11,'RECAP SECT'!$G$6:$DC$253,25,FALSE) -> 12 | N11: =VLOOKUP($C11,'RECAP SECT'!$G$6:$DC$253,26,FALSE) -> 113 | O11: =VLOOKUP($C11,'RECAP SECT'!$G$6:$DC$253,27,FALSE) -> 1.64 | P11: =VLOOKUP($C11,'RECAP SECT'!$G$6:$DC$253,28,FALSE) -> 69% | Q11: =VLOOKUP($C11,'RECAP SECT'!$G$6:$DC$253,29,FALSE) -> 10 | R11: =VLOOKUP($C11,'RECAP SECT'!$G$6:$DC$253,30,FALSE) -> -22.6 | S11: =VLOOKUP($C11,'RECAP SECT'!$G$6:$DC$253,31,FALSE) -> -0.33 | T11: =VLOOKUP($C11,'RECAP SECT'!$G$6:$DC$253,32,FALSE) -> 20% | U11: =VLOOKUP($C11,'RECAP SECT'!$G$6:$DC$253,33,FALSE) -> 7 | V11: =VLOOKUP($C11,'RECAP SECT'!$G$6:$DC$253,34,FALSE) -> 44% | W11: =VLOOKUP($C11,'RECAP SECT'!$G$6:$DC$253,35,FALSE) -> 21% | X11: =VLOOKUP($C11,'RECAP SECT'!$G$6:$DC$253,36,FALSE) -> 11
A12: 262 | B12: BAS-RHIN | C12: 5060 | D12: HAGUENAU | E12: =VLOOKUP($C12,'RECAP SECT'!$G$6:$DC$253,3,FALSE) -> 74.1 | F12: =VLOOKUP($C12,'RECAP SECT'!$G$6:$DC$253,18,FALSE) -> 1,589 | G12: =VLOOKUP($C12,'RECAP SECT'!$G$6:$DC$253,19,FALSE) -> 21.44 | H12: =VLOOKUP($C12,'RECAP SECT'!$G$6:$DC$253,20,FALSE) -> 26% | I12: =VLOOKUP($C12,'RECAP SECT'!$G$6:$DC$253,21,FALSE) -> 3 | J12: =VLOOKUP($C12,'RECAP SECT'!$G$6:$DC$253,22,FALSE) -> 704 | K12: =VLOOKUP($C12,'RECAP SECT'!$G$6:$DC$253,23,FALSE) -> 9.50 | L12: =VLOOKUP($C12,'RECAP SECT'!$G$6:$DC$253,24,FALSE) -> 38% | M12: =VLOOKUP($C12,'RECAP SECT'!$G$6:$DC$253,25,FALSE) -> 15 | N12: =VLOOKUP($C12,'RECAP SECT'!$G$6:$DC$253,26,FALSE) -> 103 | O12: =VLOOKUP($C12,'RECAP SECT'!$G$6:$DC$253,27,FALSE) -> 1.39 | P12: =VLOOKUP($C12,'RECAP SECT'!$G$6:$DC$253,28,FALSE) -> 74% | Q12: =VLOOKUP($C12,'RECAP SECT'!$G$6:$DC$253,29,FALSE) -> 13 | R12: =VLOOKUP($C12,'RECAP SECT'!$G$6:$DC$253,30,FALSE) -> -33.5 | S12: =VLOOKUP($C12,'RECAP SECT'!$G$6:$DC$253,31,FALSE) -> -0.45 | T12: =VLOOKUP($C12,'RECAP SECT'!$G$6:$DC$253,32,FALSE) -> 65% | U12: =VLOOKUP($C12,'RECAP SECT'!$G$6:$DC$253,33,FALSE) -> 18 | V12: =VLOOKUP($C12,'RECAP SECT'!$G$6:$DC$253,34,FALSE) -> 41% | W12: =VLOOKUP($C12,'RECAP SECT'!$G$6:$DC$253,35,FALSE) -> 19% | X12: =VLOOKUP($C12,'RECAP SECT'!$G$6:$DC$253,36,FALSE) -> 6
A13: 262 | B13: BAS-RHIN | C13: 5101 | D13: SELESTAT | E13: =VLOOKUP($C13,'RECAP SECT'!$G$6:$DC$253,3,FALSE) -> 63.5 | F13: =VLOOKUP($C13,'RECAP SECT'!$G$6:$DC$253,18,FALSE) -> 1,836 | G13: =VLOOKUP($C13,'RECAP SECT'!$G$6:$DC$253,19,FALSE) -> 28.93 | H13: =VLOOKUP($C13,'RECAP SECT'!$G$6:$DC$253,20,FALSE) -> 0% | I13: =VLOOKUP($C13,'RECAP SECT'!$G$6:$DC$253,21,FALSE) -> 1 | J13: =VLOOKUP($C13,'RECAP SECT'!$G$6:$DC$253,22,FALSE) -> 677 | K13: =VLOOKUP($C13,'RECAP SECT'!$G$6:$DC$253,23,FALSE) -> 10.67 | L13: =VLOOKUP($C13,'RECAP SECT'!$G$6:$DC$253,24,FALSE) -> 31% | M13: =VLOOKUP($C13,'RECAP SECT'!$G$6:$DC$253,25,FALSE) -> 11 | N13: =VLOOKUP($C13,'RECAP SECT'!$G$6:$DC$253,26,FALSE) -> 95 | O13: =VLOOKUP($C13,'RECAP SECT'!$G$6:$DC$253,27,FALSE) -> 1.50 | P13: =VLOOKUP($C13,'RECAP SECT'!$G$6:$DC$253,28,FALSE) -> 72% | Q13: =VLOOKUP($C13,'RECAP SECT'!$G$6:$DC$253,29,FALSE) -> 12 | R13: =VLOOKUP($C13,'RECAP SECT'!$G$6:$DC$253,30,FALSE) -> -24.0 | S13: =VLOOKUP($C13,'RECAP SECT'!$G$6:$DC$253,31,FALSE) -> -0.38 | T13: =VLOOKUP($C13,'RECAP SECT'!$G$6:$DC$253,32,FALSE) -> 38% | U13: =VLOOKUP($C13,'RECAP SECT'!$G$6:$DC$253,33,FALSE) -> 11 | V13: =VLOOKUP($C13,'RECAP SECT'!$G$6:$DC$253,34,FALSE) -> 23% | W13: =VLOOKUP($C13,'RECAP SECT'!$G$6:$DC$253,35,FALSE) -> 0% | X13: =VLOOKUP($C13,'RECAP SECT'!$G$6:$DC$253,36,FALSE) -> 1
A14: 262 | B14: BAS-RHIN | C14: 5006 | D14: STRASBOURG | E14: =VLOOKUP($C14,'RECAP SECT'!$G$6:$DC$253,3,FALSE) -> 83.0 | F14: =VLOOKUP($C14,'RECAP SECT'!$G$6:$DC$253,18,FALSE) -> 1,895 | G14: =VLOOKUP($C14,'RECAP SECT'!$G$6:$DC$253,19,FALSE) -> 22.82 | H14: =VLOOKUP($C14,'RECAP SECT'!$G$6:$DC$253,20,FALSE) -> 21% | I14: =VLOOKUP($C14,'RECAP SECT'!$G$6:$DC$253,21,FALSE) -> 2 | J14: =VLOOKUP($C14,'RECAP SECT'!$G$6:$DC$253,22,FALSE) -> 1,170 | K14: =VLOOKUP($C14,'RECAP SECT'!$G$6:$DC$253,23,FALSE) -> 14.09 | L14: =VLOOKUP($C14,'RECAP SECT'!$G$6:$DC$253,24,FALSE) -> 9% | M14: =VLOOKUP($C14,'RECAP SECT'!$G$6:$DC$253,25,FALSE) -> 2 | N14: =VLOOKUP($C14,'RECAP SECT'!$G$6:$DC$253,26,FALSE) -> 231 | O14: =VLOOKUP($C14,'RECAP SECT'!$G$6:$DC$253,27,FALSE) -> 2.78 | P14: =VLOOKUP($C14,'RECAP SECT'!$G$6:$DC$253,28,FALSE) -> 48% | Q14: =VLOOKUP($C14,'RECAP SECT'!$G$6:$DC$253,29,FALSE) -> 6 | R14: =VLOOKUP($C14,'RECAP SECT'!$G$6:$DC$253,30,FALSE) -> -36.9 | S14: =VLOOKUP($C14,'RECAP SECT'!$G$6:$DC$253,31,FALSE) -> -0.44 | T14: =VLOOKUP($C14,'RECAP SECT'!$G$6:$DC$253,32,FALSE) -> 62% | U14: =VLOOKUP($C14,'RECAP SECT'!$G$6:$DC$253,33,FALSE) -> 17 | V14: =VLOOKUP($C14,'RECAP SECT'!$G$6:$DC$253,34,FALSE) -> 29% | W14: =VLOOKUP($C14,'RECAP SECT'!$G$6:$DC$253,35,FALSE) -> 6% | X14: =VLOOKUP($C14,'RECAP SECT'!$G$6:$DC$253,36,FALSE) -> 3
A15: 264 | B15: HAUT-RHIN | C15: 5130 | D15: COLMAR | E15: =VLOOKUP($C15,'RECAP SECT'!$G$6:$DC$253,3,FALSE) -> 65.1 | F15: =VLOOKUP($C15,'RECAP SECT'!$G$6:$DC$253,18,FALSE) -> 583 | G15: =VLOOKUP($C15,'RECAP SECT'!$G$6:$DC$253,19,FALSE) -> 8.96 | H15: =VLOOKUP($C15,'RECAP SECT'!$G$6:$DC$253,20,FALSE) -> 69% | I15: =VLOOKUP($C15,'RECAP SECT'!$G$6:$DC$253,21,FALSE) -> 17 | J15: =VLOOKUP($C15,'RECAP SECT'!$G$6:$DC$253,22,FALSE) -> 558 | K15: =VLOOKUP($C15,'RECAP SECT'!$G$6:$DC$253,23,FALSE) -> 8.57 | L15: =VLOOKUP($C15,'RECAP SECT'!$G$6:$DC$253,24,FALSE) -> 44% | M15: =VLOOKUP($C15,'RECAP SECT'!$G$6:$DC$253,25,FALSE) -> 18 | N15: =VLOOKUP($C15,'RECAP SECT'!$G$6:$DC$253,26,FALSE) -> 59 | O15: =VLOOKUP($C15,'RECAP SECT'!$G$6:$DC$253,27,FALSE) -> 0.91 | P15: =VLOOKUP($C15,'RECAP SECT'!$G$6:$DC$253,28,FALSE) -> 83% | Q15: =VLOOKUP($C15,'RECAP SECT'!$G$6:$DC$253,29,FALSE) -> 17 | R15: =VLOOKUP($C15,'RECAP SECT'!$G$6:$DC$253,30,FALSE) -> -20.5 | S15: =VLOOKUP($C15,'RECAP SECT'!$G$6:$DC$253,31,FALSE) -> -0.31 | T15: =VLOOKUP($C15,'RECAP SECT'!$G$6:$DC$253,32,FALSE) -> 15% | U15: =VLOOKUP($C15,'RECAP SECT'!$G$6:$DC$253,33,FALSE) -> 4 | V15: =VLOOKUP($C15,'RECAP SECT'!$G$6:$DC$253,34,FALSE) -> 58% | W15: =VLOOKUP($C15,'RECAP SECT'!$G$6:$DC$253,35,FALSE) -> 35% | X15: =VLOOKUP($C15,'RECAP SECT'!$G$6:$DC$253,36,FALSE) -> 17
A16: 264 | B16: HAUT-RHIN | C16: 5169 | D16: MULHOUSE | E16: =VLOOKUP($C16,'RECAP SECT'!$G$6:$DC$253,3,FALSE) -> 61.5 | F16: =VLOOKUP($C16,'RECAP SECT'!$G$6:$DC$253,18,FALSE) -> 193 | G16: =VLOOKUP($C16,'RECAP SECT'!$G$6:$DC$253,19,FALSE) -> 3.13 | H16: =VLOOKUP($C16,'RECAP SECT'!$G$6:$DC$253,20,FALSE) -> 89% | I16: =VLOOKUP($C16,'RECAP SECT'!$G$6:$DC$253,21,FALSE) -> 18 | J16: =VLOOKUP($C16,'RECAP SECT'!$G$6:$DC$253,22,FALSE) -> 560 | K16: =VLOOKUP($C16,'RECAP SECT'!$G$6:$DC$253,23,FALSE) -> 9.10 | L16: =VLOOKUP($C16,'RECAP SECT'!$G$6:$DC$253,24,FALSE) -> 41% | M16: =VLOOKUP($C16,'RECAP SECT'!$G$6:$DC$253,25,FALSE) -> 16 | N16: =VLOOKUP($C16,'RECAP SECT'!$G$6:$DC$253,26,FALSE) -> 51 | O16: =VLOOKUP($C16,'RECAP SECT'!$G$6:$DC$253,27,FALSE) -> 0.83 | P16: =VLOOKUP($C16,'RECAP SECT'!$G$6:$DC$253,28,FALSE) -> 84% | Q16: =VLOOKUP($C16,'RECAP SECT'!$G$6:$DC$253,29,FALSE) -> 18 | R16: =VLOOKUP($C16,'RECAP SECT'!$G$6:$DC$253,30,FALSE) -> -24.3 | S16: =VLOOKUP($C16,'RECAP SECT'!$G$6:$DC$253,31,FALSE) -> -0.40 | T16: =VLOOKUP($C16,'RECAP SECT'!$G$6:$DC$253,32,FALSE) -> 44% | U16: =VLOOKUP($C16,'RECAP SECT'!$G$6:$DC$253,33,FALSE) -> 14 | V16: =VLOOKUP($C16,'RECAP SECT'!$G$6:$DC$253,34,FALSE) -> 72% | W16: =VLOOKUP($C16,'RECAP SECT'!$G$6:$DC$253,35,FALSE) -> 49% | X16: =VLOOKUP($C16,'RECAP SECT'!$G$6:$DC$253,36,FALSE) -> 18
A17: 30 | B17: MARNE-ARDENNES | C17: 6 | D17: CHALONS EN CHAMPAGNE | E17: =VLOOKUP($C17,'RECAP SECT'!$G$6:$DC$253,3,FALSE) -> 45.4 | F17: =VLOOKUP($C17,'RECAP SECT'!$G$6:$DC$253,18,FALSE) -> 610 | G17: =VLOOKUP($C17,'RECAP SECT'!$G$6:$DC$253,19,FALSE) -> 13.43 | H17: =VLOOKUP($C17,'RECAP SECT'!$G$6:$DC$253,20,FALSE) -> 54% | I17: =VLOOKUP($C17,'RECAP SECT'!$G$6:$DC$253,21,FALSE) -> 10 | J17: =VLOOKUP($C17,'RECAP SECT'!$G$6:$DC$253,22,FALSE) -> 519 | K17: =VLOOKUP($C17,'RECAP SECT'!$G$6:$DC$253,23,FALSE) -> 11.43 | L17: =VLOOKUP($C17,'RECAP SECT'!$G$6:$DC$253,24,FALSE) -> 26% | M17: =VLOOKUP($C17,'RECAP SECT'!$G$6:$DC$253,25,FALSE) -> 7 | N17: =VLOOKUP($C17,'RECAP SECT'!$G$6:$DC$253,26,FALSE) -> 157 | O17: =VLOOKUP($C17,'RECAP SECT'!$G$6:$DC$253,27,FALSE) -> 3.46 | P17: =VLOOKUP($C17,'RECAP SECT'!$G$6:$DC$253,28,FALSE) -> 35% | Q17: =VLOOKUP($C17,'RECAP SECT'!$G$6:$DC$253,29,FALSE) -> 3 | R17: =VLOOKUP($C17,'RECAP SECT'!$G$6:$DC$253,30,FALSE) -> -16.9 | S17: =VLOOKUP($C17,'RECAP SECT'!$G$6:$DC$253,31,FALSE) -> -0.37 | T17: =VLOOKUP($C17,'RECAP SECT'!$G$6:$DC$253,32,FALSE) -> 35% | U17: =VLOOKUP($C17,'RECAP SECT'!$G$6:$DC$253,33,FALSE) -> 10 | V17: =VLOOKUP($C17,'RECAP SECT'!$G$6:$DC$253,34,FALSE) -> 43% | W17: =VLOOKUP($C17,'RECAP SECT'!$G$6:$DC$253,35,FALSE) -> 20% | X17: =VLOOKUP($C17,'RECAP SECT'!$G$6:$DC$253,36,FALSE) -> 8
A18: 30 | B18: MARNE-ARDENNES | C18: 2 | D18: CHARLEVILLE MEZIERES | E18: =VLOOKUP($C18,'RECAP SECT'!$G$6:$DC$253,3,FALSE) -> 56.0 | F18: =VLOOKUP($C18,'RECAP SECT'!$G$6:$DC$253,18,FALSE) -> 660 | G18: =VLOOKUP($C18,'RECAP SECT'!$G$6:$DC$253,19,FALSE) -> 11.79 | H18: =VLOOKUP($C18,'RECAP SECT'!$G$6:$DC$253,20,FALSE) -> 59% | I18: =VLOOKUP($C18,'RECAP SECT'!$G$6:$DC$253,21,FALSE) -> 13 | J18: =VLOOKUP($C18,'RECAP SECT'!$G$6:$DC$253,22,FALSE) -> 719 | K18: =VLOOKUP($C18,'RECAP SECT'!$G$6:$DC$253,23,FALSE) -> 12.84 | L18: =VLOOKUP($C18,'RECAP SECT'!$G$6:$DC$253,24,FALSE) -> 17% | M18: =VLOOKUP($C18,'RECAP SECT'!$G$6:$DC$253,25,FALSE) -> 4 | N18: =VLOOKUP($C18,'RECAP SECT'!$G$6:$DC$253,26,FALSE) -> 162 | O18: =VLOOKUP($C18,'RECAP SECT'!$G$6:$DC$253,27,FALSE) -> 2.89 | P18: =VLOOKUP($C18,'RECAP SECT'!$G$6:$DC$253,28,FALSE) -> 46% | Q18: =VLOOKUP($C18,'RECAP SECT'!$G$6:$DC$253,29,FALSE) -> 5 | R18: =VLOOKUP($C18,'RECAP SECT'!$G$6:$DC$253,30,FALSE) -> -18.4 | S18: =VLOOKUP($C18,'RECAP SECT'!$G$6:$DC$253,31,FALSE) -> -0.33 | T18: =VLOOKUP($C18,'RECAP SECT'!$G$6:$DC$253,32,FALSE) -> 20% | U18: =VLOOKUP($C18,'RECAP SECT'!$G$6:$DC$253,33,FALSE) -> 6 | V18: =VLOOKUP($C18,'RECAP SECT'!$G$6:$DC$253,34,FALSE) -> 43% | W18: =VLOOKUP($C18,'RECAP SECT'!$G$6:$DC$253,35,FALSE) -> 20% | X18: =VLOOKUP($C18,'RECAP SECT'!$G$6:$DC$253,36,FALSE) -> 9
A19: 30 | B19: MARNE-ARDENNES | C19: 11 | D19: REIMS | E19: =VLOOKUP($C19,'RECAP SECT'!$G$6:$DC$253,3,FALSE) -> 83.2 | F19: =VLOOKUP($C19,'RECAP SECT'!$G$6:$DC$253,18,FALSE) -> 1,277 | G19: =VLOOKUP($C19,'RECAP SECT'!$G$6:$DC$253,19,FALSE) -> 15.35 | H19: =VLOOKUP($C19,'RECAP SECT'!$G$6:$DC$253,20,FALSE) -> 47% | I19: =VLOOKUP($C19,'RECAP SECT'!$G$6:$DC$253,21,FALSE) -> 7 | J19: =VLOOKUP($C19,'RECAP SECT'!$G$6:$DC$253,22,FALSE) -> 1,066 | K19: =VLOOKUP($C19,'RECAP SECT'!$G$6:$DC$253,23,FALSE) -> 12.82 | L19: =VLOOKUP($C19,'RECAP SECT'!$G$6:$DC$253,24,FALSE) -> 17% | M19: =VLOOKUP($C19,'RECAP SECT'!$G$6:$DC$253,25,FALSE) -> 5 | N19: =VLOOKUP($C19,'RECAP SECT'!$G$6:$DC$253,26,FALSE) -> 310 | O19: =VLOOKUP($C19,'RECAP SECT'!$G$6:$DC$253,27,FALSE) -> 3.73 | P19: =VLOOKUP($C19,'RECAP SECT'!$G$6:$DC$253,28,FALSE) -> 30% | Q19: =VLOOKUP($C19,'RECAP SECT'!$G$6:$DC$253,29,FALSE) -> 2 | R19: =VLOOKUP($C19,'RECAP SECT'!$G$6:$DC$253,30,FALSE) -> -36.5 | S19: =VLOOKUP($C19,'RECAP SECT'!$G$6:$DC$253,31,FALSE) -> -0.44 | T19: =VLOOKUP($C19,'RECAP SECT'!$G$6:$DC$253,32,FALSE) -> 60% | U19: =VLOOKUP($C19,'RECAP SECT'!$G$6:$DC$253,33,FALSE) -> 16 | V19: =VLOOKUP($C19,'RECAP SECT'!$G$6:$DC$253,34,FALSE) -> 40% | W19: =VLOOKUP($C19,'RECAP SECT'!$G$6:$DC$253,35,FALSE) -> 18% | X19: =VLOOKUP($C19,'RECAP SECT'!$G$6:$DC$253,36,FALSE) -> 4
A20: 110 | B20: MEURTHE ET MOSELLE MEUSE | C20: 26 | D20: NANCY | E20: =VLOOKUP($C20,'RECAP SECT'!$G$6:$DC$253,3,FALSE) -> 67.6 | F20: =VLOOKUP($C20,'RECAP SECT'!$G$6:$DC$253,18,FALSE) -> 1,141 | G20: =VLOOKUP($C20,'RECAP SECT'!$G$6:$DC$253,19,FALSE) -> 16.89 | H20: =VLOOKUP($C20,'RECAP SECT'!$G$6:$DC$253,20,FALSE) -> 42% | I20: =VLOOKUP($C20,'RECAP SECT'!$G$6:$DC$253,21,FALSE) -> 4 | J20: =VLOOKUP($C20,'RECAP SECT'!$G$6:$DC$253,22,FALSE) -> 1,043 | K20: =VLOOKUP($C20,'RECAP SECT'!$G$6:$DC$253,23,FALSE) -> 15.43 | L20: =VLOOKUP($C20,'RECAP SECT'!$G$6:$DC$253,24,FALSE) -> 0% | M20: =VLOOKUP($C20,'RECAP SECT'!$G$6:$DC$253,25,FALSE) -> 1 | N20: =VLOOKUP($C20,'RECAP SECT'!$G$6:$DC$253,26,FALSE) -> 361 | O20: =VLOOKUP($C20,'RECAP SECT'!$G$6:$DC$253,27,FALSE) -> 5.34 | P20: =VLOOKUP($C20,'RECAP SECT'!$G$6:$DC$253,28,FALSE) -> 0% | Q20: =VLOOKUP($C20,'RECAP SECT'!$G$6:$DC$253,29,FALSE) -> 1 | R20: =VLOOKUP($C20,'RECAP SECT'!$G$6:$DC$253,30,FALSE) -> -26.1 | S20: =VLOOKUP($C20,'RECAP SECT'!$G$6:$DC$253,31,FALSE) -> -0.39 | T20: =VLOOKUP($C20,'RECAP SECT'!$G$6:$DC$253,32,FALSE) -> 41% | U20: =VLOOKUP($C20,'RECAP SECT'!$G$6:$DC$253,33,FALSE) -> 12 | V20: =VLOOKUP($C20,'RECAP SECT'!$G$6:$DC$253,34,FALSE) -> 27% | W20: =VLOOKUP($C20,'RECAP SECT'!$G$6:$DC$253,35,FALSE) -> 4% | X20: =VLOOKUP($C20,'RECAP SECT'!$G$6:$DC$253,36,FALSE) -> 2
A21: 110 | B21: MEURTHE ET MOSELLE MEUSE | C21: 27 | D21: PONT A MOUSSON | E21: =VLOOKUP($C21,'RECAP SECT'!$G$6:$DC$253,3,FALSE) -> 77.5 | F21: =VLOOKUP($C21,'RECAP SECT'!$G$6:$DC$253,18,FALSE) -> 1,111 | G21: =VLOOKUP($C21,'RECAP SECT'!$G$6:$DC$253,19,FALSE) -> 14.34 | H21: =VLOOKUP($C21,'RECAP SECT'!$G$6:$DC$253,20,FALSE) -> 50% | I21: =VLOOKUP($C21,'RECAP SECT'!$G$6:$DC$253,21,FALSE) -> 9 | J21: =VLOOKUP($C21,'RECAP SECT'!$G$6:$DC$253,22,FALSE) -> 1,013 | K21: =VLOOKUP($C21,'RECAP SECT'!$G$6:$DC$253,23,FALSE) -> 13.07 | L21: =VLOOKUP($C21,'RECAP SECT'!$G$6:$DC$253,24,FALSE) -> 15% | M21: =VLOOKUP($C21,'RECAP SECT'!$G$6:$DC$253,25,FALSE) -> 3 | N21: =VLOOKUP($C21,'RECAP SECT'!$G$6:$DC$253,26,FALSE) -> 262 | O21: =VLOOKUP($C21,'RECAP SECT'!$G$6:$DC$253,27,FALSE) -> 3.38 | P21: =VLOOKUP($C21,'RECAP SECT'!$G$6:$DC$253,28,FALSE) -> 37% | Q21: =VLOOKUP($C21,'RECAP SECT'!$G$6:$DC$253,29,FALSE) -> 4 | R21: =VLOOKUP($C21,'RECAP SECT'!$G$6:$DC$253,30,FALSE) -> -31.6 | S21: =VLOOKUP($C21,'RECAP SECT'!$G$6:$DC$253,31,FALSE) -> -0.41 | T21: =VLOOKUP($C21,'RECAP SECT'!$G$6:$DC$253,32,FALSE) -> 49% | U21: =VLOOKUP($C21,'RECAP SECT'!$G$6:$DC$253,33,FALSE) -> 15 | V21: =VLOOKUP($C21,'RECAP SECT'!$G$6:$DC$253,34,FALSE) -> 41% | W21: =VLOOKUP($C21,'RECAP SECT'!$G$6:$DC$253,35,FALSE) -> 18% | X21: =VLOOKUP($C21,'RECAP SECT'!$G$6:$DC$253,36,FALSE) -> 5
A22: 110 | B22: MEURTHE ET MOSELLE MEUSE | C22: 31 | D22: VERDUN | E22: =VLOOKUP($C22,'RECAP SECT'!$G$6:$DC$253,3,FALSE) -> 58.4 | F22: =VLOOKUP($C22,'RECAP SECT'!$G$6:$DC$253,18,FALSE) -> 665 | G22: =VLOOKUP($C22,'RECAP SECT'!$G$6:$DC$253,19,FALSE) -> 11.39 | H22: =VLOOKUP($C22,'RECAP SECT'!$G$6:$DC$253,20,FALSE) -> 61% | I22: =VLOOKUP($C22,'RECAP SECT'!$G$6:$DC$253,21,FALSE) -> 15 | J22: =VLOOKUP($C22,'RECAP SECT'!$G$6:$DC$253,22,FALSE) -> 661 | K22: =VLOOKUP($C22,'RECAP SECT'!$G$6:$DC$253,23,FALSE) -> 11.32 | L22: =VLOOKUP($C22,'RECAP SECT'!$G$6:$DC$253,24,FALSE) -> 27% | M22: =VLOOKUP($C22,'RECAP SECT'!$G$6:$DC$253,25,FALSE) -> 8 | N22: =VLOOKUP($C22,'RECAP SECT'!$G$6:$DC$253,26,FALSE) -> 130 | O22: =VLOOKUP($C22,'RECAP SECT'!$G$6:$DC$253,27,FALSE) -> 2.23 | P22: =VLOOKUP($C22,'RECAP SECT'!$G$6:$DC$253,28,FALSE) -> 58% | Q22: =VLOOKUP($C22,'RECAP SECT'!$G$6:$DC$253,29,FALSE) -> 7 | R22: =VLOOKUP($C22,'RECAP SECT'!$G$6:$DC$253,30,FALSE) -> -18.3 | S22: =VLOOKUP($C22,'RECAP SECT'!$G$6:$DC$253,31,FALSE) -> -0.31 | T22: =VLOOKUP($C22,'RECAP SECT'!$G$6:$DC$253,32,FALSE) -> 15% | U22: =VLOOKUP($C22,'RECAP SECT'!$G$6:$DC$253,33,FALSE) -> 3 | V22: =VLOOKUP($C22,'RECAP SECT'!$G$6:$DC$253,34,FALSE) -> 47% | W22: =VLOOKUP($C22,'RECAP SECT'!$G$6:$DC$253,35,FALSE) -> 24% | X22: =VLOOKUP($C22,'RECAP SECT'!$G$6:$DC$253,36,FALSE) -> 12
A23: 160 | B23: MOSELLE | C23: 45 | D23: METZ | E23: =VLOOKUP($C23,'RECAP SECT'!$G$6:$DC$253,3,FALSE) -> 89.1 | F23: =VLOOKUP($C23,'RECAP SECT'!$G$6:$DC$253,18,FALSE) -> 1,123 | G23: =VLOOKUP($C23,'RECAP SECT'!$G$6:$DC$253,19,FALSE) -> 12.60 | H23: =VLOOKUP($C23,'RECAP SECT'!$G$6:$DC$253,20,FALSE) -> 56% | I23: =VLOOKUP($C23,'RECAP SECT'!$G$6:$DC$253,21,FALSE) -> 12 | J23: =VLOOKUP($C23,'RECAP SECT'!$G$6:$DC$253,22,FALSE) -> 955 | K23: =VLOOKUP($C23,'RECAP SECT'!$G$6:$DC$253,23,FALSE) -> 10.72 | L23: =VLOOKUP($C23,'RECAP SECT'!$G$6:$DC$253,24,FALSE) -> 31% | M23: =VLOOKUP($C23,'RECAP SECT'!$G$6:$DC$253,25,FALSE) -> 10 | N23: =VLOOKUP($C23,'RECAP SECT'!$G$6:$DC$253,26,FALSE) -> 149 | O23: =VLOOKUP($C23,'RECAP SECT'!$G$6:$DC$253,27,FALSE) -> 1.67 | P23: =VLOOKUP($C23,'RECAP SECT'!$G$6:$DC$253,28,FALSE) -> 69% | Q23: =VLOOKUP($C23,'RECAP SECT'!$G$6:$DC$253,29,FALSE) -> 9 | R23: =VLOOKUP($C23,'RECAP SECT'!$G$6:$DC$253,30,FALSE) -> -32.4 | S23: =VLOOKUP($C23,'RECAP SECT'!$G$6:$DC$253,31,FALSE) -> -0.36 | T23: =VLOOKUP($C23,'RECAP SECT'!$G$6:$DC$253,32,FALSE) -> 33% | U23: =VLOOKUP($C23,'RECAP SECT'!$G$6:$DC$253,33,FALSE) -> 9 | V23: =VLOOKUP($C23,'RECAP SECT'!$G$6:$DC$253,34,FALSE) -> 50% | W23: =VLOOKUP($C23,'RECAP SECT'!$G$6:$DC$253,35,FALSE) -> 27% | X23: =VLOOKUP($C23,'RECAP SECT'!$G$6:$DC$253,36,FALSE) -> 14
A24: 160 | B24: MOSELLE | C24: 42 | D24: MOSELLE EST | E24: =VLOOKUP($C24,'RECAP SECT'!$G$6:$DC$253,3,FALSE) -> 72.5 | F24: =VLOOKUP($C24,'RECAP SECT'!$G$6:$DC$253,18,FALSE) -> 1,167 | G24: =VLOOKUP($C24,'RECAP SECT'!$G$6:$DC$253,19,FALSE) -> 16.10 | H24: =VLOOKUP($C24,'RECAP SECT'!$G$6:$DC$253,20,FALSE) -> 44% | I24: =VLOOKUP($C24,'RECAP SECT'!$G$6:$DC$253,21,FALSE) -> 5 | J24: =VLOOKUP($C24,'RECAP SECT'!$G$6:$DC$253,22,FALSE) -> 734 | K24: =VLOOKUP($C24,'RECAP SECT'!$G$6:$DC$253,23,FALSE) -> 10.13 | L24: =VLOOKUP($C24,'RECAP SECT'!$G$6:$DC$253,24,FALSE) -> 34% | M24: =VLOOKUP($C24,'RECAP SECT'!$G$6:$DC$253,25,FALSE) -> 14 | N24: =VLOOKUP($C24,'RECAP SECT'!$G$6:$DC$253,26,FALSE) -> 84 | O24: =VLOOKUP($C24,'RECAP SECT'!$G$6:$DC$253,27,FALSE) -> 1.16 | P24: =VLOOKUP($C24,'RECAP SECT'!$G$6:$DC$253,28,FALSE) -> 78% | Q24: =VLOOKUP($C24,'RECAP SECT'!$G$6:$DC$253,29,FALSE) -> 15 | R24: =VLOOKUP($C24,'RECAP SECT'!$G$6:$DC$253,30,FALSE) -> -23.4 | S24: =VLOOKUP($C24,'RECAP SECT'!$G$6:$DC$253,31,FALSE) -> -0.32 | T24: =VLOOKUP($C24,'RECAP SECT'!$G$6:$DC$253,32,FALSE) -> 18% | U24: =VLOOKUP($C24,'RECAP SECT'!$G$6:$DC$253,33,FALSE) -> 5 | V24: =VLOOKUP($C24,'RECAP SECT'!$G$6:$DC$253,34,FALSE) -> 43% | W24: =VLOOKUP($C24,'RECAP SECT'!$G$6:$DC$253,35,FALSE) -> 21% | X24: =VLOOKUP($C24,'RECAP SECT'!$G$6:$DC$253,36,FALSE) -> 10
A25: 160 | B25: MOSELLE | C25: 44 | D25: MOSELLE NORD | E25: =VLOOKUP($C25,'RECAP SECT'!$G$6:$DC$253,3,FALSE) -> 74.2 | F25: =VLOOKUP($C25,'RECAP SECT'!$G$6:$DC$253,18,FALSE) -> 1,149 | G25: =VLOOKUP($C25,'RECAP SECT'!$G$6:$DC$253,19,FALSE) -> 15.50 | H25: =VLOOKUP($C25,'RECAP SECT'!$G$6:$DC$253,20,FALSE) -> 46% | I25: =VLOOKUP($C25,'RECAP SECT'!$G$6:$DC$253,21,FALSE) -> 6 | J25: =VLOOKUP($C25,'RECAP SECT'!$G$6:$DC$253,22,FALSE) -> 756 | K25: =VLOOKUP($C25,'RECAP SECT'!$G$6:$DC$253,23,FALSE) -> 10.19 | L25: =VLOOKUP($C25,'RECAP SECT'!$G$6:$DC$253,24,FALSE) -> 34% | M25: =VLOOKUP($C25,'RECAP SECT'!$G$6:$DC$253,25,FALSE) -> 13 | N25: =VLOOKUP($C25,'RECAP SECT'!$G$6:$DC$253,26,FALSE) -> 91 | O25: =VLOOKUP($C25,'RECAP SECT'!$G$6:$DC$253,27,FALSE) -> 1.23 | P25: =VLOOKUP($C25,'RECAP SECT'!$G$6:$DC$253,28,FALSE) -> 77% | Q25: =VLOOKUP($C25,'RECAP SECT'!$G$6:$DC$253,29,FALSE) -> 14 | R25: =VLOOKUP($C25,'RECAP SECT'!$G$6:$DC$253,30,FALSE) -> -20.3 | S25: =VLOOKUP($C25,'RECAP SECT'!$G$6:$DC$253,31,FALSE) -> -0.27 | T25: =VLOOKUP($C25,'RECAP SECT'!$G$6:$DC$253,32,FALSE) -> 0% | U25: =VLOOKUP($C25,'RECAP SECT'!$G$6:$DC$253,33,FALSE) -> 1 | V25: =VLOOKUP($C25,'RECAP SECT'!$G$6:$DC$253,34,FALSE) -> 42% | W25: =VLOOKUP($C25,'RECAP SECT'!$G$6:$DC$253,35,FALSE) -> 19% | X25: =VLOOKUP($C25,'RECAP SECT'!$G$6:$DC$253,36,FALSE) -> 7
A26: 80 | B26: VOSGES | C26: 57 | D26: EPINAL | E26: =VLOOKUP($C26,'RECAP SECT'!$G$6:$DC$253,3,FALSE) -> 61.5 | F26: =VLOOKUP($C26,'RECAP SECT'!$G$6:$DC$253,18,FALSE) -> 703 | G26: =VLOOKUP($C26,'RECAP SECT'!$G$6:$DC$253,19,FALSE) -> 11.44 | H26: =VLOOKUP($C26,'RECAP SECT'!$G$6:$DC$253,20,FALSE) -> 60% | I26: =VLOOKUP($C26,'RECAP SECT'!$G$6:$DC$253,21,FALSE) -> 14 | J26: =VLOOKUP($C26,'RECAP SECT'!$G$6:$DC$253,22,FALSE) -> 685 | K26: =VLOOKUP($C26,'RECAP SECT'!$G$6:$DC$253,23,FALSE) -> 11.15 | L26: =VLOOKUP($C26,'RECAP SECT'!$G$6:$DC$253,24,FALSE) -> 28% | M26: =VLOOKUP($C26,'RECAP SECT'!$G$6:$DC$253,25,FALSE) -> 9 | N26: =VLOOKUP($C26,'RECAP SECT'!$G$6:$DC$253,26,FALSE) -> 125 | O26: =VLOOKUP($C26,'RECAP SECT'!$G$6:$DC$253,27,FALSE) -> 2.03 | P26: =VLOOKUP($C26,'RECAP SECT'!$G$6:$DC$253,28,FALSE) -> 62% | Q26: =VLOOKUP($C26,'RECAP SECT'!$G$6:$DC$253,29,FALSE) -> 8 | R26: =VLOOKUP($C26,'RECAP SECT'!$G$6:$DC$253,30,FALSE) -> -24.3 | S26: =VLOOKUP($C26,'RECAP SECT'!$G$6:$DC$253,31,FALSE) -> -0.39 | T26: =VLOOKUP($C26,'RECAP SECT'!$G$6:$DC$253,32,FALSE) -> 44% | U26: =VLOOKUP($C26,'RECAP SECT'!$G$6:$DC$253,33,FALSE) -> 13 | V26: =VLOOKUP($C26,'RECAP SECT'!$G$6:$DC$253,34,FALSE) -> 52% | W26: =VLOOKUP($C26,'RECAP SECT'!$G$6:$DC$253,35,FALSE) -> 29% | X26: =VLOOKUP($C26,'RECAP SECT'!$G$6:$DC$253,36,FALSE) -> 16
A27: 80 | B27: VOSGES | C27: 55 | D27: SAINT DIE | E27: =VLOOKUP($C27,'RECAP SECT'!$G$6:$DC$253,3,FALSE) -> 50.2 | F27: =VLOOKUP($C27,'RECAP SECT'!$G$6:$DC$253,18,FALSE) -> 665 | G27: =VLOOKUP($C27,'RECAP SECT'!$G$6:$DC$253,19,FALSE) -> 13.24 | H27: =VLOOKUP($C27,'RECAP SECT'!$G$6:$DC$253,20,FALSE) -> 54% | I27: =VLOOKUP($C27,'RECAP SECT'!$G$6:$DC$253,21,FALSE) -> 11 | J27: =VLOOKUP($C27,'RECAP SECT'!$G$6:$DC$253,22,FALSE) -> 453 | K27: =VLOOKUP($C27,'RECAP SECT'!$G$6:$DC$253,23,FALSE) -> 9.02 | L27: =VLOOKUP($C27,'RECAP SECT'!$G$6:$DC$253,24,FALSE) -> 42% | M27: =VLOOKUP($C27,'RECAP SECT'!$G$6:$DC$253,25,FALSE) -> 17 | N27: =VLOOKUP($C27,'RECAP SECT'!$G$6:$DC$253,26,FALSE) -> 55 | O27: =VLOOKUP($C27,'RECAP SECT'!$G$6:$DC$253,27,FALSE) -> 1.09 | P27: =VLOOKUP($C27,'RECAP SECT'!$G$6:$DC$253,28,FALSE) -> 80% | Q27: =VLOOKUP($C27,'RECAP SECT'!$G$6:$DC$253,29,FALSE) -> 16 | R27: =VLOOKUP($C27,'RECAP SECT'!$G$6:$DC$253,30,FALSE) -> -16.9 | S27: =VLOOKUP($C27,'RECAP SECT'!$G$6:$DC$253,31,FALSE) -> -0.34 | T27: =VLOOKUP($C27,'RECAP SECT'!$G$6:$DC$253,32,FALSE) -> 23% | U27: =VLOOKUP($C27,'RECAP SECT'!$G$6:$DC$253,33,FALSE) -> 8 | V27: =VLOOKUP($C27,'RECAP SECT'!$G$6:$DC$253,34,FALSE) -> 51% | W27: =VLOOKUP($C27,'RECAP SECT'!$G$6:$DC$253,35,FALSE) -> 28% | X27: =VLOOKUP($C27,'RECAP SECT'!$G$6:$DC$253,36,FALSE) -> 15
A28: Total CEGEE Directions Régionales | E28: =SUM(E10:E27) -> 1186

Sheet SE_EPARGNE
B1: Accueil | F1: BAROMETRE BDD - TERRITOIRES
F2: EPARGNE
F3: =ACCUEIL!F7 -> 2021-03-14
F7: Excédent Epargne y/c DAV pondéré | J7: Ventes sur client non détenteur de l’univers | N7: Total Epargne
F8: =DATEMAJ!C14 -> au 14/03 | H8: coef | I8: ='RECAP DIRCOM'!AX4 -> 14% | J8: =DATEMAJ!C15 -> au 14/03 | L8: coef | M8: ='RECAP DIRCOM'!BB4 -> 6% | O8: coef | P8: ='RECAP DIRCOM'!BE4 -> 20%
A9: eds | B9: Direction | C9: eds | D9: Territoire | E9: ="ETP perf "&DATEMAJ!$C$28 -> ETP perf 31-janv | F9: Excédent | G9: Excédent / ETP | H9: % Ecart au 1er | I9: Rang | J9: VB | K9: VB / ETP | L9: % Ecart au 1er | M9: Rang | N9: Moyenne ecart au 1er | O9: % Ecart au 1er | P9: Rang CEGEE
A10: 50 | B10: AUBE HAUTE MARNE | C10: 21 | D10: CHAUMONT | E10: =VLOOKUP($C10,'RECAP SECT'!$G$6:$DC$253,3,FALSE) -> 34.0 | F10: =VLOOKUP($C10,'RECAP SECT'!$G$6:$DC$253,41,FALSE) -> 3,784 | G10: =VLOOKUP($C10,'RECAP SECT'!$G$6:$DC$253,42,FALSE) -> 111.28 | H10: =VLOOKUP($C10,'RECAP SECT'!$G$6:$DC$253,43,FALSE) -> 54% | I10: =VLOOKUP($C10,'RECAP SECT'!$G$6:$DC$253,44,FALSE) -> 15 | J10: =VLOOKUP($C10,'RECAP SECT'!$G$6:$DC$253,45,FALSE) -> 228 | K10: =VLOOKUP($C10,'RECAP SECT'!$G$6:$DC$253,46,FALSE) -> 6.71 | L10: =VLOOKUP($C10,'RECAP SECT'!$G$6:$DC$253,47,FALSE) -> 36% | M10: =VLOOKUP($C10,'RECAP SECT'!$G$6:$DC$253,48,FALSE) -> 10 | N10: =VLOOKUP($C10,'RECAP SECT'!$G$6:$DC$253,49,FALSE) -> 49% | O10: =VLOOKUP($C10,'RECAP SECT'!$G$6:$DC$253,50,FALSE) -> 42% | P10: =VLOOKUP($C10,'RECAP SECT'!$G$6:$DC$253,51,FALSE) -> 14
A11: 50 | B11: AUBE HAUTE MARNE | C11: 14 | D11: TROYES | E11: =VLOOKUP($C11,'RECAP SECT'!$G$6:$DC$253,3,FALSE) -> 68.9 | F11: =VLOOKUP($C11,'RECAP SECT'!$G$6:$DC$253,41,FALSE) -> 5,379 | G11: =VLOOKUP($C11,'RECAP SECT'!$G$6:$DC$253,42,FALSE) -> 78.13 | H11: =VLOOKUP($C11,'RECAP SECT'!$G$6:$DC$253,43,FALSE) -> 68% | I11: =VLOOKUP($C11,'RECAP SECT'!$G$6:$DC$253,44,FALSE) -> 17 | J11: =VLOOKUP($C11,'RECAP SECT'!$G$6:$DC$253,45,FALSE) -> 437 | K11: =VLOOKUP($C11,'RECAP SECT'!$G$6:$DC$253,46,FALSE) -> 6.35 | L11: =VLOOKUP($C11,'RECAP SECT'!$G$6:$DC$253,47,FALSE) -> 39% | M11: =VLOOKUP($C11,'RECAP SECT'!$G$6:$DC$253,48,FALSE) -> 11 | N11: =VLOOKUP($C11,'RECAP SECT'!$G$6:$DC$253,49,FALSE) -> 59% | O11: =VLOOKUP($C11,'RECAP SECT'!$G$6:$DC$253,50,FALSE) -> 52% | P11: =VLOOKUP($C11,'RECAP SECT'!$G$6:$DC$253,51,FALSE) -> 18
A12: 262 | B12: BAS-RHIN | C12: 5060 | D12: HAGUENAU | E12: =VLOOKUP($C12,'RECAP SECT'!$G$6:$DC$253,3,FALSE) -> 74.1 | F12: =VLOOKUP($C12,'RECAP SECT'!$G$6:$DC$253,41,FALSE) -> 16,823 | G12: =VLOOKUP($C12,'RECAP SECT'!$G$6:$DC$253,42,FALSE) -> 227.10 | H12: =VLOOKUP($C12,'RECAP SECT'!$G$6:$DC$253,43,FALSE) -> 7% | I12: =VLOOKUP($C12,'RECAP SECT'!$G$6:$DC$253,44,FALSE) -> 4 | J12: =VLOOKUP($C12,'RECAP SECT'!$G$6:$DC$253,45,FALSE) -> 430 | K12: =VLOOKUP($C12,'RECAP SECT'!$G$6:$DC$253,46,FALSE) -> 5.80 | L12: =VLOOKUP($C12,'RECAP SECT'!$G$6:$DC$253,47,FALSE) -> 45% | M12: =VLOOKUP($C12,'RECAP SECT'!$G$6:$DC$253,48,FALSE) -> 14 | N12: =VLOOKUP($C12,'RECAP SECT'!$G$6:$DC$253,49,FALSE) -> 18% | O12: =VLOOKUP($C12,'RECAP SECT'!$G$6:$DC$253,50,FALSE) -> 11% | P12: =VLOOKUP($C12,'RECAP SECT'!$G$6:$DC$253,51,FALSE) -> 5
A13: 262 | B13: BAS-RHIN | C13: 5101 | D13: SELESTAT | E13: =VLOOKUP($C13,'RECAP SECT'!$G$6:$DC$253,3,FALSE) -> 63.5 | F13: =VLOOKUP($C13,'RECAP SECT'!$G$6:$DC$253,41,FALSE) -> 15,164 | G13: =VLOOKUP($C13,'RECAP SECT'!$G$6:$DC$253,42,FALSE) -> 238.98 | H13: =VLOOKUP($C13,'RECAP SECT'!$G$6:$DC$253,43,FALSE) -> 2% | I13: =VLOOKUP($C13,'RECAP SECT'!$G$6:$DC$253,44,FALSE) -> 3 | J13: =VLOOKUP($C13,'RECAP SECT'!$G$6:$DC$253,45,FALSE) -> 533 | K13: =VLOOKUP($C13,'RECAP SECT'!$G$6:$DC$253,46,FALSE) -> 8.40 | L13: =VLOOKUP($C13,'RECAP SECT'!$G$6:$DC$253,47,FALSE) -> 20% | M13: =VLOOKUP($C13,'RECAP SECT'!$G$6:$DC$253,48,FALSE) -> 4 | N13: =VLOOKUP($C13,'RECAP SECT'!$G$6:$DC$253,49,FALSE) -> 7% | O13: =VLOOKUP($C13,'RECAP SECT'!$G$6:$DC$253,50,FALSE) -> 0% | P13: =VLOOKUP($C13,'RECAP SECT'!$G$6:$DC$253,51,FALSE) -> 1
A14: 262 | B14: BAS-RHIN | C14: 5006 | D14: STRASBOURG | E14: =VLOOKUP($C14,'RECAP SECT'!$G$6:$DC$253,3,FALSE) -> 83.0 | F14: =VLOOKUP($C14,'RECAP SECT'!$G$6:$DC$253,41,FALSE) -> 18,042 | G14: =VLOOKUP($C14,'RECAP SECT'!$G$6:$DC$253,42,FALSE) -> 217.27 | H14: =VLOOKUP($C14,'RECAP SECT'!$G$6:$DC$253,43,FALSE) -> 11% | I14: =VLOOKUP($C14,'RECAP SECT'!$G$6:$DC$253,44,FALSE) -> 5 | J14: =VLOOKUP($C14,'RECAP SECT'!$G$6:$DC$253,45,FALSE) -> 622 | K14: =VLOOKUP($C14,'RECAP SECT'!$G$6:$DC$253,46,FALSE) -> 7.49 | L14: =VLOOKUP($C14,'RECAP SECT'!$G$6:$DC$253,47,FALSE) -> 29% | M14: =VLOOKUP($C14,'RECAP SECT'!$G$6:$DC$253,48,FALSE) -> 5 | N14: =VLOOKUP($C14,'RECAP SECT'!$G$6:$DC$253,49,FALSE) -> 16% | O14: =VLOOKUP($C14,'RECAP SECT'!$G$6:$DC$253,50,FALSE) -> 9% | P14: =VLOOKUP($C14,'RECAP SECT'!$G$6:$DC$253,51,FALSE) -> 3
A15: 264 | B15: HAUT-RHIN | C15: 5130 | D15: COLMAR | E15: =VLOOKUP($C15,'RECAP SECT'!$G$6:$DC$253,3,FALSE) -> 65.1 | F15: =VLOOKUP($C15,'RECAP SECT'!$G$6:$DC$253,41,FALSE) -> 9,611 | G15: =VLOOKUP($C15,'RECAP SECT'!$G$6:$DC$253,42,FALSE) -> 147.63 | H15: =VLOOKUP($C15,'RECAP SECT'!$G$6:$DC$253,43,FALSE) -> 39% | I15: =VLOOKUP($C15,'RECAP SECT'!$G$6:$DC$253,44,FALSE) -> 12 | J15: =VLOOKUP($C15,'RECAP SECT'!$G$6:$DC$253,45,FALSE) -> 382 | K15: =VLOOKUP($C15,'RECAP SECT'!$G$6:$DC$253,46,FALSE) -> 5.87 | L15: =VLOOKUP($C15,'RECAP SECT'!$G$6:$DC$253,47,FALSE) -> 44% | M15: =VLOOKUP($C15,'RECAP SECT'!$G$6:$DC$253,48,FALSE) -> 13 | N15: =VLOOKUP($C15,'RECAP SECT'!$G$6:$DC$253,49,FALSE) -> 41% | O15: =VLOOKUP($C15,'RECAP SECT'!$G$6:$DC$253,50,FALSE) -> 34% | P15: =VLOOKUP($C15,'RECAP SECT'!$G$6:$DC$253,51,FALSE) -> 12
A16: 264 | B16: HAUT-RHIN | C16: 5169 | D16: MULHOUSE | E16: =VLOOKUP($C16,'RECAP SECT'!$G$6:$DC$253,3,FALSE) -> 61.5 | F16: =VLOOKUP($C16,'RECAP SECT'!$G$6:$DC$253,41,FALSE) -> 7,126 | G16: =VLOOKUP($C16,'RECAP SECT'!$G$6:$DC$253,42,FALSE) -> 115.79 | H16: =VLOOKUP($C16,'RECAP SECT'!$G$6:$DC$253,43,FALSE) -> 52% | I16: =VLOOKUP($C16,'RECAP SECT'!$G$6:$DC$253,44,FALSE) -> 14 | J16: =VLOOKUP($C16,'RECAP SECT'!$G$6:$DC$253,45,FALSE) -> 460 | K16: =VLOOKUP($C16,'RECAP SECT'!$G$6:$DC$253,46,FALSE) -> 7.47 | L16: =VLOOKUP($C16,'RECAP SECT'!$G$6:$DC$253,47,FALSE) -> 29% | M16: =VLOOKUP($C16,'RECAP SECT'!$G$6:$DC$253,48,FALSE) -> 6 | N16: =VLOOKUP($C16,'RECAP SECT'!$G$6:$DC$253,49,FALSE) -> 45% | O16: =VLOOKUP($C16,'RECAP SECT'!$G$6:$DC$253,50,FALSE) -> 38% | P16: =VLOOKUP($C16,'RECAP SECT'!$G$6:$DC$253,51,FALSE) -> 13
A17: 30 | B17: MARNE-ARDENNES | C17: 6 | D17: CHALONS EN CHAMPAGNE | E17: =VLOOKUP($C17,'RECAP SECT'!$G$6:$DC$253,3,FALSE) -> 45.4 | F17: =VLOOKUP($C17,'RECAP SECT'!$G$6:$DC$253,41,FALSE) -> 3,269 | G17: =VLOOKUP($C17,'RECAP SECT'!$G$6:$DC$253,42,FALSE) -> 71.98 | H17: =VLOOKUP($C17,'RECAP SECT'!$G$6:$DC$253,43,FALSE) -> 70% | I17: =VLOOKUP($C17,'RECAP SECT'!$G$6:$DC$253,44,FALSE) -> 18 | J17: =VLOOKUP($C17,'RECAP SECT'!$G$6:$DC$253,45,FALSE) -> 476 | K17: =VLOOKUP($C17,'RECAP SECT'!$G$6:$DC$253,46,FALSE) -> 10.48 | L17: =VLOOKUP($C17,'RECAP SECT'!$G$6:$DC$253,47,FALSE) -> 0% | M17: =VLOOKUP($C17,'RECAP SECT'!$G$6:$DC$253,48,FALSE) -> 1 | N17: =VLOOKUP($C17,'RECAP SECT'!$G$6:$DC$253,49,FALSE) -> 49% | O17: =VLOOKUP($C17,'RECAP SECT'!$G$6:$DC$253,50,FALSE) -> 42% | P17: =VLOOKUP($C17,'RECAP SECT'!$G$6:$DC$253,51,FALSE) -> 15
A18: 30 | B18: MARNE-ARDENNES | C18: 2 | D18: CHARLEVILLE MEZIERES | E18: =VLOOKUP($C18,'RECAP SECT'!$G$6:$DC$253,3,FALSE) -> 56.0 | F18: =VLOOKUP($C18,'RECAP SECT'!$G$6:$DC$253,41,FALSE) -> 9,994 | G18: =VLOOKUP($C18,'RECAP SECT'!$G$6:$DC$253,42,FALSE) -> 178.54 | H18: =VLOOKUP($C18,'RECAP SECT'!$G$6:$DC$253,43,FALSE) -> 27% | I18: =VLOOKUP($C18,'RECAP SECT'!$G$6:$DC$253,44,FALSE) -> 10 | J18: =VLOOKUP($C18,'RECAP SECT'!$G$6:$DC$253,45,FALSE) -> 514 | K18: =VLOOKUP($C18,'RECAP SECT'!$G$6:$DC$253,46,FALSE) -> 9.18 | L18: =VLOOKUP($C18,'RECAP SECT'!$G$6:$DC$253,47,FALSE) -> 12% | M18: =VLOOKUP($C18,'RECAP SECT'!$G$6:$DC$253,48,FALSE) -> 2 | N18: =VLOOKUP($C18,'RECAP SECT'!$G$6:$DC$253,49,FALSE) -> 22% | O18: =VLOOKUP($C18,'RECAP SECT'!$G$6:$DC$253,50,FALSE) -> 15% | P18: =VLOOKUP($C18,'RECAP SECT'!$G$6:$DC$253,51,FALSE) -> 9
A19: 30 | B19: MARNE-ARDENNES | C19: 11 | D19: REIMS | E19: =VLOOKUP($C19,'RECAP SECT'!$G$6:$DC$253,3,FALSE) -> 83.2 | F19: =VLOOKUP($C19,'RECAP SECT'!$G$6:$DC$253,41,FALSE) -> 7,405 | G19: =VLOOKUP($C19,'RECAP SECT'!$G$6:$DC$253,42,FALSE) -> 89.04 | H19: =VLOOKUP($C19,'RECAP SECT'!$G$6:$DC$253,43,FALSE) -> 63% | I19: =VLOOKUP($C19,'RECAP SECT'!$G$6:$DC$253,44,FALSE) -> 16 | J19: =VLOOKUP($C19,'RECAP SECT'!$G$6:$DC$253,45,FALSE) -> 568 | K19: =VLOOKUP($C19,'RECAP SECT'!$G$6:$DC$253,46,FALSE) -> 6.83 | L19: =VLOOKUP($C19,'RECAP SECT'!$G$6:$DC$253,47,FALSE) -> 35% | M19: =VLOOKUP($C19,'RECAP SECT'!$G$6:$DC$253,48,FALSE) -> 9 | N19: =VLOOKUP($C19,'RECAP SECT'!$G$6:$DC$253,49,FALSE) -> 55% | O19: =VLOOKUP($C19,'RECAP SECT'!$G$6:$DC$253,50,FALSE) -> 48% | P19: =VLOOKUP($C19,'RECAP SECT'!$G$6:$DC$253,51,FALSE) -> 17
A20: 110 | B20: MEURTHE ET MOSELLE MEUSE | C20: 26 | D20: NANCY | E20: =VLOOKUP($C20,'RECAP SECT'!$G$6:$DC$253,3,FALSE) -> 67.6 | F20: =VLOOKUP($C20,'RECAP SECT'!$G$6:$DC$253,41,FALSE) -> 12,900 | G20: =VLOOKUP($C20,'RECAP SECT'!$G$6:$DC$253,42,FALSE) -> 190.91 | H20: =VLOOKUP($C20,'RECAP SECT'!$G$6:$DC$253,43,FALSE) -> 22% | I20: =VLOOKUP($C20,'RECAP SECT'!$G$6:$DC$253,44,FALSE) -> 8 | J20: =VLOOKUP($C20,'RECAP SECT'!$G$6:$DC$253,45,FALSE) -> 572 | K20: =VLOOKUP($C20,'RECAP SECT'!$G$6:$DC$253,46,FALSE) -> 8.46 | L20: =VLOOKUP($C20,'RECAP SECT'!$G$6:$DC$253,47,FALSE) -> 19% | M20: =VLOOKUP($C20,'RECAP SECT'!$G$6:$DC$253,48,FALSE) -> 3 | N20: =VLOOKUP($C20,'RECAP SECT'!$G$6:$DC$253,49,FALSE) -> 21% | O20: =VLOOKUP($C20,'RECAP SECT'!$G$6:$DC$253,50,FALSE) -> 14% | P20: =VLOOKUP($C20,'RECAP SECT'!$G$6:$DC$253,51,FALSE) -> 7
A21: 110 | B21: MEURTHE ET MOSELLE MEUSE | C21: 27 | D21: PONT A MOUSSON | E21: =VLOOKUP($C21,'RECAP SECT'!$G$6:$DC$253,3,FALSE) -> 77.5 | F21: =VLOOKUP($C21,'RECAP SECT'!$G$6:$DC$253,41,FALSE) -> 15,370 | G21: =VLOOKUP($C21,'RECAP SECT'!$G$6:$DC$253,42,FALSE) -> 198.31 | H21: =VLOOKUP($C21,'RECAP SECT'!$G$6:$DC$253,43,FALSE) -> 18% | I21: =VLOOKUP($C21,'RECAP SECT'!$G$6:$DC$253,44,FALSE) -> 7 | J21: =VLOOKUP($C21,'RECAP SECT'!$G$6:$DC$253,45,FALSE) -> 579 | K21: =VLOOKUP($C21,'RECAP SECT'!$G$6:$DC$253,46,FALSE) -> 7.47 | L21: =VLOOKUP($C21,'RECAP SECT'!$G$6:$DC$253,47,FALSE) -> 29% | M21: =VLOOKUP($C21,'RECAP SECT'!$G$6:$DC$253,48,FALSE) -> 7 | N21: =VLOOKUP($C21,'RECAP SECT'!$G$6:$DC$253,49,FALSE) -> 22% | O21: =VLOOKUP($C21,'RECAP SECT'!$G$6:$DC$253,50,FALSE) -> 14% | P21: =VLOOKUP($C21,'RECAP SECT'!$G$6:$DC$253,51,FALSE) -> 8
A22: 110 | B22: MEURTHE ET MOSELLE MEUSE | C22: 31 | D22: VERDUN | E22: =VLOOKUP($C22,'RECAP SECT'!$G$6:$DC$253,3,FALSE) -> 58.4 | F22: =VLOOKUP($C22,'RECAP SECT'!$G$6:$DC$253,41,FALSE) -> 6,923 | G22: =VLOOKUP($C22,'RECAP SECT'!$G$6:$DC$253,42,FALSE) -> 118.58 | H22: =VLOOKUP($C22,'RECAP SECT'!$G$6:$DC$253,43,FALSE) -> 51% | I22: =VLOOKUP($C22,'RECAP SECT'!$G$6:$DC$253,44,FALSE) -> 13 | J22: =VLOOKUP($C22,'RECAP SECT'!$G$6:$DC$253,45,FALSE) -> 298 | K22: =VLOOKUP($C22,'RECAP SECT'!$G$6:$DC$253,46,FALSE) -> 5.10 | L22: =VLOOKUP($C22,'RECAP SECT'!$G$6:$DC$253,47,FALSE) -> 51% | M22: =VLOOKUP($C22,'RECAP SECT'!$G$6:$DC$253,48,FALSE) -> 17 | N22: =VLOOKUP($C22,'RECAP SECT'!$G$6:$DC$253,49,FALSE) -> 51% | O22: =VLOOKUP($C22,'RECAP SECT'!$G$6:$DC$253,50,FALSE) -> 44% | P22: =VLOOKUP($C22,'RECAP SECT'!$G$6:$DC$253,51,FALSE) -> 16
A23: 160 | B23: MOSELLE | C23: 45 | D23: METZ | E23: =VLOOKUP($C23,'RECAP SECT'!$G$6:$DC$253,3,FALSE) -> 89.1 | F23: =VLOOKUP($C23,'RECAP SECT'!$G$6:$DC$253,41,FALSE) -> 14,371 | G23: =VLOOKUP($C23,'RECAP SECT'!$G$6:$DC$253,42,FALSE) -> 161.31 | H23: =VLOOKUP($C23,'RECAP SECT'!$G$6:$DC$253,43,FALSE) -> 34% | I23: =VLOOKUP($C23,'RECAP SECT'!$G$6:$DC$253,44,FALSE) -> 11 | J23: =VLOOKUP($C23,'RECAP SECT'!$G$6:$DC$253,45,FALSE) -> 501 | K23: =VLOOKUP($C23,'RECAP SECT'!$G$6:$DC$253,46,FALSE) -> 5.62 | L23: =VLOOKUP($C23,'RECAP SECT'!$G$6:$DC$253,47,FALSE) -> 46% | M23: =VLOOKUP($C23,'RECAP SECT'!$G$6:$DC$253,48,FALSE) -> 15 | N23: =VLOOKUP($C23,'RECAP SECT'!$G$6:$DC$253,49,FALSE) -> 37% | O23: =VLOOKUP($C23,'RECAP SECT'!$G$6:$DC$253,50,FALSE) -> 30% | P23: =VLOOKUP($C23,'RECAP SECT'!$G$6:$DC$253,51,FALSE) -> 11
A24: 160 | B24: MOSELLE | C24: 42 | D24: MOSELLE EST | E24: =VLOOKUP($C24,'RECAP SECT'!$G$6:$DC$253,3,FALSE) -> 72.5 | F24: =VLOOKUP($C24,'RECAP SECT'!$G$6:$DC$253,41,FALSE) -> 13,740 | G24: =VLOOKUP($C24,'RECAP SECT'!$G$6:$DC$253,42,FALSE) -> 189.54 | H24: =VLOOKUP($C24,'RECAP SECT'!$G$6:$DC$253,43,FALSE) -> 22% | I24: =VLOOKUP($C24,'RECAP SECT'!$G$6:$DC$253,44,FALSE) -> 9 | J24: =VLOOKUP($C24,'RECAP SECT'!$G$6:$DC$253,45,FALSE) -> 524 | K24: =VLOOKUP($C24,'RECAP SECT'!$G$6:$DC$253,46,FALSE) -> 7.23 | L24: =VLOOKUP($C24,'RECAP SECT'!$G$6:$DC$253,47,FALSE) -> 31% | M24: =VLOOKUP($C24,'RECAP SECT'!$G$6:$DC$253,48,FALSE) -> 8 | N24: =VLOOKUP($C24,'RECAP SECT'!$G$6:$DC$253,49,FALSE) -> 25% | O24: =VLOOKUP($C24,'RECAP SECT'!$G$6:$DC$253,50,FALSE) -> 18% | P24: =VLOOKUP($C24,'RECAP SECT'!$G$6:$DC$253,51,FALSE) -> 10
A25: 160 | B25: MOSELLE | C25: 44 | D25: MOSELLE NORD | E25: =VLOOKUP($C25,'RECAP SECT'!$G$6:$DC$253,3,FALSE) -> 74.2 | F25: =VLOOKUP($C25,'RECAP SECT'!$G$6:$DC$253,41,FALSE) -> 15,915 | G25: =VLOOKUP($C25,'RECAP SECT'!$G$6:$DC$253,42,FALSE) -> 214.60 | H25: =VLOOKUP($C25,'RECAP SECT'!$G$6:$DC$253,43,FALSE) -> 12% | I25: =VLOOKUP($C25,'RECAP SECT'!$G$6:$DC$253,44,FALSE) -> 6 | J25: =VLOOKUP($C25,'RECAP SECT'!$G$6:$DC$253,45,FALSE) -> 456 | K25: =VLOOKUP($C25,'RECAP SECT'!$G$6:$DC$253,46,FALSE) -> 6.15 | L25: =VLOOKUP($C25,'RECAP SECT'!$G$6:$DC$253,47,FALSE) -> 41% | M25: =VLOOKUP($C25,'RECAP SECT'!$G$6:$DC$253,48,FALSE) -> 12 | N25: =VLOOKUP($C25,'RECAP SECT'!$G$6:$DC$253,49,FALSE) -> 21% | O25: =VLOOKUP($C25,'RECAP SECT'!$G$6:$DC$253,50,FALSE) -> 13% | P25: =VLOOKUP($C25,'RECAP SECT'!$G$6:$DC$253,51,FALSE) -> 6
A26: 80 | B26: VOSGES | C26: 57 | D26: EPINAL | E26: =VLOOKUP($C26,'RECAP SECT'!$G$6:$DC$253,3,FALSE) -> 61.5 | F26: =VLOOKUP($C26,'RECAP SECT'!$G$6:$DC$253,41,FALSE) -> 14,952 | G26: =VLOOKUP($C26,'RECAP SECT'!$G$6:$DC$253,42,FALSE) -> 243.32 | H26: =VLOOKUP($C26,'RECAP SECT'!$G$6:$DC$253,43,FALSE) -> 0% | I26: =VLOOKUP($C26,'RECAP SECT'!$G$6:$DC$253,44,FALSE) -> 1 | J26: =VLOOKUP($C26,'RECAP SECT'!$G$6:$DC$253,45,FALSE) -> 279 | K26: =VLOOKUP($C26,'RECAP SECT'!$G$6:$DC$253,46,FALSE) -> 4.54 | L26: =VLOOKUP($C26,'RECAP SECT'!$G$6:$DC$253,47,FALSE) -> 57% | M26: =VLOOKUP($C26,'RECAP SECT'!$G$6:$DC$253,48,FALSE) -> 18 | N26: =VLOOKUP($C26,'RECAP SECT'!$G$6:$DC$253,49,FALSE) -> 17% | O26: =VLOOKUP($C26,'RECAP SECT'!$G$6:$DC$253,50,FALSE) -> 10% | P26: =VLOOKUP($C26,'RECAP SECT'!$G$6:$DC$253,51,FALSE) -> 4
A27: 80 | B27: VOSGES | C27: 55 | D27: SAINT DIE | E27: =VLOOKUP($C27,'RECAP SECT'!$G$6:$DC$253,3,FALSE) -> 50.2 | F27: =VLOOKUP($C27,'RECAP SECT'!$G$6:$DC$253,41,FALSE) -> 12,212 | G27: =VLOOKUP($C27,'RECAP SECT'!$G$6:$DC$253,42,FALSE) -> 243.06 | H27: =VLOOKUP($C27,'RECAP SECT'!$G$6:$DC$253,43,FALSE) -> 0% | I27: =VLOOKUP($C27,'RECAP SECT'!$G$6:$DC$253,44,FALSE) -> 2 | J27: =VLOOKUP($C27,'RECAP SECT'!$G$6:$DC$253,45,FALSE) -> 272 | K27: =VLOOKUP($C27,'RECAP SECT'!$G$6:$DC$253,46,FALSE) -> 5.41 | L27: =VLOOKUP($C27,'RECAP SECT'!$G$6:$DC$253,47,FALSE) -> 48% | M27: =VLOOKUP($C27,'RECAP SECT'!$G$6:$DC$253,48,FALSE) -> 16 | N27: =VLOOKUP($C27,'RECAP SECT'!$G$6:$DC$253,49,FALSE) -> 15% | O27: =VLOOKUP($C27,'RECAP SECT'!$G$6:$DC$253,50,FALSE) -> 7% | P27: =VLOOKUP($C27,'RECAP SECT'!$G$6:$DC$253,51,FALSE) -> 2
A28: Total CEGEE Directions Régionales | E28: =SUM(E10:E27) -> 1186

Sheet SE_CREDIT
B1: Accueil | F1: BAROMETRE BDD - TERRITOIRES
F2: CREDITS
F3: =ACCUEIL!F7 -> 2021-03-14
F7: Engagements et ventes accessoires pondérés Immo | J7: Engagements et ventes accessoires pondérés Conso | N7: Ventes sur client non détenteur de l’univers | R7: Total Crédits
F8: =DATEMAJ!C18 -> au 14/03 | H8: coef | I8: ='RECAP DIRCOM'!BM4 -> 8% | J8: =DATEMAJ!C19 -> au 14/03 | L8: coef | M8: ='RECAP DIRCOM'!BQ4 -> 6% | N8: =DATEMAJ!C20 -> au 14/03 | P8: coef | Q8: ='RECAP DIRCOM'!BU4 -> 6% | S8: coef | T8: ='RECAP DIRCOM'!BX4 -> 20%
B9: Direction | C9: eds | D9: Territoire | E9: ="ETP perf "&DATEMAJ!$C$28 -> ETP perf 31-janv | F9: PNB | G9: PNB / ETP | H9: % Ecart au 1er | I9: Rang | J9: PNB | K9: PNB / ETP | L9: % Ecart au 1er | M9: Rang | N9: VB | O9: VB / ETP | P9: % Ecart au 1er | Q9: Rang | R9: Moyenne ecart au 1er | S9: % Ecart au 1er | T9: Rang CEGEE
A10: 50 | B10: AUBE HAUTE MARNE | C10: 21 | D10: CHAUMONT | E10: =VLOOKUP($C10,'RECAP SECT'!$G$6:$DC$253,3,FALSE) -> 34.0 | F10: =VLOOKUP($C10,'RECAP SECT'!$G$6:$DC$253,56,FALSE) -> 897 | G10: =VLOOKUP($C10,'RECAP SECT'!$G$6:$DC$253,57,FALSE) -> 26.37 | H10: =VLOOKUP($C10,'RECAP SECT'!$G$6:$DC$253,58,FALSE) -> 68% | I10: =VLOOKUP($C10,'RECAP SECT'!$G$6:$DC$253,59,FALSE) -> 14 | J10: =VLOOKUP($C10,'RECAP SECT'!$G$6:$DC$253,60,FALSE) -> 737 | K10: =VLOOKUP($C10,'RECAP SECT'!$G$6:$DC$253,61,FALSE) -> 21.67 | L10: =VLOOKUP($C10,'RECAP SECT'!$G$6:$DC$253,62,FALSE) -> 0% | M10: =VLOOKUP($C10,'RECAP SECT'!$G$6:$DC$253,63,FALSE) -> 1 | N10: =VLOOKUP($C10,'RECAP SECT'!$G$6:$DC$253,64,FALSE) -> 149 | O10: =VLOOKUP($C10,'RECAP SECT'!$G$6:$DC$253,65,FALSE) -> 4.38 | P10: =VLOOKUP($C10,'RECAP SECT'!$G$6:$DC$253,66,FALSE) -> 39% | Q10: =VLOOKUP($C10,'RECAP SECT'!$G$6:$DC$253,67,FALSE) -> 8 | R10: =VLOOKUP($C10,'RECAP SECT'!$G$6:$DC$253,68,FALSE) -> 39% | S10: =VLOOKUP($C10,'RECAP SECT'!$G$6:$DC$253,69,FALSE) -> 31% | T10: =VLOOKUP($C10,'RECAP SECT'!$G$6:$DC$253,70,FALSE) -> 6
A11: 50 | B11: AUBE HAUTE MARNE | C11: 14 | D11: TROYES | E11: =VLOOKUP($C11,'RECAP SECT'!$G$6:$DC$253,3,FALSE) -> 68.9 | F11: =VLOOKUP($C11,'RECAP SECT'!$G$6:$DC$253,56,FALSE) -> 2,106 | G11: =VLOOKUP($C11,'RECAP SECT'!$G$6:$DC$253,57,FALSE) -> 30.59 | H11: =VLOOKUP($C11,'RECAP SECT'!$G$6:$DC$253,58,FALSE) -> 62% | I11: =VLOOKUP($C11,'RECAP SECT'!$G$6:$DC$253,59,FALSE) -> 12 | J11: =VLOOKUP($C11,'RECAP SECT'!$G$6:$DC$253,60,FALSE) -> 1,088 | K11: =VLOOKUP($C11,'RECAP SECT'!$G$6:$DC$253,61,FALSE) -> 15.80 | L11: =VLOOKUP($C11,'RECAP SECT'!$G$6:$DC$253,62,FALSE) -> 27% | M11: =VLOOKUP($C11,'RECAP SECT'!$G$6:$DC$253,63,FALSE) -> 11 | N11: =VLOOKUP($C11,'RECAP SECT'!$G$6:$DC$253,64,FALSE) -> 276 | O11: =VLOOKUP($C11,'RECAP SECT'!$G$6:$DC$253,65,FALSE) -> 4.01 | P11: =VLOOKUP($C11,'RECAP SECT'!$G$6:$DC$253,66,FALSE) -> 45% | Q11: =VLOOKUP($C11,'RECAP SECT'!$G$6:$DC$253,67,FALSE) -> 11 | R11: =VLOOKUP($C11,'RECAP SECT'!$G$6:$DC$253,68,FALSE) -> 46% | S11: =VLOOKUP($C11,'RECAP SECT'!$G$6:$DC$253,69,FALSE) -> 38% | T11: =VLOOKUP($C11,'RECAP SECT'!$G$6:$DC$253,70,FALSE) -> 12
A12: 262 | B12: BAS-RHIN | C12: 5060 | D12: HAGUENAU | E12: =VLOOKUP($C12,'RECAP SECT'!$G$6:$DC$253,3,FALSE) -> 74.1 | F12: =VLOOKUP($C12,'RECAP SECT'!$G$6:$DC$253,56,FALSE) -> 1,936 | G12: =VLOOKUP($C12,'RECAP SECT'!$G$6:$DC$253,57,FALSE) -> 26.13 | H12: =VLOOKUP($C12,'RECAP SECT'!$G$6:$DC$253,58,FALSE) -> 68% | I12: =VLOOKUP($C12,'RECAP SECT'!$G$6:$DC$253,59,FALSE) -> 15 | J12: =VLOOKUP($C12,'RECAP SECT'!$G$6:$DC$253,60,FALSE) -> 1,225 | K12: =VLOOKUP($C12,'RECAP SECT'!$G$6:$DC$253,61,FALSE) -> 16.54 | L12: =VLOOKUP($C12,'RECAP SECT'!$G$6:$DC$253,62,FALSE) -> 24% | M12: =VLOOKUP($C12,'RECAP SECT'!$G$6:$DC$253,63,FALSE) -> 7 | N12: =VLOOKUP($C12,'RECAP SECT'!$G$6:$DC$253,64,FALSE) -> 223 | O12: =VLOOKUP($C12,'RECAP SECT'!$G$6:$DC$253,65,FALSE) -> 3.01 | P12: =VLOOKUP($C12,'RECAP SECT'!$G$6:$DC$253,66,FALSE) -> 58% | Q12: =VLOOKUP($C12,'RECAP SECT'!$G$6:$DC$253,67,FALSE) -> 16 | R12: =VLOOKUP($C12,'RECAP SECT'!$G$6:$DC$253,68,FALSE) -> 52% | S12: =VLOOKUP($C12,'RECAP SECT'!$G$6:$DC$253,69,FALSE) -> 44% | T12: =VLOOKUP($C12,'RECAP SECT'!$G$6:$DC$253,70,FALSE) -> 16
A13: 262 | B13: BAS-RHIN | C13: 5101 | D13: SELESTAT | E13: =VLOOKUP($C13,'RECAP SECT'!$G$6:$DC$253,3,FALSE) -> 63.5 | F13: =VLOOKUP($C13,'RECAP SECT'!$G$6:$DC$253,56,FALSE) -> 1,447 | G13: =VLOOKUP($C13,'RECAP SECT'!$G$6:$DC$253,57,FALSE) -> 22.80 | H13: =VLOOKUP($C13,'RECAP SECT'!$G$6:$DC$253,58,FALSE) -> 72% | I13: =VLOOKUP($C13,'RECAP SECT'!$G$6:$DC$253,59,FALSE) -> 16 | J13: =VLOOKUP($C13,'RECAP SECT'!$G$6:$DC$253,60,FALSE) -> 1,040 | K13: =VLOOKUP($C13,'RECAP SECT'!$G$6:$DC$253,61,FALSE) -> 16.38 | L13: =VLOOKUP($C13,'RECAP SECT'!$G$6:$DC$253,62,FALSE) -> 24% | M13: =VLOOKUP($C13,'RECAP SECT'!$G$6:$DC$253,63,FALSE) -> 8 | N13: =VLOOKUP($C13,'RECAP SECT'!$G$6:$DC$253,64,FALSE) -> 225 | O13: =VLOOKUP($C13,'RECAP SECT'!$G$6:$DC$253,65,FALSE) -> 3.55 | P13: =VLOOKUP($C13,'RECAP SECT'!$G$6:$DC$253,66,FALSE) -> 51% | Q13: =VLOOKUP($C13,'RECAP SECT'!$G$6:$DC$253,67,FALSE) -> 13 | R13: =VLOOKUP($C13,'RECAP SECT'!$G$6:$DC$253,68,FALSE) -> 51% | S13: =VLOOKUP($C13,'RECAP SECT'!$G$6:$DC$253,69,FALSE) -> 43% | T13: =VLOOKUP($C13,'RECAP SECT'!$G$6:$DC$253,70,FALSE) -> 15
A14: 262 | B14: BAS-RHIN | C14: 5006 | D14: STRASBOURG | E14: =VLOOKUP($C14,'RECAP SECT'!$G$6:$DC$253,3,FALSE) -> 83.0 | F14: =VLOOKUP($C14,'RECAP SECT'!$G$6:$DC$253,56,FALSE) -> 3,670 | G14: =VLOOKUP($C14,'RECAP SECT'!$G$6:$DC$253,57,FALSE) -> 44.19 | H14: =VLOOKUP($C14,'RECAP SECT'!$G$6:$DC$253,58,FALSE) -> 46% | I14: =VLOOKUP($C14,'RECAP SECT'!$G$6:$DC$253,59,FALSE) -> 5 | J14: =VLOOKUP($C14,'RECAP SECT'!$G$6:$DC$253,60,FALSE) -> 1,135 | K14: =VLOOKUP($C14,'RECAP SECT'!$G$6:$DC$253,61,FALSE) -> 13.67 | L14: =VLOOKUP($C14,'RECAP SECT'!$G$6:$DC$253,62,FALSE) -> 37% | M14: =VLOOKUP($C14,'RECAP SECT'!$G$6:$DC$253,63,FALSE) -> 18 | N14: =VLOOKUP($C14,'RECAP SECT'!$G$6:$DC$253,64,FALSE) -> 343 | O14: =VLOOKUP($C14,'RECAP SECT'!$G$6:$DC$253,65,FALSE) -> 4.13 | P14: =VLOOKUP($C14,'RECAP SECT'!$G$6:$DC$253,66,FALSE) -> 43% | Q14: =VLOOKUP($C14,'RECAP SECT'!$G$6:$DC$253,67,FALSE) -> 9 | R14: =VLOOKUP($C14,'RECAP SECT'!$G$6:$DC$253,68,FALSE) -> 42% | S14: =VLOOKUP($C14,'RECAP SECT'!$G$6:$DC$253,69,FALSE) -> 34% | T14: =VLOOKUP($C14,'RECAP SECT'!$G$6:$DC$253,70,FALSE) -> 10
A15: 264 | B15: HAUT-RHIN | C15: 5130 | D15: COLMAR | E15: =VLOOKUP($C15,'RECAP SECT'!$G$6:$DC$253,3,FALSE) -> 65.1 | F15: =VLOOKUP($C15,'RECAP SECT'!$G$6:$DC$253,56,FALSE) -> 871 | G15: =VLOOKUP($C15,'RECAP SECT'!$G$6:$DC$253,57,FALSE) -> 13.39 | H15: =VLOOKUP($C15,'RECAP SECT'!$G$6:$DC$253,58,FALSE) -> 84% | I15: =VLOOKUP($C15,'RECAP SECT'!$G$6:$DC$253,59,FALSE) -> 18 | J15: =VLOOKUP($C15,'RECAP SECT'!$G$6:$DC$253,60,FALSE) -> 904 | K15: =VLOOKUP($C15,'RECAP SECT'!$G$6:$DC$253,61,FALSE) -> 13.89 | L15: =VLOOKUP($C15,'RECAP SECT'!$G$6:$DC$253,62,FALSE) -> 36% | M15: =VLOOKUP($C15,'RECAP SECT'!$G$6:$DC$253,63,FALSE) -> 17 | N15: =VLOOKUP($C15,'RECAP SECT'!$G$6:$DC$253,64,FALSE) -> 180 | O15: =VLOOKUP($C15,'RECAP SECT'!$G$6:$DC$253,65,FALSE) -> 2.76 | P15: =VLOOKUP($C15,'RECAP SECT'!$G$6:$DC$253,66,FALSE) -> 62% | Q15: =VLOOKUP($C15,'RECAP SECT'!$G$6:$DC$253,67,FALSE) -> 18 | R15: =VLOOKUP($C15,'RECAP SECT'!$G$6:$DC$253,68,FALSE) -> 63% | S15: =VLOOKUP($C15,'RECAP SECT'!$G$6:$DC$253,69,FALSE) -> 54% | T15: =VLOOKUP($C15,'RECAP SECT'!$G$6:$DC$253,70,FALSE) -> 18
A16: 264 | B16: HAUT-RHIN | C16: 5169 | D16: MULHOUSE | E16: =VLOOKUP($C16,'RECAP SECT'!$G$6:$DC$253,3,FALSE) -> 61.5 | F16: =VLOOKUP($C16,'RECAP SECT'!$G$6:$DC$253,56,FALSE) -> 1,138 | G16: =VLOOKUP($C16,'RECAP SECT'!$G$6:$DC$253,57,FALSE) -> 18.50 | H16: =VLOOKUP($C16,'RECAP SECT'!$G$6:$DC$253,58,FALSE) -> 77% | I16: =VLOOKUP($C16,'RECAP SECT'!$G$6:$DC$253,59,FALSE) -> 17 | J16: =VLOOKUP($C16,'RECAP SECT'!$G$6:$DC$253,60,FALSE) -> 1,031 | K16: =VLOOKUP($C16,'RECAP SECT'!$G$6:$DC$253,61,FALSE) -> 16.75 | L16: =VLOOKUP($C16,'RECAP SECT'!$G$6:$DC$253,62,FALSE) -> 23% | M16: =VLOOKUP($C16,'RECAP SECT'!$G$6:$DC$253,63,FALSE) -> 6 | N16: =VLOOKUP($C16,'RECAP SECT'!$G$6:$DC$253,64,FALSE) -> 181 | O16: =VLOOKUP($C16,'RECAP SECT'!$G$6:$DC$253,65,FALSE) -> 2.94 | P16: =VLOOKUP($C16,'RECAP SECT'!$G$6:$DC$253,66,FALSE) -> 59% | Q16: =VLOOKUP($C16,'RECAP SECT'!$G$6:$DC$253,67,FALSE) -> 17 | R16: =VLOOKUP($C16,'RECAP SECT'!$G$6:$DC$253,68,FALSE) -> 56% | S16: =VLOOKUP($C16,'RECAP SECT'!$G$6:$DC$253,69,FALSE) -> 47% | T16: =VLOOKUP($C16,'RECAP SECT'!$G$6:$DC$253,70,FALSE) -> 17
A17: 30 | B17: MARNE-ARDENNES | C17: 6 | D17: CHALONS EN CHAMPAGNE | E17: =VLOOKUP($C17,'RECAP SECT'!$G$6:$DC$253,3,FALSE) -> 45.4 | F17: =VLOOKUP($C17,'RECAP SECT'!$G$6:$DC$253,56,FALSE) -> 1,960 | G17: =VLOOKUP($C17,'RECAP SECT'!$G$6:$DC$253,57,FALSE) -> 43.15 | H17: =VLOOKUP($C17,'RECAP SECT'!$G$6:$DC$253,58,FALSE) -> 47% | I17: =VLOOKUP($C17,'RECAP SECT'!$G$6:$DC$253,59,FALSE) -> 6 | J17: =VLOOKUP($C17,'RECAP SECT'!$G$6:$DC$253,60,FALSE) -> 643 | K17: =VLOOKUP($C17,'RECAP SECT'!$G$6:$DC$253,61,FALSE) -> 14.16 | L17: =VLOOKUP($C17,'RECAP SECT'!$G$6:$DC$253,62,FALSE) -> 35% | M17: =VLOOKUP($C17,'RECAP SECT'!$G$6:$DC$253,63,FALSE) -> 16 | N17: =VLOOKUP($C17,'RECAP SECT'!$G$6:$DC$253,64,FALSE) -> 216 | O17: =VLOOKUP($C17,'RECAP SECT'!$G$6:$DC$253,65,FALSE) -> 4.76 | P17: =VLOOKUP($C17,'RECAP SECT'!$G$6:$DC$253,66,FALSE) -> 34% | Q17: =VLOOKUP($C17,'RECAP SECT'!$G$6:$DC$253,67,FALSE) -> 5 | R17: =VLOOKUP($C17,'RECAP SECT'!$G$6:$DC$253,68,FALSE) -> 39% | S17: =VLOOKUP($C17,'RECAP SECT'!$G$6:$DC$253,69,FALSE) -> 31% | T17: =VLOOKUP($C17,'RECAP SECT'!$G$6:$DC$253,70,FALSE) -> 7
A18: 30 | B18: MARNE-ARDENNES | C18: 2 | D18: CHARLEVILLE MEZIERES | E18: =VLOOKUP($C18,'RECAP SECT'!$G$6:$DC$253,3,FALSE) -> 56.0 | F18: =VLOOKUP($C18,'RECAP SECT'!$G$6:$DC$253,56,FALSE) -> 3,250 | G18: =VLOOKUP($C18,'RECAP SECT'!$G$6:$DC$253,57,FALSE) -> 58.05 | H18: =VLOOKUP($C18,'RECAP SECT'!$G$6:$DC$253,58,FALSE) -> 29% | I18: =VLOOKUP($C18,'RECAP SECT'!$G$6:$DC$253,59,FALSE) -> 4 | J18: =VLOOKUP($C18,'RECAP SECT'!$G$6:$DC$253,60,FALSE) -> 824 | K18: =VLOOKUP($C18,'RECAP SECT'!$G$6:$DC$253,61,FALSE) -> 14.73 | L18: =VLOOKUP($C18,'RECAP SECT'!$G$6:$DC$253,62,FALSE) -> 32% | M18: =VLOOKUP($C18,'RECAP SECT'!$G$6:$DC$253,63,FALSE) -> 15 | N18: =VLOOKUP($C18,'RECAP SECT'!$G$6:$DC$253,64,FALSE) -> 280 | O18: =VLOOKUP($C18,'RECAP SECT'!$G$6:$DC$253,65,FALSE) -> 5.00 | P18: =VLOOKUP($C18,'RECAP SECT'!$G$6:$DC$253,66,FALSE) -> 31% | Q18: =VLOOKUP($C18,'RECAP SECT'!$G$6:$DC$253,67,FALSE) -> 3 | R18: =VLOOKUP($C18,'RECAP SECT'!$G$6:$DC$253,68,FALSE) -> 30% | S18: =VLOOKUP($C18,'RECAP SECT'!$G$6:$DC$253,69,FALSE) -> 22% | T18: =VLOOKUP($C18,'RECAP SECT'!$G$6:$DC$253,70,FALSE) -> 4
A19: 30 | B19: MARNE-ARDENNES | C19: 11 | D19: REIMS | E19: =VLOOKUP($C19,'RECAP SECT'!$G$6:$DC$253,3,FALSE) -> 83.2 | F19: =VLOOKUP($C19,'RECAP SECT'!$G$6:$DC$253,56,FALSE) -> 4,990 | G19: =VLOOKUP($C19,'RECAP SECT'!$G$6:$DC$253,57,FALSE) -> 59.99 | H19: =VLOOKUP($C19,'RECAP SECT'!$G$6:$DC$253,58,FALSE) -> 26% | I19: =VLOOKUP($C19,'RECAP SECT'!$G$6:$DC$253,59,FALSE) -> 3 | J19: =VLOOKUP($C19,'RECAP SECT'!$G$6:$DC$253,60,FALSE) -> 1,404 | K19: =VLOOKUP($C19,'RECAP SECT'!$G$6:$DC$253,61,FALSE) -> 16.88 | L19: =VLOOKUP($C19,'RECAP SECT'!$G$6:$DC$253,62,FALSE) -> 22% | M19: =VLOOKUP($C19,'RECAP SECT'!$G$6:$DC$253,63,FALSE) -> 5 | N19: =VLOOKUP($C19,'RECAP SECT'!$G$6:$DC$253,64,FALSE) -> 399 | O19: =VLOOKUP($C19,'RECAP SECT'!$G$6:$DC$253,65,FALSE) -> 4.80 | P19: =VLOOKUP($C19,'RECAP SECT'!$G$6:$DC$253,66,FALSE) -> 34% | Q19: =VLOOKUP($C19,'RECAP SECT'!$G$6:$DC$253,67,FALSE) -> 4 | R19: =VLOOKUP($C19,'RECAP SECT'!$G$6:$DC$253,68,FALSE) -> 27% | S19: =VLOOKUP($C19,'RECAP SECT'!$G$6:$DC$253,69,FALSE) -> 19% | T19: =VLOOKUP($C19,'RECAP SECT'!$G$6:$DC$253,70,FALSE) -> 3
A20: 110 | B20: MEURTHE ET MOSELLE MEUSE | C20: 26 | D20: NANCY | E20: =VLOOKUP($C20,'RECAP SECT'!$G$6:$DC$253,3,FALSE) -> 67.6 | F20: =VLOOKUP($C20,'RECAP SECT'!$G$6:$DC$253,56,FALSE) -> 5,499 | G20: =VLOOKUP($C20,'RECAP SECT'!$G$6:$DC$253,57,FALSE) -> 81.38 | H20: =VLOOKUP($C20,'RECAP SECT'!$G$6:$DC$253,58,FALSE) -> 0% | I20: =VLOOKUP($C20,'RECAP SECT'!$G$6:$DC$253,59,FALSE) -> 1 | J20: =VLOOKUP($C20,'RECAP SECT'!$G$6:$DC$253,60,FALSE) -> 1,061 | K20: =VLOOKUP($C20,'RECAP SECT'!$G$6:$DC$253,61,FALSE) -> 15.70 | L20: =VLOOKUP($C20,'RECAP SECT'!$G$6:$DC$253,62,FALSE) -> 28% | M20: =VLOOKUP($C20,'RECAP SECT'!$G$6:$DC$253,63,FALSE) -> 12 | N20: =VLOOKUP($C20,'RECAP SECT'!$G$6:$DC$253,64,FALSE) -> 489 | O20: =VLOOKUP($C20,'RECAP SECT'!$G$6:$DC$253,65,FALSE) -> 7.24 | P20: =VLOOKUP($C20,'RECAP SECT'!$G$6:$DC$253,66,FALSE) -> 0% | Q20: =VLOOKUP($C20,'RECAP SECT'!$G$6:$DC$253,67,FALSE) -> 1 | R20: =VLOOKUP($C20,'RECAP SECT'!$G$6:$DC$253,68,FALSE) -> 8% | S20: =VLOOKUP($C20,'RECAP SECT'!$G$6:$DC$253,69,FALSE) -> 0% | T20: =VLOOKUP($C20,'RECAP SECT'!$G$6:$DC$253,70,FALSE) -> 1
A21: 110 | B21: MEURTHE ET MOSELLE MEUSE | C21: 27 | D21: PONT A MOUSSON | E21: =VLOOKUP($C21,'RECAP SECT'!$G$6:$DC$253,3,FALSE) -> 77.5 | F21: =VLOOKUP($C21,'RECAP SECT'!$G$6:$DC$253,56,FALSE) -> 5,445 | G21: =VLOOKUP($C21,'RECAP SECT'!$G$6:$DC$253,57,FALSE) -> 70.25 | H21: =VLOOKUP($C21,'RECAP SECT'!$G$6:$DC$253,58,FALSE) -> 14% | I21: =VLOOKUP($C21,'RECAP SECT'!$G$6:$DC$253,59,FALSE) -> 2 | J21: =VLOOKUP($C21,'RECAP SECT'!$G$6:$DC$253,60,FALSE) -> 1,439 | K21: =VLOOKUP($C21,'RECAP SECT'!$G$6:$DC$253,61,FALSE) -> 18.57 | L21: =VLOOKUP($C21,'RECAP SECT'!$G$6:$DC$253,62,FALSE) -> 14% | M21: =VLOOKUP($C21,'RECAP SECT'!$G$6:$DC$253,63,FALSE) -> 3 | N21: =VLOOKUP($C21,'RECAP SECT'!$G$6:$DC$253,64,FALSE) -> 460 | O21: =VLOOKUP($C21,'RECAP SECT'!$G$6:$DC$253,65,FALSE) -> 5.93 | P21: =VLOOKUP($C21,'RECAP SECT'!$G$6:$DC$253,66,FALSE) -> 18% | Q21: =VLOOKUP($C21,'RECAP SECT'!$G$6:$DC$253,67,FALSE) -> 2 | R21: =VLOOKUP($C21,'RECAP SECT'!$G$6:$DC$253,68,FALSE) -> 15% | S21: =VLOOKUP($C21,'RECAP SECT'!$G$6:$DC$253,69,FALSE) -> 7% | T21: =VLOOKUP($C21,'RECAP SECT'!$G$6:$DC$253,70,FALSE) -> 2
A22: 110 | B22: MEURTHE ET MOSELLE MEUSE | C22: 31 | D22: VERDUN | E22: =VLOOKUP($C22,'RECAP SECT'!$G$6:$DC$253,3,FALSE) -> 58.4 | F22: =VLOOKUP($C22,'RECAP SECT'!$G$6:$DC$253,56,FALSE) -> 2,277 | G22: =VLOOKUP($C22,'RECAP SECT'!$G$6:$DC$253,57,FALSE) -> 39.00 | H22: =VLOOKUP($C22,'RECAP SECT'!$G$6:$DC$253,58,FALSE) -> 52% | I22: =VLOOKUP($C22,'RECAP SECT'!$G$6:$DC$253,59,FALSE) -> 9 | J22: =VLOOKUP($C22,'RECAP SECT'!$G$6:$DC$253,60,FALSE) -> 1,109 | K22: =VLOOKUP($C22,'RECAP SECT'!$G$6:$DC$253,61,FALSE) -> 19.00 | L22: =VLOOKUP($C22,'RECAP SECT'!$G$6:$DC$253,62,FALSE) -> 12% | M22: =VLOOKUP($C22,'RECAP SECT'!$G$6:$DC$253,63,FALSE) -> 2 | N22: =VLOOKUP($C22,'RECAP SECT'!$G$6:$DC$253,64,FALSE) -> 258 | O22: =VLOOKUP($C22,'RECAP SECT'!$G$6:$DC$253,65,FALSE) -> 4.42 | P22: =VLOOKUP($C22,'RECAP SECT'!$G$6:$DC$253,66,FALSE) -> 39% | Q22: =VLOOKUP($C22,'RECAP SECT'!$G$6:$DC$253,67,FALSE) -> 7 | R22: =VLOOKUP($C22,'RECAP SECT'!$G$6:$DC$253,68,FALSE) -> 36% | S22: =VLOOKUP($C22,'RECAP SECT'!$G$6:$DC$253,69,FALSE) -> 28% | T22: =VLOOKUP($C22,'RECAP SECT'!$G$6:$DC$253,70,FALSE) -> 5
A23: 160 | B23: MOSELLE | C23: 45 | D23: METZ | E23: =VLOOKUP($C23,'RECAP SECT'!$G$6:$DC$253,3,FALSE) -> 89.1 | F23: =VLOOKUP($C23,'RECAP SECT'!$G$6:$DC$253,56,FALSE) -> 3,533 | G23: =VLOOKUP($C23,'RECAP SECT'!$G$6:$DC$253,57,FALSE) -> 39.66 | H23: =VLOOKUP($C23,'RECAP SECT'!$G$6:$DC$253,58,FALSE) -> 51% | I23: =VLOOKUP($C23,'RECAP SECT'!$G$6:$DC$253,59,FALSE) -> 8 | J23: =VLOOKUP($C23,'RECAP SECT'!$G$6:$DC$253,60,FALSE) -> 1,425 | K23: =VLOOKUP($C23,'RECAP SECT'!$G$6:$DC$253,61,FALSE) -> 15.99 | L23: =VLOOKUP($C23,'RECAP SECT'!$G$6:$DC$253,62,FALSE) -> 26% | M23: =VLOOKUP($C23,'RECAP SECT'!$G$6:$DC$253,63,FALSE) -> 10 | N23: =VLOOKUP($C23,'RECAP SECT'!$G$6:$DC$253,64,FALSE) -> 365 | O23: =VLOOKUP($C23,'RECAP SECT'!$G$6:$DC$253,65,FALSE) -> 4.10 | P23: =VLOOKUP($C23,'RECAP SECT'!$G$6:$DC$253,66,FALSE) -> 43% | Q23: =VLOOKUP($C23,'RECAP SECT'!$G$6:$DC$253,67,FALSE) -> 10 | R23: =VLOOKUP($C23,'RECAP SECT'!$G$6:$DC$253,68,FALSE) -> 41% | S23: =VLOOKUP($C23,'RECAP SECT'!$G$6:$DC$253,69,FALSE) -> 33% | T23: =VLOOKUP($C23,'RECAP SECT'!$G$6:$DC$253,70,FALSE) -> 9
A24: 160 | B24: MOSELLE | C24: 42 | D24: MOSELLE EST | E24: =VLOOKUP($C24,'RECAP SECT'!$G$6:$DC$253,3,FALSE) -> 72.5 | F24: =VLOOKUP($C24,'RECAP SECT'!$G$6:$DC$253,56,FALSE) -> 1,926 | G24: =VLOOKUP($C24,'RECAP SECT'!$G$6:$DC$253,57,FALSE) -> 26.58 | H24: =VLOOKUP($C24,'RECAP SECT'!$G$6:$DC$253,58,FALSE) -> 67% | I24: =VLOOKUP($C24,'RECAP SECT'!$G$6:$DC$253,59,FALSE) -> 13 | J24: =VLOOKUP($C24,'RECAP SECT'!$G$6:$DC$253,60,FALSE) -> 1,322 | K24: =VLOOKUP($C24,'RECAP SECT'!$G$6:$DC$253,61,FALSE) -> 18.23 | L24: =VLOOKUP($C24,'RECAP SECT'!$G$6:$DC$253,62,FALSE) -> 16% | M24: =VLOOKUP($C24,'RECAP SECT'!$G$6:$DC$253,63,FALSE) -> 4 | N24: =VLOOKUP($C24,'RECAP SECT'!$G$6:$DC$253,64,FALSE) -> 253 | O24: =VLOOKUP($C24,'RECAP SECT'!$G$6:$DC$253,65,FALSE) -> 3.49 | P24: =VLOOKUP($C24,'RECAP SECT'!$G$6:$DC$253,66,FALSE) -> 52% | Q24: =VLOOKUP($C24,'RECAP SECT'!$G$6:$DC$253,67,FALSE) -> 14 | R24: =VLOOKUP($C24,'RECAP SECT'!$G$6:$DC$253,68,FALSE) -> 47% | S24: =VLOOKUP($C24,'RECAP SECT'!$G$6:$DC$253,69,FALSE) -> 39% | T24: =VLOOKUP($C24,'RECAP SECT'!$G$6:$DC$253,70,FALSE) -> 13
A25: 160 | B25: MOSELLE | C25: 44 | D25: MOSELLE NORD | E25: =VLOOKUP($C25,'RECAP SECT'!$G$6:$DC$253,3,FALSE) -> 74.2 | F25: =VLOOKUP($C25,'RECAP SECT'!$G$6:$DC$253,56,FALSE) -> 3,081 | G25: =VLOOKUP($C25,'RECAP SECT'!$G$6:$DC$253,57,FALSE) -> 41.55 | H25: =VLOOKUP($C25,'RECAP SECT'!$G$6:$DC$253,58,FALSE) -> 49% | I25: =VLOOKUP($C25,'RECAP SECT'!$G$6:$DC$253,59,FALSE) -> 7 | J25: =VLOOKUP($C25,'RECAP SECT'!$G$6:$DC$253,60,FALSE) -> 1,208 | K25: =VLOOKUP($C25,'RECAP SECT'!$G$6:$DC$253,61,FALSE) -> 16.29 | L25: =VLOOKUP($C25,'RECAP SECT'!$G$6:$DC$253,62,FALSE) -> 25% | M25: =VLOOKUP($C25,'RECAP SECT'!$G$6:$DC$253,63,FALSE) -> 9 | N25: =VLOOKUP($C25,'RECAP SECT'!$G$6:$DC$253,64,FALSE) -> 280 | O25: =VLOOKUP($C25,'RECAP SECT'!$G$6:$DC$253,65,FALSE) -> 3.78 | P25: =VLOOKUP($C25,'RECAP SECT'!$G$6:$DC$253,66,FALSE) -> 48% | Q25: =VLOOKUP($C25,'RECAP SECT'!$G$6:$DC$253,67,FALSE) -> 12 | R25: =VLOOKUP($C25,'RECAP SECT'!$G$6:$DC$253,68,FALSE) -> 41% | S25: =VLOOKUP($C25,'RECAP SECT'!$G$6:$DC$253,69,FALSE) -> 33% | T25: =VLOOKUP($C25,'RECAP SECT'!$G$6:$DC$253,70,FALSE) -> 8
A26: 80 | B26: VOSGES | C26: 57 | D26: EPINAL | E26: =VLOOKUP($C26,'RECAP SECT'!$G$6:$DC$253,3,FALSE) -> 61.5 | F26: =VLOOKUP($C26,'RECAP SECT'!$G$6:$DC$253,56,FALSE) -> 2,082 | G26: =VLOOKUP($C26,'RECAP SECT'!$G$6:$DC$253,57,FALSE) -> 33.88 | H26: =VLOOKUP($C26,'RECAP SECT'!$G$6:$DC$253,58,FALSE) -> 58% | I26: =VLOOKUP($C26,'RECAP SECT'!$G$6:$DC$253,59,FALSE) -> 10 | J26: =VLOOKUP($C26,'RECAP SECT'!$G$6:$DC$253,60,FALSE) -> 911 | K26: =VLOOKUP($C26,'RECAP SECT'!$G$6:$DC$253,61,FALSE) -> 14.82 | L26: =VLOOKUP($C26,'RECAP SECT'!$G$6:$DC$253,62,FALSE) -> 32% | M26: =VLOOKUP($C26,'RECAP SECT'!$G$6:$DC$253,63,FALSE) -> 14 | N26: =VLOOKUP($C26,'RECAP SECT'!$G$6:$DC$253,64,FALSE) -> 277 | O26: =VLOOKUP($C26,'RECAP SECT'!$G$6:$DC$253,65,FALSE) -> 4.51 | P26: =VLOOKUP($C26,'RECAP SECT'!$G$6:$DC$253,66,FALSE) -> 38% | Q26: =VLOOKUP($C26,'RECAP SECT'!$G$6:$DC$253,67,FALSE) -> 6 | R26: =VLOOKUP($C26,'RECAP SECT'!$G$6:$DC$253,68,FALSE) -> 44% | S26: =VLOOKUP($C26,'RECAP SECT'!$G$6:$DC$253,69,FALSE) -> 36% | T26: =VLOOKUP($C26,'RECAP SECT'!$G$6:$DC$253,70,FALSE) -> 11
A27: 80 | B27: VOSGES | C27: 55 | D27: SAINT DIE | E27: =VLOOKUP($C27,'RECAP SECT'!$G$6:$DC$253,3,FALSE) -> 50.2 | F27: =VLOOKUP($C27,'RECAP SECT'!$G$6:$DC$253,56,FALSE) -> 1,587 | G27: =VLOOKUP($C27,'RECAP SECT'!$G$6:$DC$253,57,FALSE) -> 31.59 | H27: =VLOOKUP($C27,'RECAP SECT'!$G$6:$DC$253,58,FALSE) -> 61% | I27: =VLOOKUP($C27,'RECAP SECT'!$G$6:$DC$253,59,FALSE) -> 11 | J27: =VLOOKUP($C27,'RECAP SECT'!$G$6:$DC$253,60,FALSE) -> 751 | K27: =VLOOKUP($C27,'RECAP SECT'!$G$6:$DC$253,61,FALSE) -> 14.94 | L27: =VLOOKUP($C27,'RECAP SECT'!$G$6:$DC$253,62,FALSE) -> 31% | M27: =VLOOKUP($C27,'RECAP SECT'!$G$6:$DC$253,63,FALSE) -> 13 | N27: =VLOOKUP($C27,'RECAP SECT'!$G$6:$DC$253,64,FALSE) -> 170 | O27: =VLOOKUP($C27,'RECAP SECT'!$G$6:$DC$253,65,FALSE) -> 3.38 | P27: =VLOOKUP($C27,'RECAP SECT'!$G$6:$DC$253,66,FALSE) -> 53% | Q27: =VLOOKUP($C27,'RECAP SECT'!$G$6:$DC$253,67,FALSE) -> 15 | R27: =VLOOKUP($C27,'RECAP SECT'!$G$6:$DC$253,68,FALSE) -> 50% | S27: =VLOOKUP($C27,'RECAP SECT'!$G$6:$DC$253,69,FALSE) -> 42% | T27: =VLOOKUP($C27,'RECAP SECT'!$G$6:$DC$253,70,FALSE) -> 14
A28: Total CEGEE Directions Régionales | E28: =SUM(E10:E27) -> 1186

Sheet SE_IARD
B1: Accueil | F1: BAROMETRE BDD - TERRITOIRES
F2: IARD ET PREVOYANCE
F3: =ACCUEIL!F7 -> 2021-03-14
F7: Ventes Nettes produits pondérés | J7: Ventes sur client non détenteur de l’univers | N7: Total IARD Prévoyance
F8: =DATEMAJ!C23 -> au 14/03 | H8: coef | I8: ='RECAP DIRCOM'!CF4 -> 14% | J8: =DATEMAJ!C24 -> au 14/03 | L8: coef | M8: ='RECAP DIRCOM'!CJ4 -> 6% | O8: coef | P8: ='RECAP DIRCOM'!CM4 -> 20%
B9: Direction | C9: eds | D9: Territoire | E9: ="ETP perf "&DATEMAJ!$C$28 -> ETP perf 31-janv | F9: VN | G9: VN / ETP | H9: % Ecart au 1er | I9: Rang | J9: VB | K9: VB / ETP | L9: % Ecart au 1er | M9: Rang | N9: Moyenne ecart au 1er | O9: % Ecart au 1er | P9: Rang CEGEE
A10: 50 | B10: AUBE HAUTE MARNE | C10: 21 | D10: CHAUMONT | E10: =VLOOKUP($C10,'RECAP SECT'!$G$6:$DC$253,3,FALSE) -> 34.0 | F10: =VLOOKUP($C10,'RECAP SECT'!$G$6:$DC$253,75,FALSE) -> 2,327 | G10: =VLOOKUP($C10,'RECAP SECT'!$G$6:$DC$253,76,FALSE) -> 68.44 | H10: =VLOOKUP($C10,'RECAP SECT'!$G$6:$DC$253,77,FALSE) -> 8% | I10: =VLOOKUP($C10,'RECAP SECT'!$G$6:$DC$253,78,FALSE) -> 5 | J10: =VLOOKUP($C10,'RECAP SECT'!$G$6:$DC$253,79,FALSE) -> 411 | K10: =VLOOKUP($C10,'RECAP SECT'!$G$6:$DC$253,80,FALSE) -> 12.09 | L10: =VLOOKUP($C10,'RECAP SECT'!$G$6:$DC$253,81,FALSE) -> 12% | M10: =VLOOKUP($C10,'RECAP SECT'!$G$6:$DC$253,82,FALSE) -> 3 | N10: =VLOOKUP($C10,'RECAP SECT'!$G$6:$DC$253,83,FALSE) -> 9% | O10: =VLOOKUP($C10,'RECAP SECT'!$G$6:$DC$253,84,FALSE) -> 9% | P10: =VLOOKUP($C10,'RECAP SECT'!$G$6:$DC$253,85,FALSE) -> 3
A11: 50 | B11: AUBE HAUTE MARNE | C11: 14 | D11: TROYES | E11: =VLOOKUP($C11,'RECAP SECT'!$G$6:$DC$253,3,FALSE) -> 68.9 | F11: =VLOOKUP($C11,'RECAP SECT'!$G$6:$DC$253,75,FALSE) -> 2,384 | G11: =VLOOKUP($C11,'RECAP SECT'!$G$6:$DC$253,76,FALSE) -> 34.62 | H11: =VLOOKUP($C11,'RECAP SECT'!$G$6:$DC$253,77,FALSE) -> 53% | I11: =VLOOKUP($C11,'RECAP SECT'!$G$6:$DC$253,78,FALSE) -> 17 | J11: =VLOOKUP($C11,'RECAP SECT'!$G$6:$DC$253,79,FALSE) -> 617 | K11: =VLOOKUP($C11,'RECAP SECT'!$G$6:$DC$253,80,FALSE) -> 8.96 | L11: =VLOOKUP($C11,'RECAP SECT'!$G$6:$DC$253,81,FALSE) -> 35% | M11: =VLOOKUP($C11,'RECAP SECT'!$G$6:$DC$253,82,FALSE) -> 14 | N11: =VLOOKUP($C11,'RECAP SECT'!$G$6:$DC$253,83,FALSE) -> 48% | O11: =VLOOKUP($C11,'RECAP SECT'!$G$6:$DC$253,84,FALSE) -> 48% | P11: =VLOOKUP($C11,'RECAP SECT'!$G$6:$DC$253,85,FALSE) -> 16
A12: 262 | B12: BAS-RHIN | C12: 5060 | D12: HAGUENAU | E12: =VLOOKUP($C12,'RECAP SECT'!$G$6:$DC$253,3,FALSE) -> 74.1 | F12: =VLOOKUP($C12,'RECAP SECT'!$G$6:$DC$253,75,FALSE) -> 4,220 | G12: =VLOOKUP($C12,'RECAP SECT'!$G$6:$DC$253,76,FALSE) -> 56.96 | H12: =VLOOKUP($C12,'RECAP SECT'!$G$6:$DC$253,77,FALSE) -> 23% | I12: =VLOOKUP($C12,'RECAP SECT'!$G$6:$DC$253,78,FALSE) -> 10 | J12: =VLOOKUP($C12,'RECAP SECT'!$G$6:$DC$253,79,FALSE) -> 708 | K12: =VLOOKUP($C12,'RECAP SECT'!$G$6:$DC$253,80,FALSE) -> 9.56 | L12: =VLOOKUP($C12,'RECAP SECT'!$G$6:$DC$253,81,FALSE) -> 31% | M12: =VLOOKUP($C12,'RECAP SECT'!$G$6:$DC$253,82,FALSE) -> 10 | N12: =VLOOKUP($C12,'RECAP SECT'!$G$6:$DC$253,83,FALSE) -> 25% | O12: =VLOOKUP($C12,'RECAP SECT'!$G$6:$DC$253,84,FALSE) -> 25% | P12: =VLOOKUP($C12,'RECAP SECT'!$G$6:$DC$253,85,FALSE) -> 8
A13: 262 | B13: BAS-RHIN | C13: 5101 | D13: SELESTAT | E13: =VLOOKUP($C13,'RECAP SECT'!$G$6:$DC$253,3,FALSE) -> 63.5 | F13: =VLOOKUP($C13,'RECAP SECT'!$G$6:$DC$253,75,FALSE) -> 4,432 | G13: =VLOOKUP($C13,'RECAP SECT'!$G$6:$DC$253,76,FALSE) -> 69.84 | H13: =VLOOKUP($C13,'RECAP SECT'!$G$6:$DC$253,77,FALSE) -> 6% | I13: =VLOOKUP($C13,'RECAP SECT'!$G$6:$DC$253,78,FALSE) -> 3 | J13: =VLOOKUP($C13,'RECAP SECT'!$G$6:$DC$253,79,FALSE) -> 677 | K13: =VLOOKUP($C13,'RECAP SECT'!$G$6:$DC$253,80,FALSE) -> 10.67 | L13: =VLOOKUP($C13,'RECAP SECT'!$G$6:$DC$253,81,FALSE) -> 23% | M13: =VLOOKUP($C13,'RECAP SECT'!$G$6:$DC$253,82,FALSE) -> 5 | N13: =VLOOKUP($C13,'RECAP SECT'!$G$6:$DC$253,83,FALSE) -> 11% | O13: =VLOOKUP($C13,'RECAP SECT'!$G$6:$DC$253,84,FALSE) -> 11% | P13: =VLOOKUP($C13,'RECAP SECT'!$G$6:$DC$253,85,FALSE) -> 4
A14: 262 | B14: BAS-RHIN | C14: 5006 | D14: STRASBOURG | E14: =VLOOKUP($C14,'RECAP SECT'!$G$6:$DC$253,3,FALSE) -> 83.0 | F14: =VLOOKUP($C14,'RECAP SECT'!$G$6:$DC$253,75,FALSE) -> 5,769 | G14: =VLOOKUP($C14,'RECAP SECT'!$G$6:$DC$253,76,FALSE) -> 69.47 | H14: =VLOOKUP($C14,'RECAP SECT'!$G$6:$DC$253,77,FALSE) -> 6% | I14: =VLOOKUP($C14,'RECAP SECT'!$G$6:$DC$253,78,FALSE) -> 4 | J14: =VLOOKUP($C14,'RECAP SECT'!$G$6:$DC$253,79,FALSE) -> 989 | K14: =VLOOKUP($C14,'RECAP SECT'!$G$6:$DC$253,80,FALSE) -> 11.91 | L14: =VLOOKUP($C14,'RECAP SECT'!$G$6:$DC$253,81,FALSE) -> 14% | M14: =VLOOKUP($C14,'RECAP SECT'!$G$6:$DC$253,82,FALSE) -> 4 | N14: =VLOOKUP($C14,'RECAP SECT'!$G$6:$DC$253,83,FALSE) -> 8% | O14: =VLOOKUP($C14,'RECAP SECT'!$G$6:$DC$253,84,FALSE) -> 8% | P14: =VLOOKUP($C14,'RECAP SECT'!$G$6:$DC$253,85,FALSE) -> 2
A15: 264 | B15: HAUT-RHIN | C15: 5130 | D15: COLMAR | E15: =VLOOKUP($C15,'RECAP SECT'!$G$6:$DC$253,3,FALSE) -> 65.1 | F15: =VLOOKUP($C15,'RECAP SECT'!$G$6:$DC$253,75,FALSE) -> 3,847 | G15: =VLOOKUP($C15,'RECAP SECT'!$G$6:$DC$253,76,FALSE) -> 59.09 | H15: =VLOOKUP($C15,'RECAP SECT'!$G$6:$DC$253,77,FALSE) -> 20% | I15: =VLOOKUP($C15,'RECAP SECT'!$G$6:$DC$253,78,FALSE) -> 9 | J15: =VLOOKUP($C15,'RECAP SECT'!$G$6:$DC$253,79,FALSE) -> 530 | K15: =VLOOKUP($C15,'RECAP SECT'!$G$6:$DC$253,80,FALSE) -> 8.14 | L15: =VLOOKUP($C15,'RECAP SECT'!$G$6:$DC$253,81,FALSE) -> 41% | M15: =VLOOKUP($C15,'RECAP SECT'!$G$6:$DC$253,82,FALSE) -> 17 | N15: =VLOOKUP($C15,'RECAP SECT'!$G$6:$DC$253,83,FALSE) -> 26% | O15: =VLOOKUP($C15,'RECAP SECT'!$G$6:$DC$253,84,FALSE) -> 26% | P15: =VLOOKUP($C15,'RECAP SECT'!$G$6:$DC$253,85,FALSE) -> 10
A16: 264 | B16: HAUT-RHIN | C16: 5169 | D16: MULHOUSE | E16: =VLOOKUP($C16,'RECAP SECT'!$G$6:$DC$253,3,FALSE) -> 61.5 | F16: =VLOOKUP($C16,'RECAP SECT'!$G$6:$DC$253,75,FALSE) -> 1,902 | G16: =VLOOKUP($C16,'RECAP SECT'!$G$6:$DC$253,76,FALSE) -> 30.90 | H16: =VLOOKUP($C16,'RECAP SECT'!$G$6:$DC$253,77,FALSE) -> 58% | I16: =VLOOKUP($C16,'RECAP SECT'!$G$6:$DC$253,78,FALSE) -> 18 | J16: =VLOOKUP($C16,'RECAP SECT'!$G$6:$DC$253,79,FALSE) -> 580 | K16: =VLOOKUP($C16,'RECAP SECT'!$G$6:$DC$253,80,FALSE) -> 9.42 | L16: =VLOOKUP($C16,'RECAP SECT'!$G$6:$DC$253,81,FALSE) -> 32% | M16: =VLOOKUP($C16,'RECAP SECT'!$G$6:$DC$253,82,FALSE) -> 11 | N16: =VLOOKUP($C16,'RECAP SECT'!$G$6:$DC$253,83,FALSE) -> 50% | O16: =VLOOKUP($C16,'RECAP SECT'!$G$6:$DC$253,84,FALSE) -> 50% | P16: =VLOOKUP($C16,'RECAP SECT'!$G$6:$DC$253,85,FALSE) -> 18
A17: 30 | B17: MARNE-ARDENNES | C17: 6 | D17: CHALONS EN CHAMPAGNE | E17: =VLOOKUP($C17,'RECAP SECT'!$G$6:$DC$253,3,FALSE) -> 45.4 | F17: =VLOOKUP($C17,'RECAP SECT'!$G$6:$DC$253,75,FALSE) -> 1,606 | G17: =VLOOKUP($C17,'RECAP SECT'!$G$6:$DC$253,76,FALSE) -> 35.35 | H17: =VLOOKUP($C17,'RECAP SECT'!$G$6:$DC$253,77,FALSE) -> 52% | I17: =VLOOKUP($C17,'RECAP SECT'!$G$6:$DC$253,78,FALSE) -> 15 | J17: =VLOOKUP($C17,'RECAP SECT'!$G$6:$DC$253,79,FALSE) -> 413 | K17: =VLOOKUP($C17,'RECAP SECT'!$G$6:$DC$253,80,FALSE) -> 9.09 | L17: =VLOOKUP($C17,'RECAP SECT'!$G$6:$DC$253,81,FALSE) -> 34% | M17: =VLOOKUP($C17,'RECAP SECT'!$G$6:$DC$253,82,FALSE) -> 13 | N17: =VLOOKUP($C17,'RECAP SECT'!$G$6:$DC$253,83,FALSE) -> 47% | O17: =VLOOKUP($C17,'RECAP SECT'!$G$6:$DC$253,84,FALSE) -> 47% | P17: =VLOOKUP($C17,'RECAP SECT'!$G$6:$DC$253,85,FALSE) -> 15
A18: 30 | B18: MARNE-ARDENNES | C18: 2 | D18: CHARLEVILLE MEZIERES | E18: =VLOOKUP($C18,'RECAP SECT'!$G$6:$DC$253,3,FALSE) -> 56.0 | F18: =VLOOKUP($C18,'RECAP SECT'!$G$6:$DC$253,75,FALSE) -> 1,961 | G18: =VLOOKUP($C18,'RECAP SECT'!$G$6:$DC$253,76,FALSE) -> 35.04 | H18: =VLOOKUP($C18,'RECAP SECT'!$G$6:$DC$253,77,FALSE) -> 53% | I18: =VLOOKUP($C18,'RECAP SECT'!$G$6:$DC$253,78,FALSE) -> 16 | J18: =VLOOKUP($C18,'RECAP SECT'!$G$6:$DC$253,79,FALSE) -> 486 | K18: =VLOOKUP($C18,'RECAP SECT'!$G$6:$DC$253,80,FALSE) -> 8.68 | L18: =VLOOKUP($C18,'RECAP SECT'!$G$6:$DC$253,81,FALSE) -> 37% | M18: =VLOOKUP($C18,'RECAP SECT'!$G$6:$DC$253,82,FALSE) -> 15 | N18: =VLOOKUP($C18,'RECAP SECT'!$G$6:$DC$253,83,FALSE) -> 48% | O18: =VLOOKUP($C18,'RECAP SECT'!$G$6:$DC$253,84,FALSE) -> 48% | P18: =VLOOKUP($C18,'RECAP SECT'!$G$6:$DC$253,85,FALSE) -> 17
A19: 30 | B19: MARNE-ARDENNES | C19: 11 | D19: REIMS | E19: =VLOOKUP($C19,'RECAP SECT'!$G$6:$DC$253,3,FALSE) -> 83.2 | F19: =VLOOKUP($C19,'RECAP SECT'!$G$6:$DC$253,75,FALSE) -> 3,420 | G19: =VLOOKUP($C19,'RECAP SECT'!$G$6:$DC$253,76,FALSE) -> 41.12 | H19: =VLOOKUP($C19,'RECAP SECT'!$G$6:$DC$253,77,FALSE) -> 44% | I19: =VLOOKUP($C19,'RECAP SECT'!$G$6:$DC$253,78,FALSE) -> 14 | J19: =VLOOKUP($C19,'RECAP SECT'!$G$6:$DC$253,79,FALSE) -> 774 | K19: =VLOOKUP($C19,'RECAP SECT'!$G$6:$DC$253,80,FALSE) -> 9.31 | L19: =VLOOKUP($C19,'RECAP SECT'!$G$6:$DC$253,81,FALSE) -> 32% | M19: =VLOOKUP($C19,'RECAP SECT'!$G$6:$DC$253,82,FALSE) -> 12 | N19: =VLOOKUP($C19,'RECAP SECT'!$G$6:$DC$253,83,FALSE) -> 41% | O19: =VLOOKUP($C19,'RECAP SECT'!$G$6:$DC$253,84,FALSE) -> 41% | P19: =VLOOKUP($C19,'RECAP SECT'!$G$6:$DC$253,85,FALSE) -> 14
A20: 110 | B20: MEURTHE ET MOSELLE MEUSE | C20: 26 | D20: NANCY | E20: =VLOOKUP($C20,'RECAP SECT'!$G$6:$DC$253,3,FALSE) -> 67.6 | F20: =VLOOKUP($C20,'RECAP SECT'!$G$6:$DC$253,75,FALSE) -> 5,000 | G20: =VLOOKUP($C20,'RECAP SECT'!$G$6:$DC$253,76,FALSE) -> 74.00 | H20: =VLOOKUP($C20,'RECAP SECT'!$G$6:$DC$253,77,FALSE) -> 0% | I20: =VLOOKUP($C20,'RECAP SECT'!$G$6:$DC$253,78,FALSE) -> 1 | J20: =VLOOKUP($C20,'RECAP SECT'!$G$6:$DC$253,79,FALSE) -> 931 | K20: =VLOOKUP($C20,'RECAP SECT'!$G$6:$DC$253,80,FALSE) -> 13.78 | L20: =VLOOKUP($C20,'RECAP SECT'!$G$6:$DC$253,81,FALSE) -> 0% | M20: =VLOOKUP($C20,'RECAP SECT'!$G$6:$DC$253,82,FALSE) -> 1 | N20: =VLOOKUP($C20,'RECAP SECT'!$G$6:$DC$253,83,FALSE) -> 0% | O20: =VLOOKUP($C20,'RECAP SECT'!$G$6:$DC$253,84,FALSE) -> 0% | P20: =VLOOKUP($C20,'RECAP SECT'!$G$6:$DC$253,85,FALSE) -> 1
A21: 110 | B21: MEURTHE ET MOSELLE MEUSE | C21: 27 | D21: PONT A MOUSSON | E21: =VLOOKUP($C21,'RECAP SECT'!$G$6:$DC$253,3,FALSE) -> 77.5 | F21: =VLOOKUP($C21,'RECAP SECT'!$G$6:$DC$253,75,FALSE) -> 4,824 | G21: =VLOOKUP($C21,'RECAP SECT'!$G$6:$DC$253,76,FALSE) -> 62.25 | H21: =VLOOKUP($C21,'RECAP SECT'!$G$6:$DC$253,77,FALSE) -> 16% | I21: =VLOOKUP($C21,'RECAP SECT'!$G$6:$DC$253,78,FALSE) -> 7 | J21: =VLOOKUP($C21,'RECAP SECT'!$G$6:$DC$253,79,FALSE) -> 1,018 | K21: =VLOOKUP($C21,'RECAP SECT'!$G$6:$DC$253,80,FALSE) -> 13.13 | L21: =VLOOKUP($C21,'RECAP SECT'!$G$6:$DC$253,81,FALSE) -> 5% | M21: =VLOOKUP($C21,'RECAP SECT'!$G$6:$DC$253,82,FALSE) -> 2 | N21: =VLOOKUP($C21,'RECAP SECT'!$G$6:$DC$253,83,FALSE) -> 13% | O21: =VLOOKUP($C21,'RECAP SECT'!$G$6:$DC$253,84,FALSE) -> 13% | P21: =VLOOKUP($C21,'RECAP SECT'!$G$6:$DC$253,85,FALSE) -> 6
A22: 110 | B22: MEURTHE ET MOSELLE MEUSE | C22: 31 | D22: VERDUN | E22: =VLOOKUP($C22,'RECAP SECT'!$G$6:$DC$253,3,FALSE) -> 58.4 | F22: =VLOOKUP($C22,'RECAP SECT'!$G$6:$DC$253,75,FALSE) -> 3,208 | G22: =VLOOKUP($C22,'RECAP SECT'!$G$6:$DC$253,76,FALSE) -> 54.96 | H22: =VLOOKUP($C22,'RECAP SECT'!$G$6:$DC$253,77,FALSE) -> 26% | I22: =VLOOKUP($C22,'RECAP SECT'!$G$6:$DC$253,78,FALSE) -> 11 | J22: =VLOOKUP($C22,'RECAP SECT'!$G$6:$DC$253,79,FALSE) -> 590 | K22: =VLOOKUP($C22,'RECAP SECT'!$G$6:$DC$253,80,FALSE) -> 10.11 | L22: =VLOOKUP($C22,'RECAP SECT'!$G$6:$DC$253,81,FALSE) -> 27% | M22: =VLOOKUP($C22,'RECAP SECT'!$G$6:$DC$253,82,FALSE) -> 8 | N22: =VLOOKUP($C22,'RECAP SECT'!$G$6:$DC$253,83,FALSE) -> 26% | O22: =VLOOKUP($C22,'RECAP SECT'!$G$6:$DC$253,84,FALSE) -> 26% | P22: =VLOOKUP($C22,'RECAP SECT'!$G$6:$DC$253,85,FALSE) -> 9
A23: 160 | B23: MOSELLE | C23: 45 | D23: METZ | E23: =VLOOKUP($C23,'RECAP SECT'!$G$6:$DC$253,3,FALSE) -> 89.1 | F23: =VLOOKUP($C23,'RECAP SECT'!$G$6:$DC$253,75,FALSE) -> 4,660 | G23: =VLOOKUP($C23,'RECAP SECT'!$G$6:$DC$253,76,FALSE) -> 52.31 | H23: =VLOOKUP($C23,'RECAP SECT'!$G$6:$DC$253,77,FALSE) -> 29% | I23: =VLOOKUP($C23,'RECAP SECT'!$G$6:$DC$253,78,FALSE) -> 12 | J23: =VLOOKUP($C23,'RECAP SECT'!$G$6:$DC$253,79,FALSE) -> 880 | K23: =VLOOKUP($C23,'RECAP SECT'!$G$6:$DC$253,80,FALSE) -> 9.88 | L23: =VLOOKUP($C23,'RECAP SECT'!$G$6:$DC$253,81,FALSE) -> 28% | M23: =VLOOKUP($C23,'RECAP SECT'!$G$6:$DC$253,82,FALSE) -> 9 | N23: =VLOOKUP($C23,'RECAP SECT'!$G$6:$DC$253,83,FALSE) -> 29% | O23: =VLOOKUP($C23,'RECAP SECT'!$G$6:$DC$253,84,FALSE) -> 29% | P23: =VLOOKUP($C23,'RECAP SECT'!$G$6:$DC$253,85,FALSE) -> 12
A24: 160 | B24: MOSELLE | C24: 42 | D24: MOSELLE EST | E24: =VLOOKUP($C24,'RECAP SECT'!$G$6:$DC$253,3,FALSE) -> 72.5 | F24: =VLOOKUP($C24,'RECAP SECT'!$G$6:$DC$253,75,FALSE) -> 3,755 | G24: =VLOOKUP($C24,'RECAP SECT'!$G$6:$DC$253,76,FALSE) -> 51.80 | H24: =VLOOKUP($C24,'RECAP SECT'!$G$6:$DC$253,77,FALSE) -> 30% | I24: =VLOOKUP($C24,'RECAP SECT'!$G$6:$DC$253,78,FALSE) -> 13 | J24: =VLOOKUP($C24,'RECAP SECT'!$G$6:$DC$253,79,FALSE) -> 626 | K24: =VLOOKUP($C24,'RECAP SECT'!$G$6:$DC$253,80,FALSE) -> 8.64 | L24: =VLOOKUP($C24,'RECAP SECT'!$G$6:$DC$253,81,FALSE) -> 37% | M24: =VLOOKUP($C24,'RECAP SECT'!$G$6:$DC$253,82,FALSE) -> 16 | N24: =VLOOKUP($C24,'RECAP SECT'!$G$6:$DC$253,83,FALSE) -> 32% | O24: =VLOOKUP($C24,'RECAP SECT'!$G$6:$DC$253,84,FALSE) -> 32% | P24: =VLOOKUP($C24,'RECAP SECT'!$G$6:$DC$253,85,FALSE) -> 13
A25: 160 | B25: MOSELLE | C25: 44 | D25: MOSELLE NORD | E25: =VLOOKUP($C25,'RECAP SECT'!$G$6:$DC$253,3,FALSE) -> 74.2 | F25: =VLOOKUP($C25,'RECAP SECT'!$G$6:$DC$253,75,FALSE) -> 4,632 | G25: =VLOOKUP($C25,'RECAP SECT'!$G$6:$DC$253,76,FALSE) -> 62.46 | H25: =VLOOKUP($C25,'RECAP SECT'!$G$6:$DC$253,77,FALSE) -> 16% | I25: =VLOOKUP($C25,'RECAP SECT'!$G$6:$DC$253,78,FALSE) -> 6 | J25: =VLOOKUP($C25,'RECAP SECT'!$G$6:$DC$253,79,FALSE) -> 767 | K25: =VLOOKUP($C25,'RECAP SECT'!$G$6:$DC$253,80,FALSE) -> 10.34 | L25: =VLOOKUP($C25,'RECAP SECT'!$G$6:$DC$253,81,FALSE) -> 25% | M25: =VLOOKUP($C25,'RECAP SECT'!$G$6:$DC$253,82,FALSE) -> 6 | N25: =VLOOKUP($C25,'RECAP SECT'!$G$6:$DC$253,83,FALSE) -> 18% | O25: =VLOOKUP($C25,'RECAP SECT'!$G$6:$DC$253,84,FALSE) -> 18% | P25: =VLOOKUP($C25,'RECAP SECT'!$G$6:$DC$253,85,FALSE) -> 7
A26: 80 | B26: VOSGES | C26: 57 | D26: EPINAL | E26: =VLOOKUP($C26,'RECAP SECT'!$G$6:$DC$253,3,FALSE) -> 61.5 | F26: =VLOOKUP($C26,'RECAP SECT'!$G$6:$DC$253,75,FALSE) -> 4,301 | G26: =VLOOKUP($C26,'RECAP SECT'!$G$6:$DC$253,76,FALSE) -> 70.00 | H26: =VLOOKUP($C26,'RECAP SECT'!$G$6:$DC$253,77,FALSE) -> 5% | I26: =VLOOKUP($C26,'RECAP SECT'!$G$6:$DC$253,78,FALSE) -> 2 | J26: =VLOOKUP($C26,'RECAP SECT'!$G$6:$DC$253,79,FALSE) -> 632 | K26: =VLOOKUP($C26,'RECAP SECT'!$G$6:$DC$253,80,FALSE) -> 10.28 | L26: =VLOOKUP($C26,'RECAP SECT'!$G$6:$DC$253,81,FALSE) -> 25% | M26: =VLOOKUP($C26,'RECAP SECT'!$G$6:$DC$253,82,FALSE) -> 7 | N26: =VLOOKUP($C26,'RECAP SECT'!$G$6:$DC$253,83,FALSE) -> 11% | O26: =VLOOKUP($C26,'RECAP SECT'!$G$6:$DC$253,84,FALSE) -> 11% | P26: =VLOOKUP($C26,'RECAP SECT'!$G$6:$DC$253,85,FALSE) -> 5
A27: 80 | B27: VOSGES | C27: 55 | D27: SAINT DIE | E27: =VLOOKUP($C27,'RECAP SECT'!$G$6:$DC$253,3,FALSE) -> 50.2 | F27: =VLOOKUP($C27,'RECAP SECT'!$G$6:$DC$253,75,FALSE) -> 2,991 | G27: =VLOOKUP($C27,'RECAP SECT'!$G$6:$DC$253,76,FALSE) -> 59.53 | H27: =VLOOKUP($C27,'RECAP SECT'!$G$6:$DC$253,77,FALSE) -> 20% | I27: =VLOOKUP($C27,'RECAP SECT'!$G$6:$DC$253,78,FALSE) -> 8 | J27: =VLOOKUP($C27,'RECAP SECT'!$G$6:$DC$253,79,FALSE) -> 393 | K27: =VLOOKUP($C27,'RECAP SECT'!$G$6:$DC$253,80,FALSE) -> 7.82 | L27: =VLOOKUP($C27,'RECAP SECT'!$G$6:$DC$253,81,FALSE) -> 43% | M27: =VLOOKUP($C27,'RECAP SECT'!$G$6:$DC$253,82,FALSE) -> 18 | N27: =VLOOKUP($C27,'RECAP SECT'!$G$6:$DC$253,83,FALSE) -> 27% | O27: =VLOOKUP($C27,'RECAP SECT'!$G$6:$DC$253,84,FALSE) -> 27% | P27: =VLOOKUP($C27,'RECAP SECT'!$G$6:$DC$253,85,FALSE) -> 11
A28: Total CEGEE Directions Régionales | E28: =SUM(E10:E27) -> 1186

Sheet SE_SATISFACTION
B1: Accueil | F1: BAROMETRE BDD - TERRITOIRES
F2: SATISFACTION
F3: =ACCUEIL!F7 -> 2021-03-14
F7: NPS à froid (SAE) | I7: NPS à chaud (QHD) | L7: Total Satisfaction Clients
F8: =DATEMAJ!E4 -> au 28/02 | G8: coef | H8: ='RECAP DIRCOM'!M4 -> 10% | I8: =DATEMAJ!C5 -> au 31/01 | J8: coef | K8: ='RECAP DIRCOM'!P4 -> 10% | M8: coef | N8: ='RECAP DIRCOM'!S4 -> 20%
B9: Direction | C9: eds | D9: Territoire | E9: ="ETP perf "&DATEMAJ!$C$28 -> ETP perf 31-janv | G9: % Ecart au 1er | H9: Rang | J9: % Ecart au 1er | K9: Rang | L9: Moyenne ecart au 1er | M9: % Ecart au 1er | N9: Rang CEGEE
A10: 50 | B10: AUBE HAUTE MARNE | C10: 21 | D10: CHAUMONT | E10: =VLOOKUP($C10,'RECAP SECT'!$G$6:$DC$253,3,FALSE) -> 34.0 | F10: =VLOOKUP($C10,'RECAP SECT'!$G$6:$DC$253,5,FALSE) -> 11 | G10: =VLOOKUP($C10,'RECAP SECT'!$G$6:$DC$253,6,FALSE) -> 42% | H10: =VLOOKUP($C10,'RECAP SECT'!$G$6:$DC$253,7,FALSE) -> 7 | I10: =VLOOKUP($C10,'RECAP SECT'!$G$6:$DC$253,8,FALSE) -> 54% | J10: =VLOOKUP($C10,'RECAP SECT'!$G$6:$DC$253,9,FALSE) -> 21% | K10: =VLOOKUP($C10,'RECAP SECT'!$G$6:$DC$253,10,FALSE) -> 11 | L10: =VLOOKUP($C10,'RECAP SECT'!$G$6:$DC$253,11,FALSE) -> 31% | M10: =VLOOKUP($C10,'RECAP SECT'!$G$6:$DC$253,12,FALSE) -> 29% | N10: =VLOOKUP($C10,'RECAP SECT'!$G$6:$DC$253,13,FALSE) -> 9
A11: 50 | B11: AUBE HAUTE MARNE | C11: 14 | D11: TROYES | E11: =VLOOKUP($C11,'RECAP SECT'!$G$6:$DC$253,3,FALSE) -> 68.9 | F11: =VLOOKUP($C11,'RECAP SECT'!$G$6:$DC$253,5,FALSE) -> 15 | G11: =VLOOKUP($C11,'RECAP SECT'!$G$6:$DC$253,6,FALSE) -> 21% | H11: =VLOOKUP($C11,'RECAP SECT'!$G$6:$DC$253,7,FALSE) -> 4 | I11: =VLOOKUP($C11,'RECAP SECT'!$G$6:$DC$253,8,FALSE) -> 50% | J11: =VLOOKUP($C11,'RECAP SECT'!$G$6:$DC$253,9,FALSE) -> 27% | K11: =VLOOKUP($C11,'RECAP SECT'!$G$6:$DC$253,10,FALSE) -> 14 | L11: =VLOOKUP($C11,'RECAP SECT'!$G$6:$DC$253,11,FALSE) -> 24% | M11: =VLOOKUP($C11,'RECAP SECT'!$G$6:$DC$253,12,FALSE) -> 22% | N11: =VLOOKUP($C11,'RECAP SECT'!$G$6:$DC$253,13,FALSE) -> 7
A12: 262 | B12: BAS-RHIN | C12: 5060 | D12: HAGUENAU | E12: =VLOOKUP($C12,'RECAP SECT'!$G$6:$DC$253,3,FALSE) -> 74.1 | F12: =VLOOKUP($C12,'RECAP SECT'!$G$6:$DC$253,5,FALSE) -> 10 | G12: =VLOOKUP($C12,'RECAP SECT'!$G$6:$DC$253,6,FALSE) -> 47% | H12: =VLOOKUP($C12,'RECAP SECT'!$G$6:$DC$253,7,FALSE) -> 9 | I12: =VLOOKUP($C12,'RECAP SECT'!$G$6:$DC$253,8,FALSE) -> 58% | J12: =VLOOKUP($C12,'RECAP SECT'!$G$6:$DC$253,9,FALSE) -> 15% | K12: =VLOOKUP($C12,'RECAP SECT'!$G$6:$DC$253,10,FALSE) -> 8 | L12: =VLOOKUP($C12,'RECAP SECT'!$G$6:$DC$253,11,FALSE) -> 31% | M12: =VLOOKUP($C12,'RECAP SECT'!$G$6:$DC$253,12,FALSE) -> 29% | N12: =VLOOKUP($C12,'RECAP SECT'!$G$6:$DC$253,13,FALSE) -> 8
A13: 262 | B13: BAS-RHIN | C13: 5101 | D13: SELESTAT | E13: =VLOOKUP($C13,'RECAP SECT'!$G$6:$DC$253,3,FALSE) -> 63.5 | F13: =VLOOKUP($C13,'RECAP SECT'!$G$6:$DC$253,5,FALSE) -> 6 | G13: =VLOOKUP($C13,'RECAP SECT'!$G$6:$DC$253,6,FALSE) -> 68% | H13: =VLOOKUP($C13,'RECAP SECT'!$G$6:$DC$253,7,FALSE) -> 15 | I13: =VLOOKUP($C13,'RECAP SECT'!$G$6:$DC$253,8,FALSE) -> 49% | J13: =VLOOKUP($C13,'RECAP SECT'!$G$6:$DC$253,9,FALSE) -> 28% | K13: =VLOOKUP($C13,'RECAP SECT'!$G$6:$DC$253,10,FALSE) -> 15 | L13: =VLOOKUP($C13,'RECAP SECT'!$G$6:$DC$253,11,FALSE) -> 48% | M13: =VLOOKUP($C13,'RECAP SECT'!$G$6:$DC$253,12,FALSE) -> 46% | N13: =VLOOKUP($C13,'RECAP SECT'!$G$6:$DC$253,13,FALSE) -> 15
A14: 262 | B14: BAS-RHIN | C14: 5006 | D14: STRASBOURG | E14: =VLOOKUP($C14,'RECAP SECT'!$G$6:$DC$253,3,FALSE) -> 83.0 | F14: =VLOOKUP($C14,'RECAP SECT'!$G$6:$DC$253,5,FALSE) -> 5 | G14: =VLOOKUP($C14,'RECAP SECT'!$G$6:$DC$253,6,FALSE) -> 74% | H14: =VLOOKUP($C14,'RECAP SECT'!$G$6:$DC$253,7,FALSE) -> 17 | I14: =VLOOKUP($C14,'RECAP SECT'!$G$6:$DC$253,8,FALSE) -> 43% | J14: =VLOOKUP($C14,'RECAP SECT'!$G$6:$DC$253,9,FALSE) -> 37% | K14: =VLOOKUP($C14,'RECAP SECT'!$G$6:$DC$253,10,FALSE) -> 17 | L14: =VLOOKUP($C14,'RECAP SECT'!$G$6:$DC$253,11,FALSE) -> 55% | M14: =VLOOKUP($C14,'RECAP SECT'!$G$6:$DC$253,12,FALSE) -> 53% | N14: =VLOOKUP($C14,'RECAP SECT'!$G$6:$DC$253,13,FALSE) -> 17
A15: 264 | B15: HAUT-RHIN | C15: 5130 | D15: COLMAR | E15: =VLOOKUP($C15,'RECAP SECT'!$G$6:$DC$253,3,FALSE) -> 65.1 | F15: =VLOOKUP($C15,'RECAP SECT'!$G$6:$DC$253,5,FALSE) -> 10 | G15: =VLOOKUP($C15,'RECAP SECT'!$G$6:$DC$253,6,FALSE) -> 47% | H15: =VLOOKUP($C15,'RECAP SECT'!$G$6:$DC$253,7,FALSE) -> 9 | I15: =VLOOKUP($C15,'RECAP SECT'!$G$6:$DC$253,8,FALSE) -> 50% | J15: =VLOOKUP($C15,'RECAP SECT'!$G$6:$DC$253,9,FALSE) -> 27% | K15: =VLOOKUP($C15,'RECAP SECT'!$G$6:$DC$253,10,FALSE) -> 13 | L15: =VLOOKUP($C15,'RECAP SECT'!$G$6:$DC$253,11,FALSE) -> 37% | M15: =VLOOKUP($C15,'RECAP SECT'!$G$6:$DC$253,12,FALSE) -> 35% | N15: =VLOOKUP($C15,'RECAP SECT'!$G$6:$DC$253,13,FALSE) -> 13
A16: 264 | B16: HAUT-RHIN | C16: 5169 | D16: MULHOUSE | E16: =VLOOKUP($C16,'RECAP SECT'!$G$6:$DC$253,3,FALSE) -> 61.5 | F16: =VLOOKUP($C16,'RECAP SECT'!$G$6:$DC$253,5,FALSE) -> -2 | G16: =VLOOKUP($C16,'RECAP SECT'!$G$6:$DC$253,6,FALSE) -> 111% | H16: =VLOOKUP($C16,'RECAP SECT'!$G$6:$DC$253,7,FALSE) -> 18 | I16: =VLOOKUP($C16,'RECAP SECT'!$G$6:$DC$253,8,FALSE) -> 40% | J16: =VLOOKUP($C16,'RECAP SECT'!$G$6:$DC$253,9,FALSE) -> 41% | K16: =VLOOKUP($C16,'RECAP SECT'!$G$6:$DC$253,10,FALSE) -> 18 | L16: =VLOOKUP($C16,'RECAP SECT'!$G$6:$DC$253,11,FALSE) -> 76% | M16: =VLOOKUP($C16,'RECAP SECT'!$G$6:$DC$253,12,FALSE) -> 74% | N16: =VLOOKUP($C16,'RECAP SECT'!$G$6:$DC$253,13,FALSE) -> 18
A17: 30 | B17: MARNE-ARDENNES | C17: 6 | D17: CHALONS EN CHAMPAGNE | E17: =VLOOKUP($C17,'RECAP SECT'!$G$6:$DC$253,3,FALSE) -> 45.4 | F17: =VLOOKUP($C17,'RECAP SECT'!$G$6:$DC$253,5,FALSE) -> 11 | G17: =VLOOKUP($C17,'RECAP SECT'!$G$6:$DC$253,6,FALSE) -> 42% | H17: =VLOOKUP($C17,'RECAP SECT'!$G$6:$DC$253,7,FALSE) -> 7 | I17: =VLOOKUP($C17,'RECAP SECT'!$G$6:$DC$253,8,FALSE) -> 68% | J17: =VLOOKUP($C17,'RECAP SECT'!$G$6:$DC$253,9,FALSE) -> 0% | K17: =VLOOKUP($C17,'RECAP SECT'!$G$6:$DC$253,10,FALSE) -> 1 | L17: =VLOOKUP($C17,'RECAP SECT'!$G$6:$DC$253,11,FALSE) -> 21% | M17: =VLOOKUP($C17,'RECAP SECT'!$G$6:$DC$253,12,FALSE) -> 19% | N17: =VLOOKUP($C17,'RECAP SECT'!$G$6:$DC$253,13,FALSE) -> 6
A18: 30 | B18: MARNE-ARDENNES | C18: 2 | D18: CHARLEVILLE MEZIERES | E18: =VLOOKUP($C18,'RECAP SECT'!$G$6:$DC$253,3,FALSE) -> 56.0 | F18: =VLOOKUP($C18,'RECAP SECT'!$G$6:$DC$253,5,FALSE) -> 19 | G18: =VLOOKUP($C18,'RECAP SECT'!$G$6:$DC$253,6,FALSE) -> 0% | H18: =VLOOKUP($C18,'RECAP SECT'!$G$6:$DC$253,7,FALSE) -> 1 | I18: =VLOOKUP($C18,'RECAP SECT'!$G$6:$DC$253,8,FALSE) -> 65% | J18: =VLOOKUP($C18,'RECAP SECT'!$G$6:$DC$253,9,FALSE) -> 5% | K18: =VLOOKUP($C18,'RECAP SECT'!$G$6:$DC$253,10,FALSE) -> 2 | L18: =VLOOKUP($C18,'RECAP SECT'!$G$6:$DC$253,11,FALSE) -> 2% | M18: =VLOOKUP($C18,'RECAP SECT'!$G$6:$DC$253,12,FALSE) -> 0% | N18: =VLOOKUP($C18,'RECAP SECT'!$G$6:$DC$253,13,FALSE) -> 1
A19: 30 | B19: MARNE-ARDENNES | C19: 11 | D19: REIMS | E19: =VLOOKUP($C19,'RECAP SECT'!$G$6:$DC$253,3,FALSE) -> 83.2 | F19: =VLOOKUP($C19,'RECAP SECT'!$G$6:$DC$253,5,FALSE) -> 8 | G19: =VLOOKUP($C19,'RECAP SECT'!$G$6:$DC$253,6,FALSE) -> 58% | H19: =VLOOKUP($C19,'RECAP SECT'!$G$6:$DC$253,7,FALSE) -> 13 | I19: =VLOOKUP($C19,'RECAP SECT'!$G$6:$DC$253,8,FALSE) -> 61% | J19: =VLOOKUP($C19,'RECAP SECT'!$G$6:$DC$253,9,FALSE) -> 11% | K19: =VLOOKUP($C19,'RECAP SECT'!$G$6:$DC$253,10,FALSE) -> 6 | L19: =VLOOKUP($C19,'RECAP SECT'!$G$6:$DC$253,11,FALSE) -> 34% | M19: =VLOOKUP($C19,'RECAP SECT'!$G$6:$DC$253,12,FALSE) -> 32% | N19: =VLOOKUP($C19,'RECAP SECT'!$G$6:$DC$253,13,FALSE) -> 11
A20: 110 | B20: MEURTHE ET MOSELLE MEUSE | C20: 26 | D20: NANCY | E20: =VLOOKUP($C20,'RECAP SECT'!$G$6:$DC$253,3,FALSE) -> 67.6 | F20: =VLOOKUP($C20,'RECAP SECT'!$G$6:$DC$253,5,FALSE) -> 9 | G20: =VLOOKUP($C20,'RECAP SECT'!$G$6:$DC$253,6,FALSE) -> 53% | H20: =VLOOKUP($C20,'RECAP SECT'!$G$6:$DC$253,7,FALSE) -> 12 | I20: =VLOOKUP($C20,'RECAP SECT'!$G$6:$DC$253,8,FALSE) -> 56% | J20: =VLOOKUP($C20,'RECAP SECT'!$G$6:$DC$253,9,FALSE) -> 18% | K20: =VLOOKUP($C20,'RECAP SECT'!$G$6:$DC$253,10,FALSE) -> 9 | L20: =VLOOKUP($C20,'RECAP SECT'!$G$6:$DC$253,11,FALSE) -> 35% | M20: =VLOOKUP($C20,'RECAP SECT'!$G$6:$DC$253,12,FALSE) -> 33% | N20: =VLOOKUP($C20,'RECAP SECT'!$G$6:$DC$253,13,FALSE) -> 12
A21: 110 | B21: MEURTHE ET MOSELLE MEUSE | C21: 27 | D21: PONT A MOUSSON | E21: =VLOOKUP($C21,'RECAP SECT'!$G$6:$DC$253,3,FALSE) -> 77.5 | F21: =VLOOKUP($C21,'RECAP SECT'!$G$6:$DC$253,5,FALSE) -> 10 | G21: =VLOOKUP($C21,'RECAP SECT'!$G$6:$DC$253,6,FALSE) -> 47% | H21: =VLOOKUP($C21,'RECAP SECT'!$G$6:$DC$253,7,FALSE) -> 9 | I21: =VLOOKUP($C21,'RECAP SECT'!$G$6:$DC$253,8,FALSE) -> 54% | J21: =VLOOKUP($C21,'RECAP SECT'!$G$6:$DC$253,9,FALSE) -> 21% | K21: =VLOOKUP($C21,'RECAP SECT'!$G$6:$DC$253,10,FALSE) -> 12 | L21: =VLOOKUP($C21,'RECAP SECT'!$G$6:$DC$253,11,FALSE) -> 34% | M21: =VLOOKUP($C21,'RECAP SECT'!$G$6:$DC$253,12,FALSE) -> 32% | N21: =VLOOKUP($C21,'RECAP SECT'!$G$6:$DC$253,13,FALSE) -> 10
A22: 110 | B22: MEURTHE ET MOSELLE MEUSE | C22: 31 | D22: VERDUN | E22: =VLOOKUP($C22,'RECAP SECT'!$G$6:$DC$253,3,FALSE) -> 58.4 | F22: =VLOOKUP($C22,'RECAP SECT'!$G$6:$DC$253,5,FALSE) -> 13 | G22: =VLOOKUP($C22,'RECAP SECT'!$G$6:$DC$253,6,FALSE) -> 32% | H22: =VLOOKUP($C22,'RECAP SECT'!$G$6:$DC$253,7,FALSE) -> 6 | I22: =VLOOKUP($C22,'RECAP SECT'!$G$6:$DC$253,8,FALSE) -> 65% | J22: =VLOOKUP($C22,'RECAP SECT'!$G$6:$DC$253,9,FALSE) -> 5% | K22: =VLOOKUP($C22,'RECAP SECT'!$G$6:$DC$253,10,FALSE) -> 3 | L22: =VLOOKUP($C22,'RECAP SECT'!$G$6:$DC$253,11,FALSE) -> 18% | M22: =VLOOKUP($C22,'RECAP SECT'!$G$6:$DC$253,12,FALSE) -> 16% | N22: =VLOOKUP($C22,'RECAP SECT'!$G$6:$DC$253,13,FALSE) -> 4
A23: 160 | B23: MOSELLE | C23: 45 | D23: METZ | E23: =VLOOKUP($C23,'RECAP SECT'!$G$6:$DC$253,3,FALSE) -> 89.1 | F23: =VLOOKUP($C23,'RECAP SECT'!$G$6:$DC$253,5,FALSE) -> 7 | G23: =VLOOKUP($C23,'RECAP SECT'!$G$6:$DC$253,6,FALSE) -> 63% | H23: =VLOOKUP($C23,'RECAP SECT'!$G$6:$DC$253,7,FALSE) -> 14 | I23: =VLOOKUP($C23,'RECAP SECT'!$G$6:$DC$253,8,FALSE) -> 59% | J23: =VLOOKUP($C23,'RECAP SECT'!$G$6:$DC$253,9,FALSE) -> 14% | K23: =VLOOKUP($C23,'RECAP SECT'!$G$6:$DC$253,10,FALSE) -> 7 | L23: =VLOOKUP($C23,'RECAP SECT'!$G$6:$DC$253,11,FALSE) -> 39% | M23: =VLOOKUP($C23,'RECAP SECT'!$G$6:$DC$253,12,FALSE) -> 36% | N23: =VLOOKUP($C23,'RECAP SECT'!$G$6:$DC$253,13,FALSE) -> 14
A24: 160 | B24: MOSELLE | C24: 42 | D24: MOSELLE EST | E24: =VLOOKUP($C24,'RECAP SECT'!$G$6:$DC$253,3,FALSE) -> 72.5 | F24: =VLOOKUP($C24,'RECAP SECT'!$G$6:$DC$253,5,FALSE) -> 15 | G24: =VLOOKUP($C24,'RECAP SECT'!$G$6:$DC$253,6,FALSE) -> 21% | H24: =VLOOKUP($C24,'RECAP SECT'!$G$6:$DC$253,7,FALSE) -> 4 | I24: =VLOOKUP($C24,'RECAP SECT'!$G$6:$DC$253,8,FALSE) -> 56% | J24: =VLOOKUP($C24,'RECAP SECT'!$G$6:$DC$253,9,FALSE) -> 19% | K24: =VLOOKUP($C24,'RECAP SECT'!$G$6:$DC$253,10,FALSE) -> 10 | L24: =VLOOKUP($C24,'RECAP SECT'!$G$6:$DC$253,11,FALSE) -> 20% | M24: =VLOOKUP($C24,'RECAP SECT'!$G$6:$DC$253,12,FALSE) -> 18% | N24: =VLOOKUP($C24,'RECAP SECT'!$G$6:$DC$253,13,FALSE) -> 5
A25: 160 | B25: MOSELLE | C25: 44 | D25: MOSELLE NORD | E25: =VLOOKUP($C25,'RECAP SECT'!$G$6:$DC$253,3,FALSE) -> 74.2 | F25: =VLOOKUP($C25,'RECAP SECT'!$G$6:$DC$253,5,FALSE) -> 6 | G25: =VLOOKUP($C25,'RECAP SECT'!$G$6:$DC$253,6,FALSE) -> 68% | H25: =VLOOKUP($C25,'RECAP SECT'!$G$6:$DC$253,7,FALSE) -> 15 | I25: =VLOOKUP($C25,'RECAP SECT'!$G$6:$DC$253,8,FALSE) -> 45% | J25: =VLOOKUP($C25,'RECAP SECT'!$G$6:$DC$253,9,FALSE) -> 34% | K25: =VLOOKUP($C25,'RECAP SECT'!$G$6:$DC$253,10,FALSE) -> 16 | L25: =VLOOKUP($C25,'RECAP SECT'!$G$6:$DC$253,11,FALSE) -> 51% | M25: =VLOOKUP($C25,'RECAP SECT'!$G$6:$DC$253,12,FALSE) -> 49% | N25: =VLOOKUP($C25,'RECAP SECT'!$G$6:$DC$253,13,FALSE) -> 16
A26: 80 | B26: VOSGES | C26: 57 | D26: EPINAL | E26: =VLOOKUP($C26,'RECAP SECT'!$G$6:$DC$253,3,FALSE) -> 61.5 | F26: =VLOOKUP($C26,'RECAP SECT'!$G$6:$DC$253,5,FALSE) -> 17 | G26: =VLOOKUP($C26,'RECAP SECT'!$G$6:$DC$253,6,FALSE) -> 11% | H26: =VLOOKUP($C26,'RECAP SECT'!$G$6:$DC$253,7,FALSE) -> 3 | I26: =VLOOKUP($C26,'RECAP SECT'!$G$6:$DC$253,8,FALSE) -> 61% | J26: =VLOOKUP($C26,'RECAP SECT'!$G$6:$DC$253,9,FALSE) -> 10% | K26: =VLOOKUP($C26,'RECAP SECT'!$G$6:$DC$253,10,FALSE) -> 5 | L26: =VLOOKUP($C26,'RECAP SECT'!$G$6:$DC$253,11,FALSE) -> 10% | M26: =VLOOKUP($C26,'RECAP SECT'!$G$6:$DC$253,12,FALSE) -> 8% | N26: =VLOOKUP($C26,'RECAP SECT'!$G$6:$DC$253,13,FALSE) -> 3
A27: 80 | B27: VOSGES | C27: 55 | D27: SAINT DIE | E27: =VLOOKUP($C27,'RECAP SECT'!$G$6:$DC$253,3,FALSE) -> 50.2 | F27: =VLOOKUP($C27,'RECAP SECT'!$G$6:$DC$253,5,FALSE) -> 18 | G27: =VLOOKUP($C27,'RECAP SECT'!$G$6:$DC$253,6,FALSE) -> 5% | H27: =VLOOKUP($C27,'RECAP SECT'!$G$6:$DC$253,7,FALSE) -> 2 | I27: =VLOOKUP($C27,'RECAP SECT'!$G$6:$DC$253,8,FALSE) -> 62% | J27: =VLOOKUP($C27,'RECAP SECT'!$G$6:$DC$253,9,FALSE) -> 9% | K27: =VLOOKUP($C27,'RECAP SECT'!$G$6:$DC$253,10,FALSE) -> 4 | L27: =VLOOKUP($C27,'RECAP SECT'!$G$6:$DC$253,11,FALSE) -> 7% | M27: =VLOOKUP($C27,'RECAP SECT'!$G$6:$DC$253,12,FALSE) -> 5% | N27: =VLOOKUP($C27,'RECAP SECT'!$G$6:$DC$253,13,FALSE) -> 2
A28: Total CEGEE Directions Régionales | E28: =SUM(E10:E27) -> 1186

Sheet AG_CLASS
B1: Accueil | H1: BAROMETRE BDD - AGENCES
H2: CLASSEMENTS
H3: =ACCUEIL!F7 -> 2021-03-14
H8: CLASSEMENT GENERAL | I8: CRITERE Satisfaction Clients | J8: NPS à froid (SAE) | K8: NPS à chaud (QHD) | L8: CRITERE BANCARISATION | M8: Ventes Nettes produits pondérés | N8: Ventes sur client non détenteur de l’univers | O8: Mobilité Macron | P8: Remises commerciales | Q8: CRITERE EPARGNE | R8: Excédent Epargne y/c DAV pondéré | S8: Ventes sur client non détenteur de l’univers | T8: CRITERE IARD PREVOYANCE | U8: Ventes Nettes produits pondérés | V8: Ventes sur client non détenteur de l’univers | W8: CRITERE CREDITS | X8: Engagements et ventes accessoires pondérés Immo | Y8: Engagements et ventes accessoires pondérés Conso | Z8: Ventes sur client non détenteur de l’univers
B9: Direction | C9: eds | D9: Territoire | E9: eds | F9: Agence | G9: ="ETP perf "&DATEMAJ!$C$28 -> ETP perf 31-janv | H9: Rang | I9: Rang | J9: Rang | K9: Rang | L9: Rang | M9: Rang | N9: Rang | O9: Rang | P9: Rang | Q9: Rang | R9: Rang | S9: Rang | T9: Rang | U9: Rang | V9: Rang | W9: Rang | X9: Rang | Y9: Rang | Z9: Rang
A10: 50 | B10: MEURTHE ET MOSELLE MEUSE | C10: 26 | D10: NANCY | E10: 454481 | F10: NANCY PLACE DOMBASLE | G10: 12.3 | H10: 1 | I10: 162 | J10: 168 | K10: 134 | L10: 1 | M10: 15 | N10: 1 | O10: 1 | P10: 188 | Q10: 15 | R10: 70 | S10: 4 | T10: 2 | U10: 2 | V10: 4 | W10: 3 | X10: 4 | Y10: 87 | Z10: 2
A11: 50 | B11: MEURTHE ET MOSELLE MEUSE | C11: 27 | D11: PONT A MOUSSON | E11: 554531 | F11: POMPEY | G11: 3.0 | H11: 2 | I11: 88 | J11: 106 | K11: 75 | L11: 2 | M11: 8 | N11: 5 | O11: 6 | P11: 6 | Q11: 5 | R11: 12 | S11: 8 | T11: 11 | U11: 12 | V11: 11 | W11: 5 | X11: 9 | Y11: 1 | Z11: 15
A12: 50 | B12: VOSGES | C12: 57 | D12: EPINAL | E12: 488288 | F12: EPINAL LEOPOLD BOURG | G12: 1.8 | H12: 3 | I12: 11 | J12: 8 | K12: 40 | L12: 4 | M12: 5 | N12: 24 | O12: 16 | P12: 158 | Q12: 79 | R12: 53 | S12: 229 | T12: 30 | U12: 24 | V12: 76 | W12: 4 | X12: 7 | Y12: 2 | Z12: 5
A13: 50 | B13: MEURTHE ET MOSELLE MEUSE | C13: 26 | D13: NANCY | E13: 554356 | F13: JARVILLE LA MALGRANGE | G13: 4.0 | H13: 4 | I13: 117 | J13: 79 | K13: 170 | L13: 6 | M13: 11 | N13: 4 | O13: 2 | P13: 232 | Q13: 155 | R13: 140 | S13: 177 | T13: 1 | U13: 1 | V13: 5 | W13: 2 | X13: 2 | Y13: 88 | Z13: 3
A14: 50 | B14: BAS-RHIN | C14: 5101 | D14: SELESTAT | E14: 4113 | F14: BARR | G14: 3.0 | H14: 5 | I14: 21 | J14: 38 | K14: 11 | L14: 5 | M14: 7 | N14: 60 | O14: 30 | P14: 15 | Q14: 2 | R14: 8 | S14: 3 | T14: 8 | U14: 6 | V14: 41 | W14: 219 | X14: 174 | Y14: 221 | Z14: 185
A15: 50 | B15: MOSELLE | C15: 44 | D15: MOSELLE NORD | E15: 557508 | F15: NILVANGE | G15: 2.1 | H15: 6 | I15: 112 | J15: 75 | K15: 177 | L15: 16 | M15: 17 | N15: 33 | O15: 24 | P15: 210 | Q15: 21 | R15: 57 | S15: 13 | T15: 3 | U15: 3 | V15: 10 | W15: 22 | X15: 15 | Y15: 99 | Z15: 26
A16: 50 | B16: MEURTHE ET MOSELLE MEUSE | C16: 27 | D16: PONT A MOUSSON | E16: 454651 | F16: TOUL | G16: 9.6 | H16: 7 | I16: 262 | J16: 237 | K16: 268 | L16: 10 | M16: 16 | N16: 2 | O16: 3 | P16: 259 | Q16: 84 | R16: 109 | S16: 50 | T16: 14 | U16: 26 | V16: 7 | W16: 1 | X16: 1 | Y16: 8 | Z16: 1
A17: 50 | B17: BAS-RHIN | C17: 5060 | D17: HAGUENAU | E17: 4092 | F17: HOCHFELDEN | G17: 1.8 | H17: 8 | I17: 46 | J17: 20 | K17: 136 | L17: 13 | M17: 9 | N17: 20 | O17: 32 | P17: 262 | Q17: 78 | R17: 120 | S17: 26 | T17: 18 | U17: 32 | V17: 8 | W17: 28 | X17: 30 | Y17: 34 | Z17: 73
A18: 50 | B18: BAS-RHIN | C18: 5101 | D18: SELESTAT | E18: 4120 | F18: WASSELONNE | G18: 2.9 | H18: 9 | I18: 197 | J18: 188 | K18: 183 | L18: 84 | M18: 65 | N18: 68 | O18: 188 | P18: 178 | Q18: 1 | R18: 5 | S18: 7 | T18: 6 | U18: 5 | V18: 26 | W18: 46 | X18: 128 | Y18: 13 | Z18: 79
A19: 50 | B19: AUBE HAUTE MARNE | C19: 21 | D19: CHAUMONT | E19: 510590 | F19: CHAUMONT REPUBLIQUE | G19: 3.9 | H19: 10 | I19: 74 | J19: 79 | K19: 79 | L19: 86 | M19: 143 | N19: 23 | O19: 101 | P19: 71 | Q19: 47 | R19: 60 | S19: 80 | T19: 12 | U19: 8 | V19: 29 | W19: 20 | X19: 93 | Y19: 5 | Z19: 40
A20: 50 | B20: MEURTHE ET MOSELLE MEUSE | C20: 26 | D20: NANCY | E20: 554636 | F20: TOMBLAINE | G20: 2.0 | H20: 11 | I20: 28 | J20: 70 | K20: 6 | L20: 220 | M20: 239 | N20: 14 | O20: 238 | P20: 218 | Q20: 49 | R20: 40 | S20: 152 | T20: 10 | U20: 19 | V20: 1 | W20: 52 | X20: 131 | Y20: 140 | Z20: 6
A21: 50 | B21: MARNE-ARDENNES | C21: 11 | D21: REIMS | E21: 551349 | F21: REIMS SAINT REMI | G21: 2.9 | H21: 12 | I21: 85 | J21: 53 | K21: 154 | L21: 23 | M21: 46 | N21: 19 | O21: 12 | P21: 144 | Q21: 7 | R21: 10 | S21: 17 | T21: 79 | U21: 106 | V21: 31 | W21: 27 | X21: 23 | Y21: 80 | Z21: 49
A22: 50 | B22: MARNE-ARDENNES | C22: 2 | D22: CHARLEVILLE MEZIERES | E22: 408822 | F22: CHARLEVILLE MEZIERES | G22: 4.4 | H22: 13 | I22: 92 | J22: 127 | K22: 63 | L22: 61 | M22: 130 | N22: 34 | O22: 15 | P22: 112 | Q22: 10 | R22: 41 | S22: 5 | T22: 37 | U22: 34 | V22: 50 | W22: 31 | X22: 11 | Y22: 227 | Z22: 28
A23: 50 | B23: MOSELLE | C23: 42 | D23: MOSELLE EST | E23: 457163 | F23: BEHREN LES FORBACH | G23: 2.5 | H23: 14 | I23: 32 | J23: 20 | K23: 64 | L23: 17 | M23: 39 | N23: 9 | O23: 174 | P23: 45 | Q23: 44 | R23: 86 | S23: 20 | T23: 67 | U23: 79 | V23: 40 | W23: 100 | X23: 272 | Y23: 20 | Z23: 61
A24: 50 | B24: MARNE-ARDENNES | C24: 11 | D24: REIMS | E24: 551310 | F24: REIMS CHATILLONS | G24: 3.7 | H24: 15 | I24: 84 | J24: 87 | K24: 93 | L24: 20 | M24: 21 | N24: 70 | O24: 25 | P24: 181 | Q24: 40 | R24: 39 | S24: 95 | T24: 73 | U24: 58 | V24: 133 | W24: 15 | X24: 18 | Y24: 32 | Z24: 50
A25: 50 | B25: MEURTHE ET MOSELLE MEUSE | C25: 27 | D25: PONT A MOUSSON | E25: 554321 | F25: FROUARD | G25: 3.0 | H25: 16 | I25: 97 | J25: 53 | K25: 174 | L25: 122 | M25: 144 | N25: 154 | O25: 105 | P25: 53 | Q25: 6 | R25: 4 | S25: 90 | T25: 49 | U25: 66 | V25: 23 | W25: 26 | X25: 17 | Y25: 128 | Z25: 31
A26: 50 | B26: MOSELLE | C26: 45 | D26: METZ | E26: 557447 | F26: METZ SAINT MAXIMIN | G26: 3.0 | H26: 17 | I26: 78 | J26: 75 | K26: 104 | L26: 25 | M26: 141 | N26: 3 | O26: 8 | P26: 78 | Q26: 82 | R26: 76 | S26: 143 | T26: 55 | U26: 72 | V26: 24 | W26: 17 | X26: 10 | Y26: 178 | Z26: 10
A27: 50 | B27: MARNE-ARDENNES | C27: 2 | D27: CHARLEVILLE MEZIERES | E27: 408862 | F27: REVIN | G27: 3.6 | H27: 18 | I27: 107 | J27: 130 | K27: 81 | L27: 11 | M27: 29 | N27: 7 | O27: 53 | P27: 23 | Q27: 13 | R27: 38 | S27: 9 | T27: 136 | U27: 129 | V27: 141 | W27: 43 | X27: 42 | Y27: 154 | Z27: 21
A28: 50 | B28: BAS-RHIN | C28: 5101 | D28: SELESTAT | E28: 4107 | F28: VILLE | G28: 2.9 | H28: 19 | I28: 219 | J28: 221 | K28: 197 | L28: 3 | M28: 1 | N28: 79 | O28: 124 | P28: 30 | Q28: 55 | R28: 62 | S28: 89 | T28: 20 | U28: 11 | V28: 149 | W28: 176 | X28: 248 | Y28: 36 | Z28: 212
A29: 50 | B29: MARNE-ARDENNES | C29: 6 | D29: CHALONS EN CHAMPAGNE | E29: 451115 | F29: MOURMELON LE GRAND | G29: 3.0 | H29: 20 | I29: 59 | J29: 116 | K29: 21 | L29: 190 | M29: 192 | N29: 97 | O29: 6 | P29: 247 | Q29: 14 | R29: 158 | S29: 1 | T29: 47 | U29: 54 | V29: 35 | W29: 37 | X29: 53 | Y29: 56 | Z29: 27
A30: 50 | B30: VOSGES | C30: 57 | D30: EPINAL | E30: 588716 | F30: XERTIGNY | G30: 3.0 | H30: 21 | I30: 79 | J30: 87 | K30: 84 | L30: 149 | M30: 111 | N30: 234 | O30: 254 | P30: 92 | Q30: 65 | R30: 68 | S30: 120 | T30: 5 | U30: 4 | V30: 33 | W30: 213 | X30: 175 | Y30: 224 | Z30: 160
A31: 50 | B31: VOSGES | C31: 55 | D31: SAINT DIE | E31: 488246 | F31: CORNIMONT LA BRESSE | G31: 2.9 | H31: 22 | I31: 23 | J31: 70 | K31: 3 | L31: 85 | M31: 68 | N31: 102 | O31: 219 | P31: 135 | Q31: 144 | R31: 156 | S31: 92 | T31: 32 | U31: 20 | V31: 142 | W31: 106 | X31: 178 | Y31: 65 | Z31: 82
A32: 262 | B32: MARNE-ARDENNES | C32: 11 | D32: REIMS | E32: 551309 | F32: REIMS EUROPE | G32: 3.0 | H32: 23 | I32: 13 | J32: 8 | K32: 56 | L32: 59 | M32: 90 | N32: 126 | O32: 105 | P32: 29 | Q32: 70 | R32: 103 | S32: 33 | T32: 66 | U32: 80 | V32: 38 | W32: 198 | X32: 114 | Y32: 231 | Z32: 202
A33: 262 | B33: MOSELLE | C33: 42 | D33: MOSELLE EST | E33: 557250 | F33: CREUTZWALD | G33: 2.9 | H33: 24 | I33: 48 | J33: 40 | K33: 80 | L33: 178 | M33: 182 | N33: 188 | O33: 189 | P33: 98 | Q33: 3 | R33: 6 | S33: 6 | T33: 111 | U33: 102 | V33: 145 | W33: 66 | X33: 85 | Y33: 37 | Z33: 125
A34: 262 | B34: VOSGES | C34: 57 | D34: EPINAL | E34: 488706 | F34: VITTEL | G34: 3.5 | H34: 25 | I34: 27 | J34: 62 | K34: 7 | L34: 171 | M34: 216 | N34: 164 | O34: 127 | P34: 36 | Q34: 27 | R34: 14 | S34: 192 | T34: 62 | U34: 52 | V34: 119 | W34: 107 | X34: 179 | Y34: 122 | Z34: 44
A35: 262 | B35: MEURTHE ET MOSELLE MEUSE | C35: 27 | D35: PONT A MOUSSON | E35: 554416 | F35: LUDRES | G35: 4.0 | H35: 26 | I35: 12 | J35: 8 | K35: 53 | L35: 130 | M35: 148 | N35: 54 | O35: 36 | P35: 184 | Q35: 51 | R35: 63 | S35: 72 | T35: 161 | U35: 169 | V35: 157 | W35: 51 | X35: 113 | Y35: 53 | Z35: 29
A36: 262 | B36: MARNE-ARDENNES | C36: 11 | D36: REIMS | E36: 551305 | F36: REIMS HIPPODROME | G36: 3.8 | H36: 27 | I36: 8 | J36: 14 | K36: 9 | L36: 114 | M36: 120 | N36: 44 | O36: 5 | P36: 250 | Q36: 231 | R36: 252 | S36: 30 | T36: 86 | U36: 101 | V36: 60 | W36: 42 | X36: 38 | Y36: 157 | Z36: 22
A37: 262 | B37: VOSGES | C37: 55 | D37: SAINT DIE | E37: 588186 | F37: BRUYERES | G37: 3.7 | H37: 28 | I37: 61 | J37: 87 | K37: 52 | L37: 62 | M37: 76 | N37: 117 | O37: 185 | P37: 49 | Q37: 169 | R37: 178 | S37: 145 | T37: 39 | U37: 28 | V37: 94 | W37: 50 | X37: 106 | Y37: 22 | Z37: 63
A38: 262 | B38: BAS-RHIN | C38: 5060 | D38: HAGUENAU | E38: 4066 | F38: NIEDERBRONN LES BAINS | G38: 6.1 | H38: 29 | I38: 14 | J38: 40 | K38: 4 | L38: 58 | M38: 70 | N38: 113 | O38: 114 | P38: 75 | Q38: 110 | R38: 67 | S38: 263 | T38: 87 | U38: 71 | V38: 170 | W38: 149 | X38: 89 | Y38: 150 | Z38: 221
A39: 262 | B39: MARNE-ARDENNES | C39: 6 | D39: CHALONS EN CHAMPAGNE | E39: 551330 | F39: MONTMIRAIL | G39: 3.0 | H39: 30 | I39: 39 | J39: 75 | K39: 17 | L39: 132 | M39: 189 | N39: 154 | O39: 20 | P39: 66 | Q39: 17 | R39: 18 | S39: 47 | T39: 135 | U39: 153 | V39: 87 | W39: 57 | X39: 47 | Y39: 143 | Z39: 45
A40: 262 | B40: BAS-RHIN | C40: 5101 | D40: SELESTAT | E40: 4121 | F40: SCHIRMECK | G40: 3.8 | H40: 31 | I40: 52 | J40: 62 | K40: 60 | L40: 70 | M40: 82 | N40: 209 | O40: 97 | P40: 27 | Q40: 69 | R40: 65 | S40: 141 | T40: 76 | U40: 57 | V40: 150 | W40: 76 | X40: 163 | Y40: 67 | Z40: 33
A41: 262 | B41: VOSGES | C41: 57 | D41: EPINAL | E41: 588631 | F41: THAON LES VOSGES | G41: 5.4 | H41: 32 | I41: 40 | J41: 62 | K41: 27 | L41: 40 | M41: 57 | N41: 63 | O41: 48 | P41: 142 | Q41: 156 | R41: 115 | S41: 242 | T41: 43 | U41: 42 | V41: 63 | W41: 153 | X41: 184 | Y41: 96 | Z41: 127
A42: 262 | B42: MARNE-ARDENNES | C42: 2 | D42: CHARLEVILLE MEZIERES | E42: 508820 | F42: VOUZIERS | G42: 2.9 | H42: 33 | I42: 230 | J42: 255 | K42: 181 | L42: 52 | M42: 33 | N42: 15 | O42: 42 | P42: 265 | Q42: 43 | R42: 54 | S42: 75 | T42: 26 | U42: 35 | V42: 25 | W42: 9 | X42: 33 | Y42: 17 | Z42: 8
A43: 262 | B43: AUBE HAUTE MARNE | C43: 21 | D43: CHAUMONT | E43: 410560 | F43: BOURBONNE LES BAINS | G43: 2.0 | H43: 34 | I43: 2 | J43: 3 | K43: 5 | L43: 168 | M43: 184 | N43: 255 | O43: 190 | P43: 14 | Q43: 158 | R43: 181 | S43: 113 | T43: 83 | U43: 87 | V43: 72 | W43: 228 | X43: 259 | Y43: 127 | Z43: 202
A44: 262 | B44: MOSELLE | C44: 45 | D44: METZ | E44: 557444 | F44: SAINT JULIEN LES METZ | G44: 5.6 | H44: 35 | I44: 93 | J44: 106 | K44: 86 | L44: 113 | M44: 109 | N44: 141 | O44: 119 | P44: 123 | Q44: 107 | R44: 100 | S44: 144 | T44: 22 | U44: 23 | V44: 27 | W44: 93 | X44: 141 | Y44: 38 | Z44: 147
A45: 262 | B45: MEURTHE ET MOSELLE MEUSE | C45: 31 | D45: VERDUN | E45: 554412 | F45: LONGUYON | G45: 3.0 | H45: 36 | I45: 22 | J45: 17 | K45: 56 | L45: 125 | M45: 157 | N45: 92 | O45: 45 | P45: 113 | Q45: 173 | R45: 136 | S45: 223 | T45: 57 | U45: 56 | V45: 59 | W45: 98 | X45: 65 | Y45: 133 | Z45: 135
A46: 262 | B46: BAS-RHIN | C46: 5060 | D46: HAGUENAU | E46: 4071 | F46: WISSEMBOURG | G46: 8.7 | H46: 37 | I46: 18 | J46: 31 | K46: 10 | L46: 63 | M46: 61 | N46: 120 | O46: 207 | P46: 86 | Q46: 59 | R46: 61 | S46: 123 | T46: 106 | U46: 109 | V46: 90 | W46: 225 | X46: 246 | Y46: 153 | Z46: 190
A47: 262 | B47: MOSELLE | C47: 45 | D47: METZ | E47: 457453 | F47: MONTIGNY LES METZ | G47: 8.0 | H47: 38 | I47: 19 | J47: 31 | K47: 14 | L47: 39 | M47: 18 | N47: 187 | O47: 67 | P47: 238 | Q47: 134 | R47: 188 | S47: 39 | T47: 178 | U47: 154 | V47: 241 | W47: 53 | X47: 48 | Y47: 103 | Z47: 53
A48: 262 | B48: MARNE-ARDENNES | C48: 6 | D48: CHALONS EN CHAMPAGNE | E48: 551110 | F48: CHALONS ROOSEVELT | G48: 5.0 | H48: 39 | I48: 16 | J48: 15 | K48: 34 | L48: 115 | M48: 146 | N48: 71 | O48: 27 | P48: 165 | Q48: 35 | R48: 78 | S48: 11 | T48: 173 | U48: 148 | V48: 228 | W48: 103 | X48: 58 | Y48: 192 | Z48: 105
A49: 262 | B49: BAS-RHIN | C49: 5101 | D49: SELESTAT | E49: 4007 | F49: ILLKIRCH CENTRE | G49: 7.0 | H49: 40 | I49: 152 | J49: 153 | K49: 133 | L49: 9 | M49: 2 | N49: 137 | O49: 144 | P49: 199 | Q49: 148 | R49: 186 | S49: 58 | T49: 36 | U49: 31 | V49: 68 | W49: 202 | X49: 132 | Y49: 184 | Z49: 237
A50: 262 | B50: BAS-RHIN | C50: 5006 | D50: STRASBOURG | E50: 4037 | F50: MUNDOLSHEIM | G50: 4.4 | H50: 41 | I50: 173 | J50: 183 | K50: 144 | L50: 8 | M50: 4 | N50: 49 | O50: 100 | P50: 200 | Q50: 66 | R50: 75 | S50: 79 | T50: 41 | U50: 40 | V50: 55 | W50: 241 | X50: 227 | Y50: 250 | Z50: 168
A51: 262 | B51: MEURTHE ET MOSELLE MEUSE | C51: 26 | D51: NANCY | E51: 454426 | F51: LUNEVILLE CARNOT | G51: 9.6 | H51: 42 | I51: 136 | J51: 137 | K51: 119 | L51: 48 | M51: 48 | N51: 72 | O51: 69 | P51: 177 | Q51: 87 | R51: 84 | S51: 139 | T51: 59 | U51: 63 | V51: 45 | W51: 48 | X51: 37 | Y51: 116 | Z51: 55
A52: 262 | B52: MOSELLE | C52: 44 | D52: MOSELLE NORD | E52: 457348 | F52: HAGONDANGE | G52: 8.6 | H52: 43 | I52: 189 | J52: 188 | K52: 179 | L52: 27 | M52: 25 | N52: 143 | O52: 82 | P52: 94 | Q52: 50 | R52: 55 | S52: 101 | T52: 54 | U52: 45 | V52: 117 | W52: 62 | X52: 59 | Y52: 84 | Z52: 71
A53: 262 | B53: HAUT-RHIN | C53: 5130 | D53: COLMAR | E53: 4153 | F53: ROUFFACH | G53: 3.7 | H53: 44 | I53: 98 | J53: 106 | K53: 92 | L53: 81 | M53: 59 | N53: 51 | O53: 234 | P53: 187 | Q53: 238 | R53: 257 | S53: 46 | T53: 15 | U53: 13 | V53: 36 | W53: 97 | X53: 177 | Y53: 28 | Z53: 133
A54: 262 | B54: MOSELLE | C54: 45 | D54: METZ | E54: 457443 | F54: METZ REPUBLIQUE | G54: 4.2 | H54: 45 | I54: 1 | J54: 1 | K54: 50 | L54: 175 | M54: 161 | N54: 225 | O54: 244 | P54: 95 | Q54: 210 | R54: 209 | S54: 157 | T54: 225 | U54: 232 | V54: 181 | W54: 49 | X54: 56 | Y54: 101 | Z54: 30
A55: 262 | B55: MOSELLE | C55: 44 | D55: MOSELLE NORD | E55: 557113 | F55: AUDUN LE TICHE | G55: 2.2 | H55: 46 | I55: 242 | J55: 265 | K55: 184 | L55: 43 | M55: 58 | N55: 8 | O55: 245 | P55: 195 | Q55: 28 | R55: 44 | S55: 52 | T55: 64 | U55: 55 | V55: 95 | W55: 6 | X55: 5 | Y55: 109 | Z55: 7
A56: 262 | B56: MEURTHE ET MOSELLE MEUSE | C56: 31 | D56: VERDUN | E56: 555679 | F56: VERDUN MAZEL | G56: 4.0 | H56: 47 | I56: 38 | J56: 40 | K56: 59 | L56: 107 | M56: 139 | N56: 106 | O56: 54 | P56: 99 | Q56: 41 | R56: 51 | S56: 72 | T56: 99 | U56: 94 | V56: 122 | W56: 175 | X56: 194 | Y56: 175 | Z56: 84
A57: 262 | B57: AUBE HAUTE MARNE | C57: 14 | D57: TROYES | E57: 510511 | F57: TROYES BROSSOLETTE | G57: 3.0 | H57: 48 | I57: 83 | J57: 175 | K57: 12 | L57: 46 | M57: 63 | N57: 37 | O57: 134 | P57: 127 | Q57: 18 | R57: 13 | S57: 104 | T57: 143 | U57: 158 | V57: 96 | W57: 116 | X57: 66 | Y57: 217 | Z57: 87
A58: 262 | B58: MEURTHE ET MOSELLE MEUSE | C58: 27 | D58: PONT A MOUSSON | E58: 554357 | F58: JOEUF | G58: 4.0 | H58: 49 | I58: 100 | J58: 95 | K58: 126 | L58: 129 | M58: 188 | N58: 27 | O58: 26 | P58: 173 | Q58: 230 | R58: 229 | S58: 128 | T58: 25 | U58: 37 | V58: 21 | W58: 39 | X58: 49 | Y58: 62 | Z58: 34
A59: 262 | B59: MEURTHE ET MOSELLE MEUSE | C59: 31 | D59: VERDUN | E59: 454414 | F59: LONGWY HAUT | G59: 4.0 | H59: 50 | I59: 138 | J59: 145 | K59: 109 | L59: 73 | M59: 125 | N59: 45 | O59: 105 | P59: 40 | Q59: 33 | R59: 43 | S59: 65 | T59: 56 | U59: 69 | V59: 32 | W59: 132 | X59: 115 | Y59: 181 | Z59: 99
A60: 262 | B60: BAS-RHIN | C60: 5006 | D60: STRASBOURG | E60: 4047 | F60: STRASBOURG CRONENBOURG | G60: 6.7 | H60: 51 | I60: 56 | J60: 79 | K60: 47 | L60: 110 | M60: 113 | N60: 129 | O60: 46 | P60: 150 | Q60: 121 | R60: 149 | S60: 55 | T60: 53 | U60: 44 | V60: 115 | W60: 130 | X60: 63 | Y60: 233 | Z60: 111
A61: 262 | B61: VOSGES | C61: 55 | D61: SAINT DIE | E61: 588587 | F61: SAINT DIE CATHEDRALE | G61: 4.0 | H61: 52 | I61: 24 | J61: 37 | K61: 18 | L61: 154 | M61: 134 | N61: 217 | O61: 238 | P61: 79 | Q61: 16 | R61: 7 | S61: 179 | T61: 141 | U61: 133 | V61: 157 | W61: 238 | X61: 112 | Y61: 261 | Z61: 238
A62: 262 | B62: BAS-RHIN | C62: 5006 | D62: STRASBOURG | E62: 4033 | F62: LA WANTZENAU | G62: 1.2 | H62: 53 | I62: 227 | J62: 183 | K62: 241 | L62: 232 | M62: 244 | N62: 139 | O62: 125 | P62: 152 | Q62: 12 | R62: 3 | S62: 243 | T62: 38 | U62: 22 | V62: 146 | W62: 13 | X62: 26 | Y62: 14 | Z62: 42
A63: 262 | B63: MARNE-ARDENNES | C63: 11 | D63: REIMS | E63: 551340 | F63: BETHENY | G63: 3.0 | H63: 54 | I63: 57 | J63: 106 | K63: 22 | L63: 38 | M63: 77 | N63: 17 | O63: 4 | P63: 227 | Q63: 115 | R63: 168 | S63: 28 | T63: 251 | U63: 255 | V63: 191 | W63: 8 | X63: 13 | Y63: 26 | Z63: 11
A64: 262 | B64: MEURTHE ET MOSELLE MEUSE | C64: 31 | D64: VERDUN | E64: 555624 | F64: STENAY | G64: 3.0 | H64: 55 | I64: 147 | J64: 188 | K64: 71 | L64: 19 | M64: 28 | N64: 60 | O64: 223 | P64: 3 | Q64: 97 | R64: 92 | S64: 124 | T64: 90 | U64: 97 | V64: 72 | W64: 86 | X64: 197 | Y64: 29 | Z64: 74
A65: 262 | B65: MOSELLE | C65: 44 | D65: MOSELLE NORD | E65: 557347 | F65: GUENANGE | G65: 2.6 | H65: 56 | I65: 153 | J65: 62 | K65: 232 | L65: 94 | M65: 165 | N65: 69 | O65: 73 | P65: 25 | Q65: 104 | R65: 95 | S65: 150 | T65: 98 | U65: 164 | V65: 19 | W65: 12 | X65: 8 | Y65: 132 | Z65: 9
A66: 262 | B66: AUBE HAUTE MARNE | C66: 21 | D66: CHAUMONT | E66: 410566 | F66: CHAUMONT HOTEL DE VILLE | G66: 7.6 | H66: 57 | I66: 50 | J66: 70 | K66: 51 | L66: 96 | M66: 122 | N66: 74 | O66: 118 | P66: 83 | Q66: 145 | R66: 143 | S66: 116 | T66: 72 | U66: 77 | V66: 61 | W66: 113 | X66: 144 | Y66: 49 | Z66: 188
A67: 262 | B67: MEURTHE ET MOSELLE MEUSE | C67: 26 | D67: NANCY | E67: 554266 | F67: DOMBASLE SUR MEURTHE | G67: 3.7 | H67: 58 | I67: 155 | J67: 175 | K67: 105 | L67: 231 | M67: 222 | N67: 148 | O67: 29 | P67: 231 | Q67: 4 | R67: 2 | S67: 37 | T67: 170 | U67: 215 | V67: 48 | W67: 16 | X67: 40 | Y67: 16 | Z67: 41
A68: 262 | B68: MOSELLE | C68: 42 | D68: MOSELLE EST | E68: 557503 | F68: NEUNKIRCH | G68: 4.2 | H68: 59 | I68: 10 | J68: 11 | K68: 25 | L68: 135 | M68: 79 | N68: 191 | O68: 261 | P68: 170 | Q68: 92 | R68: 59 | S68: 251 | T68: 197 | U68: 173 | V68: 248 | W68: 166 | X68: 104 | Y68: 134 | Z68: 232
A69: 262 | B69: MEURTHE ET MOSELLE MEUSE | C69: 26 | D69: NANCY | E69: 554476 | F69: NANCY ARTEM | G69: 2.6 | H69: 60 | I69: 103 | J69: 168 | K69: 41 | L69: 146 | M69: 100 | N69: 59 | O69: 34 | P69: 251 | Q69: 96 | R69: 89 | S69: 127 | T69: 61 | U69: 74 | V69: 39 | W69: 72 | X69: 70 | Y69: 211 | Z69: 17
A70: 262 | B70: MARNE-ARDENNES | C70: 11 | D70: REIMS | E70: 451361 | F70: PIERRY LECLERC | G70: 2.0 | H70: 61 | I70: 7 | J70: 4 | K70: 35 | L70: 101 | M70: 201 | N70: 45 | O70: 54 | P70: 9 | Q70: 259 | R70: 243 | S70: 271 | T70: 103 | U70: 100 | V70: 108 | W70: 168 | X70: 32 | Y70: 234 | Z70: 268
A71: 262 | B71: MEURTHE ET MOSELLE MEUSE | C71: 27 | D71: PONT A MOUSSON | E71: 454535 | F71: PONT A MOUSSON CENTRALE | G71: 8.1 | H71: 62 | I71: 188 | J71: 195 | K71: 165 | L71: 29 | M71: 30 | N71: 75 | O71: 37 | P71: 134 | Q71: 126 | R71: 128 | S71: 119 | T71: 48 | U71: 50 | V71: 46 | W71: 87 | X71: 41 | Y71: 202 | Z71: 92
A72: 262 | B72: MOSELLE | C72: 42 | D72: MOSELLE EST | E72: 457308 | F72: FORBACH CENTRALE | G72: 12.0 | H72: 63 | I72: 124 | J72: 145 | K72: 94 | L72: 33 | M72: 32 | N72: 149 | O72: 160 | P72: 93 | Q72: 95 | R72: 99 | S72: 94 | T72: 108 | U72: 83 | V72: 198 | W72: 83 | X72: 138 | Y72: 35 | Z72: 101
A73: 262 | B73: MARNE-ARDENNES | C73: 6 | D73: CHALONS EN CHAMPAGNE | E73: 551354 | F73: VERTUS | G73: 2.5 | H73: 64 | I73: 6 | J73: 6 | K73: 8 | L73: 209 | M73: 114 | N73: 238 | O73: 173 | P73: 239 | Q73: 174 | R73: 223 | S73: 40 | T73: 121 | U73: 147 | V73: 54 | W73: 204 | X73: 173 | Y73: 219 | Z73: 146
A74: 262 | B74: BAS-RHIN | C74: 5006 | D74: STRASBOURG | E74: 4038 | F74: OBERHAUSBERGEN | G74: 5.0 | H74: 65 | I74: 125 | J74: 175 | K74: 66 | L74: 50 | M74: 31 | N74: 52 | O74: 66 | P74: 244 | Q74: 108 | R74: 147 | S74: 38 | T74: 115 | U74: 98 | V74: 173 | W74: 47 | X74: 29 | Y74: 77 | Z74: 132
A75: 262 | B75: MARNE-ARDENNES | C75: 11 | D75: REIMS | E75: 551367 | F75: AY CHAMPAGNE | G75: 3.0 | H75: 66 | I75: 90 | J75: 79 | K75: 123 | L75: 15 | M75: 41 | N75: 25 | O75: 9 | P75: 90 | Q75: 157 | R75: 183 | S75: 104 | T75: 209 | U75: 226 | V75: 137 | W75: 40 | X75: 21 | Y75: 167 | Z75: 45
A76: 262 | B76: VOSGES | C76: 55 | D76: SAINT DIE | E76: 488326 | F76: GERARDMER | G76: 5.9 | H76: 67 | I76: 20 | J76: 28 | K76: 18 | L76: 156 | M76: 105 | N76: 251 | O76: 130 | P76: 161 | Q76: 68 | R76: 26 | S76: 265 | T76: 201 | U76: 177 | V76: 254 | W76: 125 | X76: 57 | Y76: 177 | Z76: 191
A77: 262 | B77: BAS-RHIN | C77: 5060 | D77: HAGUENAU | E77: 4079 | F77: SOULTZ SOUS FORETS | G77: 1.6 | H77: 68 | I77: 37 | J77: 31 | K77: 74 | L77: 68 | M77: 36 | N77: 146 | O77: 78 | P77: 223 | Q77: 225 | R77: 241 | S77: 70 | T77: 175 | U77: 188 | V77: 126 | W77: 41 | X77: 69 | Y77: 43 | Z77: 37
A78: 262 | B78: MARNE-ARDENNES | C78: 2 | D78: CHARLEVILLE MEZIERES | E78: 508819 | F78: MOUZON | G78: 2.0 | H78: 69 | I78: 65 | J78: 47 | K78: 125 | L78: 210 | M78: 173 | N78: 93 | O78: 104 | P78: 243 | Q78: 36 | R78: 20 | S78: 173 | T78: 212 | U78: 240 | V78: 101 | W78: 19 | X78: 27 | Y78: 66 | Z78: 20
A79: 262 | B79: BAS-RHIN | C79: 5006 | D79: STRASBOURG | E79: 4024 | F79: STRASBOURG AUSTERLITZ | G79: 2.0 | H79: 70 | I79: 264 | J79: 258 | K79: 256 | L79: 14 | M79: 14 | N79: 22 | O79: 54 | P79: 216 | Q79: 29 | R79: 24 | S79: 97 | T79: 52 | U79: 116 | V79: 6 | W79: 24 | X79: 43 | Y79: 44 | Z79: 14
A80: 262 | B80: MARNE-ARDENNES | C80: 2 | D80: CHARLEVILLE MEZIERES | E80: 408801 | F80: CHARLEVILLE JEAN JAURES | G80: 9.7 | H80: 71 | I80: 119 | J80: 145 | K80: 78 | L80: 95 | M80: 131 | N80: 50 | O80: 10 | P80: 191 | Q80: 48 | R80: 96 | S80: 16 | T80: 200 | U80: 205 | V80: 179 | W80: 21 | X80: 12 | Y80: 145 | Z80: 16
A81: 262 | B81: MEURTHE ET MOSELLE MEUSE | C81: 26 | D81: NANCY | E81: 454671 | F81: VANDOEUVRE LES NANCY | G81: 4.6 | H81: 72 | I81: 95 | J81: 47 | K81: 186 | L81: 41 | M81: 74 | N81: 21 | O81: 18 | P81: 185 | Q81: 261 | R81: 254 | S81: 256 | T81: 75 | U81: 78 | V81: 62 | W81: 29 | X81: 20 | Y81: 208 | Z81: 12
A82: 262 | B82: MEURTHE ET MOSELLE MEUSE | C82: 27 | D82: PONT A MOUSSON | E82: 554257 | F82: DIEULOUARD | G82: 3.4 | H82: 73 | I82: 30 | J82: 40 | K82: 20 | L82: 201 | M82: 227 | N82: 168 | O82: 74 | P82: 107 | Q82: 177 | R82: 175 | S82: 162 | T82: 88 | U82: 82 | V82: 128 | W82: 117 | X82: 130 | Y82: 148 | Z82: 78
A83: 264 | B83: BAS-RHIN | C83: 5006 | D83: STRASBOURG | E83: 4027 | F83: SCHILTIGHEIM CENTRE | G83: 3.8 | H83: 74 | I83: 183 | J83: 175 | K83: 185 | L83: 30 | M83: 34 | N83: 11 | O83: 14 | P83: 253 | Q83: 20 | R83: 25 | S83: 29 | T83: 189 | U83: 200 | V83: 136 | W83: 45 | X83: 25 | Y83: 152 | Z83: 66
A84: 264 | B84: BAS-RHIN | C84: 5060 | D84: HAGUENAU | E84: 4082 | F84: BOUXWILLER | G84: 2.9 | H84: 75 | I84: 70 | J84: 62 | K84: 95 | L84: 165 | M84: 119 | N84: 236 | O84: 263 | P84: 118 | Q84: 34 | R84: 56 | S84: 43 | T84: 137 | U84: 176 | V84: 51 | W84: 118 | X84: 154 | Y84: 41 | Z84: 196
A85: 264 | B85: VOSGES | C85: 57 | D85: EPINAL | E85: 588206 | F85: CHARMES | G85: 2.8 | H85: 76 | I85: 148 | J85: 188 | K85: 72 | L85: 189 | M85: 171 | N85: 123 | O85: 184 | P85: 180 | Q85: 64 | R85: 45 | S85: 218 | T85: 40 | U85: 47 | V85: 37 | W85: 119 | X85: 202 | Y85: 40 | Z85: 144
A86: 264 | B86: HAUT-RHIN | C86: 5130 | D86: COLMAR | E86: 4144 | F86: RIBEAUVILLE | G86: 3.0 | H86: 77 | I86: 169 | J86: 225 | K86: 70 | L86: 31 | M86: 40 | N86: 142 | O86: 105 | P86: 44 | Q86: 125 | R86: 152 | S86: 60 | T86: 31 | U86: 16 | V86: 211 | W86: 234 | X86: 211 | Y86: 165 | Z86: 245
A87: 264 | B87: MEURTHE ET MOSELLE MEUSE | C87: 31 | D87: VERDUN | E87: 455298 | F87: ETAIN | G87: 1.7 | H87: 78 | I87: 94 | J87: 70 | K87: 143 | L87: 272 | M87: 271 | N87: 241 | O87: 229 | P87: 229 | Q87: 251 | R87: 239 | S87: 240 | T87: 4 | U87: 7 | V87: 12 | W87: 65 | X87: 35 | Y87: 69 | Z87: 204
A88: 264 | B88: MEURTHE ET MOSELLE MEUSE | C88: 31 | D88: VERDUN | E88: 455231 | F88: COMMERCY | G88: 4.4 | H88: 79 | I88: 160 | J88: 159 | K88: 136 | L88: 131 | M88: 123 | N88: 43 | O88: 88 | P88: 206 | Q88: 188 | R88: 173 | S88: 198 | T88: 51 | U88: 39 | V88: 127 | W88: 33 | X88: 73 | Y88: 24 | Z88: 38
A89: 264 | B89: MARNE-ARDENNES | C89: 11 | D89: REIMS | E89: 551314 | F89: FISMES | G89: 3.0 | H89: 80 | I89: 77 | J89: 116 | K89: 54 | L89: 100 | M89: 169 | N89: 60 | O89: 13 | P89: 114 | Q89: 89 | R89: 154 | S89: 15 | T89: 157 | U89: 168 | V89: 132 | W89: 80 | X89: 74 | Y89: 113 | Z89: 74
A90: 264 | B90: MEURTHE ET MOSELLE MEUSE | C90: 31 | D90: VERDUN | E90: 455456 | F90: MONTMEDY | G90: 1.8 | H90: 81 | I90: 68 | J90: 106 | K90: 46 | L90: 144 | M90: 166 | N90: 53 | O90: 131 | P90: 147 | Q90: 249 | R90: 233 | S90: 244 | T90: 82 | U90: 86 | V90: 77 | W90: 36 | X90: 50 | Y90: 83 | Z90: 18
A91: 264 | B91: BAS-RHIN | C91: 5006 | D91: STRASBOURG | E91: 4054 | F91: STRASBOURG MONTAGNE VERTE | G91: 2.8 | H91: 82 | I91: 257 | J91: 242 | K91: 253 | L91: 83 | M91: 187 | N91: 16 | O91: 95 | P91: 16 | Q91: 223 | R91: 216 | S91: 181 | T91: 9 | U91: 14 | V91: 2 | W91: 38 | X91: 34 | Y91: 89 | Z91: 36
A92: 264 | B92: VOSGES | C92: 57 | D92: EPINAL | E92: 588336 | F92: GOLBEY | G92: 3.3 | H92: 83 | I92: 82 | J92: 87 | K92: 91 | L92: 207 | M92: 193 | N92: 88 | O92: 83 | P92: 225 | Q92: 73 | R92: 69 | S92: 151 | T92: 126 | U92: 105 | V92: 187 | W92: 58 | X92: 44 | Y92: 185 | Z92: 32
A93: 264 | B93: BAS-RHIN | C93: 5006 | D93: STRASBOURG | E93: 4043 | F93: STRASBOURG HALLES | G93: 8.9 | H93: 84 | I93: 217 | J93: 183 | K93: 230 | L93: 35 | M93: 50 | N93: 10 | O93: 21 | P93: 234 | Q93: 42 | R93: 32 | S93: 146 | T93: 109 | U93: 118 | V93: 85 | W93: 56 | X93: 28 | Y93: 204 | Z93: 62
A94: 264 | B94: MARNE-ARDENNES | C94: 11 | D94: REIMS | E94: 551365 | F94: DORMANS | G94: 2.8 | H94: 85 | I94: 4 | J94: 2 | K94: 47 | L94: 223 | M94: 250 | N94: 229 | O94: 19 | P94: 141 | Q94: 182 | R94: 205 | S94: 91 | T94: 217 | U94: 199 | V94: 227 | W94: 135 | X94: 126 | Y94: 161 | Z94: 110
A95: 264 | B95: MOSELLE | C95: 45 | D95: METZ | E95: 557712 | F95: WOIPPY | G95: 5.1 | H95: 86 | I95: 167 | J95: 159 | K95: 149 | L95: 82 | M95: 104 | N95: 35 | O95: 94 | P95: 149 | Q95: 227 | R95: 195 | S95: 250 | T95: 29 | U95: 46 | V95: 16 | W95: 110 | X95: 64 | Y95: 186 | Z95: 112
A96: 264 | B96: MOSELLE | C96: 42 | D96: MOSELLE EST | E96: 457617 | F96: SARREGUEMINES | G96: 7.9 | H96: 87 | I96: 118 | J96: 153 | K96: 73 | L96: 65 | M96: 62 | N96: 159 | O96: 123 | P96: 97 | Q96: 56 | R96: 83 | S96: 44 | T96: 130 | U96: 112 | V96: 169 | W96: 161 | X96: 102 | Y96: 182 | Z96: 177
A97: 264 | B97: BAS-RHIN | C97: 5060 | D97: HAGUENAU | E97: 4085 | F97: INGWILLER | G97: 3.5 | H97: 88 | I97: 151 | J97: 145 | K97: 136 | L97: 12 | M97: 6 | N97: 132 | O97: 258 | P97: 211 | Q97: 190 | R97: 184 | S97: 184 | T97: 100 | U97: 124 | V97: 58 | W97: 171 | X97: 229 | Y97: 31 | Z97: 236
A98: 264 | B98: AUBE HAUTE MARNE | C98: 21 | D98: CHAUMONT | E98: 451151 | F98: WASSY | G98: 2.0 | H98: 89 | I98: 143 | J98: 214 | K98: 38 | L98: 117 | M98: 133 | N98: 103 | O98: 105 | P98: 109 | Q98: 264 | R98: 269 | S98: 27 | T98: 33 | U98: 29 | V98: 66 | W98: 34 | X98: 168 | Y98: 7 | Z98: 45
A99: 264 | B99: MARNE-ARDENNES | C99: 11 | D99: REIMS | E99: 551369 | F99: DAMERY | G99: 3.0 | H99: 90 | I99: 60 | J99: 13 | K99: 217 | L99: 247 | M99: 207 | N99: 116 | O99: 70 | P99: 263 | Q99: 136 | R99: 106 | S99: 217 | T99: 58 | U99: 59 | V99: 49 | W99: 128 | X99: 94 | Y99: 195 | Z99: 87
A100: 264 | B100: MOSELLE | C100: 45 | D100: METZ | E100: 557105 | F100: ARS SUR MOSELLE | G100: 4.2 | H100: 91 | I100: 132 | J100: 145 | K100: 99 | L100: 203 | M100: 177 | N100: 162 | O100: 133 | P100: 193 | Q100: 229 | R100: 211 | S100: 209 | T100: 89 | U100: 75 | V100: 165 | W100: 11 | X100: 6 | Y100: 42 | Z100: 59
A101: 264 | B101: BAS-RHIN | C101: 5101 | D101: SELESTAT | E101: 4126 | F101: MUTZIG | G101: 3.0 | H101: 92 | I101: 161 | J101: 188 | K101: 98 | L101: 66 | M101: 89 | N101: 67 | O101: 54 | P101: 129 | Q101: 257 | R101: 264 | S101: 33 | T101: 95 | U101: 110 | V101: 72 | W101: 10 | X101: 31 | Y101: 12 | Z101: 23
A102: 264 | B102: VOSGES | C102: 55 | D102: SAINT DIE | E102: 588386 | F102: LE THILLOT | G102: 3.0 | H102: 93 | I102: 137 | J102: 145 | K102: 108 | L102: 191 | M102: 209 | N102: 246 | O102: 134 | P102: 56 | Q102: 120 | R102: 146 | S102: 54 | T102: 23 | U102: 15 | V102: 137 | W102: 226 | X102: 251 | Y102: 90 | Z102: 235
A103: 264 | B103: HAUT-RHIN | C103: 5130 | D103: COLMAR | E103: 4157 | F103: NEUF BRISACH | G103: 3.8 | H103: 94 | I103: 202 | J103: 221 | K103: 160 | L103: 229 | M103: 204 | N103: 203 | O103: 208 | P103: 189 | Q103: 25 | R103: 34 | S103: 53 | T103: 27 | U103: 18 | V103: 147 | W103: 142 | X103: 188 | Y103: 81 | Z103: 143
A104: 264 | B104: AUBE HAUTE MARNE | C104: 21 | D104: CHAUMONT | E104: 451154 | F104: JOINVILLE | G104: 2.0 | H104: 95 | I104: 3 | J104: 11 | K104: 2 | L104: 217 | M104: 223 | N104: 126 | O104: 238 | P104: 143 | Q104: 244 | R104: 215 | S104: 262 | T104: 183 | U104: 210 | V104: 84 | W104: 177 | X104: 236 | Y104: 86 | Z104: 135
A105: 264 | B105: VOSGES | C105: 57 | D105: EPINAL | E105: 488561 | F105: REMIREMONT | G105: 6.4 | H105: 96 | I105: 71 | J105: 116 | K105: 45 | L105: 173 | M105: 183 | N105: 231 | O105: 166 | P105: 62 | Q105: 105 | R105: 111 | S105: 99 | T105: 110 | U105: 90 | V105: 184 | W105: 134 | X105: 109 | Y105: 196 | Z105: 90
A106: 264 | B106: VOSGES | C106: 57 | D106: EPINAL | E106: 488451 | F106: MIRECOURT | G106: 5.0 | H106: 97 | I106: 210 | J106: 261 | K106: 64 | L106: 145 | M106: 162 | N106: 54 | O106: 76 | P106: 175 | Q106: 32 | R106: 21 | S106: 152 | T106: 50 | U106: 43 | V106: 96 | W106: 131 | X106: 134 | Y106: 163 | Z106: 83
A107: 264 | B107: VOSGES | C107: 55 | D107: SAINT DIE | E107: 588551 | F107: RAMBERVILLERS | G107: 4.0 | H107: 98 | I107: 5 | J107: 15 | K107: 1 | L107: 259 | M107: 235 | N107: 255 | O107: 150 | P107: 226 | Q107: 226 | R107: 192 | S107: 254 | T107: 155 | U107: 136 | V107: 199 | W107: 159 | X107: 67 | Y107: 162 | Z107: 245
A108: 30 | B108: MARNE-ARDENNES | C108: 6 | D108: CHALONS EN CHAMPAGNE | E108: 451101 | F108: CHALONS VIVIERS | G108: 8.6 | H108: 99 | I108: 42 | J108: 58 | K108: 39 | L108: 55 | M108: 47 | N108: 98 | O108: 49 | P108: 190 | Q108: 205 | R108: 256 | S108: 10 | T108: 240 | U108: 254 | V108: 130 | W108: 59 | X108: 52 | Y108: 114 | Z108: 58
A109: 30 | B109: BAS-RHIN | C109: 5006 | D109: STRASBOURG | E109: 4020 | F109: STRASBOURG ROBERTSAU | G109: 5.7 | H109: 100 | I109: 72 | J109: 137 | K109: 23 | L109: 42 | M109: 51 | N109: 128 | O109: 39 | P109: 140 | Q109: 111 | R109: 123 | S109: 96 | T109: 191 | U109: 183 | V109: 213 | W109: 157 | X109: 107 | Y109: 222 | Z109: 93
A110: 30 | B110: VOSGES | C110: 57 | D110: EPINAL | E110: 588501 | F110: NEUFCHATEAU | G110: 5.0 | H110: 101 | I110: 81 | J110: 87 | K110: 89 | L110: 192 | M110: 219 | N110: 134 | O110: 43 | P110: 154 | Q110: 75 | R110: 58 | S110: 195 | T110: 162 | U110: 171 | V110: 143 | W110: 67 | X110: 124 | Y110: 64 | Z110: 45
A111: 30 | B111: MARNE-ARDENNES | C111: 11 | D111: REIMS | E111: 451350 | F111: REIMS CENTRE VILLE | G111: 7.6 | H111: 102 | I111: 178 | J111: 188 | K111: 158 | L111: 126 | M111: 103 | N111: 32 | O111: 28 | P111: 246 | Q111: 91 | R111: 98 | S111: 87 | T111: 123 | U111: 123 | V111: 121 | W111: 35 | X111: 19 | Y111: 95 | Z111: 69
A112: 30 | B112: BAS-RHIN | C112: 5006 | D112: STRASBOURG | E112: 4006 | F112: STRASBOURG NEUDORF | G112: 9.0 | H112: 103 | I112: 174 | J112: 183 | K112: 147 | L112: 24 | M112: 26 | N112: 30 | O112: 62 | P112: 163 | Q112: 164 | R112: 185 | S112: 118 | T112: 65 | U112: 67 | V112: 64 | W112: 203 | X112: 118 | Y112: 249 | Z112: 183
A113: 30 | B113: VOSGES | C113: 55 | D113: SAINT DIE | E113: 488586 | F113: SAINT DIE | G113: 11.6 | H113: 104 | I113: 102 | J113: 183 | K113: 24 | L113: 162 | M113: 107 | N113: 147 | O113: 210 | P113: 196 | Q113: 31 | R113: 33 | S113: 82 | T113: 131 | U113: 96 | V113: 212 | W113: 199 | X113: 150 | Y113: 216 | Z113: 171
A114: 30 | B114: BAS-RHIN | C114: 5101 | D114: SELESTAT | E114: 4119 | F114: OBERNAI | G114: 4.3 | H114: 105 | I114: 246 | J114: 237 | K114: 239 | L114: 18 | M114: 10 | N114: 91 | O114: 199 | P114: 213 | Q114: 93 | R114: 166 | S114: 14 | T114: 24 | U114: 21 | V114: 71 | W114: 224 | X114: 243 | Y114: 108 | Z114: 223
A115: 30 | B115: MARNE-ARDENNES | C115: 2 | D115: CHARLEVILLE MEZIERES | E115: 508802 | F115: CHARLEVILLE NEVERS | G115: 3.0 | H115: 106 | I115: 15 | J115: 5 | K115: 107 | L115: 213 | M115: 221 | N115: 205 | O115: 40 | P115: 183 | Q115: 233 | R115: 253 | S115: 33 | T115: 142 | U115: 140 | V115: 137 | W115: 139 | X115: 139 | Y115: 104 | Z115: 165
A116: 30 | B116: MEURTHE ET MOSELLE MEUSE | C116: 31 | D116: VERDUN | E116: 554700 | F116: VILLERUPT | G116: 2.8 | H116: 107 | I116: 35 | J116: 17 | K116: 97 | L116: 106 | M116: 152 | N116: 94 | O116: 155 | P116: 33 | Q116: 178 | R116: 150 | S116: 202 | T116: 246 | U116: 250 | V116: 205 | W116: 68 | X116: 253 | Y116: 3 | Z116: 208
A117: 30 | B117: BAS-RHIN | C117: 5101 | D117: SELESTAT | E117: 4116 | F117: MOLSHEIM | G117: 5.1 | H117: 108 | I117: 221 | J117: 195 | K117: 224 | L117: 102 | M117: 55 | N117: 166 | O117: 172 | P117: 197 | Q117: 11 | R117: 9 | S117: 64 | T117: 124 | U117: 107 | V117: 172 | W117: 115 | X117: 120 | Y117: 121 | Z117: 109
A118: 30 | B118: MEURTHE ET MOSELLE MEUSE | C118: 31 | D118: VERDUN | E118: 554413 | F118: LONGWY BAS | G118: 4.1 | H118: 109 | I118: 17 | J118: 20 | K118: 15 | L118: 199 | M118: 212 | N118: 220 | O118: 214 | P118: 57 | Q118: 127 | R118: 134 | S118: 103 | T118: 243 | U118: 236 | V118: 246 | W118: 109 | X118: 36 | Y118: 149 | Z118: 248
A119: 30 | B119: MOSELLE | C119: 42 | D119: MOSELLE EST | E119: 457258 | F119: DIEUZE | G119: 3.1 | H119: 110 | I119: 51 | J119: 31 | K119: 123 | L119: 67 | M119: 88 | N119: 182 | O119: 143 | P119: 11 | Q119: 195 | R119: 177 | S119: 213 | T119: 127 | U119: 113 | V119: 154 | W119: 236 | X119: 226 | Y119: 142 | Z119: 250
A120: 30 | B120: MARNE-ARDENNES | C120: 11 | D120: REIMS | E120: 451336 | F120: TINQUEUX | G120: 5.9 | H120: 111 | I120: 114 | J120: 137 | K120: 86 | L120: 108 | M120: 101 | N120: 78 | O120: 33 | P120: 215 | Q120: 98 | R120: 91 | S120: 129 | T120: 204 | U120: 216 | V120: 159 | W120: 44 | X120: 22 | Y120: 155 | Z120: 70
A121: 30 | B121: VOSGES | C121: 57 | D121: EPINAL | E121: 488291 | F121: EPINAL AVRINSART | G121: 1.8 | H121: 112 | I121: 63 | J121: 53 | K121: 95 | L121: 262 | M121: 229 | N121: 119 | O121: 91 | P121: 267 | Q121: 207 | R121: 172 | S121: 244 | T121: 70 | U121: 53 | V121: 168 | W121: 55 | X121: 46 | Y121: 79 | Z121: 72
A122: 30 | B122: MARNE-ARDENNES | C122: 2 | D122: CHARLEVILLE MEZIERES | E122: 508815 | F122: CARIGNAN | G122: 3.0 | H122: 113 | I122: 154 | J122: 106 | K122: 190 | L122: 74 | M122: 155 | N122: 25 | O122: 70 | P122: 32 | Q122: 19 | R122: 28 | S122: 25 | T122: 224 | U122: 225 | V122: 191 | W122: 120 | X122: 79 | Y122: 172 | Z122: 135
A123: 30 | B123: MEURTHE ET MOSELLE MEUSE | C123: 31 | D123: VERDUN | E123: 455566 | F123: REVIGNY SUR ORNAIN | G123: 3.9 | H123: 114 | I123: 25 | J123: 31 | K123: 26 | L123: 77 | M123: 97 | N123: 174 | O123: 163 | P123: 8 | Q123: 256 | R123: 244 | S123: 252 | T123: 146 | U123: 130 | V123: 186 | W123: 210 | X123: 218 | Y123: 144 | Z123: 198
A124: 30 | B124: BAS-RHIN | C124: 5060 | D124: HAGUENAU | E124: 4087 | F124: SAVERNE | G124: 8.4 | H124: 115 | I124: 251 | J124: 237 | K124: 251 | L124: 54 | M124: 12 | N124: 82 | O124: 68 | P124: 272 | Q124: 53 | R124: 47 | S124: 138 | T124: 44 | U124: 49 | V124: 52 | W124: 82 | X124: 90 | Y124: 72 | Z124: 106
A125: 30 | B125: MOSELLE | C125: 42 | D125: MOSELLE EST | E125: 557305 | F125: FAULQUEMONT | G125: 2.1 | H125: 116 | I125: 168 | J125: 116 | K125: 206 | L125: 188 | M125: 196 | N125: 64 | O125: 196 | P125: 171 | Q125: 150 | R125: 217 | S125: 23 | T125: 19 | U125: 25 | V125: 18 | W125: 233 | X125: 249 | Y125: 136 | Z125: 233
A126: 30 | B126: AUBE HAUTE MARNE | C126: 21 | D126: CHAUMONT | E126: 410541 | F126: LANGRES | G126: 6.7 | H126: 117 | I126: 33 | J126: 20 | K126: 68 | L126: 197 | M126: 202 | N126: 208 | O126: 171 | P126: 101 | Q126: 245 | R126: 245 | S126: 142 | T126: 118 | U126: 122 | V126: 111 | W126: 123 | X126: 183 | Y126: 48 | Z126: 158
A127: 30 | B127: VOSGES | C127: 57 | D127: EPINAL | E127: 488281 | F127: ELOYES | G127: 4.8 | H127: 118 | I127: 109 | J127: 106 | K127: 132 | L127: 206 | M127: 208 | N127: 167 | O127: 164 | P127: 138 | Q127: 180 | R127: 142 | S127: 226 | T127: 63 | U127: 51 | V127: 131 | W127: 102 | X127: 83 | Y127: 120 | Z127: 142
A128: 30 | B128: AUBE HAUTE MARNE | C128: 21 | D128: CHAUMONT | E128: 451156 | F128: SAINT DIZIER CENTRE | G128: 7.0 | H128: 119 | I128: 150 | J128: 159 | K128: 112 | L128: 163 | M128: 140 | N128: 109 | O128: 194 | P128: 176 | Q128: 60 | R128: 50 | S128: 178 | T128: 94 | U128: 92 | V128: 125 | W128: 154 | X128: 186 | Y128: 117 | Z128: 115
A129: 30 | B129: HAUT-RHIN | C129: 5169 | D129: MULHOUSE | E129: 4181 | F129: WITTELSHEIM | G129: 3.5 | H129: 120 | I129: 106 | J129: 79 | K129: 150 | L129: 242 | M129: 217 | N129: 108 | O129: 129 | P129: 241 | Q129: 90 | R129: 82 | S129: 156 | T129: 160 | U129: 181 | V129: 99 | W129: 30 | X129: 82 | Y129: 15 | Z129: 57
A130: 30 | B130: MOSELLE | C130: 42 | D130: MOSELLE EST | E130: 457165 | F130: BITCHE | G130: 2.1 | H130: 121 | I130: 120 | J130: 130 | K130: 99 | L130: 51 | M130: 43 | N130: 224 | O130: 241 | P130: 52 | Q130: 269 | R130: 270 | S130: 76 | T130: 35 | U130: 48 | V130: 22 | W130: 126 | X130: 213 | Y130: 94 | Z130: 56
A131: 30 | B131: MOSELLE | C131: 44 | D131: MOSELLE NORD | E131: 557352 | F131: HETTANGE GRANDE | G131: 4.3 | H131: 122 | I131: 244 | J131: 253 | K131: 219 | L131: 28 | M131: 20 | N131: 77 | O131: 200 | P131: 157 | Q131: 122 | R131: 94 | S131: 203 | T131: 69 | U131: 62 | V131: 92 | W131: 77 | X131: 61 | Y131: 39 | Z131: 200
A132: 30 | B132: MOSELLE | C132: 44 | D132: MOSELLE NORD | E132: 457192 | F132: CATTENOM | G132: 2.9 | H132: 123 | I132: 171 | J132: 95 | K132: 233 | L132: 99 | M132: 98 | N132: 213 | O132: 253 | P132: 12 | Q132: 23 | R132: 19 | S132: 108 | T132: 156 | U132: 117 | V132: 251 | W132: 160 | X132: 62 | Y132: 220 | Z132: 197
A133: 30 | B133: AUBE HAUTE MARNE | C133: 14 | D133: TROYES | E133: 410571 | F133: ROMILLY SUR SEINE | G133: 6.1 | H133: 124 | I133: 113 | J133: 137 | K133: 82 | L133: 56 | M133: 66 | N133: 80 | O133: 96 | P133: 119 | Q133: 219 | R133: 230 | S133: 98 | T133: 165 | U133: 172 | V133: 153 | W133: 61 | X133: 87 | Y133: 91 | Z133: 39
A134: 30 | B134: MARNE-ARDENNES | C134: 6 | D134: CHALONS EN CHAMPAGNE | E134: 451120 | F134: SARRY | G134: 2.5 | H134: 125 | I134: 36 | J134: 53 | K134: 29 | L134: 134 | M134: 194 | N134: 190 | O134: 31 | P134: 19 | Q134: 106 | R134: 144 | S134: 36 | T134: 227 | U134: 212 | V134: 229 | W134: 194 | X134: 196 | Y134: 183 | Z134: 141
A135: 30 | B135: MARNE-ARDENNES | C135: 11 | D135: REIMS | E135: 451370 | F135: EPERNAY | G135: 11.7 | H135: 126 | I135: 47 | J135: 70 | K135: 43 | L135: 104 | M135: 71 | N135: 118 | O135: 84 | P135: 205 | Q135: 221 | R135: 210 | S135: 191 | T135: 171 | U135: 150 | V135: 224 | W135: 155 | X135: 149 | Y135: 164 | Z135: 108
A136: 30 | B136: MOSELLE | C136: 42 | D136: MOSELLE EST | E136: 557523 | F136: PHALSBOURG | G136: 2.3 | H136: 127 | I136: 55 | J136: 40 | K136: 99 | L136: 250 | M136: 238 | N136: 115 | O136: 161 | P136: 236 | Q136: 37 | R136: 23 | S136: 126 | T136: 211 | U136: 195 | V136: 222 | W136: 124 | X136: 234 | Y136: 33 | Z136: 107
A137: 30 | B137: BAS-RHIN | C137: 5060 | D137: HAGUENAU | E137: 4057 | F137: BISCHWILLER | G137: 6.8 | H137: 128 | I137: 187 | J137: 195 | K137: 164 | L137: 128 | M137: 93 | N137: 194 | O137: 246 | P137: 111 | Q137: 193 | R137: 198 | S137: 160 | T137: 34 | U137: 33 | V137: 43 | W137: 188 | X137: 214 | Y137: 61 | Z137: 243
A138: 30 | B138: MOSELLE | C138: 45 | D138: METZ | E138: 557434 | F138: MARLY | G138: 4.0 | H138: 129 | I138: 34 | J138: 20 | K138: 69 | L138: 142 | M138: 150 | N138: 201 | O138: 211 | P138: 31 | Q138: 85 | R138: 66 | S138: 197 | T138: 231 | U138: 222 | V138: 238 | W138: 249 | X138: 201 | Y138: 232 | Z138: 253
A139: 30 | B139: MARNE-ARDENNES | C139: 2 | D139: CHARLEVILLE MEZIERES | E139: 508817 | F139: CHARLEVILLE MOHON | G139: 3.1 | H139: 130 | I139: 54 | J139: 31 | K139: 130 | L139: 185 | M139: 237 | N139: 150 | O139: 263 | P139: 1 | Q139: 209 | R139: 190 | S139: 219 | T139: 140 | U139: 146 | V139: 116 | W139: 136 | X139: 99 | Y139: 187 | Z139: 117
A140: 30 | B140: MOSELLE | C140: 44 | D140: MOSELLE NORD | E140: 557660 | F140: UCKANGE | G140: 2.1 | H140: 131 | I140: 225 | J140: 137 | K140: 252 | L140: 208 | M140: 129 | N140: 151 | O140: 241 | P140: 235 | Q140: 149 | R140: 125 | S140: 196 | T140: 21 | U140: 30 | V140: 15 | W140: 112 | X140: 110 | Y140: 60 | Z140: 209
A141: 30 | B141: BAS-RHIN | C141: 5101 | D141: SELESTAT | E141: 4101 | F141: SELESTAT CENTRE | G141: 8.5 | H141: 132 | I141: 235 | J141: 227 | K141: 235 | L141: 26 | M141: 23 | N141: 87 | O141: 81 | P141: 174 | Q141: 81 | R141: 73 | S141: 132 | T141: 101 | U141: 125 | V141: 56 | W141: 140 | X141: 155 | Y141: 78 | Z141: 189
A142: 30 | B142: MEURTHE ET MOSELLE MEUSE | C142: 27 | D142: PONT A MOUSSON | E142: 554184 | F142: BRIEY | G142: 4.8 | H142: 133 | I142: 142 | J142: 145 | K142: 113 | L142: 200 | M142: 251 | N142: 163 | O142: 85 | P142: 26 | Q142: 26 | R142: 15 | S142: 161 | T142: 219 | U142: 211 | V142: 208 | W142: 71 | X142: 72 | Y142: 47 | Z142: 154
A143: 30 | B143: AUBE HAUTE MARNE | C143: 14 | D143: TROYES | E143: 510523 | F143: LA CHAPELLE ST LUC | G143: 5.7 | H143: 134 | I143: 218 | J143: 212 | K143: 207 | L143: 79 | M143: 75 | N143: 130 | O143: 168 | P143: 89 | Q143: 123 | R143: 162 | S143: 51 | T143: 45 | U143: 60 | V143: 20 | W143: 217 | X143: 182 | Y143: 198 | Z143: 193
A144: 30 | B144: MOSELLE | C144: 44 | D144: MOSELLE NORD | E144: 457306 | F144: FLORANGE | G144: 3.9 | H144: 135 | I144: 248 | J144: 266 | K144: 212 | L144: 49 | M144: 80 | N144: 73 | O144: 121 | P144: 58 | Q144: 24 | R144: 30 | S144: 62 | T144: 78 | U144: 68 | V144: 106 | W144: 144 | X144: 96 | Y144: 135 | Z144: 213
A145: 30 | B145: MOSELLE | C145: 42 | D145: MOSELLE EST | E145: 457614 | F145: SARREBOURG | G145: 9.3 | H145: 136 | I145: 123 | J145: 95 | K145: 166 | L145: 93 | M145: 86 | N145: 161 | O145: 187 | P145: 77 | Q145: 152 | R145: 153 | S145: 134 | T145: 139 | U145: 99 | V145: 249 | W145: 173 | X145: 195 | Y145: 82 | Z145: 192
A146: 30 | B146: MEURTHE ET MOSELLE MEUSE | C146: 31 | D146: VERDUN | E146: 455151 | F146: BAR LE DUC | G146: 9.7 | H146: 137 | I146: 115 | J146: 106 | K146: 135 | L146: 160 | M146: 170 | N146: 204 | O146: 86 | P146: 76 | Q146: 213 | R146: 174 | S146: 253 | T146: 122 | U146: 108 | V146: 152 | W146: 101 | X146: 160 | Y146: 54 | Z146: 91
A147: 30 | B147: MOSELLE | C147: 45 | D147: METZ | E147: 557559 | F147: REMILLY | G147: 4.0 | H147: 138 | I147: 199 | J147: 214 | K147: 154 | L147: 69 | M147: 106 | N147: 121 | O147: 167 | P147: 7 | Q147: 132 | R147: 107 | S147: 200 | T147: 105 | U147: 95 | V147: 129 | W147: 137 | X147: 161 | Y147: 125 | Z147: 103
A148: 30 | B148: BAS-RHIN | C148: 5006 | D148: STRASBOURG | E148: 4010 | F148: STRASBOURG MEINAU | G148: 4.0 | H148: 139 | I148: 224 | J148: 214 | K148: 218 | L148: 36 | M148: 42 | N148: 27 | O148: 54 | P148: 204 | Q148: 246 | R148: 261 | S148: 21 | T148: 28 | U148: 41 | V148: 17 | W148: 193 | X148: 242 | Y148: 97 | Z148: 155
A149: 110 | B149: MEURTHE ET MOSELLE MEUSE | C149: 27 | D149: PONT A MOUSSON | E149: 554376 | F149: LAXOU BOUFFLERS | G149: 2.9 | H149: 140 | I149: 158 | J149: 195 | K149: 84 | L149: 240 | M149: 156 | N149: 84 | O149: 99 | P149: 268 | Q149: 141 | R149: 169 | S149: 72 | T149: 77 | U149: 85 | V149: 57 | W149: 88 | X149: 76 | Y149: 118 | Z149: 102
A150: 110 | B150: MEURTHE ET MOSELLE MEUSE | C150: 26 | D150: NANCY | E150: 554486 | F150: NANCY POINT CENTRAL | G150: 5.0 | H150: 141 | I150: 99 | J150: 87 | K150: 127 | L150: 193 | M150: 236 | N150: 114 | O150: 54 | P150: 108 | Q150: 128 | R150: 122 | S150: 152 | T150: 193 | U150: 201 | V150: 160 | W150: 70 | X150: 75 | Y150: 156 | Z150: 35
A151: 110 | B151: MARNE-ARDENNES | C151: 6 | D151: CHALONS EN CHAMPAGNE | E151: 451166 | F151: VITRY LE FRANCOIS | G151: 7.3 | H151: 142 | I151: 49 | J151: 79 | K151: 31 | L151: 161 | M151: 163 | N151: 125 | O151: 47 | P151: 172 | Q151: 200 | R151: 228 | S151: 59 | T151: 222 | U151: 207 | V151: 226 | W151: 105 | X151: 54 | Y151: 228 | Z151: 77
A152: 110 | B152: AUBE HAUTE MARNE | C152: 14 | D152: TROYES | E152: 410550 | F152: BAR SUR AUBE | G152: 6.1 | H152: 143 | I152: 135 | J152: 137 | K152: 116 | L152: 89 | M152: 83 | N152: 122 | O152: 226 | P152: 84 | Q152: 175 | R152: 137 | S152: 230 | T152: 147 | U152: 170 | V152: 88 | W152: 148 | X152: 231 | Y152: 50 | Z152: 153
A153: 110 | B153: MEURTHE ET MOSELLE MEUSE | C153: 26 | D153: NANCY | E153: 554296 | F153: ESSEY LES NANCY | G153: 4.0 | H153: 144 | I153: 128 | J153: 101 | K153: 163 | L153: 147 | M153: 132 | N153: 185 | O153: 105 | P153: 128 | Q153: 191 | R153: 180 | S153: 189 | T153: 168 | U153: 162 | V153: 193 | W153: 60 | X153: 77 | Y153: 74 | Z153: 60
A154: 110 | B154: HAUT-RHIN | C154: 5169 | D154: MULHOUSE | E154: 4195 | F154: CERNAY | G154: 2.5 | H154: 145 | I154: 126 | J154: 130 | K154: 120 | L154: 151 | M154: 214 | N154: 81 | O154: 142 | P154: 20 | Q154: 30 | R154: 16 | S154: 152 | T154: 198 | U154: 231 | V154: 81 | W154: 215 | X154: 169 | Y154: 189 | Z154: 211
A155: 110 | B155: AUBE HAUTE MARNE | C155: 14 | D155: TROYES | E155: 510570 | F155: NOGENT SUR SEINE | G155: 4.8 | H155: 146 | I155: 9 | J155: 6 | K155: 35 | L155: 258 | M155: 262 | N155: 257 | O155: 164 | P155: 168 | Q155: 151 | R155: 118 | S155: 226 | T155: 249 | U155: 223 | V155: 273 | W155: 151 | X155: 140 | Y155: 130 | Z155: 173
A156: 110 | B156: MEURTHE ET MOSELLE MEUSE | C156: 27 | D156: PONT A MOUSSON | E156: 454355 | F156: JARNY | G156: 4.2 | H156: 147 | I156: 91 | J156: 95 | K156: 103 | L156: 138 | M156: 96 | N156: 189 | O156: 52 | P156: 194 | Q156: 248 | R156: 255 | S156: 93 | T156: 93 | U156: 143 | V156: 28 | W156: 172 | X156: 81 | Y156: 170 | Z156: 241
A157: 110 | B157: AUBE HAUTE MARNE | C157: 14 | D157: TROYES | E157: 510522 | F157: TROYES CHARTREUX | G157: 3.0 | H157: 148 | I157: 130 | J157: 212 | K157: 32 | L157: 91 | M157: 102 | N157: 54 | O157: 134 | P157: 136 | Q157: 162 | R157: 179 | S157: 124 | T157: 102 | U157: 91 | V157: 137 | W157: 239 | X157: 254 | Y157: 230 | Z157: 135
A158: 110 | B158: VOSGES | C158: 57 | D158: EPINAL | E158: 488286 | F158: EPINAL ARISTIDE BRIAND | G158: 9.4 | H158: 149 | I158: 172 | J158: 221 | K158: 88 | L158: 136 | M158: 87 | N158: 40 | O158: 51 | P158: 257 | Q158: 161 | R158: 135 | S158: 214 | T158: 68 | U158: 61 | V158: 82 | W158: 200 | X158: 148 | Y158: 246 | Z158: 123
A159: 110 | B159: BAS-RHIN | C159: 5060 | D159: HAGUENAU | E159: 4041 | F159: HOERDT | G159: 2.7 | H159: 150 | I159: 122 | J159: 195 | K159: 37 | L159: 141 | M159: 73 | N159: 266 | O159: 153 | P159: 167 | Q159: 63 | R159: 27 | S159: 255 | T159: 96 | U159: 64 | V159: 236 | W159: 267 | X159: 266 | Y159: 260 | Z159: 260
A160: 110 | B160: BAS-RHIN | C160: 5101 | D160: SELESTAT | E160: 4129 | F160: MARLENHEIM | G160: 1.9 | H160: 151 | I160: 159 | J160: 168 | K160: 131 | L160: 32 | M160: 37 | N160: 192 | O160: 235 | P160: 22 | Q160: 186 | R160: 213 | S160: 81 | T160: 184 | U160: 182 | V160: 204 | W160: 114 | X160: 199 | Y160: 46 | Z160: 116
A161: 110 | B161: AUBE HAUTE MARNE | C161: 14 | D161: TROYES | E161: 510520 | F161: SAINT ANDRE LES VERGERS | G161: 4.4 | H161: 152 | I161: 185 | J161: 221 | K161: 129 | L161: 37 | M161: 60 | N161: 48 | O161: 61 | P161: 120 | Q161: 147 | R161: 170 | S161: 84 | T161: 167 | U161: 190 | V161: 93 | W161: 108 | X161: 204 | Y161: 27 | Z161: 150
A162: 110 | B162: MOSELLE | C162: 45 | D162: METZ | E162: 557612 | F162: SAINTE MARIE AUX CHENES | G162: 3.6 | H162: 153 | I162: 44 | J162: 51 | K162: 61 | L162: 244 | M162: 247 | N162: 184 | O162: 205 | P162: 146 | Q162: 208 | R162: 207 | S162: 147 | T162: 129 | U162: 115 | V162: 156 | W162: 184 | X162: 151 | Y162: 206 | Z162: 148
A163: 110 | B163: MEURTHE ET MOSELLE MEUSE | C163: 26 | D163: NANCY | E163: 554491 | F163: NANCY SAINT SEBASTIEN | G163: 3.9 | H163: 154 | I163: 75 | J163: 17 | K163: 225 | L163: 187 | M163: 206 | N163: 202 | O163: 162 | P163: 63 | Q163: 102 | R163: 88 | S163: 169 | T163: 185 | U163: 191 | V163: 176 | W163: 195 | X163: 117 | Y163: 244 | Z163: 172
A164: 110 | B164: HAUT-RHIN | C164: 5130 | D164: COLMAR | E164: 4135 | F164: COLMAR SAINTE MARIE | G164: 7.3 | H164: 155 | I164: 146 | J164: 130 | K164: 146 | L164: 150 | M164: 142 | N164: 195 | O164: 152 | P164: 91 | Q164: 116 | R164: 108 | S164: 135 | T164: 120 | U164: 114 | V164: 134 | W164: 209 | X164: 152 | Y164: 252 | Z164: 126
A165: 110 | B165: MEURTHE ET MOSELLE MEUSE | C165: 26 | D165: NANCY | E165: 454161 | F165: BAYON | G165: 0.9 | H165: 156 | I165: 260 | J165: 175 | K165: 272 | L165: 7 | M165: 3 | N165: 18 | O165: 11 | P165: 258 | Q165: 273 | R165: 273 | S165: 2 | T165: 7 | U165: 10 | V165: 3 | W165: 18 | X165: 181 | Y165: 9 | Z165: 4
A166: 110 | B166: MEURTHE ET MOSELLE MEUSE | C166: 31 | D166: VERDUN | E166: 455678 | F166: VERDUN CENTRALE | G166: 11.1 | H166: 157 | I166: 43 | J166: 58 | K166: 42 | L166: 221 | M166: 200 | N166: 105 | O166: 38 | P166: 245 | Q166: 235 | R166: 238 | S166: 174 | T166: 203 | U166: 219 | V166: 148 | W166: 69 | X166: 51 | Y166: 110 | Z166: 81
A167: 110 | B167: MEURTHE ET MOSELLE MEUSE | C167: 27 | D167: PONT A MOUSSON | E167: 454466 | F167: NANCY PLATEAU DE HAYE | G167: 2.0 | H167: 158 | I167: 175 | J167: 214 | K167: 118 | L167: 246 | M167: 268 | N167: 154 | O167: 150 | P167: 42 | Q167: 236 | R167: 232 | S167: 189 | T167: 74 | U167: 156 | V167: 9 | W167: 23 | X167: 105 | Y167: 10 | Z167: 23
A168: 110 | B168: MEURTHE ET MOSELLE MEUSE | C168: 27 | D168: PONT A MOUSSON | E168: 554496 | F168: NANCY TROIS MAISONS | G168: 2.3 | H168: 159 | I168: 212 | J168: 127 | K168: 247 | L168: 109 | M168: 110 | N168: 172 | O168: 128 | P168: 72 | Q168: 163 | R168: 199 | S168: 86 | T168: 112 | U168: 145 | V168: 42 | W168: 63 | X168: 212 | Y168: 4 | Z168: 222
A169: 110 | B169: MOSELLE | C169: 45 | D169: METZ | E169: 557440 | F169: METZ MOZART | G169: 3.1 | H169: 160 | I169: 104 | J169: 51 | K169: 195 | L169: 179 | M169: 174 | N169: 182 | O169: 116 | P169: 139 | Q169: 72 | R169: 48 | S169: 220 | T169: 149 | U169: 142 | V169: 154 | W169: 247 | X169: 189 | Y169: 238 | Z169: 250
A170: 110 | B170: MOSELLE | C170: 44 | D170: MOSELLE NORD | E170: 457158 | F170: YUTZ | G170: 4.8 | H170: 161 | I170: 241 | J170: 251 | K170: 220 | L170: 140 | M170: 99 | N170: 254 | O170: 206 | P170: 87 | Q170: 171 | R170: 145 | S170: 194 | T170: 42 | U170: 36 | V170: 78 | W170: 85 | X170: 97 | Y170: 59 | Z170: 119
A171: 110 | B171: MEURTHE ET MOSELLE MEUSE | C171: 26 | D171: NANCY | E171: 554116 | F171: BACCARAT | G171: 2.6 | H171: 162 | I171: 26 | J171: 40 | K171: 13 | L171: 256 | M171: 265 | N171: 271 | O171: 176 | P171: 81 | Q171: 179 | R171: 196 | S171: 117 | T171: 208 | U171: 192 | V171: 245 | W171: 165 | X171: 164 | Y171: 159 | Z171: 114
A172: 110 | B172: MARNE-ARDENNES | C172: 2 | D172: CHARLEVILLE MEZIERES | E172: 508839 | F172: GIVET | G172: 3.5 | H172: 163 | I172: 45 | J172: 28 | K172: 111 | L172: 120 | M172: 160 | N172: 100 | O172: 177 | P172: 41 | Q172: 217 | R172: 237 | S172: 78 | T172: 229 | U172: 224 | V172: 215 | W172: 186 | X172: 95 | Y172: 242 | Z172: 194
A173: 110 | B173: MOSELLE | C173: 45 | D173: METZ | E173: 457574 | F173: ROMBAS | G173: 4.2 | H173: 164 | I173: 111 | J173: 116 | K173: 122 | L173: 72 | M173: 81 | N173: 225 | O173: 215 | P173: 2 | Q173: 168 | R173: 141 | S173: 209 | T173: 150 | U173: 127 | V173: 210 | W173: 246 | X173: 233 | Y173: 205 | Z173: 234
A174: 110 | B174: MOSELLE | C174: 44 | D174: MOSELLE NORD | E174: 557622 | F174: SIERCK LES BAINS | G174: 2.1 | H174: 165 | I174: 89 | J174: 101 | K174: 90 | L174: 166 | M174: 198 | N174: 151 | O174: 63 | P174: 96 | Q174: 185 | R174: 148 | S174: 232 | T174: 202 | U174: 221 | V174: 144 | W174: 90 | X174: 80 | Y174: 253 | Z174: 19
A175: 110 | B175: MOSELLE | C175: 42 | D175: MOSELLE EST | E175: 557668 | F175: VALMONT | G175: 4.6 | H175: 166 | I175: 29 | J175: 20 | K175: 58 | L175: 241 | M175: 245 | N175: 237 | O175: 262 | P175: 74 | Q175: 146 | R175: 114 | S175: 212 | T175: 192 | U175: 180 | V175: 216 | W175: 248 | X175: 190 | Y175: 243 | Z175: 249
A176: 110 | B176: MEURTHE ET MOSELLE MEUSE | C176: 27 | D176: PONT A MOUSSON | E176: 554533 | F176: PONT A MOUSSON BREUIL | G176: 2.9 | H176: 167 | I176: 156 | J176: 123 | K176: 182 | L176: 211 | M176: 176 | N176: 58 | O176: 50 | P176: 260 | Q176: 139 | R176: 101 | S176: 233 | T176: 133 | U176: 135 | V176: 114 | W176: 99 | X176: 39 | Y176: 239 | Z176: 96
A177: 110 | B177: VOSGES | C177: 55 | D177: SAINT DIE | E177: 488556 | F177: RAON L ETAPE | G177: 2.7 | H177: 168 | I177: 76 | J177: 27 | K177: 201 | L177: 121 | M177: 95 | N177: 133 | O177: 92 | P177: 179 | Q177: 224 | R177: 201 | S177: 237 | T177: 233 | U177: 228 | V177: 223 | W177: 94 | X177: 100 | Y177: 73 | Z177: 131
A178: 110 | B178: BAS-RHIN | C178: 5006 | D178: STRASBOURG | E178: 4023 | F178: STRASBOURG VOSGES | G178: 3.1 | H178: 169 | I178: 266 | J178: 258 | K178: 263 | L178: 22 | M178: 24 | N178: 31 | O178: 77 | P178: 203 | Q178: 45 | R178: 90 | S178: 19 | T178: 97 | U178: 93 | V178: 123 | W178: 96 | X178: 123 | Y178: 141 | Z178: 54
A179: 110 | B179: BAS-RHIN | C179: 5006 | D179: STRASBOURG | E179: 4045 | F179: STRASBOURG FRANCS BOURGEOIS | G179: 5.7 | H179: 170 | I179: 232 | J179: 232 | K179: 226 | L179: 57 | M179: 56 | N179: 200 | O179: 122 | P179: 69 | Q179: 9 | R179: 1 | S179: 246 | T179: 215 | U179: 186 | V179: 259 | W179: 205 | X179: 191 | Y179: 176 | Z179: 181
A180: 110 | B180: MEURTHE ET MOSELLE MEUSE | C180: 27 | D180: PONT A MOUSSON | E180: 554516 | F180: PAGNY SUR MOSELLE | G180: 3.0 | H180: 171 | I180: 62 | J180: 58 | K180: 83 | L180: 251 | M180: 254 | N180: 205 | O180: 256 | P180: 162 | Q180: 58 | R180: 31 | S180: 238 | T180: 226 | U180: 247 | V180: 104 | W180: 192 | X180: 200 | Y180: 180 | Z180: 135
A181: 110 | B181: MARNE-ARDENNES | C181: 2 | D181: CHARLEVILLE MEZIERES | E181: 408806 | F181: SEDAN | G181: 8.6 | H181: 172 | I181: 41 | J181: 62 | K181: 28 | L181: 204 | M181: 149 | N181: 198 | O181: 140 | P181: 220 | Q181: 165 | R181: 131 | S181: 231 | T181: 250 | U181: 242 | V181: 265 | W181: 145 | X181: 116 | Y181: 173 | Z181: 128
A182: 110 | B182: MARNE-ARDENNES | C182: 6 | D182: CHALONS EN CHAMPAGNE | E182: 451381 | F182: SEZANNE | G182: 6.7 | H182: 173 | I182: 129 | J182: 130 | K182: 121 | L182: 92 | M182: 118 | N182: 107 | O182: 35 | P182: 104 | Q182: 228 | R182: 222 | S182: 167 | T182: 177 | U182: 159 | V182: 221 | W182: 143 | X182: 143 | Y182: 160 | Z182: 97
A183: 110 | B183: MARNE-ARDENNES | C183: 11 | D183: REIMS | E183: 451308 | F183: REIMS SAINT THOMAS | G183: 8.4 | H183: 174 | I183: 203 | J183: 195 | K183: 194 | L183: 183 | M183: 175 | N183: 83 | O183: 75 | P183: 212 | Q183: 114 | R183: 93 | S183: 183 | T183: 206 | U183: 217 | V183: 163 | W183: 25 | X183: 24 | Y183: 45 | Z183: 67
A184: 110 | B184: MOSELLE | C184: 44 | D184: MOSELLE NORD | E184: 557303 | F184: FAMECK | G184: 3.8 | H184: 175 | I184: 73 | J184: 20 | K184: 204 | L184: 266 | M184: 234 | N184: 96 | O184: 237 | P184: 270 | Q184: 38 | R184: 22 | S184: 158 | T184: 242 | U184: 249 | V184: 182 | W184: 104 | X184: 88 | Y184: 146 | Z184: 104
A185: 110 | B185: BAS-RHIN | C185: 5101 | D185: SELESTAT | E185: 4127 | F185: ROSHEIM | G185: 1.5 | H185: 176 | I185: 238 | J185: 168 | K185: 254 | L185: 21 | M185: 13 | N185: 66 | O185: 222 | P185: 192 | Q185: 130 | R185: 187 | S185: 32 | T185: 85 | U185: 84 | V185: 103 | W185: 257 | X185: 266 | Y185: 256 | Z185: 134
A186: 110 | B186: HAUT-RHIN | C186: 5130 | D186: COLMAR | E186: 4139 | F186: INGERSHEIM | G186: 8.2 | H186: 177 | I186: 58 | J186: 47 | K186: 102 | L186: 195 | M186: 199 | N186: 233 | O186: 204 | P186: 80 | Q186: 142 | R186: 112 | S186: 204 | T186: 172 | U186: 157 | V186: 214 | W186: 262 | X186: 258 | Y186: 229 | Z186: 254
A187: 110 | B187: BAS-RHIN | C187: 5006 | D187: STRASBOURG | E187: 4039 | F187: REICHSTETT | G187: 1.8 | H187: 178 | I187: 253 | J187: 247 | K187: 249 | L187: 53 | M187: 52 | N187: 90 | O187: 180 | P187: 131 | Q187: 57 | R187: 72 | S187: 68 | T187: 60 | U187: 65 | V187: 44 | W187: 240 | X187: 217 | Y187: 248 | Z187: 179
A188: 110 | B188: BAS-RHIN | C188: 5060 | D188: HAGUENAU | E188: 4095 | F188: SARRE UNION | G188: 5.0 | H188: 179 | I188: 164 | J188: 87 | K188: 223 | L188: 112 | M188: 85 | N188: 242 | O188: 120 | P188: 116 | Q188: 80 | R188: 71 | S188: 148 | T188: 228 | U188: 230 | V188: 197 | W188: 174 | X188: 157 | Y188: 105 | Z188: 206
A189: 110 | B189: BAS-RHIN | C189: 5060 | D189: HAGUENAU | E189: 4030 | F189: BRUMATH | G189: 6.0 | H189: 180 | I189: 206 | J189: 227 | K189: 152 | L189: 133 | M189: 38 | N189: 173 | O189: 80 | P189: 266 | Q189: 74 | R189: 104 | S189: 41 | T189: 169 | U189: 152 | V189: 217 | W189: 146 | X189: 145 | Y189: 124 | Z189: 151
A190: 110 | B190: MOSELLE | C190: 44 | D190: MOSELLE NORD | E190: 557628 | F190: TERVILLE | G190: 1.9 | H190: 181 | I190: 233 | J190: 195 | K190: 244 | L190: 212 | M190: 195 | N190: 89 | O190: 147 | P190: 224 | Q190: 199 | R190: 214 | S190: 106 | T190: 107 | U190: 103 | V190: 110 | W190: 14 | X190: 16 | Y190: 19 | Z190: 86
A191: 110 | B191: MEURTHE ET MOSELLE MEUSE | C191: 31 | D191: VERDUN | E191: 555406 | F191: LIGNY EN BARROIS | G191: 3.0 | H191: 182 | I191: 134 | J191: 145 | K191: 105 | L191: 139 | M191: 180 | N191: 104 | O191: 158 | P191: 35 | Q191: 204 | R191: 202 | S191: 166 | T191: 195 | U191: 179 | V191: 231 | W191: 122 | X191: 180 | Y191: 57 | Z191: 129
A192: 110 | B192: MOSELLE | C192: 45 | D192: METZ | E192: 557178 | F192: BOULAY | G192: 2.3 | H192: 183 | I192: 196 | J192: 195 | K192: 175 | L192: 159 | M192: 215 | N192: 76 | O192: 93 | P192: 59 | Q192: 232 | R192: 226 | S192: 171 | T192: 117 | U192: 121 | V192: 118 | W192: 73 | X192: 86 | Y192: 30 | Z192: 176
A193: 110 | B193: MOSELLE | C193: 42 | D193: MOSELLE EST | E193: 457583 | F193: SAINT AVOLD | G193: 8.0 | H193: 184 | I193: 194 | J193: 195 | K193: 170 | L193: 194 | M193: 138 | N193: 165 | O193: 112 | P193: 228 | Q193: 62 | R193: 52 | S193: 180 | T193: 152 | U193: 163 | V193: 109 | W193: 167 | X193: 136 | Y193: 123 | Z193: 210
A194: 110 | B194: MEURTHE ET MOSELLE MEUSE | C194: 27 | D194: PONT A MOUSSON | E194: 554196 | F194: CHAMPIGNEULLES | G194: 3.6 | H194: 185 | I194: 69 | J194: 53 | K194: 116 | L194: 263 | M194: 242 | N194: 252 | O194: 131 | P194: 237 | Q194: 159 | R194: 208 | S194: 49 | T194: 153 | U194: 175 | V194: 83 | W194: 181 | X194: 108 | Y194: 226 | Z194: 169
A195: 110 | B195: MEURTHE ET MOSELLE MEUSE | C195: 31 | D195: VERDUN | E195: 455676 | F195: VAUCOULEURS | G195: 2.0 | H195: 186 | I195: 249 | J195: 247 | K195: 240 | L195: 34 | M195: 53 | N195: 154 | O195: 79 | P195: 21 | Q195: 218 | R195: 151 | S195: 269 | T195: 46 | U195: 38 | V195: 96 | W195: 196 | X195: 203 | Y195: 207 | Z195: 99
A196: 110 | B196: BAS-RHIN | C196: 5060 | D196: HAGUENAU | E196: 4031 | F196: TRUCHTERSHEIM | G196: 3.0 | H196: 187 | I196: 31 | J196: 28 | K196: 47 | L196: 227 | M196: 116 | N196: 272 | O196: 220 | P196: 221 | Q196: 166 | R196: 133 | S196: 222 | T196: 210 | U196: 166 | V196: 272 | W196: 264 | X196: 223 | Y196: 264 | Z196: 255
A197: 110 | B197: VOSGES | C197: 55 | D197: SAINT DIE | E197: 588316 | F197: FRAIZE | G197: 3.8 | H197: 188 | I197: 163 | J197: 159 | K197: 140 | L197: 218 | M197: 211 | N197: 219 | O197: 260 | P197: 117 | Q197: 153 | R197: 171 | S197: 112 | T197: 125 | U197: 104 | V197: 190 | W197: 156 | X197: 176 | Y197: 131 | Z197: 120
A198: 110 | B198: BAS-RHIN | C198: 5006 | D198: STRASBOURG | E198: 4048 | F198: STRASBOURG KOENIGSHOFFEN | G198: 2.2 | H198: 189 | I198: 271 | J198: 273 | K198: 261 | L198: 75 | M198: 49 | N198: 12 | O198: 90 | P198: 255 | Q198: 88 | R198: 139 | S198: 22 | T198: 17 | U198: 27 | V198: 13 | W198: 169 | X198: 133 | Y198: 190 | Z198: 130
A199: 160 | B199: HAUT-RHIN | C199: 5169 | D199: MULHOUSE | E199: 4180 | F199: RIEDISHEIM | G199: 3.1 | H199: 190 | I199: 226 | J199: 153 | K199: 250 | L199: 181 | M199: 231 | N199: 138 | O199: 113 | P199: 28 | Q199: 8 | R199: 11 | S199: 12 | T199: 181 | U199: 196 | V199: 112 | W199: 237 | X199: 241 | Y199: 98 | Z199: 257
A200: 160 | B200: MOSELLE | C200: 45 | D200: METZ | E200: 557439 | F200: METZ POMPIDOU | G200: 3.9 | H200: 191 | I200: 116 | J200: 62 | K200: 191 | L200: 219 | M200: 154 | N200: 131 | O200: 103 | P200: 252 | Q200: 100 | R200: 116 | S200: 67 | T200: 230 | U200: 235 | V200: 185 | W200: 133 | X200: 125 | Y200: 209 | Z200: 64
A201: 160 | B201: MARNE-ARDENNES | C201: 11 | D201: REIMS | E201: 551341 | F201: REIMS JEAN JAURES | G201: 4.4 | H201: 192 | I201: 177 | J201: 175 | K201: 170 | L201: 123 | M201: 159 | N201: 145 | O201: 87 | P201: 39 | Q201: 138 | R201: 194 | S201: 42 | T201: 199 | U201: 204 | V201: 174 | W201: 121 | X201: 98 | Y201: 169 | Z201: 95
A202: 160 | B202: BAS-RHIN | C202: 5101 | D202: SELESTAT | E202: 4109 | F202: MARCKOLSHEIM | G202: 3.0 | H202: 193 | I202: 198 | J202: 175 | K202: 202 | L202: 44 | M202: 22 | N202: 205 | O202: 190 | P202: 219 | Q202: 183 | R202: 225 | S202: 47 | T202: 188 | U202: 209 | V202: 104 | W202: 158 | X202: 222 | Y202: 126 | Z202: 74
A203: 160 | B203: MOSELLE | C203: 45 | D203: METZ | E203: 557445 | F203: METZ SAINT LIVIER | G203: 3.1 | H203: 194 | I203: 87 | J203: 75 | K203: 128 | L203: 225 | M203: 218 | N203: 261 | O203: 139 | P203: 126 | Q203: 61 | R203: 42 | S203: 207 | T203: 257 | U203: 252 | V203: 262 | W203: 162 | X203: 92 | Y203: 262 | Z203: 68
A204: 160 | B204: HAUT-RHIN | C204: 5130 | D204: COLMAR | E204: 4141 | F204: HORBOURG WIHR | G204: 6.0 | H204: 195 | I204: 220 | J204: 210 | K204: 216 | L204: 228 | M204: 179 | N204: 171 | O204: 175 | P204: 230 | Q204: 46 | R204: 37 | S204: 170 | T204: 104 | U204: 89 | V204: 162 | W204: 197 | X204: 208 | Y204: 168 | Z204: 165
... 79 more rows

Sheet AG_EVOL_CLASS
B1: Accueil | D1: BAROMETRE BDD - AGENCES
D2: EVOLUTION CLASSEMENT 2020 / 2019
D3: =ACCUEIL!F7 -> 2021-03-14
H8: CLASSEMENT Général 2020 | I8: CLASSEMENT Général 2019 | J8: Evolution
A9: eds | B9: Direction | C9: eds | D9: Territoire | E9: eds | F9: Agence | G9: ="ETP perf "&DATEMAJ!$C$28 -> ETP perf 31-janv | H9: Rang | I9: Rang
A10: 50 | B10: BAS-RHIN | C10: 5006 | D10: STRASBOURG | E10: 4010 | F10: STRASBOURG MEINAU | G10: 2.6 | H10: 36 | I10: 284 | J10: 248
A11: 50 | B11: VOSGES | C11: 57 | D11: EPINAL | E11: 488561 | F11: REMIREMONT | G11: 6.2 | H11: 42 | I11: 270 | J11: 228
A12: 50 | B12: BAS-RHIN | C12: 5060 | D12: HAGUENAU | E12: 4079 | F12: SOULTZ SOUS FORETS | G12: 2.4 | H12: 56 | I12: 277 | J12: 221
A13: 50 | B13: MARNE-ARDENNES | C13: 6 | D13: CHALONS EN CHAMPAGNE | E13: 451115 | F13: MOURMELON suippes | G13: 3.0 | H13: 12 | I13: 232 | J13: 220
A14: 50 | B14: MOSELLE | C14: 44 | D14: MOSELLE NORD | E14: 557508 | F14: NILVANGE | G14: 2.6 | H14: 3 | I14: 220 | J14: 217
A15: 50 | B15: MEURTHE ET MOSELLE MEUSE | C15: 27 | D15: PONT A MOUSSON | E15: 454651 | F15: TOUL REPUBLIQUE | G15: 10.9 | H15: 1 | I15: 192 | J15: 191
A16: 50 | B16: MEURTHE ET MOSELLE MEUSE | C16: 26 | D16: NANCY | E16: 454671 | F16: VANDOEUVRE LES NANCY | G16: 4.4 | H16: 87 | I16: 276 | J16: 189
A17: 50 | B17: MEURTHE ET MOSELLE MEUSE | C17: 31 | D17: VERDUN | E17: 455456 | F17: MONTMEDY | G17: 1.7 | H17: 101 | I17: 265 | J17: 164
A18: 50 | B18: MOSELLE | C18: 44 | D18: MOSELLE NORD | E18: 457306 | F18: FLORANGE | G18: 2.8 | H18: 90 | I18: 253 | J18: 163
A19: 50 | B19: MARNE-ARDENNES | C19: 11 | D19: REIMS | E19: 451361 | F19: PIERRY LECLERC | G19: 1.9 | H19: 16 | I19: 178 | J19: 162
A20: 50 | B20: BAS-RHIN | C20: 5006 | D20: STRASBOURG | E20: 4045 | F20: STRASBOURG FRANCS BOURGEOIS | G20: 5.9 | H20: 112 | I20: 273 | J20: 161
A21: 50 | B21: MARNE-ARDENNES | C21: 6 | D21: CHALONS EN CHAMPAGNE | E21: 551128 | F21: SAINTE MENEHOULD | G21: 3.3 | H21: 94 | I21: 254 | J21: 160
A22: 50 | B22: MEURTHE ET MOSELLE MEUSE | C22: 26 | D22: NANCY | E22: 554491 | F22: NANCY SAINT SEBASTIEN | G22: 3.3 | H22: 48 | I22: 208 | J22: 160
A23: 50 | B23: MEURTHE ET MOSELLE MEUSE | C23: 26 | D23: NANCY | E23: 554471 | F23: NANCY JEAN JAURES | G23: 1.9 | H23: 93 | I23: 251 | J23: 158
A24: 50 | B24: MARNE-ARDENNES | C24: 2 | D24: CHARLEVILLE MEZIERES | E24: 508815 | F24: CARIGNAN | G24: 2.9 | H24: 40 | I24: 194 | J24: 154
A25: 50 | B25: VOSGES | C25: 57 | D25: EPINAL | E25: 588501 | F25: NEUFCHATEAU | G25: 4.7 | H25: 61 | I25: 214 | J25: 153
A26: 50 | B26: MARNE-ARDENNES | C26: 2 | D26: CHARLEVILLE MEZIERES | E26: 508839 | F26: GIVET | G26: 2.9 | H26: 25 | I26: 176 | J26: 151
A27: 50 | B27: MARNE-ARDENNES | C27: 11 | D27: REIMS | E27: 551349 | F27: REIMS SAINT REMI | G27: 2.8 | H27: 9 | I27: 158 | J27: 149
A28: 50 | B28: VOSGES | C28: 55 | D28: SAINT DIE | E28: 588551 | F28: RAMBERVILLERS | G28: 3.7 | H28: 82 | I28: 227 | J28: 145
A29: 50 | B29: MEURTHE ET MOSELLE MEUSE | C29: 26 | D29: NANCY | E29: 554356 | F29: JARVILLE LA MALGRANGE | G29: 3.6 | H29: 105 | I29: 244 | J29: 139
A30: 50 | B30: VOSGES | C30: 57 | D30: EPINAL | E30: 488706 | F30: VITTEL | G30: 3.3 | H30: 91 | I30: 229 | J30: 138
A31: 50 | B31: BAS-RHIN | C31: 5006 | D31: STRASBOURG | E31: 4047 | F31: STRASBOURG CRONENBOURG | G31: 5.6 | H31: 52 | I31: 189 | J31: 137
A32: 262 | B32: HAUT-RHIN | C32: 5130 | D32: COLMAR | E32: 4162 | F32: ENSISHEIM | G32: 4.5 | H32: 80 | I32: 212 | J32: 132
A33: 262 | B33: VOSGES | C33: 55 | D33: SAINT DIE | E33: 588587 | F33: SAINT DIE CATHEDRALE | G33: 4.0 | H33: 64 | I33: 195 | J33: 131
A34: 262 | B34: MEURTHE ET MOSELLE MEUSE | C34: 27 | D34: PONT A MOUSSON | E34: 454535 | F34: PONT A MOUSSON CENTRALE | G34: 7.6 | H34: 119 | I34: 246 | J34: 127
A35: 262 | B35: MARNE-ARDENNES | C35: 11 | D35: REIMS | E35: 551367 | F35: AY CHAMPAGNE | G35: 2.7 | H35: 55 | I35: 175 | J35: 120
A36: 262 | B36: BAS-RHIN | C36: 5101 | D36: SELESTAT | E36: 4110 | F36: SELESTAT OUEST | G36: 1.9 | H36: 69 | I36: 185 | J36: 116
A37: 262 | B37: BAS-RHIN | C37: 5006 | D37: STRASBOURG | E37: 4006 | F37: STRASBOURG NEUDORF | G37: 8.4 | H37: 146 | I37: 262 | J37: 116
A38: 262 | B38: MOSELLE | C38: 42 | D38: MOSELLE EST | E38: 457308 | F38: FORBACH CENTRALE | G38: 9.5 | H38: 122 | I38: 237 | J38: 115
A39: 262 | B39: BAS-RHIN | C39: 5060 | D39: HAGUENAU | E39: 4073 | F39: SCHWEIGHOUSE SUR MODER | G39: 2.4 | H39: 185 | I39: 290 | J39: 105
A40: 262 | B40: BAS-RHIN | C40: 5101 | D40: SELESTAT | E40: 4107 | F40: VILLE | G40: 2.1 | H40: 145 | I40: 249 | J40: 104
A41: 262 | B41: BAS-RHIN | C41: 5006 | D41: STRASBOURG | E41: 4020 | F41: STRASBOURG ROBERTSAU | G41: 4.7 | H41: 153 | I41: 257 | J41: 104
A42: 262 | B42: MEURTHE ET MOSELLE MEUSE | C42: 27 | D42: PONT A MOUSSON | E42: 554376 | F42: LAXOU LA SAPINIERE | G42: 3.0 | H42: 172 | I42: 275 | J42: 103
A43: 262 | B43: MOSELLE | C43: 42 | D43: MOSELLE EST | E43: 557305 | F43: FAULQUEMONT | G43: 2.9 | H43: 98 | I43: 201 | J43: 103
A44: 262 | B44: MEURTHE ET MOSELLE MEUSE | C44: 31 | D44: VERDUN | E44: 555624 | F44: STENAY | G44: 2.7 | H44: 143 | I44: 245 | J44: 102
A45: 262 | B45: MOSELLE | C45: 45 | D45: METZ | E45: 557712 | F45: WOIPPY BONNE FONTAINE | G45: 5.7 | H45: 180 | I45: 281 | J45: 101
A46: 262 | B46: MEURTHE ET MOSELLE MEUSE | C46: 26 | D46: NANCY | E46: 454426 | F46: LUNEVILLE CARNOT | G46: 8.5 | H46: 74 | I46: 174 | J46: 100
A47: 262 | B47: BAS-RHIN | C47: 5101 | D47: SELESTAT | E47: 4113 | F47: BARR | G47: 2.9 | H47: 46 | I47: 145 | J47: 99
A48: 262 | B48: HAUT-RHIN | C48: 5130 | D48: COLMAR | E48: 4139 | F48: INGERSHEIM | G48: 8.3 | H48: 140 | I48: 239 | J48: 99
A49: 262 | B49: HAUT-RHIN | C49: 5130 | D49: COLMAR | E49: 4144 | F49: RIBEAUVILLE | G49: 2.8 | H49: 203 | I49: 301 | J49: 98
A50: 262 | B50: BAS-RHIN | C50: 5006 | D50: STRASBOURG | E50: 4054 | F50: STRASBOURG MONTAGNE VERTE | G50: 2.7 | H50: 197 | I50: 294 | J50: 97
A51: 262 | B51: MARNE-ARDENNES | C51: 2 | D51: CHARLEVILLE MEZIERES | E51: 408814 | F51: VRIGNE AUX BOIS | G51: 0.6 | H51: 96 | I51: 193 | J51: 97
A52: 262 | B52: MEURTHE ET MOSELLE MEUSE | C52: 26 | D52: NANCY | E52: 554486 | F52: NANCY POINT CENTRAL | G52: 4.7 | H52: 113 | I52: 210 | J52: 97
A53: 262 | B53: MOSELLE | C53: 45 | D53: METZ | E53: 557432 | F53: MAIZIERES LES METZ | G53: 3.8 | H53: 123 | I53: 217 | J53: 94
A54: 262 | B54: BAS-RHIN | C54: 5006 | D54: STRASBOURG | E54: 4043 | F54: STRASBOURG HALLES | G54: 8.4 | H54: 26 | I54: 119 | J54: 93
A55: 262 | B55: MEURTHE ET MOSELLE MEUSE | C55: 31 | D55: VERDUN | E55: 455151 | F55: BAR LE DUC | G55: 9.8 | H55: 109 | I55: 197 | J55: 88
A56: 262 | B56: BAS-RHIN | C56: 5006 | D56: STRASBOURG | E56: 4039 | F56: REICHSTETT | G56: 1.4 | H56: 216 | I56: 303 | J56: 87
A57: 262 | B57: VOSGES | C57: 57 | D57: EPINAL | E57: 588206 | F57: CHARMES | G57: 2.7 | H57: 134 | I57: 221 | J57: 87
A58: 262 | B58: MARNE-ARDENNES | C58: 6 | D58: CHALONS EN CHAMPAGNE | E58: 451120 | F58: SARRY | G58: 2.5 | H58: 20 | I58: 106 | J58: 86
A59: 262 | B59: MARNE-ARDENNES | C59: 11 | D59: REIMS | E59: 451308 | F59: REIMS SAINT THOMAS | G59: 8.2 | H59: 132 | I59: 215 | J59: 83
A60: 262 | B60: BAS-RHIN | C60: 5006 | D60: STRASBOURG | E60: 4028 | F60: BISCHHEIM | G60: 2.9 | H60: 182 | I60: 263 | J60: 81
A61: 262 | B61: BAS-RHIN | C61: 5006 | D61: STRASBOURG | E61: 4024 | F61: STRASBOURG AUSTERLITZ | G61: 2.7 | H61: 213 | I61: 291 | J61: 78
A62: 262 | B62: VOSGES | C62: 55 | D62: SAINT DIE | E62: 588186 | F62: BRUYERES | G62: 2.7 | H62: 78 | I62: 155 | J62: 77
A63: 262 | B63: HAUT-RHIN | C63: 5130 | D63: COLMAR | E63: 4130 | F63: COLMAR REPUBLIQUE | G63: 7.9 | H63: 196 | I63: 272 | J63: 76
A64: 262 | B64: VOSGES | C64: 57 | D64: EPINAL | E64: 488286 | F64: EPINAL ARISTIDE BRIAND | G64: 8.8 | H64: 148 | I64: 223 | J64: 75
A65: 262 | B65: MARNE-ARDENNES | C65: 6 | D65: CHALONS EN CHAMPAGNE | E65: 451381 | F65: SEZANNE CHAMP BENOIST | G65: 6.4 | H65: 156 | I65: 230 | J65: 74
A66: 262 | B66: AUBE HAUTE MARNE | C66: 21 | D66: CHAUMONT | E66: 551157 | F66: SAINT DIZIER EUROPE | G66: 2.5 | H66: 54 | I66: 127 | J66: 73
A67: 262 | B67: HAUT-RHIN | C67: 5130 | D67: COLMAR | E67: 4148 | F67: ORBEY | G67: 3.1 | H67: 206 | I67: 279 | J67: 73
A68: 262 | B68: MARNE-ARDENNES | C68: 2 | D68: CHARLEVILLE MEZIERES | E68: 408806 | F68: SEDAN LA HALLE | G68: 8.7 | H68: 58 | I68: 129 | J68: 71
A69: 262 | B69: AUBE HAUTE MARNE | C69: 14 | D69: TROYES | E69: 510511 | F69: TROYES BROSSOLETTE | G69: 3.2 | H69: 81 | I69: 148 | J69: 67
A70: 262 | B70: BAS-RHIN | C70: 5101 | D70: SELESTAT | E70: 4120 | F70: WASSELONNE | G70: 2.5 | H70: 138 | I70: 205 | J70: 67
A71: 262 | B71: MOSELLE | C71: 44 | D71: MOSELLE NORD | E71: 557113 | F71: AUDUN LE TICHE | G71: 2.6 | H71: 166 | I71: 231 | J71: 65
A72: 262 | B72: MEURTHE ET MOSELLE MEUSE | C72: 31 | D72: VERDUN | E72: 455231 | F72: COMMERCY | G72: 4.5 | H72: 135 | I72: 199 | J72: 64
A73: 262 | B73: MEURTHE ET MOSELLE MEUSE | C73: 31 | D73: VERDUN | E73: 555679 | F73: VERDUN MAZEL | G73: 3.8 | H73: 62 | I73: 126 | J73: 64
A74: 262 | B74: MARNE-ARDENNES | C74: 2 | D74: CHARLEVILLE MEZIERES | E74: 408822 | F74: CHARLEVILLE MEZIERES | G74: 4.2 | H74: 4 | I74: 67 | J74: 63
A75: 262 | B75: VOSGES | C75: 57 | D75: EPINAL | E75: 588216 | F75: CHATENOIS | G75: 1.0 | H75: 243 | I75: 306 | J75: 63
A76: 262 | B76: VOSGES | C76: 57 | D76: EPINAL | E76: 588396 | F76: LE VAL D AJOL | G76: 2.8 | H76: 128 | I76: 191 | J76: 63
A77: 262 | B77: MOSELLE | C77: 45 | D77: METZ | E77: 557436 | F77: METZ CATHEDRALE | G77: 4.9 | H77: 103 | I77: 165 | J77: 62
A78: 262 | B78: MEURTHE ET MOSELLE MEUSE | C78: 27 | D78: PONT A MOUSSON | E78: 554686 | F78: VEZELISE | G78: 1.7 | H78: 111 | I78: 171 | J78: 60
A79: 262 | B79: VOSGES | C79: 55 | D79: SAINT DIE | E79: 488246 | F79: CORNIMONT LA BRESSE | G79: 2.9 | H79: 51 | I79: 109 | J79: 58
A80: 262 | B80: VOSGES | C80: 55 | D80: SAINT DIE | E80: 488586 | F80: SAINT DIE | G80: 10.4 | H80: 125 | I80: 183 | J80: 58
A81: 262 | B81: HAUT-RHIN | C81: 5130 | D81: COLMAR | E81: 4147 | F81: GUEBWILLER | G81: 5.9 | H81: 235 | I81: 292 | J81: 57
A82: 262 | B82: MARNE-ARDENNES | C82: 2 | D82: CHARLEVILLE MEZIERES | E82: 508820 | F82: VOUZIERS | G82: 2.8 | H82: 60 | I82: 117 | J82: 57
A83: 262 | B83: MEURTHE ET MOSELLE MEUSE | C83: 31 | D83: VERDUN | E83: 455298 | F83: ETAIN | G83: 1.9 | H83: 85 | I83: 142 | J83: 57
A84: 264 | B84: MEURTHE ET MOSELLE MEUSE | C84: 31 | D84: VERDUN | E84: 554700 | F84: VILLERUPT | G84: 2.7 | H84: 59 | I84: 116 | J84: 57
A85: 264 | B85: BAS-RHIN | C85: 5060 | D85: HAGUENAU | E85: 4071 | F85: WISSEMBOURG | G85: 8.7 | H85: 84 | I85: 140 | J85: 56
A86: 264 | B86: MEURTHE ET MOSELLE MEUSE | C86: 27 | D86: PONT A MOUSSON | E86: 554533 | F86: PONT A MOUSSON BREUIL | G86: 3.5 | H86: 151 | I86: 206 | J86: 55
A87: 264 | B87: AUBE HAUTE MARNE | C87: 14 | D87: TROYES | E87: 510513 | F87: TROYES 1er MAI | G87: 4.2 | H87: 221 | I87: 274 | J87: 53
A88: 264 | B88: VOSGES | C88: 57 | D88: EPINAL | E88: 488291 | F88: EPINAL AVRINSART | G88: 1.8 | H88: 160 | I88: 213 | J88: 53
A89: 264 | B89: MOSELLE | C89: 45 | D89: METZ | E89: 557441 | F89: METZ PLAPPEVILLE | G89: 2.6 | H89: 129 | I89: 181 | J89: 52
A90: 264 | B90: BAS-RHIN | C90: 5101 | D90: SELESTAT | E90: 4101 | F90: SELESTAT CENTRE | G90: 8.0 | H90: 245 | I90: 296 | J90: 51
A91: 264 | B91: HAUT-RHIN | C91: 5169 | D91: MULHOUSE | E91: 4181 | F91: WITTELSHEIM | G91: 4.0 | H91: 100 | I91: 150 | J91: 50
A92: 264 | B92: MOSELLE | C92: 45 | D92: METZ | E92: 457574 | F92: ROMBAS | G92: 3.3 | H92: 86 | I92: 136 | J92: 50
A93: 264 | B93: MOSELLE | C93: 44 | D93: MOSELLE NORD | E93: 557660 | F93: UCKANGE JEANNE D ARC | G93: 1.9 | H93: 14 | I93: 64 | J93: 50
A94: 264 | B94: MEURTHE ET MOSELLE MEUSE | C94: 26 | D94: NANCY | E94: 554296 | F94: ESSEY LES NANCY | G94: 3.7 | H94: 231 | I94: 278 | J94: 47
A95: 264 | B95: MEURTHE ET MOSELLE MEUSE | C95: 27 | D95: PONT A MOUSSON | E95: 554506 | F95: CHALIGNY NEUVES MAISONS | G95: 2.7 | H95: 191 | I95: 236 | J95: 45
A96: 264 | B96: MOSELLE | C96: 45 | D96: METZ | E96: 557459 | F96: MOULINS LES METZ | G96: 2.8 | H96: 167 | I96: 209 | J96: 42
A97: 264 | B97: MARNE-ARDENNES | C97: 6 | D97: CHALONS EN CHAMPAGNE | E97: 451101 | F97: CHALONS VIVIERS | G97: 9.7 | H97: 18 | I97: 58 | J97: 40
A98: 264 | B98: HAUT-RHIN | C98: 5130 | D98: COLMAR | E98: 4143 | F98: MUNSTER | G98: 5.4 | H98: 195 | I98: 234 | J98: 39
A99: 264 | B99: MOSELLE | C99: 45 | D99: METZ | E99: 557447 | F99: METZ SAINT MAXIMIN | G99: 3.0 | H99: 10 | I99: 48 | J99: 38
A100: 264 | B100: AUBE HAUTE MARNE | C100: 14 | D100: TROYES | E100: 510556 | F100: BAR SUR SEINE | G100: 3.8 | H100: 188 | I100: 225 | J100: 37
A101: 264 | B101: BAS-RHIN | C101: 5101 | D101: SELESTAT | E101: 4104 | F101: ERSTEIN | G101: 4.6 | H101: 266 | I101: 302 | J101: 36
A102: 264 | B102: AUBE HAUTE MARNE | C102: 14 | D102: TROYES | E102: 510522 | F102: TROYES CHARTREUX | G102: 2.6 | H102: 229 | I102: 264 | J102: 35
A103: 264 | B103: MARNE-ARDENNES | C103: 6 | D103: CHALONS EN CHAMPAGNE | E103: 451166 | F103: VITRY LE FRANCOIS | G103: 6.4 | H103: 193 | I103: 228 | J103: 35
A104: 264 | B104: MEURTHE ET MOSELLE MEUSE | C104: 27 | D104: PONT A MOUSSON | E104: 554321 | F104: FROUARD | G104: 2.6 | H104: 83 | I104: 118 | J104: 35
A105: 264 | B105: MOSELLE | C105: 42 | D105: MOSELLE EST | E105: 557250 | F105: CREUTZWALD | G105: 3.0 | H105: 76 | I105: 111 | J105: 35
A106: 264 | B106: MOSELLE | C106: 42 | D106: MOSELLE EST | E106: 457435 | F106: MERLEBACH | G106: 3.4 | H106: 236 | I106: 271 | J106: 35
A107: 264 | B107: MARNE-ARDENNES | C107: 2 | D107: CHARLEVILLE MEZIERES | E107: 408862 | F107: REVIN | G107: 3.9 | H107: 37 | I107: 71 | J107: 34
A108: 264 | B108: BAS-RHIN | C108: 5101 | D108: SELESTAT | E108: 4126 | F108: MUTZIG | G108: 2.6 | H108: 65 | I108: 98 | J108: 33
A109: 264 | B109: VOSGES | C109: 57 | D109: EPINAL | E109: 588716 | F109: XERTIGNY | G109: 2.6 | H109: 45 | I109: 78 | J109: 33
A110: 264 | B110: AUBE HAUTE MARNE | C110: 14 | D110: TROYES | E110: 410510 | F110: TROYES GAMBETTA | G110: 9.7 | H110: 99 | I110: 130 | J110: 31
A111: 264 | B111: HAUT-RHIN | C111: 5130 | D111: COLMAR | E111: 4153 | F111: ROUFFACH | G111: 3.7 | H111: 133 | I111: 164 | J111: 31
A112: 30 | B112: HAUT-RHIN | C112: 5169 | D112: MULHOUSE | E112: 4188 | F112: PFASTATT | G112: 3.1 | H112: 274 | I112: 305 | J112: 31
A113: 30 | B113: MEURTHE ET MOSELLE MEUSE | C113: 31 | D113: VERDUN | E113: 455678 | F113: VERDUN CENTRALE | G113: 9.2 | H113: 95 | I113: 125 | J113: 30
A114: 30 | B114: BAS-RHIN | C114: 5101 | D114: SELESTAT | E114: 4127 | F114: ROSHEIM | G114: 1.4 | H114: 260 | I114: 288 | J114: 28
A115: 30 | B115: MARNE-ARDENNES | C115: 2 | D115: CHARLEVILLE MEZIERES | E115: 508802 | F115: CHARLEVILLE NEVERS | G115: 3.6 | H115: 35 | I115: 63 | J115: 28
A116: 30 | B116: MOSELLE | C116: 45 | D116: METZ | E116: 457453 | F116: MONTIGNY CENTRALE | G116: 7.7 | H116: 77 | I116: 105 | J116: 28
A117: 30 | B117: MEURTHE ET MOSELLE MEUSE | C117: 27 | D117: PONT A MOUSSON | E117: 554416 | F117: LUDRES | G117: 3.9 | H117: 19 | I117: 45 | J117: 26
A118: 30 | B118: MOSELLE | C118: 42 | D118: MOSELLE EST | E118: 457345 | F118: GROSBLIEDERSTROFF | G118: 2.5 | H118: 120 | I118: 146 | J118: 26
A119: 30 | B119: MARNE-ARDENNES | C119: 11 | D119: REIMS | E119: 551369 | F119: DAMERY | G119: 2.9 | H119: 6 | I119: 31 | J119: 25
A120: 30 | B120: MOSELLE | C120: 45 | D120: METZ | E120: 557105 | F120: ARS SUR MOSELLE | G120: 3.8 | H120: 70 | I120: 95 | J120: 25
A121: 30 | B121: MEURTHE ET MOSELLE MEUSE | C121: 26 | D121: NANCY | E121: 454171 | F121: BLAMONT | G121: 1.1 | H121: 174 | I121: 198 | J121: 24
A122: 30 | B122: MOSELLE | C122: 45 | D122: METZ | E122: 557178 | F122: BOULAY | G122: 3.0 | H122: 244 | I122: 268 | J122: 24
A123: 30 | B123: AUBE HAUTE MARNE | C123: 14 | D123: TROYES | E123: 510530 | F123: ARCIS SUR AUBE | G123: 3.7 | H123: 246 | I123: 269 | J123: 23
A124: 30 | B124: HAUT-RHIN | C124: 5169 | D124: MULHOUSE | E124: 4183 | F124: WITTENHEIM | G124: 2.4 | H124: 257 | I124: 280 | J124: 23
A125: 30 | B125: VOSGES | C125: 55 | D125: SAINT DIE | E125: 588316 | F125: FRAIZE | G125: 4.0 | H125: 179 | I125: 202 | J125: 23
A126: 30 | B126: MOSELLE | C126: 42 | D126: MOSELLE EST | E126: 457165 | F126: BITCHE | G126: 3.3 | H126: 63 | I126: 85 | J126: 22
A127: 30 | B127: BAS-RHIN | C127: 5006 | D127: STRASBOURG | E127: 4023 | F127: STRASBOURG VOSGES | G127: 3.3 | H127: 277 | I127: 298 | J127: 21
A128: 30 | B128: BAS-RHIN | C128: 5060 | D128: HAGUENAU | E128: 4080 | F128: WOERTH | G128: 2.3 | H128: 275 | I128: 295 | J128: 20
A129: 30 | B129: VOSGES | C129: 55 | D129: SAINT DIE | E129: 488556 | F129: RAON L ETAPE | G129: 3.5 | H129: 73 | I129: 93 | J129: 20
A130: 30 | B130: MEURTHE ET MOSELLE MEUSE | C130: 27 | D130: PONT A MOUSSON | E130: 554196 | F130: CHAMPIGNEULLES | G130: 3.2 | H130: 89 | I130: 107 | J130: 18
A131: 30 | B131: MOSELLE | C131: 44 | D131: MOSELLE NORD | E131: 557307 | F131: FONTOY | G131: 3.1 | H131: 57 | I131: 75 | J131: 18
A132: 30 | B132: VOSGES | C132: 57 | D132: EPINAL | E132: 488451 | F132: MIRECOURT | G132: 4.6 | H132: 268 | I132: 286 | J132: 18
A133: 30 | B133: BAS-RHIN | C133: 5060 | D133: HAGUENAU | E133: 4082 | F133: BOUXWILLER | G133: 2.8 | H133: 118 | I133: 133 | J133: 15
A134: 30 | B134: HAUT-RHIN | C134: 5169 | D134: MULHOUSE | E134: 4174 | F134: MULHOUSE DORNACH | G134: 5.5 | H134: 278 | I134: 293 | J134: 15
A135: 30 | B135: MEURTHE ET MOSELLE MEUSE | C135: 27 | D135: PONT A MOUSSON | E135: 554381 | F135: LAXOU ARISTIDE BRIAND | G135: 4.4 | H135: 227 | I135: 242 | J135: 15
A136: 30 | B136: MOSELLE | C136: 44 | D136: MOSELLE NORD | E136: 457350 | F136: HAYANGE | G136: 9.0 | H136: 237 | I136: 252 | J136: 15
A137: 30 | B137: BAS-RHIN | C137: 5101 | D137: SELESTAT | E137: 4111 | F137: BENFELD | G137: 3.7 | H137: 273 | I137: 287 | J137: 14
A138: 30 | B138: MEURTHE ET MOSELLE MEUSE | C138: 26 | D138: NANCY | E138: 554636 | F138: TOMBLAINE | G138: 2.7 | H138: 34 | I138: 47 | J138: 13
A139: 30 | B139: AUBE HAUTE MARNE | C139: 14 | D139: TROYES | E139: 410512 | F139: TROYES ZOLA | G139: 4.5 | H139: 228 | I139: 240 | J139: 12
A140: 30 | B140: BAS-RHIN | C140: 5006 | D140: STRASBOURG | E140: 4029 | F140: SCHILTIGHEIM KLEBER | G140: 2.3 | H140: 116 | I140: 128 | J140: 12
A141: 30 | B141: MOSELLE | C141: 45 | D141: METZ | E141: 457443 | F141: METZ REPUBLIQUE | G141: 3.9 | H141: 30 | I141: 40 | J141: 10
A142: 30 | B142: MARNE-ARDENNES | C142: 2 | D142: CHARLEVILLE MEZIERES | E142: 408801 | F142: CHARLEVILLE JEAN JAURES | G142: 8.5 | H142: 71 | I142: 80 | J142: 9
A143: 30 | B143: MARNE-ARDENNES | C143: 11 | D143: REIMS | E143: 451370 | F143: EPERNAY VERRON | G143: 10.6 | H143: 41 | I143: 50 | J143: 9
A144: 30 | B144: MEURTHE ET MOSELLE MEUSE | C144: 26 | D144: NANCY | E144: 454481 | F144: NANCY PLACE DOMBASLE | G144: 10.4 | H144: 7 | I144: 16 | J144: 9
A145: 30 | B145: MEURTHE ET MOSELLE MEUSE | C145: 27 | D145: PONT A MOUSSON | E145: 554531 | F145: POMPEY | G145: 2.5 | H145: 13 | I145: 22 | J145: 9
A146: 30 | B146: MOSELLE | C146: 45 | D146: METZ | E146: 557224 | F146: CLOUANGE | G146: 3.3 | H146: 232 | I146: 241 | J146: 9
A147: 30 | B147: MOSELLE | C147: 44 | D147: MOSELLE NORD | E147: 457180 | F147: BOUSSE | G147: 2.3 | H147: 210 | I147: 219 | J147: 9
A148: 30 | B148: VOSGES | C148: 55 | D148: SAINT DIE | E148: 488326 | F148: GERARDMER | G148: 5.1 | H148: 17 | I148: 26 | J148: 9
A149: 30 | B149: BAS-RHIN | C149: 5060 | D149: HAGUENAU | E149: 4067 | F149: PFAFFENHOFFEN | G149: 2.9 | H149: 141 | I149: 149 | J149: 8
A150: 30 | B150: HAUT-RHIN | C150: 5169 | D150: MULHOUSE | E150: 4178 | F150: SAINT LOUIS | G150: 7.7 | H150: 247 | I150: 255 | J150: 8
A151: 30 | B151: MARNE-ARDENNES | C151: 11 | D151: REIMS | E151: 551365 | F151: DORMANS | G151: 2.7 | H151: 28 | I151: 36 | J151: 8
A152: 30 | B152: MEURTHE ET MOSELLE MEUSE | C152: 27 | D152: PONT A MOUSSON | E152: 554357 | F152: JOEUF MAIRIE | G152: 4.4 | H152: 211 | I152: 218 | J152: 7
A153: 30 | B153: BAS-RHIN | C153: 5101 | D153: SELESTAT | E153: 4129 | F153: MARLENHEIM | G153: 2.5 | H153: 205 | I153: 211 | J153: 6
A154: 110 | B154: HAUT-RHIN | C154: 5130 | D154: COLMAR | E154: 4134 | F154: COLMAR SAINT JOSEPH | G154: 0.9 | H154: 283 | I154: 289 | J154: 6
A155: 110 | B155: HAUT-RHIN | C155: 5169 | D155: MULHOUSE | E155: 4169 | F155: MULHOUSE ROOSEVELT | G155: 5.7 | H155: 276 | I155: 282 | J155: 6
A156: 110 | B156: MARNE-ARDENNES | C156: 11 | D156: REIMS | E156: 551314 | F156: FISMES | G156: 2.4 | H156: 43 | I156: 49 | J156: 6
A157: 110 | B157: VOSGES | C157: 57 | D157: EPINAL | E157: 488288 | F157: EPINAL LEOPOLD BOURG | G157: 1.9 | H157: 2 | I157: 8 | J157: 6
A158: 110 | B158: AUBE HAUTE MARNE | C158: 14 | D158: TROYES | E158: 510570 | F158: NOGENT SUR SEINE | G158: 3.8 | H158: 39 | I158: 43 | J158: 4
A159: 110 | B159: BAS-RHIN | C159: 5060 | D159: HAGUENAU | E159: 4031 | F159: TRUCHTERSHEIM | G159: 3.0 | H159: 29 | I159: 33 | J159: 4
A160: 110 | B160: BAS-RHIN | C160: 5060 | D160: HAGUENAU | E160: 4060 | F160: HAGUENAU HOUBLON | G160: 9.4 | H160: 224 | I160: 226 | J160: 2
A161: 110 | B161: BAS-RHIN | C161: 5006 | D161: STRASBOURG | E161: 4048 | F161: STRASBOURG KOENIGSHOFFEN | G161: 2.8 | H161: 281 | I161: 283 | J161: 2
A162: 110 | B162: VOSGES | C162: 55 | D162: SAINT DIE | E162: 488616 | F162: SENONES | G162: 1.9 | H162: 66 | I162: 66 | J162: 0
A163: 110 | B163: AUBE HAUTE MARNE | C163: 14 | D163: TROYES | E163: 510520 | F163: SAINT ANDRE LES VERGERS | G163: 4.5 | H163: 248 | I163: 247 | J163: -1
A164: 110 | B164: BAS-RHIN | C164: 5101 | D164: SELESTAT | E164: 4119 | F164: OBERNAI | G164: 5.3 | H164: 249 | I164: 248 | J164: -1
A165: 110 | B165: MOSELLE | C165: 42 | D165: MOSELLE EST | E165: 557458 | F165: MORHANGE | G165: 2.3 | H165: 170 | I165: 169 | J165: -1
A166: 110 | B166: MOSELLE | C166: 44 | D166: MOSELLE NORD | E166: 457632 | F166: THIONVILLE CENTRALE | G166: 10.8 | H166: 225 | I166: 224 | J166: -1
A167: 110 | B167: VOSGES | C167: 57 | D167: EPINAL | E167: 588336 | F167: GOLBEY | G167: 4.0 | H167: 158 | I167: 157 | J167: -1
A168: 110 | B168: AUBE HAUTE MARNE | C168: 21 | D168: CHAUMONT | E168: 410560 | F168: BOURBONNE LES BAINS | G168: 1.9 | H168: 27 | I168: 25 | J168: -2
A169: 110 | B169: BAS-RHIN | C169: 5060 | D169: HAGUENAU | E169: 4087 | F169: SAVERNE | G169: 7.7 | H169: 175 | I169: 173 | J169: -2
A170: 110 | B170: MARNE-ARDENNES | C170: 11 | D170: REIMS | E170: 551310 | F170: REIMS CHATILLONS | G170: 3.6 | H170: 5 | I170: 3 | J170: -2
A171: 110 | B171: MARNE-ARDENNES | C171: 11 | D171: REIMS | E171: 551306 | F171: REIMS SAINT MARCEAUX | G171: 4.8 | H171: 23 | I171: 21 | J171: -2
A172: 110 | B172: MEURTHE ET MOSELLE MEUSE | C172: 31 | D172: VERDUN | E172: 455566 | F172: REVIGNY SUR ORNAIN | G172: 2.9 | H172: 110 | I172: 108 | J172: -2
A173: 110 | B173: MARNE-ARDENNES | C173: 6 | D173: CHALONS EN CHAMPAGNE | E173: 551354 | F173: VERTUS | G173: 2.8 | H173: 15 | I173: 12 | J173: -3
A174: 110 | B174: MARNE-ARDENNES | C174: 11 | D174: REIMS | E174: 551340 | F174: BETHENY | G174: 3.0 | H174: 8 | I174: 5 | J174: -3
A175: 110 | B175: MARNE-ARDENNES | C175: 11 | D175: REIMS | E175: 551309 | F175: REIMS EUROPE | G175: 2.8 | H175: 21 | I175: 17 | J175: -4
A176: 110 | B176: MARNE-ARDENNES | C176: 11 | D176: REIMS | E176: 551341 | F176: REIMS JEAN JAURES | G176: 4.1 | H176: 67 | I176: 62 | J176: -5
A177: 110 | B177: BAS-RHIN | C177: 5060 | D177: HAGUENAU | E177: 4030 | F177: BRUMATH | G177: 7.3 | H177: 241 | I177: 235 | J177: -6
A178: 110 | B178: BAS-RHIN | C178: 5060 | D178: HAGUENAU | E178: 4066 | F178: NIEDERBRONN LES BAINS | G178: 5.7 | H178: 169 | I178: 163 | J178: -6
A179: 110 | B179: HAUT-RHIN | C179: 5169 | D179: MULHOUSE | E179: 4184 | F179: ILLZACH | G179: 3.2 | H179: 267 | I179: 260 | J179: -7
A180: 110 | B180: MARNE-ARDENNES | C180: 6 | D180: CHALONS EN CHAMPAGNE | E180: 551330 | F180: MONTMIRAIL | G180: 3.1 | H180: 31 | I180: 24 | J180: -7
A181: 110 | B181: MARNE-ARDENNES | C181: 2 | D181: CHARLEVILLE MEZIERES | E181: 508833 | F181: VILLERS SEMEUSE CORA | G181: 2.9 | H181: 11 | I181: 4 | J181: -7
A182: 110 | B182: BAS-RHIN | C182: 5060 | D182: HAGUENAU | E182: 4095 | F182: SARRE UNION | G182: 4.2 | H182: 161 | I182: 152 | J182: -9
A183: 110 | B183: MARNE-ARDENNES | C183: 11 | D183: REIMS | E183: 551305 | F183: REIMS HIPPODROME | G183: 3.7 | H183: 44 | I183: 35 | J183: -9
A184: 110 | B184: MOSELLE | C184: 45 | D184: METZ | E184: 557444 | F184: METZ SAINT JULIEN | G184: 6.0 | H184: 49 | I184: 39 | J184: -10
A185: 110 | B185: BAS-RHIN | C185: 5101 | D185: SELESTAT | E185: 4121 | F185: SCHIRMECK | G185: 3.0 | H185: 126 | I185: 115 | J185: -11
A186: 110 | B186: BAS-RHIN | C186: 5060 | D186: HAGUENAU | E186: 4092 | F186: HOCHFELDEN | G186: 2.4 | H186: 114 | I186: 102 | J186: -12
A187: 110 | B187: MOSELLE | C187: 42 | D187: MOSELLE EST | E187: 557503 | F187: NEUNKIRCH | G187: 2.7 | H187: 53 | I187: 41 | J187: -12
A188: 110 | B188: BAS-RHIN | C188: 5006 | D188: STRASBOURG | E188: 4027 | F188: SCHILTIGHEIM CENTRE | G188: 3.1 | H188: 217 | I188: 204 | J188: -13
A189: 110 | B189: MARNE-ARDENNES | C189: 11 | D189: REIMS | E189: 451336 | F189: TINQUEUX | G189: 5.2 | H189: 32 | I189: 18 | J189: -14
A190: 110 | B190: VOSGES | C190: 55 | D190: SAINT DIE | E190: 488346 | F190: GRANGES AUMONTZEY | G190: 1.8 | H190: 24 | I190: 10 | J190: -14
A191: 110 | B191: AUBE HAUTE MARNE | C191: 21 | D191: CHAUMONT | E191: 410541 | F191: LANGRES | G191: 6.7 | H191: 88 | I191: 73 | J191: -15
A192: 110 | B192: MOSELLE | C192: 42 | D192: MOSELLE EST | E192: 457163 | F192: BEHREN LES FORBACH | G192: 2.4 | H192: 47 | I192: 32 | J192: -15
A193: 110 | B193: HAUT-RHIN | C193: 5130 | D193: COLMAR | E193: 4164 | F193: SAINTE MARIE AUX MINES | G193: 2.8 | H193: 272 | I193: 256 | J193: -16
A194: 110 | B194: MARNE-ARDENNES | C194: 6 | D194: CHALONS EN CHAMPAGNE | E194: 551103 | F194: FAGNIERES LECLERC | G194: 2.7 | H194: 22 | I194: 6 | J194: -16
A195: 110 | B195: MARNE-ARDENNES | C195: 11 | D195: REIMS | E195: 451350 | F195: REIMS CENTRE VILLE | G195: 8.0 | H195: 136 | I195: 120 | J195: -16
A196: 110 | B196: MEURTHE ET MOSELLE MEUSE | C196: 26 | D196: NANCY | E196: 454161 | F196: BAYON | G196: 1.3 | H196: 233 | I196: 216 | J196: -17
A197: 110 | B197: MEURTHE ET MOSELLE MEUSE | C197: 27 | D197: PONT A MOUSSON | E197: 554257 | F197: DIEULOUARD | G197: 3.5 | H197: 164 | I197: 147 | J197: -17
A198: 110 | B198: MOSELLE | C198: 45 | D198: METZ | E198: 557434 | F198: MARLY | G198: 3.8 | H198: 33 | I198: 15 | J198: -18
A199: 110 | B199: MOSELLE | C199: 45 | D199: METZ | E199: 557612 | F199: SAINTE MARIE AUX CHENES | G199: 3.8 | H199: 152 | I199: 134 | J199: -18
A200: 110 | B200: HAUT-RHIN | C200: 5169 | D200: MULHOUSE | E200: 4194 | F200: THANN | G200: 8.5 | H200: 226 | I200: 207 | J200: -19
A201: 110 | B201: MOSELLE | C201: 42 | D201: MOSELLE EST | E201: 557353 | F201: HOMBOURG HAUT | G201: 2.3 | H201: 262 | I201: 243 | J201: -19
A202: 110 | B202: AUBE HAUTE MARNE | C202: 14 | D202: TROYES | E202: 410571 | F202: ROMILLY ORMES | G202: 6.6 | H202: 157 | I202: 137 | J202: -20
A203: 110 | B203: AUBE HAUTE MARNE | C203: 14 | D203: TROYES | E203: 510523 | F203: LA CHAPELLE ST LUC | G203: 5.7 | H203: 194 | I203: 172 | J203: -22
A204: 110 | B204: MOSELLE | C204: 44 | D204: MOSELLE NORD | E204: 457634 | F204: THIONVILLE LA MILLIAIRE | G204: 1.5 | H204: 280 | I204: 258 | J204: -22
... 89 more rows

Sheet AG_FICHE
A1: Accueil
A2: BAROMETRE BDD
A4: UNITE: | B4: Agence | E4: ETP perf : | F4: =VLOOKUP(A5,'RECAP AG'!$G$6:$DG$280,3,FALSE) -> 8.70
A5: =VLOOKUP(B5,LISTES!$C$6:$D$290,2,FALSE) -> 4189 | B5: ALTKIRCH
C6: Coefficient du critère | E6: Résultats | I6: Ecart au 1ier | M6: Evolution | O6: =IF(OR(A5=4017,A5=4022),"Rang estimé","Rang") -> Rang
E7: du 1ier | G7: de l'Agence | I7: Du mois | K7: Au 31/12/2019
A9: RANG au CLASSEMENT GENERAL | K9: =VLOOKUP($A$5,'RECAP AG AN'!$G$6:$FS$313,168,FALSE) -> 180 | M9: =+K9-O9 ->  | O9: =VLOOKUP($A$5,'RECAP AG'!$G$6:$DG$280,168,FALSE) -> 
A11: CRITERE CONQUETE | C11: 15% | O11: =VLOOKUP($A$5,'RECAP AG'!$G$6:$DG$280,23,FALSE) -> 5.286284703
B12: PNB Evolution nette Clients BP | C12: 4% | E12: ='RECAP AG'!#REF! ->  | G12: =VLOOKUP($A$5,'RECAP AG'!$G$6:$DG$280,6,FALSE) -> 1.0 | I12: =VLOOKUP($A$5,'RECAP AG'!$G$6:$DG$280,7,FALSE) -> 19500% | K12: =VLOOKUP($A$5,'RECAP AG AN'!$G$6:$FS$313,7,FALSE) -> 73% | M12: =+K12-I12 -> -19427% | O12: =VLOOKUP($A$5,'RECAP AG'!$G$6:$DG$280,8,FALSE) -> 0.3211009174
B13: PNB Evolution nette Clients PREMIUM | C13: 5% | E13: ='RECAP AG'!#REF! ->  | G13: =VLOOKUP($A$5,'RECAP AG'!$G$6:$DG$280,10,FALSE) -> 227.0 | I13: =VLOOKUP($A$5,'RECAP AG'!$G$6:$DG$280,11,FALSE) -> 82% | K13: =VLOOKUP($A$5,'RECAP AG AN'!$G$6:$FS$313,11,FALSE) -> 68% | M13: =+K13-I13 -> -14% | O13: =VLOOKUP($A$5,'RECAP AG'!$G$6:$DG$280,12,FALSE) -> 0.6923657945
B14: PNB Evolution nette Clients Jeunes Equipés | C14: 3% | E14: ='RECAP AG'!#REF! ->  | G14: =VLOOKUP($A$5,'RECAP AG'!$G$6:$DG$280,14,FALSE) -> 0.0 | I14: =VLOOKUP($A$5,'RECAP AG'!$G$6:$DG$280,15,FALSE) -> 0% | K14: =VLOOKUP($A$5,'RECAP AG AN'!$G$6:$FS$313,15,FALSE) -> 56% | M14: =+K14-I14 -> 56% | O14: =VLOOKUP($A$5,'RECAP AG'!$G$6:$DG$280,16,FALSE) -> 0
B15: PNB Evolution nette Clients Pro Actifs Equipés | C15: 3% | E15: ='RECAP AG'!W4 -> 0.0 | G15: =VLOOKUP($A$5,'RECAP AG'!$G$6:$DG$280,18,FALSE) -> 23.8 | I15: =VLOOKUP($A$5,'RECAP AG'!$G$6:$DG$280,19,FALSE) -> 274% | K15: =VLOOKUP($A$5,'RECAP AG AN'!$G$6:$FS$313,19,FALSE) -> 94% | M15: =+K15-I15 -> -179% | O15: =VLOOKUP($A$5,'RECAP AG'!$G$6:$DG$280,20,FALSE) -> 0.9475751803
A17: CRITERE BANCARISATION | C17: 15% | O17: =VLOOKUP($A$5,'RECAP AG'!$G$6:$DG$280,48,FALSE) -> 264
B18: PNB Ventes nettes forfaits | C18: 4% | E18: ='RECAP AG'!X4 -> 52.2 | G18: =VLOOKUP($A$5,'RECAP AG'!$G$6:$DG$280,31,FALSE) -> -0.6 | I18: =VLOOKUP($A$5,'RECAP AG'!$G$6:$DG$280,32,FALSE) -> 82% | K18: =VLOOKUP($A$5,'RECAP AG AN'!$G$6:$FS$313,32,FALSE) -> 52% | M18: =+K18-I18 -> -30% | O18: =VLOOKUP($A$5,'RECAP AG'!$G$6:$DG$280,33,FALSE) -> 242
B19: PNB Ventes nettes IZICARTES Débit Différé | C19: 4% | E19: ='RECAP AG'!AB4 -> 28.4 | G19: =VLOOKUP($A$5,'RECAP AG'!$G$6:$DG$280,35,FALSE) -> 0.6 | I19: =VLOOKUP($A$5,'RECAP AG'!$G$6:$DG$280,36,FALSE) -> 26800% | K19: =VLOOKUP($A$5,'RECAP AG AN'!$G$6:$FS$313,36,FALSE) -> 79% | M19: =+K19-I19 -> -26721% | O19: =VLOOKUP($A$5,'RECAP AG'!$G$6:$DG$280,37,FALSE) -> 0
B20: PNB Ventes nettes cartes HDG Débit Différé | C20: 4% | E20: ='RECAP AG'!AF4 -> 14.7 | G20: =VLOOKUP($A$5,'RECAP AG'!$G$6:$DG$280,39,FALSE) -> 0.0 | I20: =VLOOKUP($A$5,'RECAP AG'!$G$6:$DG$280,40,FALSE) -> 0% | K20: =VLOOKUP($A$5,'RECAP AG AN'!$G$6:$FS$313,40,FALSE) -> 80% | M20: =+K20-I20 -> 80% | O20: =VLOOKUP($A$5,'RECAP AG'!$G$6:$DG$280,41,FALSE) -> 598.0581325
B21: PNB Ventes nettes Forfaits Pro, Carte pro | C21: 3% | E21: ='RECAP AG'!AJ4 -> -0.0 | G21: =VLOOKUP($A$5,'RECAP AG'!$G$6:$DG$280,43,FALSE) -> 0.5 | I21: =VLOOKUP($A$5,'RECAP AG'!$G$6:$DG$280,44,FALSE) -> 20300% | K21: =VLOOKUP($A$5,'RECAP AG AN'!$G$6:$FS$313,44,FALSE) -> 76% | M21: =+K21-I21 -> -20224% | O21: =VLOOKUP($A$5,'RECAP AG'!$G$6:$DG$280,45,FALSE) -> 21
A23: CRITERE EPARGNE | C23: 10% | O23: =VLOOKUP($A$5,'RECAP AG'!$G$6:$DG$280,69,FALSE) -> 0.7126173517
B24: PNB Epargne Liquide | C24: 3% | E24: ='RECAP AG'!AU4 -> 662.5 | G24: =VLOOKUP($A$5,'RECAP AG'!$G$6:$DG$280,56,FALSE) -> 69.8 | I24: =VLOOKUP($A$5,'RECAP AG'!$G$6:$DG$280,57,FALSE) -> 802% | K24: =VLOOKUP($A$5,'RECAP AG AN'!$G$6:$FS$313,57,FALSE) -> 99% | M24: =+K24-I24 -> -704% | O24: =VLOOKUP($A$5,'RECAP AG'!$G$6:$DG$280,58,FALSE) -> 0.9613130964
B25: PNB CA UC + arbitrage | C25: 4% | E25: ='RECAP AG'!AY4 -> 24.4 | G25: =VLOOKUP($A$5,'RECAP AG'!$G$6:$DG$280,60,FALSE) -> 176.5 | I25: =VLOOKUP($A$5,'RECAP AG'!$G$6:$DG$280,61,FALSE) -> 2028% | K25: =VLOOKUP($A$5,'RECAP AG AN'!$G$6:$FS$313,61,FALSE) -> 78% | M25: =+K25-I25 -> -1950% | O25: =VLOOKUP($A$5,'RECAP AG'!$G$6:$DG$280,62,FALSE) -> 0.5092841633
B26: PNB Excédent assurance vie | C26: 3% | E26: ='RECAP AG'!#REF! ->  | G26: =VLOOKUP($A$5,'RECAP AG'!$G$6:$DG$280,64,FALSE) -> 24.0 | I26: =VLOOKUP($A$5,'RECAP AG'!$G$6:$DG$280,65,FALSE) -> 276% | K26: =VLOOKUP($A$5,'RECAP AG AN'!$G$6:$FS$313,65,FALSE) -> 54% | M26: =+K26-I26 -> -222% | O26: =VLOOKUP($A$5,'RECAP AG'!$G$6:$DG$280,66,FALSE) -> 0.8144188293
A28: CRITERE CREDITS | C28: 15% | O28: =VLOOKUP($A$5,'RECAP AG'!$G$6:$DG$280,102,FALSE) -> 0.6670747305
B29: PNB crédit conso | C29: 4% | E29: ='RECAP AG'!BJ4 -> 207.4 | G29: =VLOOKUP($A$5,'RECAP AG'!$G$6:$DG$280,77,FALSE) -> 1.0 | I29: =VLOOKUP($A$5,'RECAP AG'!$G$6:$DG$280,78,FALSE) -> 25800% | K29: =VLOOKUP($A$5,'RECAP AG AN'!$G$6:$FS$313,78,FALSE) -> 35% | M29: =+K29-I29 -> -25765% | O29: =VLOOKUP($A$5,'RECAP AG'!$G$6:$DG$280,79,FALSE) -> 73
B30: PNB ADE crédit conso | C30: 1% | E30: ='RECAP AG'!#REF! ->  | G30: =VLOOKUP($A$5,'RECAP AG'!$G$6:$DG$280,81,FALSE) -> 0.6 | I30: =VLOOKUP($A$5,'RECAP AG'!$G$6:$DG$280,82,FALSE) -> 18900% | K30: =VLOOKUP($A$5,'RECAP AG AN'!$G$6:$FS$313,82,FALSE) -> 51% | M30: -18849% | O30: =VLOOKUP($A$5,'RECAP AG'!$G$6:$DG$280,83,FALSE) -> 0.8714306844
B31: PNB crédit immo | C31: 4% | E31: ='RECAP AG'!BN4 -> 41.3 | G31: =VLOOKUP($A$5,'RECAP AG'!$G$6:$DG$280,85,FALSE) -> 254.0 | I31: =VLOOKUP($A$5,'RECAP AG'!$G$6:$DG$280,86,FALSE) -> 0% | K31: =VLOOKUP($A$5,'RECAP AG AN'!$G$6:$FS$313,86,FALSE) -> 73% | M31: 73% | O31: =VLOOKUP($A$5,'RECAP AG'!$G$6:$DG$280,87,FALSE) -> 0
B32: PNB ADE crédit immo | C32: 2% | E32: ='RECAP AG'!#REF! ->  | G32: =VLOOKUP($A$5,'RECAP AG'!$G$6:$DG$280,89,FALSE) -> 0.0 | I32: =VLOOKUP($A$5,'RECAP AG'!$G$6:$DG$280,90,FALSE) -> 0% | K32: =VLOOKUP($A$5,'RECAP AG AN'!$G$6:$FS$313,90,FALSE) -> 61% | M32: 61% | O32: =VLOOKUP($A$5,'RECAP AG'!$G$6:$DG$280,91,FALSE) -> 0
B33: PNB SACCEF | C33: 2% | E33: ='RECAP AG'!#REF! ->  | G33: =VLOOKUP($A$5,'RECAP AG'!$G$6:$DG$280,93,FALSE) -> 0.0 | I33: =VLOOKUP($A$5,'RECAP AG'!$G$6:$DG$280,94,FALSE) -> 0% | K33: =VLOOKUP($A$5,'RECAP AG AN'!$G$6:$FS$313,94,FALSE) -> 71% | M33: 71% | O33: =VLOOKUP($A$5,'RECAP AG'!$G$6:$DG$280,95,FALSE) -> 0
B34: PNB Crédit MLT + Crédit Bail | C34: 2% | E34: ='RECAP AG'!BR4 -> 14.9 | G34: =VLOOKUP($A$5,'RECAP AG'!$G$6:$DG$280,97,FALSE) -> 0.0 | I34: =VLOOKUP($A$5,'RECAP AG'!$G$6:$DG$280,98,FALSE) -> 0% | K34: =VLOOKUP($A$5,'RECAP AG AN'!$G$6:$FS$313,98,FALSE) -> 96% | M34: 96% | O34: =VLOOKUP($A$5,'RECAP AG'!$G$6:$DG$280,99,FALSE) -> 0
A36: CRITERE IARD PREVOYANCE | C36: 15% | O36: =VLOOKUP($A$5,'RECAP AG'!$G$6:$DG$280,119,FALSE) -> 
B37: PNB Ventes nettes IARD | C37: 9% | E37: ='RECAP AG'!CC4 -> 175.3 | G37: =VLOOKUP($A$5,'RECAP AG'!$G$6:$DG$280,110,FALSE) ->  | I37: =VLOOKUP($A$5,'RECAP AG'!$G$6:$DG$280,111,FALSE) ->  | K37: =VLOOKUP($A$5,'RECAP AG AN'!$G$6:$FS$313,111,FALSE) -> 93% | M37: =+K37-I37 ->  | O37: =VLOOKUP($A$5,'RECAP AG'!$G$6:$DG$280,112,FALSE) -> 
B38: PNB Ventes nettes Prévoyance | C38: 6% | E38: ='RECAP AG'!CG4 -> 23.5 | G38: =VLOOKUP($A$5,'RECAP AG'!$G$6:$DG$280,114,FALSE) ->  | I38: =VLOOKUP($A$5,'RECAP AG'!$G$6:$DG$280,115,FALSE) ->  | K38: =VLOOKUP($A$5,'RECAP AG AN'!$G$6:$FS$313,115,FALSE) -> 89% | M38: =+K38-I38 ->  | O38: =VLOOKUP($A$5,'RECAP AG'!$G$6:$DG$280,116,FALSE) -> 
A40: CRITERE ACCELERATEURS PNB | C40: 15% | O40: =VLOOKUP($A$5,'RECAP AG'!$G$6:$DG$280,144,FALSE) -> 
B41: PNB Ventes brutes SED Finalisées | C41: 6% | E41: ='RECAP AG'!#REF! ->  | G41: =VLOOKUP($A$5,'RECAP AG'!$G$6:$DG$280,127,FALSE) ->  | I41: =VLOOKUP($A$5,'RECAP AG'!$G$6:$DG$280,128,FALSE) ->  | K41: =VLOOKUP($A$5,'RECAP AG AN'!$G$6:$FS$313,128,FALSE) -> 80% | M41: =+K41-I41 ->  | O41: =VLOOKUP($A$5,'RECAP AG'!$G$6:$DG$280,129,FALSE) -> 
B42: PNB clients équipés E documents | C42: 3% | E42: ='RECAP AG'!#REF! ->  | G42: =VLOOKUP($A$5,'RECAP AG'!$G$6:$DG$280,131,FALSE) ->  | I42: =VLOOKUP($A$5,'RECAP AG'!$G$6:$DG$280,132,FALSE) ->  | K42: =VLOOKUP($A$5,'RECAP AG AN'!$G$6:$FS$313,132,FALSE) -> 81% | M42: =+K42-I42 ->  | O42: =VLOOKUP($A$5,'RECAP AG'!$G$6:$DG$280,133,FALSE) -> 
B43: Economie opt'in | C43: 3% | E43: ='RECAP AG'!#REF! ->  | G43: =VLOOKUP($A$5,'RECAP AG'!$G$6:$DG$280,135,FALSE) ->  | I43: =VLOOKUP($A$5,'RECAP AG'!$G$6:$DG$280,136,FALSE) ->  | K43: =VLOOKUP($A$5,'RECAP AG AN'!$G$6:$FS$313,136,FALSE) -> 72% | M43: =+K43-I43 ->  | O43: =VLOOKUP($A$5,'RECAP AG'!$G$6:$DG$280,137,FALSE) -> 
B44: Remises commerciales | C44: 3% | E44: ='RECAP AG'!#REF! ->  | G44: =VLOOKUP($A$5,'RECAP AG'!$G$6:$DG$280,139,FALSE) ->  | I44: =VLOOKUP($A$5,'RECAP AG'!$G$6:$DG$280,140,FALSE) ->  | K44: =VLOOKUP($A$5,'RECAP AG AN'!$G$6:$FS$313,140,FALSE) -> 23% | M44: =+K44-I44 ->  | O44: =VLOOKUP($A$5,'RECAP AG'!$G$6:$DG$280,141,FALSE) -> 
A46: CRITERE Satisfaction Clients | C46: 15% | O46: =VLOOKUP($A$5,'RECAP AG'!$G$6:$DG$280,159,FALSE) -> 
B47: Objectifs NPS* | C47: 8% | E47: ='RECAP AG'!K4 -> 39 | G47: =VLOOKUP($A$5,'RECAP AG'!$G$6:$DG$280,151,FALSE) ->  | I47: =VLOOKUP($A$5,'RECAP AG'!$G$6:$DG$280,152,FALSE) ->  | K47: =VLOOKUP($A$5,'RECAP AG AN'!$G$6:$FS$313,152,FALSE) -> 78% | M47: =+K47-I47 ->  | O47: =VLOOKUP($A$5,'RECAP AG'!$G$6:$DG$280,153,FALSE) -> 
B48: Enquête Qualité Haute Définition | C48: 7% | E48: ='RECAP AG'!N4 -> 90% | G48: =VLOOKUP($A$5,'RECAP AG'!$G$6:$DG$280,154,FALSE) ->  | I48: =VLOOKUP($A$5,'RECAP AG'!$G$6:$DG$280,155,FALSE) ->  | K48: =VLOOKUP($A$5,'RECAP AG AN'!$G$6:$FS$313,155,FALSE) -> 11% | M48: =+K48-I48 ->  | O48: =VLOOKUP($A$5,'RECAP AG'!$G$6:$DG$280,156,FALSE) -> 

Sheet AG_TOTAL
B1: Accueil | H1: BAROMETRE BDD - AGENCES
H2: TOTAL GENERAL
H3: =ACCUEIL!F7 -> 2021-03-14
H7: TOTAL GENERAL | K7: Total Satisfaction Clients | N7: Total Bancarisation | Q7: Total Epargne | T7: Total IARD Prévoyance | W7: Total Crédits
I8: coef | J8: 100% | L8: coef | M8: =AG_SATISFACTION!P8 -> 20% | O8: coef | P8: =AG_BANCA!Z8 -> 20% | R8: coef | S8: =AG_EPARGNE!R8 -> 20% | U8: coef | V8: =AG_IARD!R8 -> 20% | X8: coef | Y8: =AG_CREDIT!V8 -> 20%
B9: Direction | C9: eds | D9: Territoire | E9: eds | F9: Agence | G9: ="ETP perf "&DATEMAJ!$C$28 -> ETP perf 31-janv | H9: Moyenne ecart au 1er | I9: % Ecart au 1er | J9: Rang CEGEE | K9: Moyenne ecart au 1er | L9: % Ecart au 1er | M9: Rang CEGEE | N9: Moyenne ecart au 1er | O9: % Ecart au 1er | P9: Rang CEGEE | Q9: Moyenne ecart au 1er | R9: % Ecart au 1er | S9: Rang CEGEE | T9: Moyenne ecart au 1er | U9: % Ecart au 1er | V9: Rang CEGEE | W9: Moyenne ecart au 1er | X9: % Ecart au 1er | Y9: Rang CEGEE
A10: 50 | B10: MEURTHE ET MOSELLE MEUSE | C10: 26 | D10: NANCY | E10: 454481 | F10: NANCY PLACE DOMBASLE | G10: 12.3 | H10: 19% | I10: 0% | J10: 1 | K10: 69% | L10: 56% | M10: 162 | N10: 26% | O10: 0% | P10: 1 | Q10: 30% | R10: 14% | S10: 15 | T10: 8% | U10: 5% | V10: 2 | W10: 29% | X10: 22% | Y10: 3
A11: 50 | B11: MEURTHE ET MOSELLE MEUSE | C11: 27 | D11: PONT A MOUSSON | E11: 554531 | F11: POMPEY | G11: 3.0 | H11: 20% | I11: 1% | J11: 2 | K11: 57% | L11: 43% | M11: 88 | N11: 26% | O11: 0% | P11: 2 | Q11: 21% | R11: 6% | S11: 5 | T11: 27% | U11: 24% | V11: 11 | W11: 33% | X11: 27% | Y11: 5
A12: 50 | B12: VOSGES | C12: 57 | D12: EPINAL | E12: 488288 | F12: EPINAL LEOPOLD BOURG | G12: 1.8 | H12: 23% | I12: 4% | J12: 3 | K12: 30% | L12: 16% | M12: 11 | N12: 33% | O12: 7% | P12: 4 | Q12: 43% | R12: 28% | S12: 79 | T12: 43% | U12: 40% | V12: 30 | W12: 33% | X12: 26% | Y12: 4
A13: 50 | B13: MEURTHE ET MOSELLE MEUSE | C13: 26 | D13: NANCY | E13: 554356 | F13: JARVILLE LA MALGRANGE | G13: 4.0 | H13: 24% | I13: 4% | J13: 4 | K13: 62% | L13: 49% | M13: 117 | N13: 37% | O13: 11% | P13: 6 | Q13: 52% | R13: 36% | S13: 155 | T13: 3% | U13: 0% | V13: 1 | W13: 29% | X13: 22% | Y13: 2
A14: 50 | B14: BAS-RHIN | C14: 5101 | D14: SELESTAT | E14: 4113 | F14: BARR | G14: 3.0 | H14: 25% | I14: 6% | J14: 5 | K14: 36% | L14: 23% | M14: 21 | N14: 35% | O14: 10% | P14: 5 | Q14: 17% | R14: 2% | S14: 2 | T14: 21% | U14: 18% | V14: 8 | W14: 80% | X14: 73% | Y14: 219
A15: 50 | B15: MOSELLE | C15: 44 | D15: MOSELLE NORD | E15: 557508 | F15: NILVANGE | G15: 2.1 | H15: 29% | I15: 10% | J15: 6 | K15: 61% | L15: 48% | M15: 112 | N15: 50% | O15: 24% | P15: 16 | Q15: 34% | R15: 18% | S15: 21 | T15: 10% | U15: 7% | V15: 3 | W15: 56% | X15: 49% | Y15: 22
A16: 50 | B16: MEURTHE ET MOSELLE MEUSE | C16: 27 | D16: PONT A MOUSSON | E16: 454651 | F16: TOUL | G16: 9.6 | H16: 33% | I16: 14% | J16: 7 | K16: 106% | L16: 93% | M16: 262 | N16: 40% | O16: 14% | P16: 10 | Q16: 44% | R16: 29% | S16: 84 | T16: 33% | U16: 30% | V16: 14 | W16: 7% | X16: 0% | Y16: 1
A17: 50 | B17: BAS-RHIN | C17: 5060 | D17: HAGUENAU | E17: 4092 | F17: HOCHFELDEN | G17: 1.8 | H17: 33% | I17: 14% | J17: 8 | K17: 47% | L17: 34% | M17: 46 | N17: 47% | O17: 22% | P17: 13 | Q17: 43% | R17: 28% | S17: 78 | T17: 36% | U17: 33% | V17: 18 | W17: 58% | X17: 51% | Y17: 28
A18: 50 | B18: BAS-RHIN | C18: 5101 | D18: SELESTAT | E18: 4120 | F18: WASSELONNE | G18: 2.9 | H18: 34% | I18: 15% | J18: 9 | K18: 76% | L18: 63% | M18: 197 | N18: 63% | O18: 38% | P18: 84 | Q18: 15% | R18: 0% | S18: 1 | T18: 19% | U18: 16% | V18: 6 | W18: 62% | X18: 55% | Y18: 46
A19: 50 | B19: AUBE HAUTE MARNE | C19: 21 | D19: CHAUMONT | E19: 510590 | F19: CHAUMONT REPUBLIQUE | G19: 3.9 | H19: 35% | I19: 16% | J19: 10 | K19: 54% | L19: 41% | M19: 74 | N19: 64% | O19: 38% | P19: 86 | Q19: 39% | R19: 24% | S19: 47 | T19: 28% | U19: 25% | V19: 12 | W19: 55% | X19: 48% | Y19: 20
A20: 50 | B20: MEURTHE ET MOSELLE MEUSE | C20: 26 | D20: NANCY | E20: 554636 | F20: TOMBLAINE | G20: 2.0 | H20: 36% | I20: 17% | J20: 11 | K20: 39% | L20: 26% | M20: 28 | N20: 78% | O20: 52% | P20: 220 | Q20: 39% | R20: 24% | S20: 49 | T20: 26% | U20: 23% | V20: 10 | W20: 64% | X20: 57% | Y20: 52
A21: 50 | B21: MARNE-ARDENNES | C21: 11 | D21: REIMS | E21: 551349 | F21: REIMS SAINT REMI | G21: 2.9 | H21: 37% | I21: 17% | J21: 12 | K21: 56% | L21: 43% | M21: 85 | N21: 52% | O21: 27% | P21: 23 | Q21: 24% | R21: 9% | S21: 7 | T21: 57% | U21: 54% | V21: 79 | W21: 58% | X21: 51% | Y21: 27
A22: 50 | B22: MARNE-ARDENNES | C22: 2 | D22: CHARLEVILLE MEZIERES | E22: 408822 | F22: CHARLEVILLE MEZIERES | G22: 4.4 | H22: 37% | I22: 18% | J22: 13 | K22: 57% | L22: 44% | M22: 92 | N22: 61% | O22: 36% | P22: 61 | Q22: 26% | R22: 11% | S22: 10 | T22: 45% | U22: 42% | V22: 37 | W22: 59% | X22: 52% | Y22: 31
A23: 50 | B23: MOSELLE | C23: 42 | D23: MOSELLE EST | E23: 457163 | F23: BEHREN LES FORBACH | G23: 2.5 | H23: 38% | I23: 18% | J23: 14 | K23: 40% | L23: 27% | M23: 32 | N23: 50% | O23: 24% | P23: 17 | Q23: 39% | R23: 23% | S23: 44 | T23: 55% | U23: 51% | V23: 67 | W23: 70% | X23: 63% | Y23: 100
A24: 50 | B24: MARNE-ARDENNES | C24: 11 | D24: REIMS | E24: 551310 | F24: REIMS CHATILLONS | G24: 3.7 | H24: 38% | I24: 19% | J24: 15 | K24: 56% | L24: 42% | M24: 84 | N24: 51% | O24: 25% | P24: 20 | Q24: 37% | R24: 22% | S24: 40 | T24: 56% | U24: 53% | V24: 73 | W24: 54% | X24: 47% | Y24: 15
A25: 50 | B25: MEURTHE ET MOSELLE MEUSE | C25: 27 | D25: PONT A MOUSSON | E25: 554321 | F25: FROUARD | G25: 3.0 | H25: 38% | I25: 19% | J25: 16 | K25: 58% | L25: 45% | M25: 97 | N25: 68% | O25: 42% | P25: 122 | Q25: 24% | R25: 9% | S25: 6 | T25: 50% | U25: 47% | V25: 49 | W25: 57% | X25: 50% | Y25: 26
A26: 50 | B26: MOSELLE | C26: 45 | D26: METZ | E26: 557447 | F26: METZ SAINT MAXIMIN | G26: 3.0 | H26: 39% | I26: 19% | J26: 17 | K26: 55% | L26: 42% | M26: 78 | N26: 53% | O26: 27% | P26: 25 | Q26: 44% | R26: 29% | S26: 82 | T26: 52% | U26: 48% | V26: 55 | W26: 54% | X26: 48% | Y26: 17
A27: 50 | B27: MARNE-ARDENNES | C27: 2 | D27: CHARLEVILLE MEZIERES | E27: 408862 | F27: REVIN | G27: 3.6 | H27: 40% | I27: 20% | J27: 18 | K27: 60% | L27: 47% | M27: 107 | N27: 44% | O27: 18% | P27: 11 | Q27: 29% | R27: 13% | S27: 13 | T27: 67% | U27: 64% | V27: 136 | W27: 62% | X27: 55% | Y27: 43
A28: 50 | B28: BAS-RHIN | C28: 5101 | D28: SELESTAT | E28: 4107 | F28: VILLE | G28: 2.9 | H28: 40% | I28: 20% | J28: 19 | K28: 82% | L28: 69% | M28: 219 | N28: 27% | O28: 1% | P28: 3 | Q28: 40% | R28: 25% | S28: 55 | T28: 38% | U28: 34% | V28: 20 | W28: 77% | X28: 70% | Y28: 176
A29: 50 | B29: MARNE-ARDENNES | C29: 6 | D29: CHALONS EN CHAMPAGNE | E29: 451115 | F29: MOURMELON LE GRAND | G29: 3.0 | H29: 40% | I29: 20% | J29: 20 | K29: 50% | L29: 37% | M29: 59 | N29: 74% | O29: 48% | P29: 190 | Q29: 29% | R29: 14% | S29: 14 | T29: 49% | U29: 46% | V29: 47 | W29: 60% | X29: 53% | Y29: 37
A30: 50 | B30: VOSGES | C30: 57 | D30: EPINAL | E30: 588716 | F30: XERTIGNY | G30: 3.0 | H30: 40% | I30: 20% | J30: 21 | K30: 55% | L30: 42% | M30: 79 | N30: 70% | O30: 44% | P30: 149 | Q30: 42% | R30: 26% | S30: 65 | T30: 17% | U30: 14% | V30: 5 | W30: 80% | X30: 73% | Y30: 213
A31: 50 | B31: VOSGES | C31: 55 | D31: SAINT DIE | E31: 488246 | F31: CORNIMONT LA BRESSE | G31: 2.9 | H31: 40% | I31: 21% | J31: 22 | K31: 37% | L31: 24% | M31: 23 | N31: 64% | O31: 38% | P31: 85 | Q31: 50% | R31: 35% | S31: 144 | T31: 44% | U31: 41% | V31: 32 | W31: 71% | X31: 64% | Y31: 106
A32: 262 | B32: MARNE-ARDENNES | C32: 11 | D32: REIMS | E32: 551309 | F32: REIMS EUROPE | G32: 3.0 | H32: 41% | I32: 21% | J32: 23 | K32: 31% | L32: 18% | M32: 13 | N32: 61% | O32: 36% | P32: 59 | Q32: 42% | R32: 27% | S32: 70 | T32: 54% | U32: 51% | V32: 66 | W32: 79% | X32: 72% | Y32: 198
A33: 262 | B33: MOSELLE | C33: 42 | D33: MOSELLE EST | E33: 557250 | F33: CREUTZWALD | G33: 2.9 | H33: 41% | I33: 21% | J33: 24 | K33: 47% | L33: 34% | M33: 48 | N33: 73% | O33: 47% | P33: 178 | Q33: 18% | R33: 3% | S33: 3 | T33: 64% | U33: 60% | V33: 111 | W33: 66% | X33: 59% | Y33: 66
A34: 262 | B34: VOSGES | C34: 57 | D34: EPINAL | E34: 488706 | F34: VITTEL | G34: 3.5 | H34: 41% | I34: 22% | J34: 25 | K34: 38% | L34: 25% | M34: 27 | N34: 73% | O34: 47% | P34: 171 | Q34: 35% | R34: 20% | S34: 27 | T34: 54% | U34: 51% | V34: 62 | W34: 71% | X34: 64% | Y34: 107
A35: 262 | B35: MEURTHE ET MOSELLE MEUSE | C35: 27 | D35: PONT A MOUSSON | E35: 554416 | F35: LUDRES | G35: 4.0 | H35: 42% | I35: 22% | J35: 26 | K35: 31% | L35: 18% | M35: 12 | N35: 68% | O35: 42% | P35: 130 | Q35: 39% | R35: 24% | S35: 51 | T35: 71% | U35: 68% | V35: 161 | W35: 64% | X35: 57% | Y35: 51
A36: 262 | B36: MARNE-ARDENNES | C36: 11 | D36: REIMS | E36: 551305 | F36: REIMS HIPPODROME | G36: 3.8 | H36: 42% | I36: 23% | J36: 27 | K36: 27% | L36: 14% | M36: 8 | N36: 67% | O36: 41% | P36: 114 | Q36: 59% | R36: 43% | S36: 231 | T36: 60% | U36: 56% | V36: 86 | W36: 61% | X36: 54% | Y36: 42
A37: 262 | B37: VOSGES | C37: 55 | D37: SAINT DIE | E37: 588186 | F37: BRUYERES | G37: 3.7 | H37: 42% | I37: 23% | J37: 28 | K37: 50% | L37: 37% | M37: 61 | N37: 62% | O37: 36% | P37: 62 | Q37: 53% | R37: 38% | S37: 169 | T37: 46% | U37: 42% | V37: 39 | W37: 63% | X37: 56% | Y37: 50
A38: 262 | B38: BAS-RHIN | C38: 5060 | D38: HAGUENAU | E38: 4066 | F38: NIEDERBRONN LES BAINS | G38: 6.1 | H38: 42% | I38: 23% | J38: 29 | K38: 32% | L38: 19% | M38: 14 | N38: 61% | O38: 35% | P38: 58 | Q38: 47% | R38: 32% | S38: 110 | T38: 60% | U38: 56% | V38: 87 | W38: 75% | X38: 68% | Y38: 149
A39: 262 | B39: MARNE-ARDENNES | C39: 6 | D39: CHALONS EN CHAMPAGNE | E39: 551330 | F39: MONTMIRAIL | G39: 3.0 | H39: 42% | I39: 23% | J39: 30 | K39: 44% | L39: 31% | M39: 39 | N39: 68% | O39: 42% | P39: 132 | Q39: 32% | R39: 17% | S39: 17 | T39: 67% | U39: 64% | V39: 135 | W39: 65% | X39: 58% | Y39: 57
A40: 262 | B40: BAS-RHIN | C40: 5101 | D40: SELESTAT | E40: 4121 | F40: SCHIRMECK | G40: 3.8 | H40: 42% | I40: 23% | J40: 31 | K40: 49% | L40: 35% | M40: 52 | N40: 62% | O40: 36% | P40: 70 | Q40: 42% | R40: 27% | S40: 69 | T40: 57% | U40: 53% | V40: 76 | W40: 67% | X40: 60% | Y40: 76
A41: 262 | B41: VOSGES | C41: 57 | D41: EPINAL | E41: 588631 | F41: THAON LES VOSGES | G41: 5.4 | H41: 43% | I41: 23% | J41: 32 | K41: 44% | L41: 31% | M41: 40 | N41: 59% | O41: 33% | P41: 40 | Q41: 52% | R41: 36% | S41: 156 | T41: 48% | U41: 45% | V41: 43 | W41: 75% | X41: 68% | Y41: 153
A42: 262 | B42: MARNE-ARDENNES | C42: 2 | D42: CHARLEVILLE MEZIERES | E42: 508820 | F42: VOUZIERS | G42: 2.9 | H42: 43% | I42: 23% | J42: 33 | K42: 88% | L42: 75% | M42: 230 | N42: 61% | O42: 35% | P42: 52 | Q42: 38% | R42: 23% | S42: 43 | T42: 42% | U42: 39% | V42: 26 | W42: 49% | X42: 43% | Y42: 9
A43: 262 | B43: AUBE HAUTE MARNE | C43: 21 | D43: CHAUMONT | E43: 410560 | F43: BOURBONNE LES BAINS | G43: 2.0 | H43: 43% | I43: 23% | J43: 34 | K43: 15% | L43: 1% | M43: 2 | N43: 72% | O43: 46% | P43: 168 | Q43: 52% | R43: 37% | S43: 158 | T43: 58% | U43: 55% | V43: 83 | W43: 81% | X43: 74% | Y43: 228
A44: 262 | B44: MOSELLE | C44: 45 | D44: METZ | E44: 557444 | F44: SAINT JULIEN LES METZ | G44: 5.6 | H44: 43% | I44: 24% | J44: 35 | K44: 57% | L44: 44% | M44: 93 | N44: 67% | O44: 41% | P44: 113 | Q44: 47% | R44: 31% | S44: 107 | T44: 38% | U44: 35% | V44: 22 | W44: 70% | X44: 63% | Y44: 93
A45: 262 | B45: MEURTHE ET MOSELLE MEUSE | C45: 31 | D45: VERDUN | E45: 554412 | F45: LONGUYON | G45: 3.0 | H45: 43% | I45: 24% | J45: 36 | K45: 36% | L45: 23% | M45: 22 | N45: 68% | O45: 42% | P45: 125 | Q45: 53% | R45: 38% | S45: 173 | T45: 52% | U45: 49% | V45: 57 | W45: 70% | X45: 63% | Y45: 98
A46: 262 | B46: BAS-RHIN | C46: 5060 | D46: HAGUENAU | E46: 4071 | F46: WISSEMBOURG | G46: 8.7 | H46: 43% | I46: 24% | J46: 37 | K46: 34% | L46: 21% | M46: 18 | N46: 62% | O46: 36% | P46: 63 | Q46: 41% | R46: 26% | S46: 59 | T46: 62% | U46: 59% | V46: 106 | W46: 81% | X46: 74% | Y46: 225
A47: 262 | B47: MOSELLE | C47: 45 | D47: METZ | E47: 457453 | F47: MONTIGNY LES METZ | G47: 8.0 | H47: 43% | I47: 24% | J47: 38 | K47: 35% | L47: 22% | M47: 19 | N47: 59% | O47: 33% | P47: 39 | Q47: 49% | R47: 34% | S47: 134 | T47: 73% | U47: 70% | V47: 178 | W47: 64% | X47: 57% | Y47: 53
A48: 262 | B48: MARNE-ARDENNES | C48: 6 | D48: CHALONS EN CHAMPAGNE | E48: 551110 | F48: CHALONS ROOSEVELT | G48: 5.0 | H48: 43% | I48: 24% | J48: 39 | K48: 33% | L48: 20% | M48: 16 | N48: 67% | O48: 41% | P48: 115 | Q48: 37% | R48: 21% | S48: 35 | T48: 73% | U48: 69% | V48: 173 | W48: 71% | X48: 64% | Y48: 103
A49: 262 | B49: BAS-RHIN | C49: 5101 | D49: SELESTAT | E49: 4007 | F49: ILLKIRCH CENTRE | G49: 7.0 | H49: 43% | I49: 24% | J49: 40 | K49: 67% | L49: 54% | M49: 152 | N49: 39% | O49: 14% | P49: 9 | Q49: 50% | R49: 35% | S49: 148 | T49: 45% | U49: 42% | V49: 36 | W49: 79% | X49: 72% | Y49: 202
A50: 262 | B50: BAS-RHIN | C50: 5006 | D50: STRASBOURG | E50: 4037 | F50: MUNDOLSHEIM | G50: 4.4 | H50: 44% | I50: 24% | J50: 41 | K50: 72% | L50: 58% | M50: 173 | N50: 38% | O50: 12% | P50: 8 | Q50: 42% | R50: 26% | S50: 66 | T50: 48% | U50: 44% | V50: 41 | W50: 83% | X50: 76% | Y50: 241
A51: 262 | B51: MEURTHE ET MOSELLE MEUSE | C51: 26 | D51: NANCY | E51: 454426 | F51: LUNEVILLE CARNOT | G51: 9.6 | H51: 44% | I51: 24% | J51: 42 | K51: 64% | L51: 51% | M51: 136 | N51: 60% | O51: 34% | P51: 48 | Q51: 44% | R51: 29% | S51: 87 | T51: 53% | U51: 49% | V51: 59 | W51: 63% | X51: 56% | Y51: 48
A52: 262 | B52: MOSELLE | C52: 44 | D52: MOSELLE NORD | E52: 457348 | F52: HAGONDANGE | G52: 8.6 | H52: 44% | I52: 25% | J52: 43 | K52: 75% | L52: 62% | M52: 189 | N52: 53% | O52: 27% | P52: 27 | Q52: 39% | R52: 24% | S52: 50 | T52: 51% | U52: 48% | V52: 54 | W52: 66% | X52: 59% | Y52: 62
A53: 262 | B53: HAUT-RHIN | C53: 5130 | D53: COLMAR | E53: 4153 | F53: ROUFFACH | G53: 3.7 | H53: 44% | I53: 25% | J53: 44 | K53: 58% | L53: 45% | M53: 98 | N53: 63% | O53: 37% | P53: 81 | Q53: 61% | R53: 45% | S53: 238 | T53: 33% | U53: 30% | V53: 15 | W53: 70% | X53: 63% | Y53: 97
A54: 262 | B54: MOSELLE | C54: 45 | D54: METZ | E54: 457443 | F54: METZ REPUBLIQUE | G54: 4.2 | H54: 44% | I54: 25% | J54: 45 | K54: 13% | L54: 0% | M54: 1 | N54: 73% | O54: 47% | P54: 175 | Q54: 56% | R54: 41% | S54: 210 | T54: 80% | U54: 77% | V54: 225 | W54: 63% | X54: 56% | Y54: 49
A55: 262 | B55: MOSELLE | C55: 44 | D55: MOSELLE NORD | E55: 557113 | F55: AUDUN LE TICHE | G55: 2.2 | H55: 44% | I55: 25% | J55: 46 | K55: 92% | L55: 79% | M55: 242 | N55: 59% | O55: 33% | P55: 43 | Q55: 36% | R55: 20% | S55: 28 | T55: 54% | U55: 51% | V55: 64 | W55: 45% | X55: 38% | Y55: 6
A56: 262 | B56: MEURTHE ET MOSELLE MEUSE | C56: 31 | D56: VERDUN | E56: 555679 | F56: VERDUN MAZEL | G56: 4.0 | H56: 44% | I56: 25% | J56: 47 | K56: 44% | L56: 31% | M56: 38 | N56: 67% | O56: 41% | P56: 107 | Q56: 38% | R56: 23% | S56: 41 | T56: 62% | U56: 59% | V56: 99 | W56: 76% | X56: 69% | Y56: 175
A57: 262 | B57: AUBE HAUTE MARNE | C57: 14 | D57: TROYES | E57: 510511 | F57: TROYES BROSSOLETTE | G57: 3.0 | H57: 45% | I57: 25% | J57: 48 | K57: 56% | L57: 42% | M57: 83 | N57: 59% | O57: 34% | P57: 46 | Q57: 32% | R57: 17% | S57: 18 | T57: 68% | U57: 65% | V57: 143 | W57: 72% | X57: 65% | Y57: 116
A58: 262 | B58: MEURTHE ET MOSELLE MEUSE | C58: 27 | D58: PONT A MOUSSON | E58: 554357 | F58: JOEUF | G58: 4.0 | H58: 45% | I58: 25% | J58: 49 | K58: 59% | L58: 46% | M58: 100 | N58: 68% | O58: 42% | P58: 129 | Q58: 58% | R58: 43% | S58: 230 | T58: 42% | U58: 39% | V58: 25 | W58: 60% | X58: 53% | Y58: 39
A59: 262 | B59: MEURTHE ET MOSELLE MEUSE | C59: 31 | D59: VERDUN | E59: 454414 | F59: LONGWY HAUT | G59: 4.0 | H59: 45% | I59: 25% | J59: 50 | K59: 64% | L59: 51% | M59: 138 | N59: 63% | O59: 37% | P59: 73 | Q59: 36% | R59: 21% | S59: 33 | T59: 52% | U59: 48% | V59: 56 | W59: 74% | X59: 67% | Y59: 132
A60: 262 | B60: BAS-RHIN | C60: 5006 | D60: STRASBOURG | E60: 4047 | F60: STRASBOURG CRONENBOURG | G60: 6.7 | H60: 45% | I60: 25% | J60: 51 | K60: 49% | L60: 36% | M60: 56 | N60: 67% | O60: 41% | P60: 110 | Q60: 48% | R60: 33% | S60: 121 | T60: 51% | U60: 48% | V60: 53 | W60: 73% | X60: 66% | Y60: 130
A61: 262 | B61: VOSGES | C61: 55 | D61: SAINT DIE | E61: 588587 | F61: SAINT DIE CATHEDRALE | G61: 4.0 | H61: 45% | I61: 26% | J61: 52 | K61: 37% | L61: 24% | M61: 24 | N61: 70% | O61: 45% | P61: 154 | Q61: 31% | R61: 16% | S61: 16 | T61: 68% | U61: 65% | V61: 141 | W61: 83% | X61: 76% | Y61: 238
A62: 262 | B62: BAS-RHIN | C62: 5006 | D62: STRASBOURG | E62: 4033 | F62: LA WANTZENAU | G62: 1.2 | H62: 45% | I62: 26% | J62: 53 | K62: 86% | L62: 72% | M62: 227 | N62: 79% | O62: 54% | P62: 232 | Q62: 28% | R62: 13% | S62: 12 | T62: 46% | U62: 42% | V62: 38 | W62: 51% | X62: 44% | Y62: 13
A63: 262 | B63: MARNE-ARDENNES | C63: 11 | D63: REIMS | E63: 551340 | F63: BETHENY | G63: 3.0 | H63: 45% | I63: 26% | J63: 54 | K63: 49% | L63: 36% | M63: 57 | N63: 58% | O63: 32% | P63: 38 | Q63: 47% | R63: 32% | S63: 115 | T63: 86% | U63: 83% | V63: 251 | W63: 49% | X63: 42% | Y63: 8
A64: 262 | B64: MEURTHE ET MOSELLE MEUSE | C64: 31 | D64: VERDUN | E64: 555624 | F64: STENAY | G64: 3.0 | H64: 45% | I64: 26% | J64: 55 | K64: 66% | L64: 53% | M64: 147 | N64: 50% | O64: 25% | P64: 19 | Q64: 45% | R64: 30% | S64: 97 | T64: 60% | U64: 57% | V64: 90 | W64: 69% | X64: 62% | Y64: 86
A65: 262 | B65: MOSELLE | C65: 44 | D65: MOSELLE NORD | E65: 557347 | F65: GUENANGE | G65: 2.6 | H65: 45% | I65: 26% | J65: 56 | K65: 67% | L65: 54% | M65: 153 | N65: 65% | O65: 39% | P65: 94 | Q65: 46% | R65: 31% | S65: 104 | T65: 62% | U65: 59% | V65: 98 | W65: 51% | X65: 44% | Y65: 12
A66: 262 | B66: AUBE HAUTE MARNE | C66: 21 | D66: CHAUMONT | E66: 410566 | F66: CHAUMONT HOTEL DE VILLE | G66: 7.6 | H66: 45% | I66: 26% | J66: 57 | K66: 48% | L66: 35% | M66: 50 | N66: 65% | O66: 39% | P66: 96 | Q66: 50% | R66: 35% | S66: 145 | T66: 56% | U66: 53% | V66: 72 | W66: 72% | X66: 65% | Y66: 113
A67: 262 | B67: MEURTHE ET MOSELLE MEUSE | C67: 26 | D67: NANCY | E67: 554266 | F67: DOMBASLE SUR MEURTHE | G67: 3.7 | H67: 46% | I67: 26% | J67: 58 | K67: 67% | L67: 54% | M67: 155 | N67: 79% | O67: 53% | P67: 231 | Q67: 20% | R67: 5% | S67: 4 | T67: 72% | U67: 69% | V67: 170 | W67: 54% | X67: 47% | Y67: 16
A68: 262 | B68: MOSELLE | C68: 42 | D68: MOSELLE EST | E68: 557503 | F68: NEUNKIRCH | G68: 4.2 | H68: 46% | I68: 27% | J68: 59 | K68: 29% | L68: 15% | M68: 10 | N68: 68% | O68: 43% | P68: 135 | Q68: 45% | R68: 30% | S68: 92 | T68: 76% | U68: 73% | V68: 197 | W68: 76% | X68: 69% | Y68: 166
A69: 262 | B69: MEURTHE ET MOSELLE MEUSE | C69: 26 | D69: NANCY | E69: 554476 | F69: NANCY ARTEM | G69: 2.6 | H69: 46% | I69: 27% | J69: 60 | K69: 59% | L69: 46% | M69: 103 | N69: 70% | O69: 44% | P69: 146 | Q69: 45% | R69: 30% | S69: 96 | T69: 53% | U69: 50% | V69: 61 | W69: 67% | X69: 60% | Y69: 72
A70: 262 | B70: MARNE-ARDENNES | C70: 11 | D70: REIMS | E70: 451361 | F70: PIERRY LECLERC | G70: 2.0 | H70: 46% | I70: 27% | J70: 61 | K70: 24% | L70: 11% | M70: 7 | N70: 66% | O70: 40% | P70: 101 | Q70: 68% | R70: 52% | S70: 259 | T70: 62% | U70: 59% | V70: 103 | W70: 76% | X70: 69% | Y70: 168
A71: 262 | B71: MEURTHE ET MOSELLE MEUSE | C71: 27 | D71: PONT A MOUSSON | E71: 454535 | F71: PONT A MOUSSON CENTRALE | G71: 8.1 | H71: 46% | I71: 27% | J71: 62 | K71: 75% | L71: 62% | M71: 188 | N71: 54% | O71: 28% | P71: 29 | Q71: 49% | R71: 33% | S71: 126 | T71: 49% | U71: 46% | V71: 48 | W71: 69% | X71: 62% | Y71: 87
A72: 262 | B72: MOSELLE | C72: 42 | D72: MOSELLE EST | E72: 457308 | F72: FORBACH CENTRALE | G72: 12.0 | H72: 46% | I72: 27% | J72: 63 | K72: 63% | L72: 50% | M72: 124 | N72: 57% | O72: 31% | P72: 33 | Q72: 45% | R72: 30% | S72: 95 | T72: 63% | U72: 59% | V72: 108 | W72: 68% | X72: 61% | Y72: 83
A73: 262 | B73: MARNE-ARDENNES | C73: 6 | D73: CHALONS EN CHAMPAGNE | E73: 551354 | F73: VERTUS | G73: 2.5 | H73: 46% | I73: 27% | J73: 64 | K73: 23% | L73: 9% | M73: 6 | N73: 77% | O73: 51% | P73: 209 | Q73: 53% | R73: 38% | S73: 174 | T73: 65% | U73: 61% | V73: 121 | W73: 79% | X73: 72% | Y73: 204
A74: 262 | B74: BAS-RHIN | C74: 5006 | D74: STRASBOURG | E74: 4038 | F74: OBERHAUSBERGEN | G74: 5.0 | H74: 46% | I74: 27% | J74: 65 | K74: 63% | L74: 50% | M74: 125 | N74: 60% | O74: 35% | P74: 50 | Q74: 47% | R74: 32% | S74: 108 | T74: 64% | U74: 61% | V74: 115 | W74: 62% | X74: 56% | Y74: 47
A75: 262 | B75: MARNE-ARDENNES | C75: 11 | D75: REIMS | E75: 551367 | F75: AY CHAMPAGNE | G75: 3.0 | H75: 46% | I75: 27% | J75: 66 | K75: 57% | L75: 44% | M75: 90 | N75: 49% | O75: 23% | P75: 15 | Q75: 52% | R75: 37% | S75: 157 | T75: 78% | U75: 75% | V75: 209 | W75: 60% | X75: 54% | Y75: 40
A76: 262 | B76: VOSGES | C76: 55 | D76: SAINT DIE | E76: 488326 | F76: GERARDMER | G76: 5.9 | H76: 47% | I76: 27% | J76: 67 | K76: 36% | L76: 22% | M76: 20 | N76: 71% | O76: 45% | P76: 156 | Q76: 42% | R76: 27% | S76: 68 | T76: 77% | U76: 74% | V76: 201 | W76: 73% | X76: 66% | Y76: 125
A77: 262 | B77: BAS-RHIN | C77: 5060 | D77: HAGUENAU | E77: 4079 | F77: SOULTZ SOUS FORETS | G77: 1.6 | H77: 47% | I77: 27% | J77: 68 | K77: 44% | L77: 31% | M77: 37 | N77: 62% | O77: 36% | P77: 68 | Q77: 58% | R77: 43% | S77: 225 | T77: 73% | U77: 70% | V77: 175 | W77: 61% | X77: 54% | Y77: 41
A78: 262 | B78: MARNE-ARDENNES | C78: 2 | D78: CHARLEVILLE MEZIERES | E78: 508819 | F78: MOUZON | G78: 2.0 | H78: 47% | I78: 27% | J78: 69 | K78: 51% | L78: 38% | M78: 65 | N78: 77% | O78: 51% | P78: 210 | Q78: 37% | R78: 21% | S78: 36 | T78: 78% | U78: 75% | V78: 212 | W78: 55% | X78: 48% | Y78: 19
A79: 262 | B79: BAS-RHIN | C79: 5006 | D79: STRASBOURG | E79: 4024 | F79: STRASBOURG AUSTERLITZ | G79: 2.0 | H79: 47% | I79: 27% | J79: 70 | K79: 107% | L79: 94% | M79: 264 | N79: 48% | O79: 22% | P79: 14 | Q79: 36% | R79: 20% | S79: 29 | T79: 51% | U79: 48% | V79: 52 | W79: 57% | X79: 50% | Y79: 24
A80: 262 | B80: MARNE-ARDENNES | C80: 2 | D80: CHARLEVILLE MEZIERES | E80: 408801 | F80: CHARLEVILLE JEAN JAURES | G80: 9.7 | H80: 47% | I80: 27% | J80: 71 | K80: 62% | L80: 49% | M80: 119 | N80: 65% | O80: 39% | P80: 95 | Q80: 39% | R80: 24% | S80: 48 | T80: 77% | U80: 74% | V80: 200 | W80: 56% | X80: 49% | Y80: 21
A81: 262 | B81: MEURTHE ET MOSELLE MEUSE | C81: 26 | D81: NANCY | E81: 454671 | F81: VANDOEUVRE LES NANCY | G81: 4.6 | H81: 47% | I81: 28% | J81: 72 | K81: 58% | L81: 44% | M81: 95 | N81: 59% | O81: 33% | P81: 41 | Q81: 68% | R81: 53% | S81: 261 | T81: 56% | U81: 53% | V81: 75 | W81: 59% | X81: 52% | Y81: 29
A82: 262 | B82: MEURTHE ET MOSELLE MEUSE | C82: 27 | D82: PONT A MOUSSON | E82: 554257 | F82: DIEULOUARD | G82: 3.4 | H82: 47% | I82: 28% | J82: 73 | K82: 39% | L82: 26% | M82: 30 | N82: 75% | O82: 50% | P82: 201 | Q82: 53% | R82: 38% | S82: 177 | T82: 60% | U82: 57% | V82: 88 | W82: 72% | X82: 65% | Y82: 117
A83: 264 | B83: BAS-RHIN | C83: 5006 | D83: STRASBOURG | E83: 4027 | F83: SCHILTIGHEIM CENTRE | G83: 3.8 | H83: 47% | I83: 28% | J83: 74 | K83: 75% | L83: 61% | M83: 183 | N83: 56% | O83: 30% | P83: 30 | Q83: 32% | R83: 17% | S83: 20 | T83: 75% | U83: 72% | V83: 189 | W83: 62% | X83: 55% | Y83: 45
A84: 264 | B84: BAS-RHIN | C84: 5060 | D84: HAGUENAU | E84: 4082 | F84: BOUXWILLER | G84: 2.9 | H84: 47% | I84: 28% | J84: 75 | K84: 53% | L84: 40% | M84: 70 | N84: 72% | O84: 46% | P84: 165 | Q84: 37% | R84: 21% | S84: 34 | T84: 67% | U84: 64% | V84: 137 | W84: 72% | X84: 65% | Y84: 118
A85: 264 | B85: VOSGES | C85: 57 | D85: EPINAL | E85: 588206 | F85: CHARMES | G85: 2.8 | H85: 47% | I85: 28% | J85: 76 | K85: 66% | L85: 53% | M85: 148 | N85: 74% | O85: 48% | P85: 189 | Q85: 42% | R85: 26% | S85: 64 | T85: 47% | U85: 43% | V85: 40 | W85: 72% | X85: 65% | Y85: 119
A86: 264 | B86: HAUT-RHIN | C86: 5130 | D86: COLMAR | E86: 4144 | F86: RIBEAUVILLE | G86: 3.0 | H86: 47% | I86: 28% | J86: 77 | K86: 71% | L86: 57% | M86: 169 | N86: 56% | O86: 30% | P86: 31 | Q86: 49% | R86: 33% | S86: 125 | T86: 44% | U86: 40% | V86: 31 | W86: 82% | X86: 75% | Y86: 234
A87: 264 | B87: MEURTHE ET MOSELLE MEUSE | C87: 31 | D87: VERDUN | E87: 455298 | F87: ETAIN | G87: 1.7 | H87: 47% | I87: 28% | J87: 78 | K87: 57% | L87: 44% | M87: 94 | N87: 99% | O87: 74% | P87: 272 | Q87: 63% | R87: 48% | S87: 251 | T87: 15% | U87: 12% | V87: 4 | W87: 66% | X87: 59% | Y87: 65
A88: 264 | B88: MEURTHE ET MOSELLE MEUSE | C88: 31 | D88: VERDUN | E88: 455231 | F88: COMMERCY | G88: 4.4 | H88: 47% | I88: 28% | J88: 79 | K88: 68% | L88: 55% | M88: 160 | N88: 68% | O88: 42% | P88: 131 | Q88: 54% | R88: 39% | S88: 188 | T88: 51% | U88: 48% | V88: 51 | W88: 60% | X88: 53% | Y88: 33
A89: 264 | B89: MARNE-ARDENNES | C89: 11 | D89: REIMS | E89: 551314 | F89: FISMES | G89: 3.0 | H89: 48% | I89: 28% | J89: 80 | K89: 54% | L89: 41% | M89: 77 | N89: 65% | O89: 40% | P89: 100 | Q89: 45% | R89: 29% | S89: 89 | T89: 70% | U89: 67% | V89: 157 | W89: 68% | X89: 61% | Y89: 80
A90: 264 | B90: MEURTHE ET MOSELLE MEUSE | C90: 31 | D90: VERDUN | E90: 455456 | F90: MONTMEDY | G90: 1.8 | H90: 48% | I90: 28% | J90: 81 | K90: 52% | L90: 39% | M90: 68 | N90: 70% | O90: 44% | P90: 144 | Q90: 63% | R90: 47% | S90: 249 | T90: 58% | U90: 55% | V90: 82 | W90: 60% | X90: 53% | Y90: 36
A91: 264 | B91: BAS-RHIN | C91: 5006 | D91: STRASBOURG | E91: 4054 | F91: STRASBOURG MONTAGNE VERTE | G91: 2.8 | H91: 48% | I91: 29% | J91: 82 | K91: 100% | L91: 87% | M91: 257 | N91: 63% | O91: 38% | P91: 83 | Q91: 58% | R91: 42% | S91: 223 | T91: 22% | U91: 19% | V91: 9 | W91: 60% | X91: 53% | Y91: 38
A92: 264 | B92: VOSGES | C92: 57 | D92: EPINAL | E92: 588336 | F92: GOLBEY | G92: 3.3 | H92: 48% | I92: 29% | J92: 83 | K92: 55% | L92: 42% | M92: 82 | N92: 76% | O92: 50% | P92: 207 | Q92: 43% | R92: 27% | S92: 73 | T92: 65% | U92: 62% | V92: 126 | W92: 65% | X92: 58% | Y92: 58
A93: 264 | B93: BAS-RHIN | C93: 5006 | D93: STRASBOURG | E93: 4043 | F93: STRASBOURG HALLES | G93: 8.9 | H93: 48% | I93: 29% | J93: 84 | K93: 82% | L93: 68% | M93: 217 | N93: 58% | O93: 32% | P93: 35 | Q93: 38% | R93: 23% | S93: 42 | T93: 63% | U93: 60% | V93: 109 | W93: 64% | X93: 57% | Y93: 56
A94: 264 | B94: MARNE-ARDENNES | C94: 11 | D94: REIMS | E94: 551365 | F94: DORMANS | G94: 2.8 | H94: 48% | I94: 29% | J94: 85 | K94: 20% | L94: 7% | M94: 4 | N94: 78% | O94: 53% | P94: 223 | Q94: 54% | R94: 38% | S94: 182 | T94: 79% | U94: 76% | V94: 217 | W94: 74% | X94: 67% | Y94: 135
A95: 264 | B95: MOSELLE | C95: 45 | D95: METZ | E95: 557712 | F95: WOIPPY | G95: 5.1 | H95: 48% | I95: 29% | J95: 86 | K95: 70% | L95: 56% | M95: 167 | N95: 63% | O95: 38% | P95: 82 | Q95: 58% | R95: 43% | S95: 227 | T95: 43% | U95: 40% | V95: 29 | W95: 71% | X95: 64% | Y95: 110
A96: 264 | B96: MOSELLE | C96: 42 | D96: MOSELLE EST | E96: 457617 | F96: SARREGUEMINES | G96: 7.9 | H96: 48% | I96: 29% | J96: 87 | K96: 62% | L96: 49% | M96: 118 | N96: 62% | O96: 36% | P96: 65 | Q96: 40% | R96: 25% | S96: 56 | T96: 66% | U96: 62% | V96: 130 | W96: 75% | X96: 68% | Y96: 161
A97: 264 | B97: BAS-RHIN | C97: 5060 | D97: HAGUENAU | E97: 4085 | F97: INGWILLER | G97: 3.5 | H97: 48% | I97: 29% | J97: 88 | K97: 67% | L97: 54% | M97: 151 | N97: 47% | O97: 21% | P97: 12 | Q97: 55% | R97: 39% | S97: 190 | T97: 62% | U97: 59% | V97: 100 | W97: 76% | X97: 69% | Y97: 171
A98: 264 | B98: AUBE HAUTE MARNE | C98: 21 | D98: CHAUMONT | E98: 451151 | F98: WASSY | G98: 2.0 | H98: 48% | I98: 29% | J98: 89 | K98: 65% | L98: 52% | M98: 143 | N98: 67% | O98: 42% | P98: 117 | Q98: 70% | R98: 55% | S98: 264 | T98: 44% | U98: 41% | V98: 33 | W98: 60% | X98: 53% | Y98: 34
A99: 264 | B99: MARNE-ARDENNES | C99: 11 | D99: REIMS | E99: 551369 | F99: DAMERY | G99: 3.0 | H99: 48% | I99: 29% | J99: 90 | K99: 50% | L99: 37% | M99: 60 | N99: 82% | O99: 56% | P99: 247 | Q99: 50% | R99: 34% | S99: 136 | T99: 52% | U99: 49% | V99: 58 | W99: 73% | X99: 66% | Y99: 128
A100: 264 | B100: MOSELLE | C100: 45 | D100: METZ | E100: 557105 | F100: ARS SUR MOSELLE | G100: 4.2 | H100: 49% | I100: 29% | J100: 91 | K100: 64% | L100: 50% | M100: 132 | N100: 76% | O100: 50% | P100: 203 | Q100: 58% | R100: 43% | S100: 229 | T100: 60% | U100: 57% | V100: 89 | W100: 50% | X100: 43% | Y100: 11
A101: 264 | B101: BAS-RHIN | C101: 5101 | D101: SELESTAT | E101: 4126 | F101: MUTZIG | G101: 3.0 | H101: 49% | I101: 29% | J101: 92 | K101: 69% | L101: 55% | M101: 161 | N101: 62% | O101: 36% | P101: 66 | Q101: 66% | R101: 50% | S101: 257 | T101: 62% | U101: 58% | V101: 95 | W101: 50% | X101: 43% | Y101: 10
A102: 264 | B102: VOSGES | C102: 55 | D102: SAINT DIE | E102: 588386 | F102: LE THILLOT | G102: 3.0 | H102: 49% | I102: 29% | J102: 93 | K102: 64% | L102: 51% | M102: 137 | N102: 75% | O102: 49% | P102: 191 | Q102: 48% | R102: 33% | S102: 120 | T102: 40% | U102: 37% | V102: 23 | W102: 81% | X102: 74% | Y102: 226
A103: 264 | B103: HAUT-RHIN | C103: 5130 | D103: COLMAR | E103: 4157 | F103: NEUF BRISACH | G103: 3.8 | H103: 49% | I103: 29% | J103: 94 | K103: 78% | L103: 65% | M103: 202 | N103: 79% | O103: 53% | P103: 229 | Q103: 35% | R103: 20% | S103: 25 | T103: 43% | U103: 39% | V103: 27 | W103: 74% | X103: 67% | Y103: 142
A104: 264 | B104: AUBE HAUTE MARNE | C104: 21 | D104: CHAUMONT | E104: 451154 | F104: JOINVILLE | G104: 2.0 | H104: 49% | I104: 29% | J104: 95 | K104: 19% | L104: 5% | M104: 3 | N104: 78% | O104: 52% | P104: 217 | Q104: 61% | R104: 46% | S104: 244 | T104: 74% | U104: 71% | V104: 183 | W104: 77% | X104: 70% | Y104: 177
A105: 264 | B105: VOSGES | C105: 57 | D105: EPINAL | E105: 488561 | F105: REMIREMONT | G105: 6.4 | H105: 49% | I105: 30% | J105: 96 | K105: 53% | L105: 40% | M105: 71 | N105: 73% | O105: 47% | P105: 173 | Q105: 46% | R105: 31% | S105: 105 | T105: 63% | U105: 60% | V105: 110 | W105: 74% | X105: 67% | Y105: 134
A106: 264 | B106: VOSGES | C106: 57 | D106: EPINAL | E106: 488451 | F106: MIRECOURT | G106: 5.0 | H106: 49% | I106: 30% | J106: 97 | K106: 80% | L106: 66% | M106: 210 | N106: 70% | O106: 44% | P106: 145 | Q106: 36% | R106: 21% | S106: 32 | T106: 51% | U106: 47% | V106: 50 | W106: 73% | X106: 66% | Y106: 131
A107: 264 | B107: VOSGES | C107: 55 | D107: SAINT DIE | E107: 588551 | F107: RAMBERVILLERS | G107: 4.0 | H107: 49% | I107: 30% | J107: 98 | K107: 21% | L107: 8% | M107: 5 | N107: 85% | O107: 60% | P107: 259 | Q107: 58% | R107: 43% | S107: 226 | T107: 70% | U107: 66% | V107: 155 | W107: 75% | X107: 68% | Y107: 159
A108: 30 | B108: MARNE-ARDENNES | C108: 6 | D108: CHALONS EN CHAMPAGNE | E108: 451101 | F108: CHALONS VIVIERS | G108: 8.6 | H108: 49% | I108: 30% | J108: 99 | K108: 45% | L108: 32% | M108: 42 | N108: 61% | O108: 35% | P108: 55 | Q108: 56% | R108: 41% | S108: 205 | T108: 83% | U108: 80% | V108: 240 | W108: 65% | X108: 58% | Y108: 59
A109: 30 | B109: BAS-RHIN | C109: 5006 | D109: STRASBOURG | E109: 4020 | F109: STRASBOURG ROBERTSAU | G109: 5.7 | H109: 49% | I109: 30% | J109: 100 | K109: 53% | L109: 40% | M109: 72 | N109: 59% | O109: 33% | P109: 42 | Q109: 47% | R109: 32% | S109: 111 | T109: 75% | U109: 72% | V109: 191 | W109: 75% | X109: 68% | Y109: 157
A110: 30 | B110: VOSGES | C110: 57 | D110: EPINAL | E110: 588501 | F110: NEUFCHATEAU | G110: 5.0 | H110: 49% | I110: 30% | J110: 101 | K110: 55% | L110: 42% | M110: 81 | N110: 75% | O110: 49% | P110: 192 | Q110: 43% | R110: 27% | S110: 75 | T110: 72% | U110: 68% | V110: 162 | W110: 66% | X110: 59% | Y110: 67
A111: 30 | B111: MARNE-ARDENNES | C111: 11 | D111: REIMS | E111: 451350 | F111: REIMS CENTRE VILLE | G111: 7.6 | H111: 49% | I111: 30% | J111: 102 | K111: 73% | L111: 60% | M111: 178 | N111: 68% | O111: 42% | P111: 126 | Q111: 45% | R111: 29% | S111: 91 | T111: 65% | U111: 62% | V111: 123 | W111: 60% | X111: 53% | Y111: 35
A112: 30 | B112: BAS-RHIN | C112: 5006 | D112: STRASBOURG | E112: 4006 | F112: STRASBOURG NEUDORF | G112: 9.0 | H112: 49% | I112: 30% | J112: 103 | K112: 72% | L112: 59% | M112: 174 | N112: 53% | O112: 27% | P112: 24 | Q112: 53% | R112: 37% | S112: 164 | T112: 54% | U112: 51% | V112: 65 | W112: 79% | X112: 72% | Y112: 203
A113: 30 | B113: VOSGES | C113: 55 | D113: SAINT DIE | E113: 488586 | F113: SAINT DIE | G113: 11.6 | H113: 49% | I113: 30% | J113: 104 | K113: 59% | L113: 46% | M113: 102 | N113: 71% | O113: 45% | P113: 162 | Q113: 36% | R113: 21% | S113: 31 | T113: 66% | U113: 62% | V113: 131 | W113: 79% | X113: 72% | Y113: 199
A114: 30 | B114: BAS-RHIN | C114: 5101 | D114: SELESTAT | E114: 4119 | F114: OBERNAI | G114: 4.3 | H114: 49% | I114: 30% | J114: 105 | K114: 93% | L114: 80% | M114: 246 | N114: 50% | O114: 24% | P114: 18 | Q114: 45% | R114: 30% | S114: 93 | T114: 42% | U114: 39% | V114: 24 | W114: 81% | X114: 74% | Y114: 224
A115: 30 | B115: MARNE-ARDENNES | C115: 2 | D115: CHARLEVILLE MEZIERES | E115: 508802 | F115: CHARLEVILLE NEVERS | G115: 3.0 | H115: 49% | I115: 30% | J115: 106 | K115: 33% | L115: 20% | M115: 15 | N115: 77% | O115: 51% | P115: 213 | Q115: 59% | R115: 44% | S115: 233 | T115: 68% | U115: 65% | V115: 142 | W115: 74% | X115: 67% | Y115: 139
A116: 30 | B116: MEURTHE ET MOSELLE MEUSE | C116: 31 | D116: VERDUN | E116: 554700 | F116: VILLERUPT | G116: 2.8 | H116: 49% | I116: 30% | J116: 107 | K116: 41% | L116: 28% | M116: 35 | N116: 66% | O116: 41% | P116: 106 | Q116: 53% | R116: 38% | S116: 178 | T116: 84% | U116: 81% | V116: 246 | W116: 66% | X116: 59% | Y116: 68
A117: 30 | B117: BAS-RHIN | C117: 5101 | D117: SELESTAT | E117: 4116 | F117: MOLSHEIM | G117: 5.1 | H117: 50% | I117: 30% | J117: 108 | K117: 82% | L117: 69% | M117: 221 | N117: 66% | O117: 40% | P117: 102 | Q117: 28% | R117: 12% | S117: 11 | T117: 65% | U117: 62% | V117: 124 | W117: 72% | X117: 65% | Y117: 115
A118: 30 | B118: MEURTHE ET MOSELLE MEUSE | C118: 31 | D118: VERDUN | E118: 554413 | F118: LONGWY BAS | G118: 4.1 | H118: 50% | I118: 30% | J118: 109 | K118: 33% | L118: 20% | M118: 17 | N118: 75% | O118: 50% | P118: 199 | Q118: 49% | R118: 34% | S118: 127 | T118: 84% | U118: 81% | V118: 243 | W118: 71% | X118: 64% | Y118: 109
A119: 30 | B119: MOSELLE | C119: 42 | D119: MOSELLE EST | E119: 457258 | F119: DIEUZE | G119: 3.1 | H119: 50% | I119: 30% | J119: 110 | K119: 48% | L119: 35% | M119: 51 | N119: 62% | O119: 36% | P119: 67 | Q119: 55% | R119: 40% | S119: 195 | T119: 65% | U119: 62% | V119: 127 | W119: 82% | X119: 75% | Y119: 236
A120: 30 | B120: MARNE-ARDENNES | C120: 11 | D120: REIMS | E120: 451336 | F120: TINQUEUX | G120: 5.9 | H120: 50% | I120: 30% | J120: 111 | K120: 61% | L120: 48% | M120: 114 | N120: 67% | O120: 41% | P120: 108 | Q120: 45% | R120: 30% | S120: 98 | T120: 78% | U120: 75% | V120: 204 | W120: 62% | X120: 55% | Y120: 44
A121: 30 | B121: VOSGES | C121: 57 | D121: EPINAL | E121: 488291 | F121: EPINAL AVRINSART | G121: 1.8 | H121: 50% | I121: 30% | J121: 112 | K121: 51% | L121: 38% | M121: 63 | N121: 86% | O121: 61% | P121: 262 | Q121: 56% | R121: 41% | S121: 207 | T121: 56% | U121: 53% | V121: 70 | W121: 64% | X121: 57% | Y121: 55
A122: 30 | B122: MARNE-ARDENNES | C122: 2 | D122: CHARLEVILLE MEZIERES | E122: 508815 | F122: CARIGNAN | G122: 3.0 | H122: 50% | I122: 31% | J122: 113 | K122: 67% | L122: 54% | M122: 154 | N122: 63% | O122: 37% | P122: 74 | Q122: 32% | R122: 17% | S122: 19 | T122: 80% | U122: 77% | V122: 224 | W122: 72% | X122: 65% | Y122: 120
A123: 30 | B123: MEURTHE ET MOSELLE MEUSE | C123: 31 | D123: VERDUN | E123: 455566 | F123: REVIGNY SUR ORNAIN | G123: 3.9 | H123: 50% | I123: 31% | J123: 114 | K123: 38% | L123: 25% | M123: 25 | N123: 63% | O123: 37% | P123: 77 | Q123: 65% | R123: 50% | S123: 256 | T123: 69% | U123: 65% | V123: 146 | W123: 80% | X123: 73% | Y123: 210
A124: 30 | B124: BAS-RHIN | C124: 5060 | D124: HAGUENAU | E124: 4087 | F124: SAVERNE | G124: 8.4 | H124: 50% | I124: 31% | J124: 115 | K124: 97% | L124: 84% | M124: 251 | N124: 61% | O124: 35% | P124: 54 | Q124: 40% | R124: 25% | S124: 53 | T124: 49% | U124: 45% | V124: 44 | W124: 68% | X124: 61% | Y124: 82
A125: 30 | B125: MOSELLE | C125: 42 | D125: MOSELLE EST | E125: 557305 | F125: FAULQUEMONT | G125: 2.1 | H125: 50% | I125: 31% | J125: 116 | K125: 70% | L125: 57% | M125: 168 | N125: 74% | O125: 48% | P125: 188 | Q125: 51% | R125: 36% | S125: 150 | T125: 37% | U125: 34% | V125: 19 | W125: 82% | X125: 75% | Y125: 233
A126: 30 | B126: AUBE HAUTE MARNE | C126: 21 | D126: CHAUMONT | E126: 410541 | F126: LANGRES | G126: 6.7 | H126: 50% | I126: 31% | J126: 117 | K126: 41% | L126: 27% | M126: 33 | N126: 75% | O126: 49% | P126: 197 | Q126: 62% | R126: 46% | S126: 245 | T126: 65% | U126: 61% | V126: 118 | W126: 72% | X126: 65% | Y126: 123
A127: 30 | B127: VOSGES | C127: 57 | D127: EPINAL | E127: 488281 | F127: ELOYES | G127: 4.8 | H127: 50% | I127: 31% | J127: 118 | K127: 61% | L127: 48% | M127: 109 | N127: 76% | O127: 50% | P127: 206 | Q127: 54% | R127: 38% | S127: 180 | T127: 54% | U127: 51% | V127: 63 | W127: 71% | X127: 64% | Y127: 102
A128: 30 | B128: AUBE HAUTE MARNE | C128: 21 | D128: CHAUMONT | E128: 451156 | F128: SAINT DIZIER CENTRE | G128: 7.0 | H128: 50% | I128: 31% | J128: 119 | K128: 66% | L128: 53% | M128: 150 | N128: 71% | O128: 46% | P128: 163 | Q128: 41% | R128: 26% | S128: 60 | T128: 62% | U128: 58% | V128: 94 | W128: 75% | X128: 68% | Y128: 154
A129: 30 | B129: HAUT-RHIN | C129: 5169 | D129: MULHOUSE | E129: 4181 | F129: WITTELSHEIM | G129: 3.5 | H129: 50% | I129: 31% | J129: 120 | K129: 60% | L129: 47% | M129: 106 | N129: 81% | O129: 55% | P129: 242 | Q129: 45% | R129: 29% | S129: 90 | T129: 71% | U129: 68% | V129: 160 | W129: 59% | X129: 52% | Y129: 30
A130: 30 | B130: MOSELLE | C130: 42 | D130: MOSELLE EST | E130: 457165 | F130: BITCHE | G130: 2.1 | H130: 50% | I130: 31% | J130: 121 | K130: 62% | L130: 49% | M130: 120 | N130: 60% | O130: 35% | P130: 51 | Q130: 76% | R130: 61% | S130: 269 | T130: 45% | U130: 42% | V130: 35 | W130: 73% | X130: 66% | Y130: 126
A131: 30 | B131: MOSELLE | C131: 44 | D131: MOSELLE NORD | E131: 557352 | F131: HETTANGE GRANDE | G131: 4.3 | H131: 50% | I131: 31% | J131: 122 | K131: 92% | L131: 79% | M131: 244 | N131: 53% | O131: 27% | P131: 28 | Q131: 48% | R131: 33% | S131: 122 | T131: 55% | U131: 52% | V131: 69 | W131: 67% | X131: 60% | Y131: 77
A132: 30 | B132: MOSELLE | C132: 44 | D132: MOSELLE NORD | E132: 457192 | F132: CATTENOM | G132: 2.9 | H132: 50% | I132: 31% | J132: 123 | K132: 71% | L132: 58% | M132: 171 | N132: 65% | O132: 39% | P132: 99 | Q132: 35% | R132: 19% | S132: 23 | T132: 70% | U132: 67% | V132: 156 | W132: 75% | X132: 68% | Y132: 160
A133: 30 | B133: AUBE HAUTE MARNE | C133: 14 | D133: TROYES | E133: 410571 | F133: ROMILLY SUR SEINE | G133: 6.1 | H133: 50% | I133: 31% | J133: 124 | K133: 61% | L133: 48% | M133: 113 | N133: 61% | O133: 35% | P133: 56 | Q133: 57% | R133: 42% | S133: 219 | T133: 72% | U133: 69% | V133: 165 | W133: 65% | X133: 58% | Y133: 61
A134: 30 | B134: MARNE-ARDENNES | C134: 6 | D134: CHALONS EN CHAMPAGNE | E134: 451120 | F134: SARRY | G134: 2.5 | H134: 50% | I134: 31% | J134: 125 | K134: 44% | L134: 30% | M134: 36 | N134: 68% | O134: 42% | P134: 134 | Q134: 47% | R134: 31% | S134: 106 | T134: 80% | U134: 77% | V134: 227 | W134: 78% | X134: 71% | Y134: 194
A135: 30 | B135: MARNE-ARDENNES | C135: 11 | D135: REIMS | E135: 451370 | F135: EPERNAY | G135: 11.7 | H135: 51% | I135: 31% | J135: 126 | K135: 47% | L135: 34% | M135: 47 | N135: 66% | O135: 40% | P135: 104 | Q135: 58% | R135: 42% | S135: 221 | T135: 73% | U135: 69% | V135: 171 | W135: 75% | X135: 68% | Y135: 155
A136: 30 | B136: MOSELLE | C136: 42 | D136: MOSELLE EST | E136: 557523 | F136: PHALSBOURG | G136: 2.3 | H136: 51% | I136: 32% | J136: 127 | K136: 49% | L136: 36% | M136: 55 | N136: 83% | O136: 57% | P136: 250 | Q136: 37% | R136: 21% | S136: 37 | T136: 78% | U136: 75% | V136: 211 | W136: 73% | X136: 66% | Y136: 124
A137: 30 | B137: BAS-RHIN | C137: 5060 | D137: HAGUENAU | E137: 4057 | F137: BISCHWILLER | G137: 6.8 | H137: 51% | I137: 32% | J137: 128 | K137: 75% | L137: 62% | M137: 187 | N137: 68% | O137: 42% | P137: 128 | Q137: 55% | R137: 39% | S137: 193 | T137: 44% | U137: 41% | V137: 34 | W137: 78% | X137: 71% | Y137: 188
A138: 30 | B138: MOSELLE | C138: 45 | D138: METZ | E138: 557434 | F138: MARLY | G138: 4.0 | H138: 51% | I138: 32% | J138: 129 | K138: 41% | L138: 27% | M138: 34 | N138: 69% | O138: 43% | P138: 142 | Q138: 44% | R138: 29% | S138: 85 | T138: 82% | U138: 78% | V138: 231 | W138: 85% | X138: 78% | Y138: 249
A139: 30 | B139: MARNE-ARDENNES | C139: 2 | D139: CHARLEVILLE MEZIERES | E139: 508817 | F139: CHARLEVILLE MOHON | G139: 3.1 | H139: 51% | I139: 32% | J139: 130 | K139: 49% | L139: 35% | M139: 54 | N139: 74% | O139: 48% | P139: 185 | Q139: 56% | R139: 41% | S139: 209 | T139: 68% | U139: 65% | V139: 140 | W139: 74% | X139: 67% | Y139: 136
A140: 30 | B140: MOSELLE | C140: 44 | D140: MOSELLE NORD | E140: 557660 | F140: UCKANGE | G140: 2.1 | H140: 51% | I140: 32% | J140: 131 | K140: 84% | L140: 71% | M140: 225 | N140: 76% | O140: 50% | P140: 208 | Q140: 51% | R140: 35% | S140: 149 | T140: 38% | U140: 35% | V140: 21 | W140: 72% | X140: 65% | Y140: 112
A141: 30 | B141: BAS-RHIN | C141: 5101 | D141: SELESTAT | E141: 4101 | F141: SELESTAT CENTRE | G141: 8.5 | H141: 51% | I141: 32% | J141: 132 | K141: 89% | L141: 76% | M141: 235 | N141: 53% | O141: 27% | P141: 26 | Q141: 43% | R141: 28% | S141: 81 | T141: 62% | U141: 59% | V141: 101 | W141: 74% | X141: 67% | Y141: 140
A142: 30 | B142: MEURTHE ET MOSELLE MEUSE | C142: 27 | D142: PONT A MOUSSON | E142: 554184 | F142: BRIEY | G142: 4.8 | H142: 51% | I142: 32% | J142: 133 | K142: 65% | L142: 52% | M142: 142 | N142: 75% | O142: 50% | P142: 200 | Q142: 35% | R142: 20% | S142: 26 | T142: 79% | U142: 76% | V142: 219 | W142: 67% | X142: 60% | Y142: 71
A143: 30 | B143: AUBE HAUTE MARNE | C143: 14 | D143: TROYES | E143: 510523 | F143: LA CHAPELLE ST LUC | G143: 5.7 | H143: 51% | I143: 32% | J143: 134 | K143: 82% | L143: 68% | M143: 218 | N143: 63% | O143: 37% | P143: 79 | Q143: 48% | R143: 33% | S143: 123 | T143: 49% | U143: 45% | V143: 45 | W143: 80% | X143: 73% | Y143: 217
